Workbook

Sheet AER Sheet Heading (hidden)
B1: =IF(dms_MultiYear_ResponseFlag="Yes","REGULATORY REPORTING STATEMENT - HISTORICAL INFORMATION",INDEX(dms_Worksheet_List,MATCH(dms_Model,dms_Model_List))) -> REGULATORY REPORTING STATEMENT
B2: =INDEX(dms_TradingNameFull_List,MATCH(dms_TradingName,dms_TradingName_List)) -> CitiPower
B3: =dms_Header_Span -> 2021-22 to 2025-26
B4: XX
C11: EXPENDITURE
C12: =CONCATENATE("Forecast ($0's, real ",dms_DollarReal,")") -> Forecast ($0's, real June 2021)
C13: =CRCP_y4 -> 2019-20 | D13: =CRCP_y5 -> 2020-21 | E13: =FRCP_y1 -> 2021-22 | F13: =FRCP_y2 -> 2022-23 | G13: =FRCP_y3 -> 2023-24 | H13: =FRCP_y4 -> 2024-25 | I13: =FRCP_y5 -> 2025-26
C42: VOLUMES
C43: 0's
C44: =CRCP_y4 -> 2019-20 | D44: =CRCP_y5 -> 2020-21 | E44: =FRCP_y1 -> 2021-22 | F44: =FRCP_y2 -> 2022-23 | G44: =FRCP_y3 -> 2023-24 | H44: =FRCP_y4 -> 2024-25 | I44: =FRCP_y5 -> 2025-26

Sheet AER CF (hidden)
B1: AER CONDITIONAL FORMATTING
B4: CONDITIONAL FORMATTING MAP
F5: =INDEX(dms_CF_3.6.1, MATCH(dms_TradingName,dms_CF_TradingName))="Y" | G5: =INDEX(dms_CF_3.6.5, MATCH(dms_TradingName,dms_CF_TradingName))="Y" | H5: =INDEX(dms_CF_3.6.6, MATCH(dms_TradingName,dms_CF_TradingName))="Y" | I5: =INDEX(dms_CF_3.6.7.1, MATCH(dms_TradingName,dms_CF_TradingName))="Y" | J5: =INDEX(dms_CF_3.6.7.2, MATCH(dms_TradingName,dms_CF_TradingName))="Y" | K5: =INDEX(dms_CF_3.6.7.3, MATCH(dms_TradingName,dms_CF_TradingName))="Y" | L5: =INDEX(dms_CF_3.6.7.4, MATCH(dms_TradingName,dms_CF_TradingName))="Y" | M5: =INDEX(dms_CF_3.6.8, MATCH(dms_TradingName,dms_CF_TradingName))="Y" | N5: =INDEX(dms_CF_4.1, MATCH(dms_TradingName,dms_CF_TradingName))="Y" | O5: =INDEX(dms_CF_6.6.1, MATCH(dms_TradingName,dms_CF_TradingName))="Y" | P5: =INDEX(dms_CF_6.8, MATCH(dms_TradingName,dms_CF_TradingName))="Y" | Q5: =INDEX(dms_CF_7.12, MATCH(dms_TradingName,dms_CF_TradingName))="Y" | R5: =INDEX(dms_CF_8.1_A, MATCH(dms_TradingName,dms_CF_TradingName))="Y" | S5: =INDEX(dms_CF_8.1_B, MATCH(dms_TradingName,dms_CF_TradingName))="Y" | T5: =INDEX(dms_CF_8.1_Neg, MATCH(dms_TradingName,dms_CF_TradingName))="Y" | U5: =INDEX(dms_CF_4.4.1_Neg, MATCH(dms_TradingName,dms_CF_TradingName))="Y"
B6: dms_CF_TradingName | C6: JurisdictionList | D6: Sector | E6: Segment | F6: dms_CF_3.6.1 | G6: dms_CF_3.6.5 | H6: dms_CF_3.6.6 | I6: dms_CF_3.6.7.1 | J6: dms_CF_3.6.7.2 | K6: dms_CF_3.6.7.3 | L6: dms_CF_3.6.7.4 | M6: dms_CF_3.6.8 | N6: dms_CF_4.1 | O6: dms_CF_6.6.1 | P6: dms_CF_6.8 | Q6: dms_CF_7.12 | R6: dms_CF_8.1_A | S6: dms_CF_8.1_B | T6: dms_CF_8.1_Neg | U6: dms_CF_4.4.1 | V6: dms_CF_MAIFI_flag | W6: Spare1 | X6: Spare2
B7: ActewAGL Distribution | C7: ACT | D7: Electricity | E7: Distribution | G7: Y | I7: Y | J7: Y | K7: N | L7: Y | M7: N | N7: N | O7: N | P7: Y | Q7: Y | R7: N | S7: Y | T7: Y | U7: N | V7: N | W7: N | X7: N
B8: Ausgrid | C8: NSW | D8: Electricity | E8: Distribution | G8: Y | I8: N | J8: N | K8: N | L8: Y | M8: N | N8: N | O8: N | P8: Y | Q8: Y | R8: N | S8: Y | T8: Y | U8: N | V8: N | W8: N | X8: N
B9: AusNet (D) | C9: Vic | D9: Electricity | E9: Distribution | G9: N | I9: N | J9: N | K9: N | L9: N | M9: N | N9: Y | O9: N | P9: Y | Q9: N | R9: N | S9: N | T9: Y | U9: N | V9: N | W9: N | X9: N
B10: AusNet (T) | C10: Vic | D10: Electricity | E10: Transmission | G10: N | I10: N | J10: N | K10: N | L10: N | M10: N | N10: Y | O10: N | P10: Y | Q10: N | R10: N | S10: N | T10: Y | U10: N | V10: N | W10: N | X10: N
B11: CitiPower | C11: Vic | D11: Electricity | E11: Distribution | G11: N | I11: N | J11: N | K11: N | L11: N | M11: N | N11: Y | O11: N | P11: Y | Q11: N | R11: N | S11: N | T11: Y | U11: N | V11: N | W11: N | X11: N
B12: Directlink | C12: Qld | D12: Electricity | E12: Transmission | G12: N | I12: N | J12: N | K12: N | L12: N | M12: N | N12: Y | O12: N | P12: Y | Q12: N | R12: N | S12: Y | T12: Y | U12: N | V12: N | W12: N | X12: N
B13: ElectraNet | C13: SA | D13: Electricity | E13: Transmission | G13: N | I13: N | J13: N | K13: N | L13: N | M13: N | N13: Y | O13: N | P13: Y | Q13: N | R13: N | S13: Y | T13: Y | U13: N | V13: N | W13: N | X13: N
B14: Endeavour Energy | C14: NSW | D14: Electricity | E14: Distribution | G14: Y | I14: N | J14: N | K14: N | L14: Y | M14: N | N14: N | O14: N | P14: Y | Q14: Y | R14: N | S14: Y | T14: Y | U14: Y | V14: N | W14: N | X14: N
B15: Energex | C15: Qld | D15: Electricity | E15: Distribution | G15: Y | I15: N | J15: N | K15: N | L15: N | M15: N | N15: N | O15: N | P15: Y | Q15: Y | R15: N | S15: Y | T15: Y | U15: Y | V15: N | W15: N | X15: N
B16: Ergon Energy | C16: Qld | D16: Electricity | E16: Distribution | G16: Y | I16: N | J16: N | K16: N | L16: N | M16: N | N16: N | O16: N | P16: Y | Q16: Y | R16: N | S16: Y | T16: Y | U16: N | V16: N | W16: N | X16: N
B17: Essential Energy | C17: NSW | D17: Electricity | E17: Distribution | G17: Y | I17: N | J17: N | K17: N | L17: Y | M17: N | N17: N | O17: N | P17: Y | Q17: Y | R17: N | S17: Y | T17: Y | U17: N | V17: N | W17: N | X17: N
B18: Jemena Electricity | C18: Vic | D18: Electricity | E18: Distribution | G18: N | I18: N | J18: N | K18: N | L18: N | M18: N | N18: Y | O18: N | P18: Y | Q18: N | R18: N | S18: N | T18: Y | U18: N | V18: N | W18: N | X18: N
B19: Murraylink | C19: SA | D19: Electricity | E19: Transmission | G19: N | I19: N | J19: N | K19: N | L19: N | M19: N | N19: Y | O19: N | P19: Y | Q19: N | R19: N | S19: Y | T19: Y | U19: N | V19: N | W19: N | X19: N
B20: Power and Water | C20: NT | D20: Electricity | E20: Distribution | G20: N | I20: N | J20: Y | K20: N | L20: N | M20: Y | N20: Y | O20: Y | P20: Y | Q20: Y | R20: N | S20: Y | T20: Y | U20: N | V20: N | W20: N | X20: N
B21: Powercor Australia | C21: Vic | D21: Electricity | E21: Distribution | G21: N | I21: N | J21: N | K21: N | L21: N | M21: N | N21: Y | O21: N | P21: Y | Q21: N | R21: N | S21: N | T21: Y | U21: N | V21: N | W21: N | X21: N
B22: Powerlink | C22: Qld | D22: Electricity | E22: Transmission | G22: N | I22: N | J22: N | K22: N | L22: N | M22: N | N22: Y | O22: N | P22: Y | Q22: N | R22: N | S22: Y | T22: Y | U22: N | V22: N | W22: N | X22: N
B23: SA Power Networks | C23: SA | D23: Electricity | E23: Distribution | G23: Y | I23: N | J23: N | K23: N | L23: N | M23: N | N23: Y | O23: N | P23: Y | Q23: Y | R23: Y | S23: Y | T23: N | U23: N | V23: N | W23: N | X23: N
B24: TasNetworks (D) | C24: Tas | D24: Electricity | E24: Distribution | G24: Y | I24: N | J24: N | K24: N | L24: N | M24: N | N24: N | O24: N | P24: Y | Q24: Y | R24: N | S24: Y | T24: Y | U24: N | V24: N | W24: N | X24: N
B25: TasNetworks (T) | C25: Tas | D25: Electricity | E25: Transmission | G25: N | I25: N | J25: N | K25: N | L25: N | M25: N | N25: Y | O25: N | P25: Y | Q25: N | R25: N | S25: Y | T25: Y | U25: N | V25: N | W25: N | X25: N
B26: TransGrid | C26: NSW | D26: Electricity | E26: Transmission | G26: N | I26: N | J26: N | K26: N | L26: N | M26: N | N26: Y | O26: N | P26: Y | Q26: N | R26: N | S26: Y | T26: Y | U26: N | V26: N | W26: N | X26: N
B27: United Energy | C27: Vic | D27: Electricity | E27: Distribution | G27: N | I27: N | J27: N | K27: N | L27: N | M27: N | N27: Y | O27: N | P27: Y | Q27: N | R27: N | S27: N | T27: Y | U27: N | V27: N | W27: N | X27: N
B30: Confidential
B31: Amended
B33: Worksheet 6.2 STPIS reliability
B34: Formula | F34: Applied to:
B36: =INDEX(dms_CBD_flag,MATCH(dms_TradingName,dms_TradingName_List))="NO" | F36: $D$11,$D$17,$D$23,$D$33,$D$39,$D$45,$D$55,$D$61,$D$67,$D$77,$D$83,$D$89
B37: =INDEX(dms_Urban_flag,MATCH(dms_TradingName,dms_TradingName_List))="NO" | F37: $D$12,$D$18,$D$24,$D$56,$D$62,$D$78,$D$68,$D$84
B38: =INDEX(dms_ShortRural_flag,MATCH(dms_TradingName,dms_TradingName_List))="NO" | F38: $D$13,$D$19,$D$25,$D$57,$D$63,$D$69,$D$79,$D$85
B39: =INDEX(dms_LongRural_flag,MATCH(dms_TradingName,dms_TradingName_List))="NO" | F39: $D$14,$D$20,$D$26,$D$58,$D$64,$D$65,$D$70,$D$71,$D$80,$D$86
B40: =INDEX(dms_FeederType_5_flag,MATCH(dms_TradingName,dms_TradingName_List))="NO" | F40: $D$87,$D$81,$D$71,$D$65,$D$59,$D$49,$D$43,$D$37,$D$21,$D$15
B41: =dms_MAIFI_Flag="No" | F41: $D$55:$D$72
B44: Business & other details
B45: =(INDEX(dms_Model_Span,MATCH(dms_Model,dms_Model_List))>1)
B46: =(INDEX(dms_Model_Span,MATCH(dms_Model,dms_Model_List))=1)
B49: STYLES IN USE
B50: HEADING ONE | C50: dms_1
B51: HEADING TWO | C51: dms_2
B52: HEADING THREE | C52: dms_3
B53: HEADING FOUR | C53: dms_4
B54: HEADING FIVE | C54: dms_5
C55: dms_NUM
C56: dms_NUM%
C57: dms_Row_Locked
C58: dms_Row1
C59: dms_Row2
C60: dms_T1
C61: dms_T2
C62: dms_BH
C63: dms_BY1
C64: dms_BY2
C65: dms_GH
C66: dms_GY1
C67: dms_GY2

Sheet AER NRs (hidden)
B1: AER NAMED RANGES
B3: DROP DOWN SELECTORS USED IN WORKBOOKS
B5: COVER SHEET | C5: dms_DataQuality_List | D5: dms_Confid_status_List
C6: -- select -- | D6: -- select --
C7: Actual | D7: Public
C8: Estimate | D8: Confidential
C9: Consolidated
C12: For all files either AER or business needs to be able to specify the type of submission | D12: For PTRM & RFM templates we must provide a choice in case they change their form of control - otherwise it is drawn from the business specific lookup table above.
C13: dms_SourceList | D13: dms_FormControl_Choices
C14: -- select -- | D14: Revenue cap
C15: After appeal | D15: Revenue yield
C16: Draft decision | D16: Weighted average price cap
C17: Final decision
C18: PTRM update 1
C19: PTRM update 2
C20: PTRM update 3
C21: PTRM update 4
C22: PTRM update 5
C23: PTRM update 6
C24: PTRM update 7
C25: Regulatory proposal
C26: Reporting
C27: Revised regulatory proposal
K30: This is used to create an image to insert on 6.3 STPIS sheet - not for dropdown lists. | N30: GAS
B31: CA & RESET RINS DNSP | C31: dms_DNSP_020301_SubstationType | D31: dms_DNSP_020301_ProjectType | E31: dms_DNSP_020301_ProjectTrigger | F31: dms_DNSP_020302_ProjectType | G31: dms_DNSP_020302_ProjectTrigger | H31: dms_STPIS_Exclusion_List | I31: dms_Reason_Interruption | J31: dms_Reason_Interruption_Detailed | K31: Reason for interruption | N31: dms_N0205_AssetType
C32: Subtransmission substation | D32: New substation establishment | E32: Demand growth | F32: New line on new route - single circuit | G32: Demand growth | H32: Weather | I32: Animal | J32: Animal impact | K32: Animal | L32: Animal impact | N32: Cast Iron
C33: Zone substation | D33: Substation upgrade - capacity | E33: Voltage issues | F33: New line on new route - dual circuit | G33: Voltage issues | H33: Equipment failure | I33: Asset failure | J33: Animal nesting/burrowing, etc and other | L33: Animal nesting/burrowing, etc and other | N33: PVC
C34: Switching station | D34: Substation upgrade - voltage | E34: Reactive power issue | F34: New line on new route - other | G34: Reactive power issue | H34: Operational error | I34: Other | J34: Other | L34: Other | N34: Polyamide
C35: Other | D35: Other | E35: Fault level issues | F35: Line rebuild over existing route - single circuit | G35: Fault level issues | H35: Vegetation | I35: Overloads | J35: LV | K35: Asset failure | L35: LV | N35: High density polyethylene (80)
E36: Safety | F36: Line rebuild over existing route - dual circuit | G36: Net market benefit | H36: Animals | I36: Planned | J36: Distribution substation | L36: Distribution substation | N36: High density polyethylene (100)
E37: Environment | F37: Reconductor - Single circuit | G37: Safety | H37: Third party impacts | I37: Network business | J37: HV | L37: HV | N37: High density polyethylene (250)
E38: Other | F38: Reconductor - Dual circuit | G38: Environment | H38: Transmission failure | I38: Third party | J38: Zone substation | L38: Zone substation | N38: High density polyethylene (575)
F39: Reconductor - Other | G39: Other | H39: Load shedding | I39: Unknown | J39: Subtransmission | L39: Subtransmission | N39: Medium density polyethylene
F40: Line upgrade - raising/retensoring | H40: Inter-distributor connection failure | I40: Vegetation | J40: insert description of 'other' | K40: Other | L40: insert description of 'other' | N40: Unprotected steel
F41: Line upgrade - voltage upgrade | H41: Other | I41: Weather | J41: Network error | K41: Overloads | N41: Protected steel
F42: Line upgrade - capacity | I42: 2 - STPIS Exclusion (3.3)(a) | J42: Switching and protection error | K42: Planned | N42: Other
F43: String spare circuit | I43: 3 - STPIS Exclusion (3.3)(a) | J43: Fire | K43: Network business | L43: Network error
F44: Other | I44: 4 - STPIS Exclusion (3.3)(a) | J44: Other | L44: Switching and protection error
I45: 5 - STPIS Exclusion (3.3)(a) | J45: Dig-in | K45: Third party | L45: Fire
I46: 6 - STPIS Exclusion (3.3)(a) | J46: Unauthorised access | L46: Other
I47: 7 - STPIS Exclusion (3.3)(a) | J47: Vehicle impact | L47: Dig-in
J48: Unknown | L48: Unauthorised access
J49: Blow-in/Fall-in - NSP responsibility | L49: Vehicle impact
J50: Grow-in - NSP responsibility | K50: Unknown | L50: Unknown
J51: Blow-in/Fall-in - Other responsible party | K51: Vegetation | L51: Blow-in/Fall-in - NSP responsibility
J52: Grow-in - Other responsible party | L52: Grow-in - NSP responsibility
L53: Blow-in/Fall-in - Other responsible party
L54: Grow-in - Other responsible party
K55: Weather
K56: 2 - STPIS Exclusion (3.3)(a)
K57: 3 - STPIS Exclusion (3.3)(a)
K58: 4 - STPIS Exclusion (3.3)(a)
K59: 5 - STPIS Exclusion (3.3)(a)
K60: 6 - STPIS Exclusion (3.3)(a)
K61: 7 - STPIS Exclusion (3.3)(a)
B64: CA & RESET RINS TNSP | C64: dms_TNSP_0203_SubstationType | D64: dms_TNSP_020301_ProjectType | E64: dms_TNSP_020301_ProjectTrigger | F64: dms_TNSP_020302_ProjectType | G64: dms_TNSP_0203_ProjectTrigger
C65: Terminal station | D65: New substation establishment | E65: Demand growth | F65: New line on new route - single circuit | G65: Demand growth
C66: Switching station | D66: Capacity upgrade | E66: Voltage issues | F66: New line on new route - dual circuit | G66: Voltage issues
C67: Transmission substation | D67: Voltage upgrade | E67: Reactive power issue | F67: New line on new route - other | G67: Reactive power issue
C68: Other | D68: Other | E68: Fault level issues | F68: Line rebuild over existing route - single circuit | G68: Fault level issues
E69: Net market benefit | F69: Line rebuild over existing route - dual circuit | G69: Net market benefit
E70: Safety | F70: Reconductor - Single circuit | G70: Safety
E71: Environment | F71: Reconductor - Dual circuit | G71: Environment
E72: Other | F72: Reconductor - Other | G72: Other
F73: Line upgrade - raising/retensoring
F74: Line upgrade - voltage upgrade
F75: Line upgrade - capacity
F76: String spare circuit
F77: Other
B81: NAMED RANGES USED IN ETL PROCESS
B83: CA & RESET RINS DNSP ONLY | C83: dms_020303_01_UOM | D83: dms_020501_01_UOM | E83: dms_020501_02_UOM | F83: dms_020501_03_UOM | G83: dms_020501_04_UOM | H83: dms_020701_01_UOM | I83: dms_020701_02_UOM | J83: dms_020701_01_Rows | K83: dms_040102_01_UOM | L83: dms_040102_04_UOM | M83: dms_S140101_UOM | N83: dms_S140102_UOM | O83: dms_S140201_UOM
C84: Circuit line length in km | D84: 0's | E84: 0's | F84: 0's | G84: 0's | H84: km | I84: km | J84: Route line length within zone | K84: 0's | L84: days | M84: number | N84: number | O84: number per km
C85: Circuit line length in km | D85: 0's | E85: 0's | F85: 0's | G85: 0's | H85: 0's | I85: 0's | J85: Number of maintenance spans | K85: 0's | L85: 0's | M85: number | N85: number | O85: number
C86: Circuit line length in km | D86: MVA added | E86: MVA added | F86: MVA added | G86: MVA added | H86: km | I86: km | J86: Total length of maintenance spans | K86: 0's | L86: $0s | M86: number | N86: number | O86: number
C87: Circuit line length in km | D87: 0's | E87: 0's | F87: 0's | G87: 0's | H87: km | I87: km | J87: Length of vegetation corridors | K87: $0s | L87: 0's | M87: km | N87: number
C88: Number | D88: total spend $0s | E88: total spend $0s | F88: total spend $0s | G88: total spend $0s | H88: 0's | I88: 0's | J88: Average number of trees per maintenance span
C89: Number | D89: net circuit km added | E89: net circuit km added | F89: net circuit km added | G89: net circuit km added | H89: years | I89: years | J89: Average frequency of cutting cycle
C90: Number | D90: total spend $0s | E90: total spend $0s | F90: total spend $0s | G90: total spend $0s
D91: net circuit km added | E91: net circuit km added | F91: net circuit km added | G91: net circuit km added
D92: total spend $0s | E92: total spend $0s | F92: total spend $0s | G92: total spend $0s
D93: 0's | F93: $0s
D94: 0's
D95: 0's
D96: $0s
B99: CA & RESET RINS TNSP ONLY | C99: dms_020701_01_UOM
C100: km
C101: 0's
C102: km
C103: 0's
C104: km
C105: metres
C106: years
B109: CA & RESET RINS DNSP & TNSP | C109: dms_020603_01_UOM
C110: 0's
C111: 0's
C112: 0's
C113: 0's
C114: (per cent)
B117: EB & RESET RINS DNSP ONLY | C117: dms_030601_01_UOM | D117: dms_030601_02_UOM | E117: dms_030701_01_UOM | F117: dms_030702_01_UOM | G117: dms_030703_01_UOM
C118: minutes/customer | D118: minutes/customer | E118: Customer / km | F118: % | G118: km
C119: minutes/customer | D119: minutes/customer | E119: MWh/customer | F119: Number of spans
C120: interruptions/customer | D120: interruptions/customer | E120: kVA / customer | F120: Number of spans
C121: interruptions/customer | D121: interruptions/customer | F121: Number of spans
F122: Number of spans
F123: Years
F124: Years
F125: Trees
F126: Trees
F127: Defects
F128: Defects
F129: Spans
F130: km
F131: Spans
C133: WHEN INSERTING COVER SHEET INTO A TNSP FILE - APPLY THESE NAMED RANGES
B134: EB & RESET RINS TNSP ONLY | C134: dms_030601_01_UOM | E134: dms_030701_01_UOM | F134: dms_030702_01_UOM
C135: % | E135: Number of spans | F135: km
C136: number | E136: Years | F136: %
C137: number | E137: Trees | F137: km
C138: % | E138: Defects | F138: number
C139: number | E139: Number of spans
C140: number | E140: km
C141: % | E141: km
C142: number | E142: Number of spans
C143: number
C144: %
C145: number
C146: %
C147: number
C148: %
C149: number
B151: EB & RESET RINS DNSP & TNSP | C151: dms_EB_RAB_PIT
C152: Beginning of year
C153: End of year
C154: End of year
C155: End of year
C156: End of year
C157: End of year
B159: ARR DNSP ONLY | C159: dms_030605_UOM | D159: dms_03060703_UOM | E159: Spare | F159: Spare
C160: number | D160: number
C161: number | D161: number
C162: number | D162: number
C163: number | D163: number
C164: number | D164: (per cent)
C165: number
C166: number
C167: number
C168: number
C169: number
C170: number
C171: number
C172: (per cent)
C173: (per cent)
B175: RFM | C175: dms_Beg | D175: dms_Mid | E175: dms_End
C176: Beginning of year | D176: Mid year | E176: End of Year
B178: PTRM | C178: dms_PTRM_RAB_PIT | D178: dms_PTRM_TAB_PIT | E178: DMS_Xfactor
C179: Beginning of year | D179: Beginning of year | E179: x factors
C180: End of year | D180: End of year
C181: End of year | D181: End of year
C182: End of year | D182: End of year
C183: End of year
B186: STPIS & MIC NAMED RANGES
B188: These "row descriptions" are the column headings in the various templates but become row descriptions in the ETL process
B190: Table 6.3 sustained interruptions - row descriptions | C190: dms_060301_CustNo_Affected_Row | D190: dms_060301_Avg_Duration_Sustained_Int_Row | E190: dms_060301_Effect_unplanned_SAIDI_Row | F190: dms_060301_Effect_unplanned_SAIFI_Row
C191: Number of customers affected by the interruption | D191: Average duration of sustained customer interruption | E191: Effect on unplanned SAIDI | F191: Effect on unplanned SAIFI
B194: Table 6.1 telephone answering - row descriptions and start date | C194: dms_060101_Rows | D194: dms_060102_Rows | E194: dms_060101_StartDateTxt
C195: Total number of calls (after removing excluded events) | D195: Number of calls answered within 30 seconds (after excluding excluded events) | E195: =dms_060701_StartDateTxt -> 2015-01-01
B198: Table 6.8.1 - row descriptions | C198: dms_060801_01_Rows | D198: dms_060801_02_Rows | E198: dms_060801_03_Rows | F198: dms_060801_04_Rows
C199: Number of interruptions | D199: Duration of interruptions | E199: Total unplanned minutes off supply | F199: Effect on unplanned MAIFI
B202: Table 7.9.4 - market impact component - row descriptions | C202: dms_070904_01_Rows | D202: without exclusions | E202: with exclusions
B205: These headings (Lists) are determined from the INDEX/MATCH function on the NSP selected on the Business & other details sheet
B207: Table 6.7.1 - daily performance data - unplanned - MAIFI -- row descriptions and header named range values | C207: dms_060701_Feeder_Header_Lvl4 | D207: =INDEX(dms_FeederName_1,MATCH(dms_TradingName,dms_TradingName_List)) -> CBD | E207: =INDEX(dms_FeederName_1,MATCH(dms_TradingName,dms_TradingName_List)) -> CBD | F207: =INDEX(dms_FeederName_2,MATCH(dms_TradingName,dms_TradingName_List)) -> Urban | G207: =INDEX(dms_FeederName_2,MATCH(dms_TradingName,dms_TradingName_List)) -> Urban | H207: =INDEX(dms_FeederName_3,MATCH(dms_TradingName,dms_TradingName_List)) -> Short rural | I207: =INDEX(dms_FeederName_3,MATCH(dms_TradingName,dms_TradingName_List)) -> Short rural | J207: =INDEX(dms_FeederName_4,MATCH(dms_TradingName,dms_TradingName_List)) -> Long rural | K207: =INDEX(dms_FeederName_4,MATCH(dms_TradingName,dms_TradingName_List)) -> Long rural | L207: =IF((INDEX(dms_FeederName_5,MATCH(dms_TradingName,dms_TradingName_List))=0),"Network",(INDEX(dms_FeederName_5,MATCH(dms_TradingName,dms_TradingName_List)))) -> Network | M207: =IF((INDEX(dms_FeederName_5,MATCH(dms_TradingName,dms_TradingName_List))=0),"Network",(INDEX(dms_FeederName_5,MATCH(dms_TradingName,dms_TradingName_List)))) -> Network | N207: Network | O207: Network
C209: dms_060701_Rows | D209: All events | E209: After removing excluded events | F209: All events | G209: After removing excluded events | H209: All events | I209: After removing excluded events | J209: All events | K209: After removing excluded events | L209: All events | M209: After removing excluded events | N209: All events | O209: After removing excluded events
D210: the number of column headings changes from 10 to 12 depending on the number of feeder categories for the NSP
C212: dms_0603_FeederList | D212: =INDEX(dms_FeederName_1,MATCH(dms_TradingName,dms_TradingName_List)) -> CBD | E212: =INDEX(dms_FeederName_2,MATCH(dms_TradingName,dms_TradingName_List)) -> Urban | F212: =INDEX(dms_FeederName_3,MATCH(dms_TradingName,dms_TradingName_List)) -> Short rural | G212: =INDEX(dms_FeederName_4,MATCH(dms_TradingName,dms_TradingName_List)) -> Long rural
B215: Use these to add to specific worksheets in existing files | C215: Use these to add to specific worksheets in existing files
B218: ARRs 6.7 STPIS daily performance | C218: dms_060101_Values | D218: dms_060102_Values | E218: dms_060701_Values
C219: dms_LeapYear
B222: ARR's 6.8 STPIS exclusions | C222: dms_060801_Event_Date | D222: dms_060801_OutageID | E222: dms_060801_FeederID | F222: dms_060801_FeederClass | G222: dms_060801_CauseID | H222: dms_060801_01_Values | I222: dms_060801_02_Values | J222: dms_060801_03_Values | K222: dms_060801_Excl_Cat | L222: dms_060801_04_Values
C223: dms_060801_StartCell
B226: CA 6.3 sustained interruptions | C226: dms_060301_Event_Date | D226: dms_060301_Event_Time | E226: dms_060301_AssetID | F226: dms_060301_FeederClass | G226: dms_060301_Reason | H226: dms_060301_DetailedReason | I226: dms_060301_CustNo_Affected_Values | J226: dms_060301_Avg_Duration_Sustained_Int_Values | K226: dms_060301_Effect_unplanned_SAIDI_Values | L226: dms_060301_Effect_unplanned_SAIFI_Values | M226: dms_060301_MED

Sheet AER lookups (hidden)
B1: AER LOOKUP TABLES
B3: Data in these columns used for data validation and database purposes.
B4: Date last modified: | C4: 2017-01-16 | D4: added (Albury and Victora) for AGN
C5: 2016-10-17 | D5: updated TransGrid's correct legal name, corrected TasNetworks (T) to June financial year
C6: 2017-02-01 | D6: inserted Power and Water, added NRs (dms_FeederCat_1 and dms_FeederCat_2)
C7: 2017-03-03 | D7: inserted AEMO as a business | Z7: FOR ELECTRICITY BUSINESSES ONLY
C8: 2018-03-28 | D8: major changes to accommodate STPIS
C9: Template Version | D9: 5 | Z9: Feeder Types | AD9: TasNetworks (D) | AE9: MAIFI flag | AF9: Feeder Names
Z11: CBD | AA11: Urban | AB11: Short rural | AC11: long rural | AD11: EXTRA
B12: dms_TradingName_List | C12: dms_TradingNameFull_List | D12: dms_ABN_List | E12: dms_JurisdictionList | F12: dms_Sector_List | G12: dms_Segment_List | H12: dms_FormControl_List | I12: dms_RPT_List | J12: dms_RPTMonth_List | K12: dms_CRCPlength_List | L12: dms_FRCPlength_List | M12: dms_PRCPlength_List | N12: dms_663_List | O12: dms_DeterminationRef_List | P12: dms_Addr1_List | Q12: dms_Addr2_List | R12: dms_Suburb_List | S12: dms_State_List | T12: dms_PostCode_List | U12: dms_PAddr1_List | V12: dms_PAddr2_List | W12: dms_PSuburb_List | X12: dms_PState_List | Y12: dms_PPostCode_List | Z12: dms_CBD_flag | AA12: dms_Urban_flag | AB12: dms_ShortRural_flag | AC12: dms_LongRural_flag | AD12: dms_FeederType_5_flag | AE12: dms_MAIFI_flag_List | AF12: dms_FeederName_1 | AG12: dms_FeederName_2 | AH12: dms_FeederName_3 | AI12: dms_FeederName_4 | AJ12: dms_FeederName_5 | AK12: dms_Public_Lighting_List | AL12: Name
B13: AusNet (D) | C13: AusNet Electricity Services Pty Ltd | D13: 91064651118 | E13: Vic | F13: Electricity | G13: Distribution | H13: Revenue cap | I13: Financial | J13: June | K13: 5 | L13: 5 | M13: 5 | N13: 2 | O13: 2016-20 Distribution Determination | P13: Level 32 | Q13: 2 Southbank Boulevard | R13: SOUTHBANK | S13: Vic | T13: 3006 | U13: Locked Bag 14051 | W13: MELBOURNE CITY MAIL CENTRE | X13: Vic | Y13: 8001 | Z13: NO | AA13: YES | AB13: YES | AC13: YES | AD13: NO | AE13: YES | AF13: CBD | AG13: Urban | AH13: Short rural | AI13: Long rural | AK13: YES | AL13: =B13 -> AusNet (D)
B14: Australian Distribution Co. (Vic) | C14: Australian Distribution Co. (Victoria) | D14: 11222333444 | E14: Vic | F14: Electricity | G14: Distribution | H14: Revenue cap | I14: Financial | J14: June | K14: 5 | L14: 5 | M14: 5 | N14: 2 | O14: distribution determination | P14: 123 Straight Street | R14: MELBOURNE | S14: Vic | T14: 3000 | U14: PO Box 123 | W14: MELBOURNE | X14: Vic | Y14: 3000 | Z14: NO | AA14: NO | AB14: NO | AC14: NO | AD14: NO | AE14: YES | AF14: CBD | AG14: Urban | AH14: Short rural | AI14: Long rural | AK14: YES | AL14: Australian Distribution Co. (Vic)
B15: CitiPower | C15: CitiPower | D15: 76064651056 | E15: Vic | F15: Electricity | G15: Distribution | H15: Revenue cap | I15: Financial | J15: June | K15: 5 | L15: 5 | M15: 5 | N15: 2 | O15: 2016-20 Distribution Determination | P15: 40 Market Street | R15: MELBOURNE | S15: Vic | T15: 3000 | U15: Locked Bag 14090 | W15: MELBOURNE | X15: Vic | Y15: 8001 | Z15: YES | AA15: YES | AB15: NO | AC15: NO | AD15: NO | AE15: YES | AF15: CBD | AG15: Urban | AH15: Short rural | AI15: Long rural | AK15: YES | AL15: CitiPower
B16: Jemena Electricity | C16: Jemena Electricity | D16: 82064651083 | E16: Vic | F16: Electricity | G16: Distribution | H16: Revenue cap | I16: Financial | J16: June | K16: 5 | L16: 5 | M16: 5 | N16: 2 | O16: 2016-20 Distribution Determination | P16: Level 16 | Q16: 567 Collins Street | R16: MELBOURNE | S16: Vic | T16: 3000 | U16: PO Box 16182 | W16: MELBOURNE | X16: Vic | Y16: 8001 | Z16: NO | AA16: YES | AB16: YES | AC16: NO | AD16: NO | AE16: YES | AF16: CBD | AG16: Urban | AH16: Short rural | AI16: Long rural | AK16: YES | AL16: Jemena Electricity
B17: Powercor Australia | C17: Powercor Australia | D17: 89064651109 | E17: Vic | F17: Electricity | G17: Distribution | H17: Revenue cap | I17: Financial | J17: June | K17: 5 | L17: 5 | M17: 5 | N17: 2 | O17: 2016-20 Distribution Determination | P17: 40 Market Street | R17: MELBOURNE | S17: Vic | T17: 3000 | U17: Locked bag 14090 | W17: MELBOURNE | X17: Vic | Y17: 8001 | Z17: NO | AA17: NO | AB17: YES | AC17: YES | AD17: NO | AE17: YES | AF17: CBD | AG17: Urban | AH17: Short rural | AI17: Long rural | AK17: YES | AL17: Powercor Australia
B18: United Energy | C18: United Energy | D18: 70064651029 | E18: Vic | F18: Electricity | G18: Distribution | H18: Revenue cap | I18: Financial | J18: June | K18: 5 | L18: 5 | M18: 5 | N18: 2 | O18: 2016-20 Distribution Determination | P18: 43-45 Centreway | R18: MOUNT WAVERLEY | S18: Vic | T18: 3149 | U18: PO Box 449 | W18: MOUNT WAVERLEY | X18: Vic | Y18: 3170 | Z18: NO | AA18: NO | AB18: YES | AC18: NO | AD18: NO | AE18: YES | AF18: CBD | AG18: Urban | AH18: Short rural | AI18: Long rural | AK18: YES | AL18: United Energy
B23: The Reg Year Ending (dms_RYE) must be set to the last year of the regulatory period. For forecast data is is usually (FRCP_y5) for actual it is a single year (CRY). For historical actual data the RYE will need to be set manually in the business details sheet by setting the dms_Multiyear_flag to 1 and putting the correct value in 'dms_Specified_FinalYear. See cells C67:C68
B24: dms_Model_List | C24: dms_Model_Name_Format1 | D24: dms_Worksheet_List | E24: dms_Model_Span_List
B25: ARR | C25: Annual Reporting | D25: =IF(dms_MultiYear_ResponseFlag="yes","NEW HISTORICAL ANNUAL REPORTING","ANNUAL REPORTING") -> ANNUAL REPORTING | E25: 1
B26: CA | C26: Category Analysis | D26: =IF(dms_MultiYear_ResponseFlag="yes","NEW HISTORICAL CATEGORY ANALYSIS","CATEGORY ANALYSIS") -> CATEGORY ANALYSIS | E26: 1
B27: CESS | C27: Capitlal Expenditure | D27: CAPITLAL EXPENDITURE SHARING SCHEMING | E27: 5
B28: CPI | C28: CPI | D28: CPI | E28: 5
B29: EB | C29: Economic Benchmarking | D29: =IF(dms_MultiYear_ResponseFlag="yes","NEW HISTORICAL ECONOMIC BENCHMARKING","ECONOMIC BENCHMARKING") -> ECONOMIC BENCHMARKING | E29: 1
B30: Pricing | C30: Pricing Proposal | D30: PRICING PROPOSAL | E30: 5
B31: PTRM | C31: Post Tax Revenue Model | D31: POST TAX REVENUE MODEL | E31: 5
B32: Reset | C32: Regulatory Reporting (Reset) | D32: REGULATORY REPORTING STATEMENT | E32: 5
B33: RFM | C33: Roll Forward Model | D33: ROLL FORWARD MODEL | E33: 5
B34: WACC | C34: Weighted Average Cost of Capital | D34: WEIGHTED AVERAGE COST OF CAPITAL | E34: 1
B38: Financial | C38: Calendar | E38: PREVIOUS | G38: CURRENT | I38: FORTHCOMING
B39: 1987-88 | C39: 1988 | D39: PRCP_y1 | E39: =INDEX(INDIRECT(dms_RPT),dms_PRCP_start_row) -> 2011-12 | F39: CRCP_y1 | G39: =INDEX(INDIRECT(dms_RPT),dms_CRCP_start_row) -> 2016-17 | H39: =FRCP_y1 -> 2021-22 | I39: =INDEX(INDIRECT(dms_RPT),dms_FRCP_start_row) -> 2021-22
B40: 1988-89 | C40: 1989 | D40: PRCP_y2 | E40: =INDEX(INDIRECT(dms_RPT),dms_PRCP_start_row+1) -> 2012-13 | F40: CRCP_y2 | G40: =INDEX(INDIRECT(dms_RPT),dms_CRCP_start_row+1) -> 2017-18 | H40: FRCP_y2 | I40: =INDEX(INDIRECT(dms_RPT),dms_FRCP_start_row+1) -> 2022-23
B41: 1989-90 | C41: 1990 | D41: PRCP_y3 | E41: =INDEX(INDIRECT(dms_RPT),dms_PRCP_start_row+2) -> 2013-14 | F41: CRCP_y3 | G41: =INDEX(INDIRECT(dms_RPT),dms_CRCP_start_row+2) -> 2018-19 | H41: FRCP_y3 | I41: =INDEX(INDIRECT(dms_RPT),dms_FRCP_start_row+2) -> 2023-24
B42: 1990-91 | C42: 1991 | D42: PRCP_y4 | E42: =INDEX(INDIRECT(dms_RPT),dms_PRCP_start_row+3) -> 2014-15 | F42: CRCP_y4 | G42: =INDEX(INDIRECT(dms_RPT),dms_CRCP_start_row+3) -> 2019-20 | H42: FRCP_y4 | I42: =INDEX(INDIRECT(dms_RPT),dms_FRCP_start_row+3) -> 2024-25
B43: 1991-92 | C43: 1992 | D43: PRCP_y5 | E43: =INDEX(INDIRECT(dms_RPT),dms_PRCP_start_row+4) -> 2015-16 | F43: CRCP_y5 | G43: =INDEX(INDIRECT(dms_RPT),dms_CRCP_start_row+4) -> 2020-21 | H43: FRCP_y5 | I43: =INDEX(INDIRECT(dms_RPT),dms_FRCP_start_row+4) -> 2025-26
B44: 1992-93 | C44: 1993 | D44: PRCP_y6 | E44: =INDEX(INDIRECT(dms_RPT),dms_PRCP_start_row+5) -> 2016-17 | F44: CRCP_y6 | G44: =INDEX(INDIRECT(dms_RPT),dms_CRCP_start_row+5) -> 2021-22 | H44: FRCP_y6 | I44: =INDEX(INDIRECT(dms_RPT),dms_FRCP_start_row+5) -> 2026-27
B45: 1993-94 | C45: 1994 | D45: PRCP_y7 | E45: =INDEX(INDIRECT(dms_RPT),dms_PRCP_start_row+6) -> 2017-18 | F45: CRCP_y7 | G45: =INDEX(INDIRECT(dms_RPT),dms_CRCP_start_row+6) -> 2022-23 | H45: FRCP_y7 | I45: =INDEX(INDIRECT(dms_RPT),dms_FRCP_start_row+6) -> 2027-28
B46: 1994-95 | C46: 1995 | D46: PRCP_y8 | E46: =INDEX(INDIRECT(dms_RPT),dms_PRCP_start_row+7) -> 2018-19 | F46: CRCP_y8 | G46: =INDEX(INDIRECT(dms_RPT),dms_CRCP_start_row+7) -> 2023-24 | H46: FRCP_y8 | I46: =INDEX(INDIRECT(dms_RPT),dms_FRCP_start_row+7) -> 2028-29
B47: 1995-96 | C47: 1996 | D47: PRCP_y9 | E47: =INDEX(INDIRECT(dms_RPT),dms_PRCP_start_row+8) -> 2019-20 | F47: CRCP_y9 | G47: =INDEX(INDIRECT(dms_RPT),dms_CRCP_start_row+8) -> 2024-25 | H47: FRCP_y9 | I47: =INDEX(INDIRECT(dms_RPT),dms_FRCP_start_row+8) -> 2029-30
B48: 1996-97 | C48: 1997 | D48: PRCP_y10 | E48: =INDEX(INDIRECT(dms_RPT),dms_PRCP_start_row+9) -> 2020-21 | F48: CRCP_y10 | G48: =INDEX(INDIRECT(dms_RPT),dms_CRCP_start_row+9) -> 2025-26 | H48: FRCP_y10 | I48: =INDEX(INDIRECT(dms_RPT),dms_FRCP_start_row+9) -> 2030-31
B49: 1997-98 | C49: 1998 | D49: PRCP_y11 | E49: =INDEX(INDIRECT(dms_RPT),dms_PRCP_start_row+10) -> 2021-22 | F49: CRCP_y11 | G49: =INDEX(INDIRECT(dms_RPT),dms_CRCP_start_row+10) -> 2026-27 | H49: FRCP_y11 | I49: =INDEX(INDIRECT(dms_RPT),dms_FRCP_start_row+10) -> 2031-32
B50: 1998-99 | C50: 1999 | D50: PRCP_y12 | E50: =INDEX(INDIRECT(dms_RPT),dms_PRCP_start_row+11) -> 2022-23 | F50: CRCP_y12 | G50: =INDEX(INDIRECT(dms_RPT),dms_CRCP_start_row+11) -> 2027-28 | H50: FRCP_y12 | I50: =INDEX(INDIRECT(dms_RPT),dms_FRCP_start_row+11) -> 2032-33
B51: 1999-00 | C51: 2000 | D51: PRCP_y13 | E51: =INDEX(INDIRECT(dms_RPT),dms_PRCP_start_row+12) -> 2023-24 | F51: CRCP_y13 | G51: =INDEX(INDIRECT(dms_RPT),dms_CRCP_start_row+12) -> 2028-29 | H51: FRCP_y13 | I51: =INDEX(INDIRECT(dms_RPT),dms_FRCP_start_row+12) -> 2033-34
B52: 2000-01 | C52: 2001 | D52: PRCP_y14 | E52: =INDEX(INDIRECT(dms_RPT),dms_PRCP_start_row+13) -> 2024-25 | F52: CRCP_y14 | G52: =INDEX(INDIRECT(dms_RPT),dms_CRCP_start_row+13) -> 2029-30 | H52: FRCP_y14 | I52: =INDEX(INDIRECT(dms_RPT),dms_FRCP_start_row+13) -> 2034-35
B53: 2001-02 | C53: 2002 | D53: PRCP_y15 | E53: =INDEX(INDIRECT(dms_RPT),dms_PRCP_start_row+14) -> 2025-26 | F53: CRCP_y15 | G53: =INDEX(INDIRECT(dms_RPT),dms_CRCP_start_row+14) -> 2030-31 | H53: FRCP_y15 | I53: =INDEX(INDIRECT(dms_RPT),dms_FRCP_start_row+14) -> 2035-36
B54: 2002-03 | C54: 2003 | D54: PRCP_y16 | E54: =INDEX(INDIRECT(dms_RPT),dms_PRCP_start_row+15) -> 2026-27 | F54: CRCP_y16 | G54: =INDEX(INDIRECT(dms_RPT),dms_CRCP_start_row+15) -> 2031-32 | H54: FRCP_y16 | I54: =INDEX(INDIRECT(dms_RPT),dms_FRCP_start_row+15) -> 2036-37
B55: 2003-04 | C55: 2004
B56: 2004-05 | C56: 2005
B57: 2005-06 | C57: 2006 | E57: CRY - FRY
B58: 2006-07 | C58: 2007 | D58: dms_y1 | E58: =IFERROR(INDEX(INDIRECT(dms_RPT),dms_CRY_start_row),0) -> 2019-20
B59: 2007-08 | C59: 2008 | D59: dms_y2 | E59: =IFERROR(INDEX(INDIRECT(dms_RPT),dms_CRY_start_row+1),0) -> 2020-21
B60: 2008-09 | C60: 2009 | D60: dms_y3 | E60: =IFERROR(INDEX(INDIRECT(dms_RPT),dms_CRY_start_row+2),0) -> 2021-22
B61: 2009-10 | C61: 2010 | D61: dms_y4 | E61: =IFERROR(INDEX(INDIRECT(dms_RPT),dms_CRY_start_row+3),0) -> 2022-23
B62: 2010-11 | C62: 2011 | D62: dms_y5 | E62: =IFERROR(INDEX(INDIRECT(dms_RPT),dms_CRY_start_row+4),0) -> 2023-24
B63: 2011-12 | C63: 2012 | D63: dms_y6 | E63: =IFERROR(INDEX(INDIRECT(dms_RPT),dms_CRY_start_row+5),0) -> 2024-25
B64: 2012-13 | C64: 2013 | D64: dms_y7 | E64: =IFERROR(INDEX(INDIRECT(dms_RPT),dms_CRY_start_row+6),0) -> 2025-26
B65: 2013-14 | C65: 2014 | D65: dms_y8 | E65: =IFERROR(INDEX(INDIRECT(dms_RPT),dms_CRY_start_row+7),0) -> 2026-27
B66: 2014-15 | C66: 2015 | D66: dms_y9 | E66: =IFERROR(INDEX(INDIRECT(dms_RPT),dms_CRY_start_row+8),0) -> 2027-28
B67: 2015-16 | C67: 2016 | D67: dms_y10 | E67: =IFERROR(INDEX(INDIRECT(dms_RPT),dms_CRY_start_row+9),0) -> 2028-29
B68: 2016-17 | C68: 2017 | D68: dms_y11 | E68: =IFERROR(INDEX(INDIRECT(dms_RPT),dms_CRY_start_row+10),0) -> 2029-30
B69: 2017-18 | C69: 2018 | D69: dms_y12 | E69: =IFERROR(INDEX(INDIRECT(dms_RPT),dms_CRY_start_row+11),0) -> 2030-31
B70: 2018-19 | C70: 2019 | D70: dms_y13 | E70: =IFERROR(INDEX(INDIRECT(dms_RPT),dms_CRY_start_row+12),0) -> 2031-32
B71: 2019-20 | C71: 2020 | D71: dms_y14 | E71: =IFERROR(INDEX(INDIRECT(dms_RPT),dms_CRY_start_row+13),0) -> 2032-33
B72: 2020-21 | C72: 2021 | D72: dms_y15 | E72: =IFERROR(INDEX(INDIRECT(dms_RPT),dms_CRY_start_row+14),0) -> 2033-34
B73: 2021-22 | C73: 2022 | D73: dms_y16 | E73: =IFERROR(INDEX(INDIRECT(dms_RPT),dms_CRY_start_row+15),0) -> 2034-35
B74: 2022-23 | C74: 2023
B75: 2023-24 | C75: 2024
B76: 2024-25 | C76: 2025
B77: 2025-26 | C77: 2026
B78: 2026-27 | C78: 2027
B79: 2027-28 | C79: 2028
B80: 2028-29 | C80: 2029
B81: 2029-30 | C81: 2030
B82: 2030-31 | C82: 2031
B83: 2031-32 | C83: 2032
B84: 2032-33 | C84: 2033
B85: 2033-34 | C85: 2034
B86: 2034-35 | C86: 2035
B87: 2035-36 | C87: 2036
B88: 2036-37 | C88: 2037

Sheet AER ETL (hidden)
B1: AER ETL INFORMATION
B3: USES NAMED RANGES FLAG | C3: yes | D3: dms_Defined_Names_Used
B5: IF THIS IS AN ABC RIN - make sure the the named range CRY is applied and the named range dms_dollar_nom_UOM is applied
B6: IF THIS IS A RESET RIN - make sure the named ranges CRY and dms_dollar_nom_UOM are NOT present in the workbook
B7: FOR ABC RINS THAT SPAN MULTIPLE YEARS - make sure MultiYear Flag is set and final year entered as required
B9: Full trading name | C9: =INDEX(dms_TradingNameFull_List,MATCH(dms_TradingName,dms_TradingName_List)) -> CitiPower | E9: dms_TradingNameFull
B10: Trading name | C10: =dms_TradingName -> CitiPower
A11: Selected here | B11: Model / RIN | C11: Reset | D11: dms_Model
A12: Read from Business & other details | B12: Source | C12: Regulatory proposal | D12: dms_Source
B13: Data quality | C13: =dms_Selected_Quality -> Consolidated | D13: dms_DQ_1
B14: Data status | C14: =dms_Selected_Status -> Public | D14: dms_DQ_2
B15: Amendment reason | C15: =dms_Amendment_Text -> . | F15: dms_AmendmentReason
B16: Submission date | C16: =dms_Typed_Submission_Date -> 2020-01-31 | D16: dms_SubmissionDate
A18: Redundant | B18: EBSS - First application of scheme in forthcoming period? | C18: No
A19: Pre-populated from lookup table | B19: Data ingestion data quality | C19: =dms_Selected_Quality -> Consolidated | D19: dms_DataQuality | E19: =IF(dms_DQ_2="Confidential","Consolidated","Public")
B20: Sector | C20: =INDEX(dms_Sector_List,MATCH(dms_TradingName,dms_TradingName_List)) -> Electricity | D20: dms_Sector | E20: =INDEX(dms_Sector_List,MATCH(dms_TradingName,dms_TradingName_List))
B21: Segment | C21: =INDEX(dms_Segment_List,MATCH(dms_TradingName,dms_TradingName_List)) -> Distribution | D21: dms_Segment | E21: =INDEX(dms_Segment_List,MATCH(dms_TradingName,dms_TradingName_List))
B22: Regulatory Year Ending | C22: =dms_RYE_result -> 2026 | D22: dms_RYE | E22: =IF(dms_MultiYear_Flag=1,LEFT(dms_Specified_FinalYear,2)&RIGHT(dms_Specified_FinalYear,2),INDEX(dms_RYE_Formula_Result,MATCH(dms_Model,dms_Model_List)))
B23: Reporting Period Type | C23: =INDEX(dms_RPT_List,MATCH(dms_TradingName,dms_TradingName_List)) -> Financial | D23: dms_RPT | E23: =INDEX(dms_RPT_List,MATCH(dms_TradingName,dms_TradingName_List))
B24: EB/CA Unit of Measure for Monetary Values | C24: $0s | D24: dms_dollar_nom_UOM | E24: If the cover sheet is attached to an ABC RIN apply the NAMED RANGE to the cell
B25: Security Classification | C25: Public | D25: dms_Classification | E25: Always Public
B26: Jurisdiction | C26: =INDEX(dms_JurisdictionList,MATCH(dms_TradingName,dms_TradingName_List)) -> Vic | D26: dms_Jurisdiction | E26: =INDEX(dms_JurisdictionList,MATCH(dms_TradingName,dms_TradingName_List))
A27: Relevant for PTRM, RFMs and Reset RINS | B27: $ REAL REFERENCES
B28: Does the named range CRY exist in this file? | C28: =IFERROR(CRY,"NO") -> NO
B29: CRY-1 (last full calendar year before CRY) | C29: =IFERROR(IF(dms_RPT="calendar",CRY-1,LEFT(CRY,4)),"CRY not present") -> CRY not present | D29: dms_Cal_Year_B4_CRY | E29: '=IF(dms_RPT="financial",VALUE(LEFT(dms_SingleYear_FinalYear_Result,4)),VALUE(LEFT(dms_SingleYear_FinalYear_Result,4)-1))
B30: Dollar $ real month | C30: =INDEX(dms_RPTMonth_List,MATCH(dms_TradingName,dms_TradingName_List)) -> June | D30: dms_RPTMonth | E30: =INDEX(dms_RPTMonth_List,MATCH(dms_TradingName,dms_TradingName_List))
B31: Dollar $ real (the last month before the FRCP_y1) | C31: =IF(dms_SingleYearModel="yes",CONCATENATE(dms_RPTMonth)&" "&VALUE((LEFT(CRY,2))&RIGHT(CRY,2)),CONCATENATE(dms_RPTMonth)&" "&dms_DollarReal_year) -> June 2021 | D31: dms_DollarReal | E31: =IF(SUM(dms_SingleYear_Model)>0,CONCATENATE(dms_RPTMonth)&" "&VALUE((LEFT(CRY,2))&RIGHT(CRY,2)),CONCATENATE(dms_RPTMonth)&" "&VALUE((LEFT(dms_RYE,2)&RIGHT(dms_RYE,2))))
B32: Dollar $ real previous year (PRCP_y5) | C32: =IF(dms_SingleYearModel="yes",CONCATENATE(dms_RPTMonth)&" "&VALUE((LEFT(CRY,2))&RIGHT(CRY,2)),CONCATENATE(dms_RPTMonth)&" "&dms_Previous_DollarReal_year) -> June 2016 | D32: dms_DollarReal_Prev | E32: =IF(SUM(dms_SingleYear_Model)>0,CONCATENATE(dms_RPTMonth)&" "&VALUE(((LEFT(CRY,2))&RIGHT(CRY,2))-1),CONCATENATE(dms_RPTMonth)&" "&VALUE(((LEFT(dms_CRCP_FirstYear_Result,2)&RIGHT(dms_CRCP_FirstYear_Result,2))))-1)
B33: PTRM/ RFMs
B34: Form of control | C34: =INDEX(dms_FormControl_List,MATCH(dms_TradingName,dms_TradingName_List)) -> Revenue cap | D34: dms_FormControl | E34: =INDEX(dms_FormControl_List,MATCH(dms_TradingName,dms_TradingName_List))
A35: All potential values for Regulatory Years or RYEs as calculated | B35: This block works out the various RYE's for ALL RIN types and MODELS
B36: dms_start_year | C36: =FRCP_y1 -> 2021-22 | D36: =FRCP_y1 | E36: FRCP_y1 from cover sheet
B37: dms_CRY_start_year | C37: =IFERROR(CRY,CRCP_y4) -> 2019-20 | D37: =IFERROR(CRY,CRCP_y4)
B38: dms_CRY_start_row | C38: =IFERROR(MATCH(dms_CRY_start_year,INDIRECT(dms_RPT),0),0) -> 33 | D38: =IFERROR(MATCH(dms_CRY_start_year,INDIRECT(dms_RPT),0),0)
B39: dms_FRCP_start_row | C39: =MATCH(dms_start_year,INDIRECT(dms_RPT),0) -> 35 | D39: =MATCH(dms_start_year,INDIRECT(dms_RPT),0) | E39: Uses FRCP_y1 as a start reference
B40: dms_CRCP_start_row | C40: =dms_FRCP_start_row-dms_CRCPlength_Num -> 30 | D40: =dms_FRCP_start_row-dms_CRCPlength_Num | E40: Uses the value in dms_CRCPlength_Num
B41: dms_PRCP_start_row | C41: =dms_FRCP_start_row-dms_CRCPlength_Num-dms_PRCPlength_Num -> 25 | D41: =dms_FRCP_start_row-dms_CRCPlength_Num-dms_PRCPlength_Num | E41: Uses the value in dms_CRCPlength_Num and dms_PRCPlength_Num
B42: dms_RYE_start_row | C42: =dms_FRCP_start_row+(dms_FRCPlength_Num-1) -> 39 | D42: =dms_FRCP_start_row+(dms_FRCPlength_Num-1) | E42: Uses the value in dms_FRCPlength_Num-1
B43: FRCP_start_year | C43: =INDEX(INDIRECT(dms_RPT),dms_FRCP_start_row) -> 2021-22 | D43: =INDEX(INDIRECT(dms_RPT),dms_FRCP_start_row) | E43: Converts the FRCP start row to display the year
B44: CRCP_start_year | C44: =INDEX(INDIRECT(dms_RPT),dms_CRCP_start_row) -> 2016-17 | D44: =INDEX(INDIRECT(dms_RPT),dms_CRCP_start_row) | E44: Converts the CRCP start row to display the year
B45: PRCP_start_year | C45: =INDEX(INDIRECT(dms_RPT),dms_PRCP_start_row) -> 2011-12 | D45: =INDEX(INDIRECT(dms_RPT),dms_PRCP_start_row) | E45: Converts the PRCP start row to display the year
B46: FRCP_final_year | C46: =INDEX(INDIRECT(dms_RPT),dms_FRCP_start_row+dms_FRCPlength_Num-1) -> 2025-26 | D46: =INDEX(INDIRECT(dms_RPT),dms_FRCP_start_row+dms_FRCPlength_Num-1) | E46: Finds the FRCP final year
B47: CRCP_final_year | C47: =INDEX(INDIRECT(dms_RPT),dms_CRCP_start_row+dms_CRCPlength_Num-1) -> 2020-21 | D47: =INDEX(INDIRECT(dms_RPT),dms_CRCP_start_row+dms_CRCPlength_Num-1) | E47: Finds the CRCP final year
B48: PRCP_final_year | C48: =INDEX(INDIRECT(dms_RPT),dms_PRCP_start_row+dms_FRCPlength_Num-1) -> 2015-16 | D48: =INDEX(INDIRECT(dms_RPT),dms_PRCP_start_row+dms_FRCPlength_Num-1) | E48: Finds the PRCP final year
B49: dms_Reset_final_year | C49: =INDEX(INDIRECT(dms_RPT),dms_RYE_start_row) -> 2025-26 | D49: =INDEX(INDIRECT(dms_RPT),dms_RYE_start_row) | E49: For Resets and PTRM/RFMs (same as FRCP_final_year)
B50: dms_SpecifiedYear_final_year | C50: =FRY -> 2017-18 | D50: =FRY | E50: FRY from cover sheet
B51: dms_DollarReal_year | C51: =LEFT(CRCP_final_year,2)&RIGHT(CRCP_final_year,2) -> 2021 | D51: =LEFT(CRCP_final_year,2)&RIGHT(CRCP_final_year,2) | E51: Uses the value in CRCP_final_year
B52: dms_Previous_DollarReal_year | C52: =LEFT(PRCP_final_year,2)&RIGHT(PRCP_final_year,2) -> 2016 | D52: =LEFT(PRCP_final_year,2)&RIGHT(PRCP_final_year,2) | E52: Uses the value in PRCP_final_year
B53: dms_CRY_RYE | C53: =IFERROR(LEFT(CRY,2)&RIGHT(CRY,2),0) -> 0 | D53: =IFERROR(LEFT(CRY,2)&RIGHT(CRY,2),0) | E53: For ABC single year RINS
B54: dms_Reset_RYE | C54: =IF(dms_Model_Span>1,IF(dms_Model="RFM",(LEFT(dms_DollarReal_year,2)&RIGHT(dms_DollarReal_year,2)),(LEFT(dms_Reset_final_year,2)&RIGHT(dms_Reset_final_year,2))),0) -> 2026 | D54: =IF(dms_Model_Span>1,IF(dms_Model="RFM",(LEFT(dms_DollarReal_year,2)&RIGHT(dms_DollarReal_year,2)),(LEFT(dms_Reset_final_year,2)&RIGHT(dms_Reset_final_year,2))),0) | E54: If model span > 1 then uses dms_Reset_RYE otherwise it's a multi year ABC and uses dms_Specified_RYE
B55: dms_Specified_RYE | C55: =IF(dms_MultiYear_ResponseFlag="Yes",(LEFT(dms_Specified_FinalYear,2)&RIGHT(dms_Specified_FinalYear,2)),0) -> 0 | D55: =IF(dms_MultiYear_ResponseFlag="Yes",(LEFT(dms_Specified_FinalYear,2)&RIGHT(dms_Specified_FinalYear,2)),0) | E55: If multi year ABC - uses dms_Specified_FinalYear
B56: dms_Model_Span | C56: =INDEX(dms_Model_Span_List,MATCH(dms_Model,dms_Model_List)) -> 5 | D56: =INDEX(dms_Model_Span_List,MATCH(dms_Model,dms_Model_List)) | E56: A result of 5 is used to signify that it is more than 1 year span
B57: dms_RYE_result | C57: =IF(dms_MultiYear_ResponseFlag="yes",dms_Specified_RYE,(IF(dms_Model_Span>1,dms_Reset_RYE,dms_CRY_RYE))) -> 2026 | D57: =IF(dms_MultiYear_ResponseFlag="yes",dms_Specified_RYE,(IF(dms_Model_Span>1,dms_Reset_RYE,dms_CRY_RYE))) | E57: Nested IF - feeds into dms_RYE
B58: dms_Reset_Span | C58: =IF(dms_Reset_RYE>0,CONCATENATE(FRCP_y1," to ",FRCP_final_year),0) -> 2021-22 to 2025-26 | D58: =IF(dms_Reset_RYE>0,CONCATENATE(FRCP_y1," to ",FRCP_final_year),0) | E58: Reset span of years as text
B59: dms_SpecifiedYear_Span | C59: =IF(dms_Specified_RYE>0,CONCATENATE(CRY," to ",dms_Specified_FinalYear),0) -> 0 | D59: =IF(dms_Specified_RYE>0,CONCATENATE(CRY," to ",dms_Specified_FinalYear),0) | E59: Multi year ABC span of years as text
B60: dms_Header_Span | C60: =IF(dms_MultiYear_Flag=1,dms_SpecifiedYear_Span,IF(dms_Model_Span>1,dms_Reset_Span,CRY)) -> 2021-22 to 2025-26 | D60: =IF(dms_MultiYear_Flag=1,dms_SpecifiedYear_Span,IF(dms_Model_Span>1,dms_Reset_Span,CRY)) | E60: NESTED IF - for Sheet Headers
B61: ABC RINS THAT SPAN MULTIPLE YEARS
B62: This is a multi year ABC RIN? | C62: No
C63: =IF(dms_MultiYear_ResponseFlag="No",0,1) -> 0 | D63: dms_MultiYear_Flag | E63: This is set from the answer provided above
C64: =IF(dms_MultiYear_Flag=1,FRY,"not a Multiple year submission") -> not a Multiple year submission | D64: dms_Specified_FinalYear | E64: The result here is returned to dms_CRCP_FinalYear_Result if response to Q in C73 is "yes" and dms_MultiYear_Flag is set to 1
B65: Start year for 5.2 in Multi year ABC RINS | C65: =IFERROR(IF(dms_MultiYear_Flag=1,FRY,CRY),"not an ABC") -> not an ABC | D65: dms_0502_Inst_Year | E65: =IF(dms_MultiYear_Flag=1,FRY,CRY) | G65: For single year RINS this is CRY - multi year RINS need to start a the end of the span of years (ie. FRY)
B66: WHAT IS THE RYE?
B67: Reg Period Lengths
B68: PRCP length in years | C68: =INDEX(dms_PRCPlength_List,MATCH(dms_TradingName,dms_TradingName_List)) -> 5 | D68: dms_PRCPlength_Num | E68: =INDEX(dms_PRCPlength_List,MATCH(dms_TradingName,dms_TradingName_List))
B69: CRCP length in years | C69: =INDEX(dms_CRCPlength_List,MATCH(dms_TradingName,dms_TradingName_List)) -> 5 | D69: dms_CRCPlength_Num | E69: =INDEX(dms_CRCPlength_List,MATCH(dms_TradingName,dms_TradingName_List))
B70: FRCP length in years | C70: =INDEX(dms_FRCPlength_List,MATCH(dms_TradingName,dms_TradingName_List)) -> 5 | D70: dms_FRCPlength_Num | E70: =INDEX(dms_FRCPlength_List,MATCH(dms_TradingName,dms_TradingName_List))
B71: Single year RIN?
B72: Single Year ABC RIN ? | C72: =IF(dms_Model="EB",1,0) -> 0 | D72: dms_EB
C73: =IF(dms_Model="CA",1,0) -> 0 | D73: dms_CA | E73: =dms_SingleYear_Model
C74: =IF(dms_Model="ARR",1,0) -> 0 | D74: dms_ARR
B75: Is this a single Year ABC RIN? | C75: =IF(SUM(dms_SingleYear_Model)=1,"yes","no") -> no | D75: dms_SingleYearModel | E75: =IF(SUM(dms_SingleYear_Model)=1,"yes","no")
B76: Single Year Final Year Result | C76: =IF(AND(dms_SingleYearModel="yes",dms_MultiYear_Flag=0),CRY,0) -> 0 | D76: dms_SingleYear_FinalYear_Result | E76: =IFERROR(IF(SUM(dms_SingleYear_Model)<>0,(INDIRECT(dms_SingleYear_FinalYear_Ref)),"not a single year RIN"),"CRY not present")
B77: Multi year RIN?
B79: Multi Year Reset/Model? | C79: =IF(dms_Model_Span>1,"yes","no") -> yes
B80: Final year result for Reset/Model | C80: =IF(dms_Model_Span>1,dms_Reset_final_year,0) -> 2025-26 | D80: dms_MultiYear_FinalYear_Result | E80: dms_CRCP_FinalYear_Result
B82: Multi Year ABC RIN? | C82: =IF(dms_MultiYear_Flag=1,"yes","no") -> no | D82: dms_MultiYear_ABC_RIN
B83: Final year result for ABC multi year | C83: =IF(dms_MultiYear_Flag=1,C50,0) -> 0
B85: EB RINS
B86: Calendar Year for table 3.6 data | C86: =IFERROR(IF(dms_Segment="Transmission",dms_Cal_Year_B4_CRY,CRY),"CRY not present") -> CRY not present | D86: dms_0306_Year | E86: =IF(dms_Segment="Transmission",dms_Cal_Year_B4_CRY,CRY)
B87: CA RINS
B88: Find how many rows in tables 6.3 sustained interruptions? | E88: dms_060301_MaxRows only returns a valid value when cover sheet is attached to a CA file
C89: =IF(dms_Model<>"CA","not a CA","Is a CA") -> not a CA | E89: =IF(dms_Model<>"CA","not a CA","Is a CA")
B90: dms_060301_Avg_Duration_Sustained_Int_Values present? | C90: =IFERROR(IF(INDEX(dms_060301_Avg_Duration_Sustained_Int_Values,1,1)<>"","yes","no"),"no") -> no | D90: dms_060301_checkvalue | E90: =IFERROR(IF(INDEX(dms_060301_Avg_Duration_Sustained_Int_Values,1,1)<>"","yes","no"),"no")
C91: =IF(AND(dms_Model="CA",(dms_060301_checkvalue="no")),"error - NR not present","no errors") -> no errors | E91: =IF(AND(dms_Model="CA",(dms_060301_checkvalue="no")),"error - NR not present","no errors")
B92: Table 6.3.1 - last row reference | C92: =IFERROR(IF(dms_Model="CA",LOOKUP(2,1/(dms_060301_Avg_Duration_Sustained_Int_Values<>""),(ROW(dms_060301_Avg_Duration_Sustained_Int_Values))),"not a CA"),"6.3 not present") -> not a CA | D92: dms_060301_LastRow | E92: =IFERROR(IF(dms_Model="CA",LOOKUP(2,1/(dms_060301_Avg_Duration_Sustained_Int_Values<>""),(ROW(dms_060301_Avg_Duration_Sustained_Int_Values))),"not a CA"),"6.3 not present")
B93: Table 6.3.1 - max number rows | C93: =IFERROR(IF(dms_Model="CA",(dms_060301_LastRow-15),"not a CA"),"error") -> not a CA | D93: dms_060301_MaxRows | E93: =IFERROR(IF(dms_Model="CA",(dms_060301_LastRow-15),"not a CA"),"error")
B94: Table 6.6.3 - Public lighting repair - no. business days | C94: =INDEX(dms_663_List,MATCH(dms_TradingName,dms_TradingName_List)) -> 2 | D94: dms_663 | E94: =INDEX(dms_663_List,MATCH(dms_TradingName,dms_TradingName_List))
B95: ARR or RESET RINS
B96: How many rows in tables 6.1 or 6.7? (leap year?) | C96: insert dms_LeapYear NR if required | E96: 'dms_LeapYear is used to determine dms_060701_Max_Rows BUT it is only found on worksheet 6.1 or 6.7 and the date value in the cell is used to determine whether it is a leap year
B97: Is dms_LeapYear named range present? | C97: =IFERROR(IF(dms_LeapYear,"yes"),"no") -> no
B98: Table 6.7.1 - includes a leap year? | C98: =IFERROR(IF(MONTH(DATE(YEAR(dms_LeapYear),2,29))=2,"is a leap year","not a leap year"), "dms_LeapYear not present") -> dms_LeapYear not present | D98: dms_LeapYear_Result | E98: =IFERROR(IF(MONTH(DATE(YEAR(dms_LeapYear),2,29))=2,"is a leap year","not a leap year"),"dms_LeapYear not present")
B99: MaxRows if Reset and leap year | C99: =IF(dms_LeapYear_Result="is a leap year",1827,1826) -> 1826 | D99: dms_060701_Reset_MaxRows | E99: =IF(dms_LeapYear_Result="is a leap year",1827,1826) | H99: number of days present in Reset RIN table
B100: MaxRows if ARR and leap year | C100: =IF(dms_LeapYear_Result="is a leap year",366,365) -> 365 | D100: dms_060701_ARR_MaxRows | E100: =IF(dms_LeapYear_Result="is a leap year",366,365) | H100: number of days present in ARR RIN table
B101: Table 6.7.1 - Max Rows (leap year/ non leap year) | C101: =IF(dms_Model="ARR",dms_060701_ARR_MaxRows,IF(dms_Model="Reset",dms_060701_Reset_MaxRows,"not a relevant RIN type")) -> 1826 | D101: dms_060701_MaxRows | E101: =IF(dms_Model="ARR",dms_060701_ARR_MaxRows,IF(dms_Model="Reset",dms_060701_Reset_MaxRows,"not a relevant RIN type"))
B102: How many columns in 6.7? (4 or 5 feeder categories) | C102: =IF(dms_FifthFeeder_flag_NSP="NO","This NSP has only 4 feeder categories","This NSP has 5 feeder categories") -> This NSP has only 4 feeder categories
B103: Table 6.7.1 - Last column (# of feeder categories > 4) | C103: =IF(dms_FifthFeeder_flag_NSP="NO",10,12) -> 10 | D103: dms_060701_MaxCols | E103: =IF(dms_FifthFeeder_flag_NSP="NO",8,10)
B104: Table 6.7.1 - Number of offset rows | C104: =IF(dms_Model="ARR",15,9) -> 9 | D104: dms_060701_OffsetRows | E104: =IF(dms_Model="ARR",15,9)
B105: Start date for telephone answering in 6.1 or 6.7? | E105: Using 060101 as naming standard not 060701 for start dates
B106: Table 6.1.1 and 6.7.1 - Start Date as Text | C106: 2015-01-01 | D106: dms_060101_StartDateTxt | E106: =IF(SUM(dms_SingleYear_Model)>1,(CONCATENATE(IF(LEN(CRY)=4,"1-Jan-","1-Jul-"),LEFT(CRY,4))),(CONCATENATE(IF(LEN(CRCP_y4)=4,"1-Jan-","1-Jul-"),LEFT(CRCP_y4,4))))
B107: Table 6.1.1 and 6.7.1 - Start Date as Date Value | C107: 42005 | D107: dms_060101_StartDateVal | E107: =DATEVALUE(dms_060701_StartDateTxt)
B108: ARRs
B109: How many rows in table 6.8? | C109: insert dms_060801_StartCell NR if required | E109: dms_060801_StartCell is only found on worksheet 6.8 and is used to determine the starting date for the date range
B110: Is dms_060801_StartCell named range present? | C110: yes | E110: =IFERROR(IF((ROW(dms_060801_StartCell)-1)=1,"yes","yes"),"no")
B111: Table 6.8 - Number of offset rows | C111: 12 | D111: dms_0608_OffsetRows | E111: =IFERROR(IF(dms_Model="ARR",(ROW(dms_060801_StartCell)-1),"not an ARR"),"6.8 error")
B112: Table 6.8 - Last row | C112: 0 | D112: dms_0608_LastRow | E112: =IFERROR(IF(dms_060801_StartCell<>"",IF(dms_Model="ARR",(LOOKUP(2,1/(dms_060801_01_Values<>""),(ROW(dms_060801_01_Values)))),"not an ARR"),0),"0")
B113: Table 6.8 - MaxRows | C113: =IFERROR(IF(dms_Model="ARR",(MAX(0,dms_0608_LastRow-dms_0608_OffsetRows)),"not an ARR"),"0") -> not an ARR | D113: dms_060801_MaxRows | E113: =IFERROR(IF(dms_Model="ARR",(MAX(0,dms_0608_LastRow-dms_0608_OffsetRows)),"not an ARR"),"0")
B114: TNSP RESET RINS
B115: Table 7.9.4 only appears in TNSPs Reset RIN
B116: Table 7.9.4 - first year | C116: =LEFT(PRCP_y3,4) -> 2013 | D116: dms_070904_Start_Year | E116: =LEFT(PRCP_y3,4)
B118: MISC
B119: Distribution Determination Reference | C119: =INDEX(dms_DeterminationRef_List,MATCH(dms_TradingName,dms_TradingName_List)) -> 2016-20 Distribution Determination | D119: dms_DeterminationRef
B120: Public lighting NSP? | C120: =INDEX(dms_Public_Lighting_List,MATCH(dms_TradingName,dms_TradingName_List)) -> YES | D120: dms_Public_Lighting | E120: =INDEX(dms_Public_Lighting_List,MATCH(dms_TradingName,dms_TradingName_List))
B121: CBD Feeder for this business | C121: =INDEX(dms_CBD_flag,MATCH(dms_TradingName,dms_TradingName_List)) -> YES | D121: dms_CBD_flag_NSP
B122: Urban Feeder for this business | C122: =INDEX(dms_Urban_flag,MATCH(dms_TradingName,dms_TradingName_List)) -> YES | D122: dms_Urban_flag_NSP
B123: Short rural Feeder for this business | C123: =INDEX(dms_ShortRural_flag,MATCH(dms_TradingName,dms_TradingName_List)) -> NO | D123: dms_ShortRural_flag_NSP
B124: Long rural Feeder for this business | C124: =INDEX(dms_LongRural_flag,MATCH(dms_TradingName,dms_TradingName_List)) -> NO | D124: dms_LongRural_flag_NSP
B125: Fifth Feeder Category (eg. TasNetworks (D)) | C125: =INDEX(dms_FeederType_5_flag,MATCH(dms_TradingName,dms_TradingName_List)) -> NO | D125: dms_FifthFeeder_flag_NSP | E125: =INDEX(dms_FeederType_5_flag,MATCH(dms_TradingName,dms_TradingName_List))
B127: DISCARD FILES
B128: discard this record? | C128: NO | D128: dms_DISCARD | E128: If record is to be discarded from DB set this flag to YES
B130: SUBSET FILES
B131: Is this Submission File a Subset File | C131: NO | D131: dms_Partial
B134: REGULATORY YEARS FOR MULTI RYE SUBMISSIONS
B135: Multiple RYE flag | C135: NO | D135: dms_Multi_RYE_flag
C136: Manually specify RYE | D136: Named ranges to apply
C137: 2013 | D137: dms_RYE_01
C138: 2014 | D138: dms_RYE_02
C139: 2015 | D139: dms_RYE_03
C140: 2016 | D140: dms_RYE_04
C141: 2017 | D141: dms_RYE_05
C142: 2018 | D142: dms_RYE_06
C143: 2019 | D143: dms_RYE_07
C144: 2020 | D144: dms_RYE_08
C145: 2021 | D145: dms_RYE_09

Sheet Instructions
B2: =CONCATENATE(dms_Sector," ",dms_Segment," ", "Network Service Provider") -> Electricity Distribution Network Service Provider
B3: =IF(dms_Model="Reset","Regulatory Proposal RIN Template","Annual Reporting RIN") -> Regulatory Proposal RIN Template
B4: =CONCATENATE("This template is to be used by ",dms_TradingNameFull," to fulfil its reporting obligations to the AER.") -> This template is to be used by CitiPower to fulfil its reporting obligations to the AER.
B5: INSTRUCTIONS
B6: GENERAL | C6: Complete the Business & other details worksheet before entering data or values in any other worksheets. The Business & other details worksheet is linked to other worksheets within the workbook and automatically generates certain column headings and conditional formatting.
B8: CONFIDENTIAL INFORMATION | C8: Please use the macro at the top of each worksheet to identify confidential information in the confidential workbook.
C9: -Do this by selecting the cell or cells that contain confidential information and then run the Mark selection as CONFIDENTIAL macro. This will format the cells a specific colour that is identified by the AER's database which in turn marks that information as confidential. -To reverse this, select the cell or cells and run the Return selection to NON-CONFIDENTIAL macro.
B11: RESPONSES | C11: Please return two (2) files to the AER: 1. A confidential version which must contain a complete set of all responses with confidential information marked using the Mark selection CONFIDENTIAL macro and which has been completed using the locked template file provided by the AER. 2. A public version with confidential information either removed completely or aggregated in some form together with writtten consent to disclose the public version of the response. Use the drop down box on the Business and other details worksheet to identify the file as either confidential ('consolidated') or public.
B13: AMENDMENTS | C13: If an NSP wishes to correct data previously submitted to the AER it should resubmit that data using the original completed submission as the starting point. Please make any necessary changes to the data. Data that is not being amended should be left unchanged. NSPs must identify the reason for the amendments in the Amendment Reason box on the Business and other details worksheet. NSPs may provide further details regarding any amendments in the Amendments worksheet. .
C14: NSP may use Amended Data macro to highlight cells that contain amended data. NB: if data is also CONFIDENTIAL, re-apply the Confidentiality macro after applying the Amended macro
C15: Please resubmit two (2) files - a confidential version and a public version of the amended submission to the AER
B17: UNITS OF MEASURE | C17: All amounts are to be unrounded and reported on a one for one basis: that is 1000 is to be entered as '1000'. Applicable units of measure may be identified in the table column headings or row descriptors.
B19: INPUT / NON-INPUT CELLS
D20: Yellow = Input cell (mandatory)
D21: Darker yellow = input cell (mandatory)
D22: Orange = input cell (if data available)
D23: Grey = Not applicable/No inputs required
D24: PLEASE DO NOT ENTER TEXT into cells that are to contain numeric data.
B27: NAVIGATION | C27: Many tables in the worksheets have been "grouped" to allow for easy navigation. To ungroup or group data use the outline symbols in the left margin (for Row groupings) or above the columns (for column groupings).

Sheet CONTENTS
C1: =IF(dms_MultiYear_ResponseFlag="Yes","REGULATORY REPORTING STATEMENT - HISTORICAL INFORMATION",INDEX(dms_Worksheet_List,MATCH(dms_Model,dms_Model_List))) -> REGULATORY REPORTING STATEMENT
C2: =INDEX(dms_TradingNameFull_List,MATCH(dms_TradingName,dms_TradingName_List)) -> CitiPower
C3: =dms_Header_Span -> 2021-22 to 2025-26
D7: CONTENTS
D9: SUBMISSION | E9: Business & other details
E10: CPI series
D12: EXPENDITURE | E12: 2.1 Expenditure summary
E13: 2.2 Repex
E14: 2.3 Augex (a)
E15: 2.3 Augex (b)
E16: 2.5 Connections
E17: 2.6 Non-network
E18: 2.10 Overheads
E19: 2.11 Labour
E20: 2.14 Forecast price changes
E21: 2.16 Opex Summary
E22: 2.17 Step Changes
D24: ECONOMIC BENCHMARKING | E24: 3.1 Revenue
E25: 3.2 Operating expenditure
E26: 3.3 Assets (RAB)
E27: 3.4 Operational data
E28: 3.5 Physical assets
E29: 3.6 Quality of service
E30: 3.7 Operating Environment
D32: ALTERNATIVE CONTROL | E32: 4.1 Public lighting
E33: 4.2 Metering
E34: 4.3 Fee-based services
E35: 4.4 Quoted services
D37: NETWORK | E37: 5.4 MD & utilisation-Spatial
D39: SERVICE | E39: 6.1 Telephone answering
E40: 6.2 Reliability & Cust serv
D42: OTHER | E42: 7.1 Policies and Procedures
E43: 7.2 Contingent projects
E44: 7.3 Obligations
E45: 7.4 Shared Assets
E46: 7.7 TSS-LRMC
D48: FINANCIAL | E48: 8.2 Capex

Sheet Business & other details
V1: =INDEX(dms_Worksheet_List,MATCH(dms_Model,dms_Model_List)) -> REGULATORY REPORTING STATEMENT
V2: =INDEX(dms_TradingNameFull_List,MATCH(dms_TradingName,dms_TradingName_List)) -> CitiPower
V3: =dms_Header_Span -> 2021-22 to 2025-26
V4: BUSINESS & OTHER DETAILS
V6: INSTRUCTIONS
V7: Complete the following business details regulatory template before entering data or values in any other regulatory template. This regulatory template is linked to other cells within the spreadsheet and automatically generates column headings and conditional formatting to distinguish business specific input and non-input cells.
Q9: SUBMISSION PARTICULARS INPUT SHEET
V12: ENTITY DETAILS
V14: Business Name
V16: Short name | AL16: CitiPower
V17: ACN/ABN | AL17: =INDEX(dms_ABN_List,MATCH(dms_TradingName,dms_TradingName_List)) -> 76064651056
V21: Business Address | BQ21: Postal Address
V23: Address 1 | AL23: =INDEX(dms_Addr1_List,MATCH(dms_TradingName,dms_TradingName_List)) -> 40 Market Street | BI23: Address 1 | BQ23: =INDEX(dms_PAddr1_List,MATCH(dms_TradingName,dms_TradingName_List)) -> Locked Bag 14090
V24: Address 2 | AL24: =IF(ISBLANK(INDEX(dms_Addr2_List,MATCH(dms_TradingName,dms_TradingName_List))),"",(INDEX(dms_Addr2_List,MATCH(dms_TradingName,dms_TradingName_List)))) ->  | BI24: Address 2 | BQ24: =IF(ISBLANK(INDEX(dms_PAddr2_List,MATCH(dms_TradingName,dms_TradingName_List))),"",(INDEX(dms_PAddr2_List,MATCH(dms_TradingName,dms_TradingName_List)))) -> 
V25: Suburb | AL25: =INDEX(dms_Suburb_List,MATCH(dms_TradingName,dms_TradingName_List)) -> MELBOURNE | BI25: Suburb | BQ25: =INDEX(dms_PSuburb_List,MATCH(dms_TradingName,dms_TradingName_List)) -> MELBOURNE
V26: State | AL26: =INDEX(dms_State_List,MATCH(dms_TradingName,dms_TradingName_List)) -> Vic | AV26: Post code | BI26: State | BQ26: =INDEX(dms_PState_List,MATCH(dms_TradingName,dms_TradingName_List)) -> Vic | CA26: Post code
BA28: `
V30: Contact Names
V32: Name | AL32: Brent Cleeve | BI32: Name
V33: Phone | AL33: (03) 9683 4465 | BI33: Phone
V34: Email | AL34: bcleeve@powercor.com.au | BI34: Email
Q39: REGULATORY CONTROL PERIODS
Z42: Forthcoming period | AL42: 2021-22 | AU42: =FRCP_y2 -> 2022-23 | BD42: =FRCP_y3 -> 2023-24 | BM42: =FRCP_y4 -> 2024-25 | BV42: =FRCP_y5 -> 2025-26
AL43: =FRCP_y6 -> 2026-27 | AU43: =FRCP_y7 -> 2027-28 | BD43: =FRCP_y8 -> 2028-29 | BM43: =FRCP_y9 -> 2029-30 | BV43: =FRCP_y10 -> 2030-31
AL44: =FRCP_y11 -> 2031-32 | AU44: =FRCP_y12 -> 2032-33 | BD44: =FRCP_y13 -> 2033-34 | BM44: =FRCP_y14 -> 2034-35 | BV44: =FRCP_y15 -> 2035-36
X46: RESETS | Z46: Current period | AL46: =CRCP_y1 -> 2016-17 | AU46: =CRCP_y2 -> 2017-18 | BD46: =CRCP_y3 -> 2018-19 | BM46: =CRCP_y4 -> 2019-20 | BV46: =CRCP_y5 -> 2020-21
AL47: =CRCP_y6 -> 2021-22 | AU47: =CRCP_y7 -> 2022-23 | BD47: =CRCP_y8 -> 2023-24 | BM47: =CRCP_y9 -> 2024-25 | BV47: =CRCP_y10 -> 2025-26
AL48: =CRCP_y11 -> 2026-27 | AU48: =CRCP_y12 -> 2027-28 | BD48: =CRCP_y13 -> 2028-29 | BM48: =CRCP_y14 -> 2029-30 | BV48: =CRCP_y15 -> 2030-31
Z50: Previous period | AL50: =PRCP_y1 -> 2011-12 | AU50: =PRCP_y2 -> 2012-13 | BD50: =PRCP_y3 -> 2013-14 | BM50: =PRCP_y4 -> 2014-15 | BV50: =PRCP_y5 -> 2015-16
AL51: =PRCP_y6 -> 2016-17 | AU51: =PRCP_y7 -> 2017-18 | BD51: =PRCP_y8 -> 2018-19 | BM51: =PRCP_y9 -> 2019-20 | BV51: =PRCP_y10 -> 2020-21
AL52: =PRCP_y11 -> 2021-22 | AU52: =PRCP_y12 -> 2022-23 | BD52: =PRCP_y13 -> 2023-24 | BM52: =PRCP_y14 -> 2024-25 | BV52: =PRCP_y15 -> 2025-26
Z54: Commencing year | AL54: 2017-18
X55: ANNUAL RINS
Z56: Final year | AL56: 2017-18
Q60: SUBMISSION DETAILS
Z62: RIN type | AL62: =INDIRECT(dms_Model) -> Regulatory Reporting (Reset)
Z64: Source | AL64: Regulatory proposal
X66: THIS FILE | Z66: Data Quality | AL66: Consolidated
Z68: Confidentiality Status | AL68: Public
Z70: Amended RIN Amendment Reason | AL70: .
Z74: Submission Date | AL74: 2020-01-31 | BD74: Please enter date this file submitted to AER

Sheet CPI series
B1: =INDEX(dms_Worksheet_List,MATCH(dms_Model,dms_Model_List)) -> REGULATORY REPORTING STATEMENT
B2: =INDEX(dms_TradingNameFull_List,MATCH(dms_TradingName,dms_TradingName_List)) -> CitiPower
B3: =dms_Header_Span -> 2021-22 to 2025-26
B4: CPI SERIES
B8: NOMINATED CPI SERIES
B10: Name of CPI series | C10: ABS CPI All Groups, Weighted Average of Eight Capital Cities , December quarter (to December 2018)
C12: =CRCP_y1 -> 2016-17 | D12: =CRCP_y2 -> 2017-18 | E12: =CRCP_y3 -> 2018-19 | F12: =CRCP_y4 -> 2019-20 | G12: =CRCP_y5 -> 2020-21 | H12: =FRCP_y1 -> 2021-22 | I12: =FRCP_y2 -> 2022-23 | J12: =FRCP_y3 -> 2023-24 | K12: =FRCP_y4 -> 2024-25 | L12: =FRCP_y5 -> 2025-26
B13: Series data | C13: 110 | D13: 112.1 | E13: 114.1 | F13: =E13*1.02 -> 116.382 | G13: =F13*1.02 -> 118.70964 | H13: =G13*1.024 -> 121.5586714 | I13: =H13*1.024 -> 124.4760795 | J13: 127.4635054 | K13: 130.5226295 | L13: 133.6551726

Sheet 2.1 Expenditure summary
B1: =INDEX(dms_Worksheet_List,MATCH(dms_Model,dms_Model_List)) -> REGULATORY REPORTING STATEMENT
B2: =INDEX(dms_TradingNameFull_List,MATCH(dms_TradingName,dms_TradingName_List)) -> CitiPower
B3: =dms_Header_Span -> 2021-22 to 2025-26
B4: 2.1 EXPENDITURE SUMMARY & RECONCILIATION
B7: 2.1.1 - STANDARD CONTROL SERVICES CAPEX
C8: =CONCATENATE("Forecast ($0's, real ", dms_DollarReal, ")") -> Forecast ($0's, real June 2021)
C9: =CRCP_y4 -> 2019-20 | D9: =CRCP_y5 -> 2020-21 | E9: =FRCP_y1 -> 2021-22 | F9: =FRCP_y2 -> 2022-23 | G9: =FRCP_y3 -> 2023-24 | H9: =FRCP_y4 -> 2024-25 | I9: =FRCP_y5 -> 2025-26
B10: Replacement expenditure | C10: =SUM('2.2 Repex'!E$12:E$141) -> 22056021.96 | D10: =SUM('2.2 Repex'!F$12:F$141) -> 27781323.82 | E10: =SUM('2.2 Repex'!G$12:G$141) -> 53706571.7 | F10: =SUM('2.2 Repex'!H$12:H$141) -> 61873102.07 | G10: =SUM('2.2 Repex'!I$12:I$141) -> 68427932.75 | H10: =SUM('2.2 Repex'!J$12:J$141) -> 65715811.18 | I10: =SUM('2.2 Repex'!K$12:K$141) -> 58302931.35
B11: Connections | C11: =SUM('2.5 Connections'!E$105:E$118)+'4.4 Quoted services'!C$11 -> 92554018.87 | D11: =SUM('2.5 Connections'!F$105:F$118)+'4.4 Quoted services'!D$11 -> 88076230.14 | E11: =SUM('2.5 Connections'!G$105:G$118)+'4.4 Quoted services'!E$11 -> 92908732.24 | F11: =SUM('2.5 Connections'!H$105:H$118)+'4.4 Quoted services'!F$11 -> 87434807.93 | G11: =SUM('2.5 Connections'!I$105:I$118)+'4.4 Quoted services'!G$11 -> 82348211.16 | H11: =SUM('2.5 Connections'!J$105:J$118)+'4.4 Quoted services'!H$11 -> 80967214.42 | I11: =SUM('2.5 Connections'!K$105:K$118)+'4.4 Quoted services'!I$11 -> 82629080.19
B12: Augmentation Expenditure | C12: =SUM('2.3 Augex (b)'!D$48:D$56) -> 45633450.27 | D12: =SUM('2.3 Augex (b)'!E$48:E$56) -> 38850093.6 | E12: =SUM('2.3 Augex (b)'!F$48:F$56) -> 45617725.78 | F12: =SUM('2.3 Augex (b)'!G$48:G$56) -> 35246806.9 | G12: =SUM('2.3 Augex (b)'!H$48:H$56) -> 39338153.54 | H12: =SUM('2.3 Augex (b)'!I$48:I$56) -> 36331411.54 | I12: =SUM('2.3 Augex (b)'!J$48:J$56) -> 22345788.73
B13: Non-network | C13: =SUM('2.6 Non-network'!E$32:E$39) -> 19781349.29 | D13: =SUM('2.6 Non-network'!F$32:F$39) -> 21560305.64 | E13: =SUM('2.6 Non-network'!G$32:G$39) -> 30906609.19 | F13: =SUM('2.6 Non-network'!H$32:H$39) -> 25367770.13 | G13: =SUM('2.6 Non-network'!I$32:I$39) -> 27162517.87 | H13: =SUM('2.6 Non-network'!J$32:J$39) -> 20637746.6 | I13: =SUM('2.6 Non-network'!K$32:K$39) -> 13071677.22
B14: Public lighting
B15: Metering
B16: Capitalised network overheads | C16: ='2.10 Overheads'!D15 -> 19684703.36 | D16: ='2.10 Overheads'!E15 -> 20408178.83 | E16: ='2.10 Overheads'!F15 -> 21158244.34 | F16: ='2.10 Overheads'!G15 -> 21610801.05 | G16: ='2.10 Overheads'!H15 -> 22060248.66 | H16: ='2.10 Overheads'!I15 -> 22501142.69 | I16: ='2.10 Overheads'!J15 -> 22931776.94
B17: Capitalised corporate overheads | C17: ='2.10 Overheads'!D30 -> 0 | D17: ='2.10 Overheads'!E30 -> 0 | E17: ='2.10 Overheads'!F30 -> 0 | F17: ='2.10 Overheads'!G30 -> 0 | G17: ='2.10 Overheads'!H30 -> 0 | H17: ='2.10 Overheads'!I30 -> 0 | I17: ='2.10 Overheads'!J30 -> 0
B18: capcons (included in the above) | C18: 53585866.86 | D18: 61829855.8 | E18: 65489206.06 | F18: 61874702.87 | G18: 54891586.45 | H18: 54091125.37 | I18: 55127762.89
B19: Total | C19: =SUM(C10:C17) -> 199709543.8 | D19: 196676132 | E19: 244297883.2 | F19: 231533288.1 | G19: 239337064 | H19: 226153326.4 | I19: 199281254.4
B22: 2.1.2 - STANDARD CONTROL SERVICES OPEX BY CATEGORY
C23: =CONCATENATE("Forecast ($0's, real ", dms_DollarReal, ")") -> Forecast ($0's, real June 2021)
C24: =CRCP_y4 -> 2019-20 | D24: =CRCP_y5 -> 2020-21
B25: Vegetation management | C25: 7535546.032 | D25: 8061770.266
B26: Maintenance | C26: 22679794.26 | D26: 24263575.62
B27: Emergency response | C27: 9575052.449 | D27: 10243700.03
B28: Non-network
B29: Metering
B30: Network overheads | C30: ='2.10 Overheads'!D12 -> 14561179.95 | D30: ='2.10 Overheads'!E12 -> 15096349.64
B31: Corporate overheads | C31: ='2.10 Overheads'!D27 -> 36383964.6 | D31: ='2.10 Overheads'!E27 -> 37721191.06
B32: Total | C32: =SUM(C25:C31) -> 90735537.29 | D32: =SUM(D25:D31) -> 95386586.61
B35: 2.1.3 - ALTERNATIVE CONTROL SERVICES CAPEX
C36: =CONCATENATE("Forecast ($0's, real ", dms_DollarReal, ")") -> Forecast ($0's, real June 2021)
C37: =CRCP_y4 -> 2019-20 | D37: =CRCP_y5 -> 2020-21 | E37: =FRCP_y1 -> 2021-22 | F37: =FRCP_y2 -> 2022-23 | G37: =FRCP_y3 -> 2023-24 | H37: =FRCP_y4 -> 2024-25 | I37: =FRCP_y5 -> 2025-26
B38: Connections
B39: Metering | C39: =SUM('4.2 Metering'!E29,'4.2 Metering'!E47,'4.2 Metering'!E59,'4.2 Metering'!E61) -> 3754576.302 | D39: =SUM('4.2 Metering'!F29,'4.2 Metering'!F47,'4.2 Metering'!F59,'4.2 Metering'!F61) -> 4032303.434 | E39: =SUM('4.2 Metering'!G29,'4.2 Metering'!G47,'4.2 Metering'!G59,'4.2 Metering'!G61) -> 5934015.761 | F39: =SUM('4.2 Metering'!H29,'4.2 Metering'!H47,'4.2 Metering'!H59,'4.2 Metering'!H61) -> 6230063.137 | G39: =SUM('4.2 Metering'!I29,'4.2 Metering'!I47,'4.2 Metering'!I59,'4.2 Metering'!I61) -> 5148415.266 | H39: =SUM('4.2 Metering'!J29,'4.2 Metering'!J47,'4.2 Metering'!J59,'4.2 Metering'!J61) -> 5649070.104 | I39: =SUM('4.2 Metering'!K29,'4.2 Metering'!K47,'4.2 Metering'!K59,'4.2 Metering'!K61) -> 7220304.818
B40: Public lighting | C40: ='4.1 Public lighting'!D18 -> 1058585.055 | D40: ='4.1 Public lighting'!E18 -> 816670.6121 | E40: ='4.1 Public lighting'!F18 -> 610066.976 | F40: ='4.1 Public lighting'!G18 -> 615323.5578 | G40: ='4.1 Public lighting'!H18 -> 621014.388 | H40: ='4.1 Public lighting'!I18 -> 626465.1771 | I40: ='4.1 Public lighting'!J18 -> 628438.1138
B41: Fee and quoted
B42: Network overheads
B43: Corporate overheads
B44: Total | C44: =SUM(C38:C43) -> 4813161.357 | D44: 4848974.046 | E44: 6544082.737 | F44: 6845386.695 | G44: 5769429.654 | H44: 6275535.282 | I44: 7848742.932
B47: 2.1.4 - ALTERNATIVE CONTROL SERVICES OPEX
C48: =CONCATENATE("Forecast ($0's, real ", dms_DollarReal, ")") -> Forecast ($0's, real June 2021)
C49: =CRCP_y4 -> 2019-20 | D49: =CRCP_y5 -> 2020-21 | E49: =FRCP_y1 -> 2021-22 | F49: =FRCP_y2 -> 2022-23 | G49: =FRCP_y3 -> 2023-24 | H49: =FRCP_y4 -> 2024-25 | I49: =FRCP_y5 -> 2025-26
B50: Connections | C50: =SUM('4.2 Metering'!E44:E46) -> 6376976.039 | D50: =SUM('4.2 Metering'!F44:F46) -> 6504221.096 | E50: =SUM('4.2 Metering'!G44:G46) -> 6414819.003 | F50: =SUM('4.2 Metering'!H44:H46) -> 6223242.242 | G50: =SUM('4.2 Metering'!I44:I46) -> 6106059.611 | H50: =SUM('4.2 Metering'!J44:J46) -> 5984190.579 | I50: =SUM('4.2 Metering'!K44:K46) -> 5901876.42
B51: Metering | C51: =SUM('4.2 Metering'!E32,'4.2 Metering'!E35:E43,'4.2 Metering'!E50:E58,'4.2 Metering'!E60,'4.2 Metering'!E62) -> 5819807.789 | D51: =SUM('4.2 Metering'!F32,'4.2 Metering'!F35:F43,'4.2 Metering'!F50:F58,'4.2 Metering'!F60,'4.2 Metering'!F62) -> 5968483.491 | E51: =SUM('4.2 Metering'!G32,'4.2 Metering'!G35:G43,'4.2 Metering'!G50:G58,'4.2 Metering'!G60,'4.2 Metering'!G62) -> 5374070.432 | F51: =SUM('4.2 Metering'!H32,'4.2 Metering'!H35:H43,'4.2 Metering'!H50:H58,'4.2 Metering'!H60,'4.2 Metering'!H62) -> 5529390.417 | G51: =SUM('4.2 Metering'!I32,'4.2 Metering'!I35:I43,'4.2 Metering'!I50:I58,'4.2 Metering'!I60,'4.2 Metering'!I62) -> 5684554.302 | H51: =SUM('4.2 Metering'!J32,'4.2 Metering'!J35:J43,'4.2 Metering'!J50:J58,'4.2 Metering'!J60,'4.2 Metering'!J62) -> 5829612.816 | I51: =SUM('4.2 Metering'!K32,'4.2 Metering'!K35:K43,'4.2 Metering'!K50:K58,'4.2 Metering'!K60,'4.2 Metering'!K62) -> 5967005.003
B52: Public lighting | C52: ='4.1 Public lighting'!D22 -> 3179516.299 | D52: ='4.1 Public lighting'!E22 -> 2696306.796 | E52: ='4.1 Public lighting'!F22 -> 2213097.292 | F52: ='4.1 Public lighting'!G22 -> 2088867.219 | G52: ='4.1 Public lighting'!H22 -> 1966988.617 | H52: ='4.1 Public lighting'!I22 -> 1857296.833 | I52: ='4.1 Public lighting'!J22 -> 1759515.202
B53: Fee and quoted | C53: =SUM('4.3 Fee-based services'!C12:C28,'4.4 Quoted services'!C12:C17) -> 14036130.94 | D53: =SUM('4.3 Fee-based services'!D12:D28,'4.4 Quoted services'!D12:D17) -> 14492085.92 | E53: =SUM('4.3 Fee-based services'!E12:E28,'4.4 Quoted services'!E12:E17) -> 13552087.91 | F53: =SUM('4.3 Fee-based services'!F12:F28,'4.4 Quoted services'!F12:F17) -> 13571992 | G53: =SUM('4.3 Fee-based services'!G12:G28,'4.4 Quoted services'!G12:G17) -> 13586827.18 | H53: =SUM('4.3 Fee-based services'!H12:H28,'4.4 Quoted services'!H12:H17) -> 13601273.86 | I53: =SUM('4.3 Fee-based services'!I12:I28,'4.4 Quoted services'!I12:I17) -> 13615438.54
B54: Network overheads
B55: Corporate overheads
B56: Total | C56: =SUM(C50:C55) -> 29412431.06 | D56: 29661097.31 | E56: 27554074.64 | F56: 27413491.87 | G56: 27344429.71 | H56: 27272374.09 | I56: 27243835.17
B59: 2.1.5 - DUAL FUNCTION ASSETS CAPEX
C60: =CONCATENATE("Forecast ($0's, real ", dms_DollarReal, ")") -> Forecast ($0's, real June 2021)
C61: =CRCP_y4 -> 2019-20 | D61: =CRCP_y5 -> 2020-21 | E61: =FRCP_y1 -> 2021-22 | F61: =FRCP_y2 -> 2022-23 | G61: =FRCP_y3 -> 2023-24 | H61: =FRCP_y4 -> 2024-25 | I61: =FRCP_y5 -> 2025-26
B62: Replacement expenditure
B63: Connections
B64: Augmentation expenditure
B65: Non-network
B66: Capitalised network overheads
B67: Capitalised corporate overheads
B68: capcons (included in the above)
B69: Total | C69: =SUM(C62:C67) -> 0 | D69: 0 | E69: 0 | F69: 0 | G69: 0 | H69: 0 | I69: 0
B72: 2.1.6 - DUAL FUNCTION ASSETS OPEX BY CATEGORY
C73: =CONCATENATE("Forecast ($0's, real ", dms_DollarReal, ")") -> Forecast ($0's, real June 2021)
C74: =CRCP_y4 -> 2019-20 | D74: =CRCP_y5 -> 2020-21
B75: Vegetation management
B76: Maintenance
B77: Emergency response
B78: Non-network
B79: Metering
B80: Network overheads
B81: Corporate overheads
B96: Total | C96: =SUM(C75:C95) -> 0 | D96: =SUM(D75:D95) -> 0
B99: 2.1.7 - STANDARD CONTROL SERVICES CAPCONS
C100: =CONCATENATE("Forecast ($0's, real ", dms_DollarReal, ")") -> Forecast ($0's, real June 2021)
C101: =CRCP_y4 -> 2019-20 | D101: =CRCP_y5 -> 2020-21 | E101: =FRCP_y1 -> 2021-22 | F101: =FRCP_y2 -> 2022-23 | G101: =FRCP_y3 -> 2023-24 | H101: =FRCP_y4 -> 2024-25 | I101: =FRCP_y5 -> 2025-26
B102: Replacement expenditure
B103: Connections | C103: =C18 -> 53585866.86 | D103: =D18 -> 61829855.8 | E103: 65489206.06 | F103: 61874702.87 | G103: 54891586.45 | H103: 54091125.37 | I103: 55127762.89
B104: Augmentation Expenditure
B105: Non-network
B106: Capitalised network overheads
B107: Capitalised corporate overheads
B108: Total | C108: =SUM(C102:C107) -> 53585866.86 | D108: 61829855.8 | E108: 65489206.06 | F108: 61874702.87 | G108: 54891586.45 | H108: 54091125.37 | I108: 55127762.89
B111: 2.1.8 - STANDARD CONTROL SERVICES CAPITALISED OVERHEADS
C112: =CONCATENATE("Forecast ($0's, real ", dms_DollarReal, ")") -> Forecast ($0's, real June 2021)
C113: =CRCP_y4 -> 2019-20 | D113: =CRCP_y5 -> 2020-21 | E113: =FRCP_y1 -> 2021-22 | F113: =FRCP_y2 -> 2022-23 | G113: =FRCP_y3 -> 2023-24 | H113: =FRCP_y4 -> 2024-25 | I113: =FRCP_y5 -> 2025-26
B114: Replacement expenditure | C114: =C10/SUM(C$10:C$12)*'2.10 Overheads'!D$15 -> 2709415.819 | D114: =D10/SUM(D$10:D$12)*'2.10 Overheads'!E$15 -> 3664758.877 | E114: 5911246.2 | F114: 7245153.75 | G114: 7940156.169 | H114: 8079585.783 | I114: 8188435.995
B115: Connections | C115: =C11/SUM(C$10:C$12)*'2.10 Overheads'!D$15 -> 11369562.62 | D115: =D11/SUM(D$10:D$12)*'2.10 Overheads'!E$15 -> 11618530.07 | E115: 10226055.64 | F115: 10238352.46 | G115: 9555420.289 | H115: 9954705.616 | I115: 11604955.68
B116: Augmentation Expenditure | C116: =C12/SUM(C$10:C$12)*'2.10 Overheads'!D$15 -> 5605724.923 | D116: =D12/SUM(D$10:D$12)*'2.10 Overheads'!E$15 -> 5124889.884 | E116: 5020942.496 | F116: 4127294.844 | G116: 4564672.204 | H116: 4466851.294 | I116: 3138385.267
B117: Non-network
B118: capcons (included in the above)
B119: Total | C119: =SUM(C114:C117) -> 19684703.36 | D119: 20408178.83 | E119: 21158244.34 | F119: 21610801.05 | G119: 22060248.66 | H119: 22501142.69 | I119: 22931776.94

Sheet 2.2 Repex
B1: =INDEX(dms_Worksheet_List,MATCH(dms_Model,dms_Model_List)) -> REGULATORY REPORTING STATEMENT
B2: =INDEX(dms_TradingNameFull_List,MATCH(dms_TradingName,dms_TradingName_List)) -> CitiPower
B3: =dms_Header_Span -> 2021-22 to 2025-26
B4: 2.2 REPEX
B6: There are THREE sub-tables on this worksheet. The table has been sub-grouped for easy navigation. See the Instructions sheet on how to group or ungroup tables.
B8: 2.2.1 - REPLACEMENT EXPENDITURE, VOLUMES AND ASSET FAILURES BY ASSET CATEGORY
B9: EXPENDITURE
E10: =CONCATENATE("EXPENDITURE ($0's, real ", dms_DollarReal,")") -> EXPENDITURE ($0's, real June 2021)
B11: ASSET GROUP | C11: ASSET CATEGORY | D11: UNITS | E11: =CRCP_y4 -> 2019-20 | F11: =CRCP_y5 -> 2020-21 | G11: =FRCP_y1 -> 2021-22 | H11: =FRCP_y2 -> 2022-23 | I11: =FRCP_y3 -> 2023-24 | J11: =FRCP_y4 -> 2024-25 | K11: =FRCP_y5 -> 2025-26
B12: POLES BY: HIGHEST OPERATING VOLTAGE ; MATERIAL TYPE | C12: Staking of a wooden pole | E12: 0 | F12: 0 | G12: 0 | H12: 0 | I12: 0 | J12: 0 | K12: 0
C13: ˂ = 1 kV; Wood | E13: 1457913.576 | F13: 2064323.885 | G13: 7903450.276 | H13: 8079859.593 | I13: 8258865.766 | J13: 8417839.571 | K13: 8571674.166
C14: > 1 kV & < = 11 kV; Wood | E14: 517344.2836 | F14: 749927.2685 | G14: 2929489.632 | H14: 2980869.02 | I14: 3032701.011 | J14: 3076707.15 | K14: 3118413.241
C15: ˃ 11 kV & < = 22 kV; Wood | E15: 54297.08566 | F15: 65503.04049 | G15: 104250.8185 | H15: 106163.9645 | I15: 108096.3013 | J15: 109752.5653 | K15: 111329.3681
C16: > 22 kV & < = 66 kV; Wood | E16: 145548.1428 | F16: 204523.5936 | G16: 576508.173 | H16: 587087.8914 | I16: 597773.7353 | J16: 606932.8932 | K16: 615652.6299
C17: > 66 kV & < = 132 kV; Wood | E17: 0 | F17: 0 | G17: 0 | H17: 0 | I17: 0 | J17: 0 | K17: 0
C18: > 132 kV; Wood | E18: 0 | F18: 0 | G18: 0 | H18: 0 | I18: 0 | J18: 0 | K18: 0
C19: ˂ = 1 kV; Concrete | E19: 65547.74401 | F19: 65547.74401 | G19: 66588.10821 | H19: 67810.09164 | I19: 69044.33282 | J19: 70102.23803 | K19: 71109.38901
C20: > 1 kV & < = 11 kV; Concrete | E20: 16205.34302 | F20: 16205.34302 | G20: 16462.55185 | H20: 16764.66233 | I20: 17069.80329 | J20: 17331.34878 | K20: 17580.34633
C21: ˃ 11 kV & < = 22 kV; Concrete | E21: 0 | F21: 0 | G21: 0 | H21: 0 | I21: 0 | J21: 0 | K21: 0
C22: > 22 kV & < = 66 kV; Concrete | E22: 0 | F22: 0 | G22: 0 | H22: 0 | I22: 0 | J22: 0 | K22: 0
C23: > 66 kV & < = 132 kV; Concrete | E23: 0 | F23: 0 | G23: 0 | H23: 0 | I23: 0 | J23: 0 | K23: 0
C24: > 132 kV; Concrete | E24: 0 | F24: 0 | G24: 0 | H24: 0 | I24: 0 | J24: 0 | K24: 0
C25: ˂ = 1 kV; Steel | E25: 131716.4284 | F25: 131716.4284 | G25: 133807.0123 | H25: 136262.5551 | I25: 138742.7296 | J25: 140868.5616 | K25: 142892.4044
C26: > 1 kV & < = 11 kV; Steel | E26: 11015.18181 | F26: 11015.18181 | G26: 11190.01316 | H26: 11395.3653 | I26: 11602.77734 | J26: 11780.55642 | K26: 11949.80636
C27: ˃ 11 kV & < = 22 kV; Steel | E27: 0 | F27: 0 | G27: 0 | H27: 0 | I27: 0 | J27: 0 | K27: 0
C28: > 22 kV & < = 66 kV; Steel | E28: 0 | F28: 0 | G28: 0 | H28: 0 | I28: 0 | J28: 0 | K28: 0
C29: > 66 kV & < = 132 kV; Steel | E29: 0 | F29: 0 | G29: 0 | H29: 0 | I29: 0 | J29: 0 | K29: 0
C30: > 132 kV; Steel | E30: 0 | F30: 0 | G30: 0 | H30: 0 | I30: 0 | J30: 0 | K30: 0
C31: Other | E31: 7977.45778 | F31: 7977.45778 | G31: 8104.074822 | H31: 8252.795748 | I31: 8403.008499 | J31: 8531.760362 | K31: 8654.335205
B32: POLE TOP STRUCTURES BY: HIGHEST OPERATING VOLTAGE | C32: ˂ = 1 kV | E32: 1184685.258 | F32: 1795056.028 | G32: 2755841.382 | H32: 2818099.612 | I32: 2881290.504 | J32: 2937517.689 | K32: 2991973.944
C33: > 1 kV & < = 11 kV | E33: 504633.0654 | F33: 825196.775 | G33: 408955.0984 | H33: 411355.3259 | I33: 413645.0107 | J33: 414705.7157 | K33: 415310.7176
C34: ˃ 11 kV & < = 22 kV | E34: 26080.7288 | F34: 44901.3411 | G34: 19239.3712 | H34: 19592.44014 | I34: 19949.05073 | J34: 20254.71238 | K34: 20545.70956
C35: > 22 kV & < = 66 kV | E35: 24253.98684 | F35: 41756.36901 | G35: 20473.53219 | H35: 20849.24968 | I35: 21228.73601 | J35: 21554.00514 | K35: 21863.66911
C36: > 66 kV & < = 132 kV | E36: 0 | F36: 0 | G36: 0 | H36: 0 | I36: 0 | J36: 0 | K36: 0
C37: > 132 kV | E37: 0 | F37: 0 | G37: 0 | H37: 0 | I37: 0 | J37: 0 | K37: 0
C38: Other | E38: 0 | F38: 0 | G38: 0 | H38: 0 | I38: 0 | J38: 0 | K38: 0
B39: STAKING WOODEN POLES BY: HIGHEST OPERATING VOLTAGE | C39: ˂ = 1 Kv | D39: for year wooden pole staked | E39: 277144.8911 | F39: 437057.5778 | G39: 1034214.405 | H39: 1053193.663 | I39: 1072363.302 | J39: 1088794.176 | K39: 1104436.76
C40: > 1 kV & < = 11 kV | D40: for year wooden pole staked | E40: 0 | F40: 0 | G40: 0 | H40: 0 | I40: 0 | J40: 0 | K40: 0
C41: ˃ 11 kV & < = 22 kV | D41: for year wooden pole staked | E41: 0 | F41: 0 | G41: 0 | H41: 0 | I41: 0 | J41: 0 | K41: 0
C42: > 22 kV & < = 66 kV | D42: for year wooden pole staked | E42: 0 | F42: 0 | G42: 0 | H42: 0 | I42: 0 | J42: 0 | K42: 0
C43: > 66 kV & < = 132 kV | D43: for year wooden pole staked | E43: 0 | F43: 0 | G43: 0 | H43: 0 | I43: 0 | J43: 0 | K43: 0
C44: > 132 kV | D44: for year wooden pole staked | E44: 0 | F44: 0 | G44: 0 | H44: 0 | I44: 0 | J44: 0 | K44: 0
B45: OVERHEAD CONDUCTORS BY: Highest operating voltage; Number of phases (at HV) | C45: ˂ = 1 kV | D45: per km | E45: 112839.7544 | F45: 112839.7544 | G45: 114630.7305 | H45: 116734.3621 | I45: 118859.0954 | J45: 120680.2681 | K45: 122414.068
C46: > 1 kV & < = 11 kV | D46: per km | E46: 0 | F46: 0 | G46: 0 | H46: 0 | I46: 0 | J46: 0 | K46: 0
C47: ˃ 11 kV & < = 22 kV ; SWER | D47: per km | E47: 0 | F47: 0 | G47: 0 | H47: 0 | I47: 0 | J47: 0 | K47: 0
C48: ˃ 11 kV & < = 22 kV ; Single-Phase | D48: per km | E48: 0 | F48: 0 | G48: 0 | H48: 0 | I48: 0 | J48: 0 | K48: 0
C49: ˃ 11 kV & < = 22 kV ; Multiple-Phase | D49: per km | E49: 0 | F49: 0 | G49: 0 | H49: 0 | I49: 0 | J49: 0 | K49: 0
C50: > 22 kV & < = 66 kV | D50: per km | E50: 0 | F50: 0 | G50: 0 | H50: 0 | I50: 0 | J50: 0 | K50: 0
C51: > 66 kV & < = 132 kV | D51: per km | E51: 0 | F51: 0 | G51: 0 | H51: 0 | I51: 0 | J51: 0 | K51: 0
C52: > 132 kV | D52: per km | E52: 0 | F52: 0 | G52: 0 | H52: 0 | I52: 0 | J52: 0 | K52: 0
C53: Other | D53: per km | E53: 0 | F53: 0 | G53: 0 | H53: 0 | I53: 0 | J53: 0 | K53: 0
B54: UNDERGROUND CABLES BY: Highest operating voltage | C54: ˂ = 1 kV | D54: per km | E54: 175786.3206 | F54: 165361.9406 | G54: 167986.5411 | H54: 171069.3253 | I54: 174183.033 | J54: 176851.8855 | K54: 179392.6967
C55: > 1 kV & < = 11 kV | D55: per km | E55: 681447.9778 | F55: 472960.377 | G55: 480467.1349 | H55: 489284.368 | I55: 498190.0472 | J55: 505823.3723 | K55: 513090.4799
C56: > 11 kV & < = 22 kV | D56: per km | E56: 0 | F56: 0 | G56: 0 | H56: 0 | I56: 0 | J56: 0 | K56: 0
C57: > 22 kV & < = 33 kV | D57: per km | E57: 0 | F57: 0 | G57: 0 | H57: 0 | I57: 0 | J57: 0 | K57: 0
C58: > 33 kV & < = 66 kV | D58: per km | E58: 0 | F58: 0 | G58: 0 | H58: 0 | I58: 0 | J58: 0 | K58: 0
C59: > 66 kV & < = 132 kV | D59: per km | E59: 0 | F59: 0 | G59: 0 | H59: 0 | I59: 0 | J59: 0 | K59: 0
C60: > 132 kV | D60: per km | E60: 0 | F60: 0 | G60: 0 | H60: 0 | I60: 0 | J60: 0 | K60: 0
C61: Other | D61: per km | E61: 0 | F61: 0 | G61: 0 | H61: 0 | I61: 0 | J61: 0 | K61: 0
B62: SERVICE LINES BY: Connection voltage; Customer type; Connection complexity | C62: ˂ = 11 kV ; Residential ; Simple Type | D62: per number of spans | E62: 3631211.767 | F62: 4496179.722 | G62: 3209396.343 | H62: 3313899.134 | I62: 3420652.909 | J62: 3520212.09 | K62: 3618611.488
C63: ˂ = 11 kV ; Commercial & Industrial ; Simple Type | D63: per number of spans | E63: 0 | F63: 0 | G63: 0 | H63: 0 | I63: 0 | J63: 0 | K63: 0
C64: ˂ = 11 kV ; Residential ; Complex Type | D64: per number of spans | E64: 0 | F64: 0 | G64: 0 | H64: 0 | I64: 0 | J64: 0 | K64: 0
C65: ˂ = 11 kV ; Commercial & Industrial ; Complex Type | D65: per number of spans | E65: 0 | F65: 0 | G65: 0 | H65: 0 | I65: 0 | J65: 0 | K65: 0
C66: ˂ = 11 kV ; Subdivision ; Complex Type | D66: per number of spans | E66: 0 | F66: 0 | G66: 0 | H66: 0 | I66: 0 | J66: 0 | K66: 0
C67: > 11 kV & < = 22 kV ; Commercial & Industrial | D67: per number of spans | E67: 0 | F67: 0 | G67: 0 | H67: 0 | I67: 0 | J67: 0 | K67: 0
C68: > 11 kV & < = 22 kV ; Subdivision | D68: per number of spans | E68: 0 | F68: 0 | G68: 0 | H68: 0 | I68: 0 | J68: 0 | K68: 0
C69: > 22 kV & < = 33 kV ; Commercial & Industrial | D69: per number of spans | E69: 0 | F69: 0 | G69: 0 | H69: 0 | I69: 0 | J69: 0 | K69: 0
C70: > 22 kV & < = 33 kV ; Subdivision | D70: per number of spans | E70: 0 | F70: 0 | G70: 0 | H70: 0 | I70: 0 | J70: 0 | K70: 0
C71: > 33 kV & < = 66 kV ; Commercial & Industrial | D71: per number of spans | E71: 0 | F71: 0 | G71: 0 | H71: 0 | I71: 0 | J71: 0 | K71: 0
C72: > 33 kV & < = 66 kV ; Subdivision | D72: per number of spans | E72: 0 | F72: 0 | G72: 0 | H72: 0 | I72: 0 | J72: 0 | K72: 0
C73: > 66 kV & < = 132 kV ; Commercial & Industrial | D73: per number of spans | E73: 0 | F73: 0 | G73: 0 | H73: 0 | I73: 0 | J73: 0 | K73: 0
C74: > 66 kV & < = 132 kV ; Subdivision | D74: per number of spans | E74: 0 | F74: 0 | G74: 0 | H74: 0 | I74: 0 | J74: 0 | K74: 0
C75: > 132 kV ; Commercial & Industrial | D75: per number of spans | E75: 0 | F75: 0 | G75: 0 | H75: 0 | I75: 0 | J75: 0 | K75: 0
C76: > 132 kV ; Subdivision | D76: per number of spans | E76: 0 | F76: 0 | G76: 0 | H76: 0 | I76: 0 | J76: 0 | K76: 0
C77: Other | D77: per number of spans | E77: 0 | F77: 0 | G77: 0 | H77: 0 | I77: 0 | J77: 0 | K77: 0
B78: TRANSFORMERS BY: Mounting type; Highest operating voltage; Ampere rating; Number of phases (at LV) | C78: Pole Mounted ; < = 22kV ; < = 60 kVA ; Single Phase | E78: 0 | F78: 0 | G78: 0 | H78: 0 | I78: 0 | J78: 0 | K78: 0
C79: Pole Mounted ; < = 22kV ; > 60 kVA and < = 600 kVA ; Single Phase | E79: 0 | F79: 0 | G79: 0 | H79: 0 | I79: 0 | J79: 0 | K79: 0
C80: Pole Mounted ; < = 22kV ; > 600 kVA ; Single Phase | E80: 0 | F80: 0 | G80: 0 | H80: 0 | I80: 0 | J80: 0 | K80: 0
C81: Pole Mounted ; < = 22kV ; < = 60 kVA ; Multiple Phase | E81: 0 | F81: 0 | G81: 0 | H81: 0 | I81: 0 | J81: 0 | K81: 0
C82: Pole Mounted ; < = 22kV ; > 60 kVA and < = 600 kVA ; Multiple Phase | E82: 73867.29241 | F82: 36933.64621 | G82: 0 | H82: 0 | I82: 0 | J82: 0 | K82: 0
C83: Pole Mounted ; < = 22kV ; > 600 kVA ; Multiple Phase | E83: 0 | F83: 0 | G83: 0 | H83: 0 | I83: 0 | J83: 0 | K83: 0
C84: Kiosk Mounted ; < = 22kV ; < = 60 kVA ; Single Phase | E84: 0 | F84: 0 | G84: 0 | H84: 0 | I84: 0 | J84: 0 | K84: 0
C85: Kiosk Mounted ; < = 22kV ; > 60 kVA and < = 600 kVA ; Single Phase | E85: 0 | F85: 0 | G85: 0 | H85: 0 | I85: 0 | J85: 0 | K85: 0
C86: Kiosk Mounted ; < = 22kV ; > 600 kVA ; Single Phase | E86: 0 | F86: 0 | G86: 0 | H86: 0 | I86: 0 | J86: 0 | K86: 0
C87: Kiosk Mounted ; < = 22kV ; < = 60 kVA ; Multiple Phase | E87: 0 | F87: 0 | G87: 0 | H87: 0 | I87: 0 | J87: 0 | K87: 0
C88: Kiosk Mounted ; < = 22kV ; > 60 kVA and < = 600 kVA ; Multiple Phase | E88: 103201.3624 | F88: 102158.9244 | G88: 103780.3759 | H88: 105684.8886 | I88: 107608.5056 | J88: 109257.2955 | K88: 166240.4741
C89: Kiosk Mounted ; < = 22kV ; > 600 kVA ; Multiple Phase | E89: 0 | F89: 0 | G89: 0 | H89: 0 | I89: 0 | J89: 0 | K89: 0
C90: Ground Outdoor / Indoor Chamber Mounted; ˂ 22 kV ; < = 60 kVA ; Single Phase | E90: 0 | F90: 0 | G90: 0 | H90: 0 | I90: 0 | J90: 0 | K90: 0
C91: Ground Outdoor / Indoor Chamber Mounted; ˂ 22 kV ; > 60 kVA and < = 600 kVA ; Single Phase | E91: 0 | F91: 0 | G91: 0 | H91: 0 | I91: 0 | J91: 0 | K91: 0
C92: Ground Outdoor / Indoor Chamber Mounted; ˂ 22 kV ; > 600 kVA ; Single Phase | E92: 0 | F92: 0 | G92: 0 | H92: 0 | I92: 0 | J92: 0 | K92: 0
C93: Ground Outdoor / Indoor Chamber Mounted; ˂ 22 kV ; < = 60 kVA ; Multiple Phase | E93: 0 | F93: 0 | G93: 0 | H93: 0 | I93: 0 | J93: 0 | K93: 0
C94: Ground Outdoor / Indoor Chamber Mounted; ˂ 22 kV ; > 60 kVA and < = 600 kVA ; Multiple Phase | E94: 312317.5533 | F94: 269295.0944 | G94: 256096.0802 | H94: 260795.7957 | I94: 265542.6542 | J94: 269611.3293 | K94: 273484.805
C95: Ground Outdoor / Indoor Chamber Mounted; ˂ 22 kV ; > 600 kVA ; Multiple Phase | E95: 0 | F95: 0 | G95: 0 | H95: 0 | I95: 0 | J95: 0 | K95: 0
C96: Ground Outdoor / Indoor Chamber Mounted; > = 22 kV & < = 33 kV ; < = 15 MVA | E96: 0 | F96: 0 | G96: 0 | H96: 0 | I96: 0 | J96: 0 | K96: 0
C97: Ground Outdoor / Indoor Chamber Mounted; > = 22 kV & < = 33 kV ; > 15 MVA and < = 40 MVA | E97: 0 | F97: 0 | G97: 0 | H97: 0 | I97: 0 | J97: 0 | K97: 0
C98: Ground Outdoor / Indoor Chamber Mounted; > = 22 kV & < = 33 kV ; > 40 MVA | E98: 0 | F98: 0 | G98: 0 | H98: 0 | I98: 0 | J98: 0 | K98: 0
C99: Ground Outdoor / Indoor Chamber Mounted; > 33 kV & < = 66 kV ; < = 15 MVA | E99: 0 | F99: 0 | G99: 0 | H99: 0 | I99: 0 | J99: 0 | K99: 0
C100: Ground Outdoor / Indoor Chamber Mounted; > 33 kV & < = 66 kV ; > 15 MVA and < = 40 MVA | E100: 78182.85029 | F100: 469097.1018 | G100: 2831721.685 | H100: 6035901.24 | I100: 5706544.932 | J100: 3704714.212 | K100: 1723472.67
C101: Ground Outdoor / Indoor Chamber Mounted; > 33 kV & < = 66 kV ; > 40 MVA | E101: 0 | F101: 0 | G101: 0 | H101: 0 | I101: 0 | J101: 0 | K101: 0
C102: Ground Outdoor / Indoor Chamber Mounted; > 66 kV & < = 132 kV ; < = 100 MVA | E102: 0 | F102: 0 | G102: 0 | H102: 0 | I102: 0 | J102: 0 | K102: 0
C103: Ground Outdoor / Indoor Chamber Mounted; > 66 kV & < = 132 kV ; > 100 MVA | E103: 0 | F103: 0 | G103: 0 | H103: 0 | I103: 0 | J103: 0 | K103: 0
C104: Ground Outdoor / Indoor Chamber Mounted; > 132 kV ; < = 100 MVA | E104: 0 | F104: 0 | G104: 0 | H104: 0 | I104: 0 | J104: 0 | K104: 0
C105: Ground Outdoor / Indoor Chamber Mounted; > 132 kV ; > 100 MVA | E105: 0 | F105: 0 | G105: 0 | H105: 0 | I105: 0 | J105: 0 | K105: 0
C106: Other | E106: 0 | F106: 0 | G106: 0 | H106: 0 | I106: 0 | J106: 0 | K106: 0
B107: SWITCHGEAR BY: Highest operating voltage; Switch function | C107: ˂ = 11 kV ; FUSE | E107: 1933901.797 | F107: 1884161.867 | G107: 1964898.213 | H107: 2337422.975 | I107: 2195495.711 | J107: 1881295.796 | K107: 1908324.161
C108: ˂ = 11 kV ; Switch | E108: 476195.9556 | F108: 600353.5237 | G108: 633641.6747 | H108: 645269.8715 | I108: 616763.6398 | J108: 585345.9604 | K108: 593755.5601
C109: ˂ = 11 kV ; Circuit Breaker | E109: 844020.3542 | F109: 1078923.334 | G109: 2752880.368 | H109: 5888058.402 | I109: 7574705.13 | J109: 8318429.741 | K109: 13183380.12
C110: > 11 kV & < = 22 kV ; Switch | E110: 0 | F110: 0 | G110: 0 | H110: 0 | I110: 0 | J110: 0 | K110: 0
C111: > 11 kV & < = 22 kV ; Circuit Breaker | E111: 0 | F111: 0 | G111: 0 | H111: 0 | I111: 0 | J111: 0 | K111: 0
C112: > 22 kV & < = 33 kV ; Switch | E112: 0 | F112: 0 | G112: 0 | H112: 0 | I112: 0 | J112: 0 | K112: 0
C113: > 22 kV & < = 33 kV ; Circuit Breaker | E113: 0 | F113: 0 | G113: 0 | H113: 0 | I113: 0 | J113: 0 | K113: 0
C114: > 33 kV & < = 66 kV ; Switch | E114: 0 | F114: 0 | G114: 0 | H114: 0 | I114: 0 | J114: 0 | K114: 0
C115: > 33 kV & < = 66 kV ; Circuit Breaker | E115: 376518.7039 | F115: 402778.2384 | G115: 409171.0756 | H115: 416679.928 | I115: 424264.1019 | J115: 430764.7252 | K115: 436953.4737
C116: > 66 kV & < = 132 kV ; Switch | E116: 0 | F116: 0 | G116: 0 | H116: 0 | I116: 0 | J116: 0 | K116: 0
C117: > 66 kV & < = 132 kV ; Circuit Breaker | E117: 0 | F117: 0 | G117: 0 | H117: 0 | I117: 0 | J117: 0 | K117: 0
C118: > 132 kV ; Switch | E118: 0 | F118: 0 | G118: 0 | H118: 0 | I118: 0 | J118: 0 | K118: 0
C119: > 132 kV ; Circuit Breaker | E119: 0 | F119: 0 | G119: 0 | H119: 0 | I119: 0 | J119: 0 | K119: 0
C120: Other | E120: 1126992.082 | F120: 1415583.004 | G120: 1226051.749 | H120: 1265868.552 | I120: 1306541.441 | J120: 1344462.844 | K120: 1381938.218
B121: PUBLIC LIGHTING BY: Asset type ; Lighting obligation | C121: Luminaires ; Major Road | E121: 0 | F121: 0 | G121: 0 | H121: 0 | I121: 0 | J121: 0 | K121: 0
C122: Luminaires ; Minor Road | E122: 0 | F122: 0 | G122: 0 | H122: 0 | I122: 0 | J122: 0 | K122: 0
C123: Brackets ; Major Road | E123: 0 | F123: 0 | G123: 0 | H123: 0 | I123: 0 | J123: 0 | K123: 0
C124: Brackets ; Minor Road | E124: 0 | F124: 0 | G124: 0 | H124: 0 | I124: 0 | J124: 0 | K124: 0
C125: Lamps ; Major Road | E125: 0 | F125: 0 | G125: 0 | H125: 0 | I125: 0 | J125: 0 | K125: 0
C126: Lamps ; Minor Road | E126: 0 | F126: 0 | G126: 0 | H126: 0 | I126: 0 | J126: 0 | K126: 0
C127: Poles / Columns ; Major Road | E127: 0 | F127: 0 | G127: 0 | H127: 0 | I127: 0 | J127: 0 | K127: 0
C128: Poles / Columns ; Minor Road | E128: 46219.16197 | F128: 51996.55722 | G128: 58690.93218 | H128: 65744.79071 | I128: 73027.02594 | J128: 80324.78397 | K128: 87746.40121
C129: Other | E129: 0 | F129: 0 | G129: 0 | H129: 0 | I129: 0 | J129: 0 | K129: 0
B130: SCADA, NETWORK CONTROL AND PROTECTION SYSTEMS BY: Function | C130: Field Devices | E130: 2866704.511 | F130: 4143691.066 | G130: 5162544.208 | H130: 5230323.568 | I130: 5380425.278 | J130: 5574351.809 | K130: 5654437.895
C131: Local Network Wiring Assets | E131: 0 | F131: 0 | G131: 0 | H131: 0 | I131: 0 | J131: 0 | K131: 0
C132: Communications Network Assets | E132: 0 | F132: 0 | G132: 0 | H132: 0 | I132: 0 | J132: 0 | K132: 0
C133: Master Station Assets | E133: 0 | F133: 0 | G133: 0 | H133: 0 | I133: 0 | J133: 0 | K133: 0
C134: Communications Site Infrastructure | E134: 0 | F134: 0 | G134: 0 | H134: 0 | I134: 0 | J134: 0 | K134: 0
C135: Communications Linear Assets | E135: 0 | F135: 0 | G135: 0 | H135: 0 | I135: 0 | J135: 0 | K135: 0
C136: AFLC | E136: 0 | F136: 0 | G136: 0 | H136: 0 | I136: 0 | J136: 0 | K136: 0
C137: Other | E137: 0 | F137: 0 | G137: 0 | H137: 0 | I137: 0 | J137: 0 | K137: 0
B138: OTHER BY: enter DNSP defined asset group here | C138: RECOVERABLE WORK - FAULTS | E138: 0 | F138: 0 | G138: 0 | H138: 0 | I138: 0 | J138: 0 | K138: 0
C139: MAJOR ZONE SUBSTATION REPLACEMENT WORKS | E139: 0 | F139: 0 | G139: 0 | H139: 0 | I139: 0 | J139: 0 | K139: 0
C140: PLANT AND STATIONS MISCELLANEOUS | E140: 2757412.364 | F140: 3324938.026 | G140: 3947370.256 | H140: 3997163.171 | I140: 3983720.68 | J140: 4033068.061 | K140: 4165939.35
C141: Environmental related expenditure | E141: 2034838.984 | F141: 2293363.609 | G141: 14398669.88 | H141: 15215645.47 | I141: 19930632.49 | J141: 18117944.06 | K141: 7070362.996
B182: ASSET REPLACEMENTS
E183: VOLUMES (0's)
B184: ASSET GROUP | C184: ASSET CATEGORY | E184: =CRCP_y4 -> 2019-20 | F184: =CRCP_y5 -> 2020-21 | G184: =FRCP_y1 -> 2021-22 | H184: =FRCP_y2 -> 2022-23 | I184: =FRCP_y3 -> 2023-24 | J184: =FRCP_y4 -> 2024-25 | K184: =FRCP_y5 -> 2025-26
B185: POLES BY: HIGHEST OPERATING VOLTAGE ; MATERIAL TYPE | C185: Staking of a wooden pole | E185: 0 | F185: 0 | G185: 0 | H185: 0 | I185: 0 | J185: 0 | K185: 0
C186: ˂ = 1 kV; Wood | E186: 50.51755518 | F186: 71.30815658 | G186: 266.8797778 | H186: 267.9631111 | I186: 269.0464444 | J186: 270.1297778 | K186: 271.2131111
C187: > 1 kV & < = 11 kV; Wood | E187: 19.13796729 | F187: 27.78340238 | G187: 107.0815556 | H187: 106.9982222 | I187: 106.9148889 | J187: 106.8315556 | K187: 106.7482222
C188: ˃ 11 kV & < = 22 kV; Wood | E188: 1.701578597 | F188: 2.05275422 | G188: 3.216 | H188: 3.216 | I188: 3.216 | J188: 3.216 | K188: 3.216
C189: > 22 kV & < = 66 kV; Wood | E189: 4.077564423 | F189: 5.729775129 | G189: 15.89866667 | H189: 15.89866667 | I189: 15.89866667 | J189: 15.89866667 | K189: 15.89866667
C190: > 66 kV & < = 132 kV; Wood | E190: 0 | F190: 0 | G190: 0 | H190: 0 | I190: 0 | J190: 0 | K190: 0
C191: > 132 kV; Wood | E191: 0 | F191: 0 | G191: 0 | H191: 0 | I191: 0 | J191: 0 | K191: 0
C192: ˂ = 1 kV; Concrete | E192: 2.125 | F192: 2.125 | G192: 2.125 | H192: 2.125 | I192: 2.125 | J192: 2.125 | K192: 2.125
C193: > 1 kV & < = 11 kV; Concrete | E193: 0.5 | F193: 0.5 | G193: 0.5 | H193: 0.5 | I193: 0.5 | J193: 0.5 | K193: 0.5
C194: ˃ 11 kV & < = 22 kV; Concrete | E194: 0 | F194: 0 | G194: 0 | H194: 0 | I194: 0 | J194: 0 | K194: 0
C195: > 22 kV & < = 66 kV; Concrete | E195: 0 | F195: 0 | G195: 0 | H195: 0 | I195: 0 | J195: 0 | K195: 0
C196: > 66 kV & < = 132 kV; Concrete | E196: 0 | F196: 0 | G196: 0 | H196: 0 | I196: 0 | J196: 0 | K196: 0
C197: > 132 kV; Concrete | E197: 0 | F197: 0 | G197: 0 | H197: 0 | I197: 0 | J197: 0 | K197: 0
C198: ˂ = 1 kV; Steel | E198: 2.625 | F198: 2.625 | G198: 2.625 | H198: 2.625 | I198: 2.625 | J198: 2.625 | K198: 2.625
C199: > 1 kV & < = 11 kV; Steel | E199: 0.125 | F199: 0.125 | G199: 0.125 | H199: 0.125 | I199: 0.125 | J199: 0.125 | K199: 0.125
C200: ˃ 11 kV & < = 22 kV; Steel | E200: 0 | F200: 0 | G200: 0 | H200: 0 | I200: 0 | J200: 0 | K200: 0
C201: > 22 kV & < = 66 kV; Steel | E201: 0 | F201: 0 | G201: 0 | H201: 0 | I201: 0 | J201: 0 | K201: 0
C202: > 66 kV & < = 132 kV; Steel | E202: 0 | F202: 0 | G202: 0 | H202: 0 | I202: 0 | J202: 0 | K202: 0
C203: > 132 kV; Steel | E203: 0 | F203: 0 | G203: 0 | H203: 0 | I203: 0 | J203: 0 | K203: 0
C204: Other | E204: 0.25 | F204: 0.25 | G204: 0.25 | H204: 0.25 | I204: 0.25 | J204: 0.25 | K204: 0.25
B205: POLE TOP STRUCTURES BY: HIGHEST OPERATING VOLTAGE | C205: ˂ = 1 kV | E205: 205.7709785 | F205: 312.3163001 | G205: 472.5416667 | H205: 474.4583333 | I205: 476.375 | J205: 478.2916667 | K205: 480.2083333
C206: > 1 kV & < = 11 kV | E206: 53.33031268 | F206: 86.66136626 | G206: 42.5572507 | H206: 41.97391736 | I206: 41.39058403 | J206: 40.8072507 | K206: 40.22391736
C207: ˃ 11 kV & < = 22 kV | E207: 3.085485346 | F207: 5.312061294 | G207: 2.240555527 | H207: 2.240555527 | I207: 2.240555527 | J207: 2.240555527 | K207: 2.240555527
C208: > 22 kV & < = 66 kV | E208: 10.67326053 | F208: 18.3753957 | G208: 8.868860445 | H208: 8.868860445 | I208: 8.868860445 | J208: 8.868860445 | K208: 8.868860445
C209: > 66 kV & < = 132 kV | E209: 0 | F209: 0 | G209: 0 | H209: 0 | I209: 0 | J209: 0 | K209: 0
C210: > 132 kV | E210: 0 | F210: 0 | G210: 0 | H210: 0 | I210: 0 | J210: 0 | K210: 0
C211: Other | E211: 0 | F211: 0 | G211: 0 | H211: 0 | I211: 0 | J211: 0 | K211: 0
B212: STAKING WOODEN POLES BY: HIGHEST OPERATING VOLTAGE | C212: ˂ = 1 Kv | E212: 167.1491066 | F212: 263.5941921 | G212: 614.0006591 | H212: 614.0006591 | I212: 614.0006591 | J212: 614.0006591 | K212: 614.0006591
C213: > 1 kV & < = 11 kV | E213: 0 | F213: 0 | G213: 0 | H213: 0 | I213: 0 | J213: 0 | K213: 0
C214: ˃ 11 kV & < = 22 kV | E214: 0 | F214: 0 | G214: 0 | H214: 0 | I214: 0 | J214: 0 | K214: 0
C215: > 22 kV & < = 66 kV | E215: 0 | F215: 0 | G215: 0 | H215: 0 | I215: 0 | J215: 0 | K215: 0
C216: > 66 kV & < = 132 kV | E216: 0 | F216: 0 | G216: 0 | H216: 0 | I216: 0 | J216: 0 | K216: 0
C217: > 132 kV | E217: 0 | F217: 0 | G217: 0 | H217: 0 | I217: 0 | J217: 0 | K217: 0
B218: OVERHEAD CONDUCTORS BY: Highest operating voltage; Number of phases (at HV) | C218: ˂ = 1 kV | E218: 0.6380270176 | F218: 0.6380270176 | G218: 0.6380270176 | H218: 0.6380270176 | I218: 0.6380270176 | J218: 0.6380270176 | K218: 0.6380270176
C219: > 1 kV & < = 11 kV | E219: 0 | F219: 0 | G219: 0 | H219: 0 | I219: 0 | J219: 0 | K219: 0
C220: ˃ 11 kV & < = 22 kV ; SWER | E220: 0 | F220: 0 | G220: 0 | H220: 0 | I220: 0 | J220: 0 | K220: 0
C221: ˃ 11 kV & < = 22 kV ; Single-Phase | E221: 0 | F221: 0 | G221: 0 | H221: 0 | I221: 0 | J221: 0 | K221: 0
C222: ˃ 11 kV & < = 22 kV ; Multiple-Phase | E222: 0 | F222: 0 | G222: 0 | H222: 0 | I222: 0 | J222: 0 | K222: 0
C223: > 22 kV & < = 66 kV | E223: 0 | F223: 0 | G223: 0 | H223: 0 | I223: 0 | J223: 0 | K223: 0
C224: > 66 kV & < = 132 kV | E224: 0 | F224: 0 | G224: 0 | H224: 0 | I224: 0 | J224: 0 | K224: 0
C225: > 132 kV | E225: 0 | F225: 0 | G225: 0 | H225: 0 | I225: 0 | J225: 0 | K225: 0
C226: Other | E226: 0 | F226: 0 | G226: 0 | H226: 0 | I226: 0 | J226: 0 | K226: 0
B227: UNDERGROUND CABLES BY: Highest operating voltage | C227: ˂ = 1 kV | E227: 2 | F227: 1 | G227: 1 | H227: 1 | I227: 1 | J227: 1 | K227: 1
C228: > 1 kV & < = 11 kV | E228: 2 | F228: 2 | G228: 2 | H228: 2 | I228: 2 | J228: 2 | K228: 2
C229: > 11 kV & < = 22 kV | E229: 0 | F229: 0 | G229: 0 | H229: 0 | I229: 0 | J229: 0 | K229: 0
C230: > 22 kV & < = 33 kV | E230: 0 | F230: 0 | G230: 0 | H230: 0 | I230: 0 | J230: 0 | K230: 0
C231: > 33 kV & < = 66 kV | E231: 0 | F231: 0 | G231: 0 | H231: 0 | I231: 0 | J231: 0 | K231: 0
C232: > 66 kV & < = 132 kV | E232: 0 | F232: 0 | G232: 0 | H232: 0 | I232: 0 | J232: 0 | K232: 0
C233: > 132 kV | E233: 0 | F233: 0 | G233: 0 | H233: 0 | I233: 0 | J233: 0 | K233: 0
C234: Other | E234: 0 | F234: 0 | G234: 0 | H234: 0 | I234: 0 | J234: 0 | K234: 0
B235: SERVICE LINES BY: Connection voltage; Customer type; Connection complexity | C235: ˂ = 11 kV ; Residential ; Simple Type | E235: 49.74121774 | F235: 60.68120913 | G235: 45.14422348 | H235: 46.21339015 | I235: 47.28255682 | J235: 48.35172348 | K235: 49.42089015
C236: ˂ = 11 kV ; Commercial & Industrial ; Simple Type | E236: 0 | F236: 0 | G236: 0 | H236: 0 | I236: 0 | J236: 0 | K236: 0
C237: ˂ = 11 kV ; Residential ; Complex Type | E237: 0 | F237: 0 | G237: 0 | H237: 0 | I237: 0 | J237: 0 | K237: 0
C238: ˂ = 11 kV ; Commercial & Industrial ; Complex Type | E238: 0 | F238: 0 | G238: 0 | H238: 0 | I238: 0 | J238: 0 | K238: 0
C239: ˂ = 11 kV ; Subdivision ; Complex Type | E239: 0 | F239: 0 | G239: 0 | H239: 0 | I239: 0 | J239: 0 | K239: 0
C240: > 11 kV & < = 22 kV ; Commercial & Industrial | E240: 0 | F240: 0 | G240: 0 | H240: 0 | I240: 0 | J240: 0 | K240: 0
C241: > 11 kV & < = 22 kV ; Subdivision | E241: 0 | F241: 0 | G241: 0 | H241: 0 | I241: 0 | J241: 0 | K241: 0
C242: > 22 kV & < = 33 kV ; Commercial & Industrial | E242: 0 | F242: 0 | G242: 0 | H242: 0 | I242: 0 | J242: 0 | K242: 0
... 209 more rows

Sheet 2.3 Augex (a)
B1: =INDEX(dms_Worksheet_List,MATCH(dms_Model,dms_Model_List)) -> REGULATORY REPORTING STATEMENT
B2: =INDEX(dms_TradingNameFull_List,MATCH(dms_TradingName,dms_TradingName_List)) -> CitiPower
B3: =dms_Header_Span -> 2021-22 to 2025-26
B4: 2.3 AUGEX PROJECT DATA
B6: There are TWO tables on this worksheet - each has been 'grouped' (and sub-grouped) for easy navigation. Both ROWS and COLUMNS have been grouped. See the Instructions sheet on how to group or ungroup tables.
B9: 2.3.1 - AUGEX ASSET DATA - SUBTRANSMISSION SUBSTATIONS, SWITCHING STATIONS AND ZONE SUBSTATIONS
B10: PROJECT DESCRIPTION AND CHANGES | L10: PLANT AND EQUIPMENT EXPENDITURE AND VOLUME | X10: OTHER EXPENDITURE | Z10: TOTAL DIRECT EXPENDITURE ($0's) | AA10: YEARS INCURRED | AB10: ALL RELATED PARTY CONTRACTS | AD10: ALL NON-RELATED PARTY CONTRACTS | AE10: LAND AND EASEMENTS
B11: SUBSTATION ID | C11: SUBSTATION TYPE (drop down) | D11: PROJECT ID | E11: PROJECT TYPE (drop down) | F11: PROJECT TRIGGER (drop down) | G11: VOLTAGE (KV) | H11: SUBSTATION RATING NORMAL CYCLIC (MVA) | J11: SUBSTATION RATING N-1 EMERGENCY (MVA) | L11: TRANSFORMERS | O11: SWITCHGEAR | R11: CAPACITORS | U11: OTHER PLANT ITEM | V11: INSTALLATION (LABOUR) | X11: CIVIL WORKS | Y11: OTHER DIRECT | AB11: RELATED PARTY MARGINS | AC11: TOTAL | AE11: LAND PURCHASE | AF11: EASEMENTS
H12: PRE | I12: POST | J12: PRE | K12: POST | L12: UNITS ADDED | M12: MVA ADDED | N12: =CONCATENATE("EXPENDITURE ($0's, real ", dms_DollarReal,")") -> EXPENDITURE ($0's, real June 2021) | O12: UNITS ADDED | Q12: =CONCATENATE("EXPENDITURE ($0's, real ", dms_DollarReal,")") -> EXPENDITURE ($0's, real June 2021) | R12: MVAR ADDED | T12: =CONCATENATE("EXPENDITURE ($0's, real ", dms_DollarReal,")") -> EXPENDITURE ($0's, real June 2021) | U12: =CONCATENATE("EXPENDITURE ($0's, real ", dms_DollarReal,")") -> EXPENDITURE ($0's, real June 2021) | V12: VOLUME | W12: =CONCATENATE("EXPENDITURE ($0's, real ", dms_DollarReal,")") -> EXPENDITURE ($0's, real June 2021) | X12: =CONCATENATE("EXPENDITURE ($0's, real ", dms_DollarReal,")") -> EXPENDITURE ($0's, real June 2021) | AB12: =CONCATENATE("EXPENDITURE ($0's, real ", dms_DollarReal,")") -> EXPENDITURE ($0's, real June 2021) | AE12: =CONCATENATE("EXPENDITURE ($0's, real ", dms_DollarReal,")") -> EXPENDITURE ($0's, real June 2021)
B13: PM | C13: Zone Substation | D13: Port Melbourne area strategy: PM offload to WG | E13: Other | F13: Other | G13: 22/6.6 | H13: 40.5 | I13: 0 | J13: 17.4 | K13: 0 | L13: 0 | M13: 0 | N13: 0 | O13: 0 | Q13: 0 | R13: 0 | T13: 0 | U13: 2220680.241 | V13: 31358.86814 | W13: 4536522.365 | X13: 8730725.081 | Y13: 1712299.313 | Z13: 17200227 | AA13: 2023-2025 | AB13: 0 | AC13: 0 | AD13: 12663704.64 | AE13: 0 | AF13: 0
B14: E | C14: Zone Substation | D14: Port Melbourne area strategy: E offload to WG | E14: Other | F14: Other | G14: 22/6.6 | H14: 33.5 | I14: 0 | J14: 10.9 | K14: 0 | L14: 0 | M14: 0 | N14: 0 | O14: 0 | Q14: 0 | R14: 0 | T14: 0 | U14: 309549.3153 | V14: 4371.235435 | W14: 632363.6181 | X14: 1217009.96 | Y14: 238684.1069 | Z14: 2397607 | AA14: 2023-2025 | AB14: 0 | AC14: 0 | AD14: 1765243.382 | AE14: 0 | AF14: 0
B15: TP | C15: Zone Substation | D15: CBD supply: re-develop TP zone substation and establish new feeders (Excluding Sub transmission feeders which are included in 2.3.2) | E15: Substation upgrade - capacity | F15: Demand growth | G15: 66/11 | H15: 0 | I15: 110 | J15: 0 | K15: 55 | L15: 2 | M15: 110 | N15: 2741617.46 | O15: 18 | Q15: 4976120.667 | R15: 0 | T15: 0 | U15: 0 | V15: 18504.29462 | W15: 2790697.366 | X15: 3127510.563 | Y15: 834002.8169 | Z15: 14469948.87 | AA15: 2019-2024 | AB15: 0 | AC15: 0 | AD15: 10746324.48 | AE15: 0 | AF15: 0
B16: BK | C16: Zone Substation | D16: Brunswick area strategy: BK offload to WB | E16: Other | F16: Other | G16: 22/6.6 | H16: 33 | I16: 0 | J16: 27.2 | K16: 0 | L16: 0 | M16: 0 | N16: 0 | O16: 0 | Q16: 0 | R16: 0 | T16: 0 | U16: 1547746.835 | V16: 21856.18082 | W16: 3161818.618 | X16: 6085050.814 | Y16: 1193420.733 | Z16: 11988037 | AA16: 2021-2023 | AB16: 0 | AC16: 0 | AD16: 8826218.382 | AE16: 0 | AF16: 0
B17: F | C17: Zone Substation | D17: Brunswick area strategy: F offload to CW | E17: Other | F17: Other | G17: 22/6.6 | H17: 42.1 | I17: 0 | J17: 24.5 | K17: 0 | L17: 0 | M17: 0 | N17: 0 | O17: 0 | Q17: 0 | R17: 0 | T17: 0 | U17: 1621769.522 | V17: 22901.47661 | W17: 3313036.056 | X17: 6376075.034 | Y17: 1250497.387 | Z17: 12561378 | AA17: 2021-2023 | AB17: 0 | AC17: 0 | AD17: 9248341.944 | AE17: 0 | AF17: 0
B18: RP | C18: Zone Substation | D18: Russell Place supply area: RP to WP feeder transfers and de-commissioning | E18: Other | F18: Other | G18: 22/6.6 | H18: 20 | I18: 0 | J18: 9.5 | K18: 0 | L18: 0 | M18: 0 | N18: 0 | O18: 0 | Q18: 0 | R18: 0 | T18: 0 | U18: 1445595.601 | V18: 16404.97017 | W18: 2953138.706 | X18: 5683437.685 | Y18: 1114655.009 | Z18: 11196827 | AA18: 2021-2022 | AB18: 0 | AC18: 0 | AD18: 8243688.294 | AE18: 0 | AF18: 0
Z24: =IF(SUM(N24,Q24,T24,U24,W24,X24,Y24)<>0,SUM(N24,Q24,T24,U24,W24,X24,Y24),"") -> 
D65: Non material projects - [forecast] | Z65: 12945641.44 | AA65: 2022-26 | AE65: 1928510.307
B68: 2.3.2 - AUGEX ASSET DATA - SUBTRANSMISSION LINES
B69: PROJECT DESCRIPTION AND CHANGES | L69: PLANT AND EQUIPMENT EXPENDITURE AND VOLUME | X69: OTHER EXPENDITURE | Z69: TOTAL DIRECT EXPENDITURE ($0's) | AA69: YEARS INCURRED | AB69: ALL RELATED PARTY CONTRACTS | AD69: ALL NON RELATED PARTY CONTRACTS | AE69: LAND AND EASEMENTS
B70: LINE ID | D70: PROJECT ID | E70: PROJECT TYPE (drop down) | F70: PROJECT TRIGGER (drop down) | G70: VOLTAGE (KV) (drop down) | H70: ROUTE LINE LENGTH ADDED | L70: POLES/TOWERS (INCLUDING STRUCTURES, AND CIVIL WORKS) | O70: OVERHEAD LINES | R70: UNDERGROUND CABLES | U70: OTHER PLANT ITEM | V70: INSTALLATION (LABOUR) | X70: CIVIL WORKS | Y70: OTHER DIRECT | AB70: RELATED PARTY MARGINS | AC70: TOTAL | AE70: LAND PURCHASE | AF70: EASEMENTS
H71: KM ADDED | L71: POLES/TOWERS ADDED | M71: POLES/TOWERS UPGRADED | N71: =CONCATENATE("EXPENDITURE ($0's, real ", dms_DollarReal,")") -> EXPENDITURE ($0's, real June 2021) | O71: CIRCUIT KM ADDED | P71: CIRCUIT KM UPGRADED | Q71: =CONCATENATE("EXPENDITURE ($0's, real ", dms_DollarReal,")") -> EXPENDITURE ($0's, real June 2021) | R71: CIRCUIT KM ADDED | S71: CIRCUIT KM UPGRADED | T71: =CONCATENATE("EXPENDITURE ($0's, real ", dms_DollarReal,")") -> EXPENDITURE ($0's, real June 2021) | U71: =CONCATENATE("EXPENDITURE ($0's, real ", dms_DollarReal,")") -> EXPENDITURE ($0's, real June 2021) | V71: VOLUME | W71: =CONCATENATE("EXPENDITURE ($0's, real ", dms_DollarReal,")") -> EXPENDITURE ($0's, real June 2021) | X71: =CONCATENATE("EXPENDITURE ($0's, real ", dms_DollarReal,")") -> EXPENDITURE ($0's, real June 2021) | AB71: =CONCATENATE("EXPENDITURE ($0's, real ", dms_DollarReal,")") -> EXPENDITURE ($0's, real June 2021) | AE71: =CONCATENATE("EXPENDITURE ($0's, real ", dms_DollarReal,")") -> EXPENDITURE ($0's, real June 2021)
B72: FBTS-TP1 and FBTS-TP2 | D72: CBD supply: re-develop TP zone substation and establish new feeders (Sub transmission feeders only, station works included in 2.3.1) | F72: Demand growth | G72: 66 | H72: 4.3 | I72: 0 | J72: 0 | K72: 0 | L72: 0 | M72: 0 | N72: 0 | O72: 0 | P72: 0 | Q72: 0 | R72: 4.3 | S72: 0 | T72: 3196003.045 | U72: 0 | V72: 5103.959838 | W72: 769746.0274 | X72: 2946902.562 | Y72: 384873.0137 | Z72: 7297524.648 | AA72: 2019-2024 | AB72: 0 | AC72: 0 | AD72: 0 | AE72: 0 | AF72: 0
B73: JA-WP (TP cut in) | D73: CBD supply: re-develop TP zone substation and establish new feeders (Sub transmission feeders only, station works included in 2.3.1) | F73: Demand growth | G73: 66 | H73: 0.5 | I73: 0 | J73: 0 | K73: 0 | L73: 0 | M73: 0 | N73: 0 | O73: 0 | P73: 0 | Q73: 0 | R73: 0.5 | S73: 0 | T73: 364354.9806 | U73: 0 | V73: 1808.567921 | W73: 272756.4513 | X73: 2920584.821 | Y73: 136378.2256 | Z73: 3694074.479 | AA73: 2019-2024 | AB73: 0 | AC73: 0 | AD73: 0 | AE73: 0 | AF73: 0
Z74: =IF(SUM(N74,Q74,T74,U74,W74,X74,Y74)<>0,SUM(N74,Q74,T74,U74,W74,X74,Y74),"") -> 
D126: Non material projects - [forecast] | Z126: 531278.5287 | AA126: 2021-23

Sheet 2.3 Augex (b)
B1: =INDEX(dms_Worksheet_List,MATCH(dms_Model,dms_Model_List)) -> REGULATORY REPORTING STATEMENT
B2: =INDEX(dms_TradingNameFull_List,MATCH(dms_TradingName,dms_TradingName_List)) -> CitiPower
B3: =dms_Header_Span -> 2021-22 to 2025-26
B4: 2.3 AUGEX PROJECT DATA
B6: There are FOUR tables on this worksheet. These tables have been 'grouped' (and sub-grouped) for easy navigation. See the Instructions sheet on how to group or ungroup tables.
B8: NOTE: DNSP must provide expenditure information on an 'as incurred' basis.
B9: 2.3.3 - AUGEX DATA - HV/LV FEEDERS AND DISTRIBUTION SUBSTATIONS
B10: PROJECT TYPE | C10: Units | D10: VOLUMES (0's)
D11: =CRCP_y4 -> 2019-20 | E11: =CRCP_y5 -> 2020-21 | F11: =FRCP_y1 -> 2021-22 | G11: =FRCP_y2 -> 2022-23 | H11: =FRCP_y3 -> 2023-24 | I11: =FRCP_y4 -> 2024-25 | J11: =FRCP_y5 -> 2025-26
B12: DESCRIPTOR METRICS - UNITS ADDED
B13: HV Feeder Augmentations - Overhead Lines | C13: Circuit Line Length in KM | D13: 0 | E13: 0 | F13: 0 | G13: 0 | H13: 0 | I13: 0 | J13: 0
B14: HV Feeder Augmentations - Underground Cables | C14: Circuit Line Length in KM | D14: 2.971428571 | E14: 3.028571429 | F14: 3.085714286 | G14: 3.142857143 | H14: 3.2 | I14: 3.257142857 | J14: 3.314285714
B15: LV Feeder Augmentations - Overhead Lines | C15: Circuit Line Length in KM | D15: 0 | E15: 0 | F15: 0 | G15: 0 | H15: 0 | I15: 0 | J15: 0
B16: LV Feeder Augmentations - Underground Cables | C16: Circuit Line Length in KM | D16: 0.08904109589 | E16: 0.06849315068 | F16: 0.04794520548 | G16: 0.02739726027 | H16: 0.006849315068 | I16: 0 | J16: 0
B17: Distribution Substation Augmentations - Pole Mounted | C17: Number | D17: 0 | E17: 0 | F17: 0 | G17: 0 | H17: 0 | I17: 0 | J17: 0
B18: Distribution Substation Augmentations - Ground Mounted | C18: Number | D18: 0 | E18: 0 | F18: 0 | G18: 0 | H18: 0 | I18: 0 | J18: 0
B19: Distribution Substation Augmentations - Indoor | C19: Number | D19: 1 | E19: 1 | F19: 1 | G19: 1 | H19: 1 | I19: 1 | J19: 1
B20: DESCRIPTOR METRICS - UNITS UPGRADED
B21: HV Feeder Augmentations - Overhead Lines | C21: Circuit Line Length in KM | D21: 0 | E21: 0 | F21: 0 | G21: 0 | H21: 0 | I21: 0 | J21: 0
B22: HV Feeder Augmentations - Underground Cables | C22: Circuit Line Length in KM | D22: 0 | E22: 0 | F22: 0 | G22: 0 | H22: 0 | I22: 0 | J22: 0
B23: LV Feeder Augmentations - Overhead Lines | C23: Circuit Line Length in KM | D23: 3 | E23: 3.5 | F23: 4 | G23: 4.5 | H23: 5 | I23: 5.5 | J23: 6
B24: LV Feeder Augmentations - Underground Cables | C24: Circuit Line Length in KM | D24: 0 | E24: 0 | F24: 0 | G24: 0 | H24: 0 | I24: 0 | J24: 0
B25: Distribution Substation Augmentations - Pole Mounted | C25: Number | D25: 11.28571429 | E25: 12.46428571 | F25: 13.64285714 | G25: 14.82142857 | H25: 16 | I25: 17.17857143 | J25: 18.35714286
B26: Distribution Substation Augmentations - Ground Mounted | C26: Number | D26: 0 | E26: 0 | F26: 0 | G26: 0 | H26: 0 | I26: 0 | J26: 0
B27: Distribution Substation Augmentations - Indoor | C27: Number | D27: 2.679245283 | E27: 2.566037736 | F27: 2.452830189 | G27: 2.339622642 | H27: 2.226415094 | I27: 2.113207547 | J27: 2
B29: COST METRICS
B30: PROJECT TYPE | D30: =CONCATENATE("TOTAL DIRECT EXPENDITURE ($0's, real ", dms_DollarReal,")") -> TOTAL DIRECT EXPENDITURE ($0's, real June 2021)
D31: =CRCP_y4 -> 2019-20 | E31: =CRCP_y5 -> 2020-21 | F31: =FRCP_y1 -> 2021-22 | G31: =FRCP_y2 -> 2022-23 | H31: =FRCP_y3 -> 2023-24 | I31: =FRCP_y4 -> 2024-25 | J31: =FRCP_y5 -> 2025-26
B32: HV Feeder Augmentations - Overhead Lines | D32: 1667520.213 | E32: 1623018.542 | F32: 2712974.86 | G32: 1889768.952 | H32: 2120450.49 | I32: 1795130.789 | J32: 560401.7266
B33: HV Feeder Augmentations - Underground Cables | D33: 12659857.24 | E33: 12321999.38 | F33: 20596976.37 | G33: 14347175.5 | H33: 16098515.8 | I33: 13628680.08 | J33: 4254584.622
B34: HV Feeder Non-Material Projects | D34: 4679217.129 | E34: 4554341.292 | F34: 7612860.303 | G34: 5302867.803 | H34: 5950181.7 | I34: 5037304.299 | J34: 1572539.474
B35: LV Feeder Augmentations - Overhead Lines | D35: 400896.1463 | E35: 291265.8043 | F35: 1762404.904 | G35: 1685318.225 | H35: 1805589.44 | I35: 1822312.985 | J35: 1880690.212
B36: LV Feeder Augmentations - Underground Cables | D36: 238620.1399 | E36: 173366.3135 | F36: 1049013.089 | G36: 1003129.799 | H36: 1074717.252 | I36: 1084671.388 | J36: 1119418.497
B37: LV Feeder Non-Material Projects | D37: 292824.817 | E37: 212748.0063 | F37: 1287305.698 | G37: 1230999.613 | H37: 1318848.79 | I37: 1331064.096 | J37: 1373704.318
B38: Distribution Substation Augmentations - Pole Mounted | D38: 638115.0737 | E38: 463614.0854 | F38: 2805258.034 | G38: 2682557.499 | H38: 2873995.794 | I38: 2900615.024 | J38: 2993535.319
B39: Distribution Substation Augmentations - Ground Mounted | D39: 0 | E39: 0 | F39: 0 | G39: 0 | H39: 0 | I39: 0 | J39: 0
B40: Distribution Substation Augmentations - Indoor | D40: 294226.0295 | E40: 213766.0387 | F40: 1293465.657 | G40: 1236890.138 | H40: 1325159.687 | I40: 1337433.445 | J40: 1380277.708
B45: 2.3.4 - AUGEX - TOTAL EXPENDITURE
D46: =CONCATENATE("TOTAL DIRECT EXPENDITURE ($0's, real ", dms_DollarReal,")") -> TOTAL DIRECT EXPENDITURE ($0's, real June 2021)
D47: =CRCP_y4 -> 2019-20 | E47: =CRCP_y5 -> 2020-21 | F47: =FRCP_y1 -> 2021-22 | G47: =FRCP_y2 -> 2022-23 | H47: =FRCP_y3 -> 2023-24 | I47: =FRCP_y4 -> 2024-25 | J47: =FRCP_y5 -> 2025-26
B48: Subtransmission Substations, Switching Stations, Zone Substations | D48: 22421417.05 | E48: 16668583.68 | F48: 296961.3618 | G48: 109799.4153 | H48: 2122518.144 | I48: 2374803.118 | J48: 3047387.848
B49: Subtransmission Lines | D49: 1652747.355 | E49: 1608639.932 | F49: 2688940.133 | G49: 1873027.153 | H49: 2101665.042 | I49: 1779227.406 | J49: 555437.028
B50: HV Feeders | D50: 19006594.58 | E50: 18499359.22 | F50: 30922811.53 | G50: 21539812.25 | H50: 24169147.99 | I50: 20461115.17 | J50: 6387525.822
B51: HV Feeders - Land Purchases and Easements | D51: 0 | E51: 0 | F51: 0 | G51: 0 | H51: 0 | I51: 0 | J51: 0
B52: Distribution Substations | D52: 932341.1032 | E52: 677380.1241 | F52: 4098723.691 | G52: 3919447.637 | H52: 4199155.482 | I52: 4238048.469 | J52: 4373813.027
B53: Distribution Substations - Land Purchases and Easements | D53: 0 | E53: 0 | F53: 0 | G53: 0 | H53: 0 | I53: 0 | J53: 0
B54: LV Feeders | D54: 932341.1032 | E54: 677380.1241 | F54: 4098723.691 | G54: 3919447.637 | H54: 4199155.482 | I54: 4238048.469 | J54: 4373813.027
B55: LV Feeders - Land Purchases and Easements | D55: 0 | E55: 0 | F55: 0 | G55: 0 | H55: 0 | I55: 0 | J55: 0
B56: Other Assets | D56: 688009.0826 | E56: 718750.5168 | F56: 3511565.372 | G56: 3885272.801 | H56: 2546511.408 | I56: 3240168.909 | J56: 3607811.975
B60: 2.3.5 - AUGEX - BY DRIVER
D61: =CONCATENATE("TOTAL DIRECT EXPENDITURE ($0's, real ", dms_DollarReal,")") -> TOTAL DIRECT EXPENDITURE ($0's, real June 2021)
D62: =CRCP_y4 -> 2019-20 | E62: =CRCP_y5 -> 2020-21 | F62: =FRCP_y1 -> 2021-22 | G62: =FRCP_y2 -> 2022-23 | H62: =FRCP_y3 -> 2023-24 | I62: =FRCP_y4 -> 2024-25 | J62: =FRCP_y5 -> 2025-26
B63: "Greenfield" driven augex (network expansion capex) | D63: 13483632.36 | E63: 27835880.45 | F63: 7158047.269 | G63: 940846.0229 | H63: 6990412.006 | I63: 10589197.64 | J63: 7495190.701
B64: Reinforcement driven augex (augmentation of the existing network) | D64: 31461808.83 | E64: 10295462.63 | F64: 34948113.14 | G64: 30420688.07 | H64: 29801230.13 | I64: 22502044.99 | J64: 11242786.05
B68: 2.3.6 - AUGEX - GREENFIELDS DRIVEN
D69: =CONCATENATE("TOTAL DIRECT EXPENDITURE ($0's, real ", dms_DollarReal,")") -> TOTAL DIRECT EXPENDITURE ($0's, real June 2021)
D70: =CRCP_y4 -> 2019-20 | E70: =CRCP_y5 -> 2020-21 | F70: =FRCP_y1 -> 2021-22 | G70: =FRCP_y2 -> 2022-23 | H70: =FRCP_y3 -> 2023-24 | I70: =FRCP_y4 -> 2024-25 | J70: =FRCP_y5 -> 2025-26
B71: Subtransmission Substations, Switching Stations, Zone Substations | D71: 6726425.115 | E71: 12168066.09 | F71: 50483.43151 | G71: 3293.98246 | H71: 403278.4474 | I71: 759936.9978 | J71: 1218955.139
B72: Subtransmission Lines | D72: 495824.2064 | E72: 1174307.15 | F72: 457119.8226 | G72: 56190.81458 | H72: 399316.358 | I72: 569352.77 | J72: 222174.8112
B73: HV Feeders | D73: 5701978.374 | E73: 13504532.23 | F73: 5256877.96 | G73: 646194.3676 | H73: 4592138.117 | I73: 6547556.855 | J73: 2555010.329
B74: HV Feeders - Land Purchases and Easements | D74: 0 | E74: 0 | F74: 0 | G74: 0 | H74: 0 | I74: 0 | J74: 0
B75: Distribution Substations | D75: 279702.331 | E75: 494487.4906 | F75: 696783.0275 | G75: 117583.4291 | H75: 797839.5415 | I75: 1356175.51 | J75: 1749525.211
B76: Distribution Substations - Land Purchases and Easements | D76: 0 | E76: 0 | F76: 0 | G76: 0 | H76: 0 | I76: 0 | J76: 0
B77: LV Feeders | D77: 279702.331 | E77: 494487.4906 | F77: 696783.0275 | G77: 117583.4291 | H77: 797839.5415 | I77: 1356175.51 | J77: 1749525.211
B78: LV Feeders - Land Purchases and Easements | D78: 0 | E78: 0 | F78: 0 | G78: 0 | H78: 0 | I78: 0 | J78: 0
B79: Other Assets | D79: 0 | E79: 0 | F79: 0 | G79: 0 | H79: 0 | I79: 0 | J79: 0

Sheet 2.5 Connections
B1: =INDEX(dms_Worksheet_List,MATCH(dms_Model,dms_Model_List)) -> REGULATORY REPORTING STATEMENT
B2: =INDEX(dms_TradingNameFull_List,MATCH(dms_TradingName,dms_TradingName_List)) -> CitiPower
B3: =dms_Header_Span -> 2021-22 to 2025-26
B4: 2.5 CONNECTIONS
B6: There are THREE tables on this worksheet - each has been 'grouped' (and sub-grouped) for easy navigation. See the Instructions sheet on how to group or ungroup tables.
B8: 2.5.1 - DESCRIPTOR METRICS
B9: VOLUMES AND EXPENDITURE - ALL
B10: CONNECTION SUBCATEGORY | C10: DESCRIPTOR METRIC | D10: Unit of Measure | E10: =CONCATENATE("VOLUMES and EXPENDITURE (0's, real ", dms_DollarReal, ")") -> VOLUMES and EXPENDITURE (0's, real June 2021)
E11: =CRCP_y4 -> 2019-20 | F11: =CRCP_y5 -> 2020-21 | G11: =FRCP_y1 -> 2021-22 | H11: =FRCP_y2 -> 2022-23 | I11: =FRCP_y3 -> 2023-24 | J11: =FRCP_y4 -> 2024-25 | K11: =FRCP_y5 -> 2025-26
B12: RESIDENTIAL | C12: Underground connections | D12: 0's | E12: 3153.5 | F12: 2959.201406 | G12: 2849.462162 | H12: 2912.22399 | I12: 2993.776785 | J12: 3044.136575 | K12: 3060.672625
C13: Overhead connections | D13: 0's | E13: 188.375 | F13: 176.7685318 | G13: 170.2132344 | H13: 173.9623257 | I13: 178.8338994 | J13: 181.8421523 | K13: 182.8299368
C14: Distribution substations installed | D14: MVA added | E14: 50.86889555 | F14: 47.73467806 | G14: 45.96448172 | H14: 46.97688853 | I14: 48.29241115 | J14: 49.10476153 | K14: 49.37150344
C15: Distribution substations installed | D15: 0's | E15: 35.97531448 | F15: 33.75874463 | G15: 32.50683284 | H15: 33.22282349 | I15: 34.15318259 | J15: 34.72769006 | K15: 34.9163343
C16: Distribution substations installed | D16: total spend $0s | E16: 8091419.761 | F16: 7592877.989 | G16: 7311303.138 | H16: 7472340.809 | I16: 7681593.352 | J16: 7810809.208 | K16: 7853238.295
C17: Augmentation HV | D17: net circuit KM added | E17: 18.00553044 | F17: 16.89614428 | G17: 16.26956642 | H17: 16.62791746 | I17: 17.09355923 | J17: 17.38109839 | K17: 17.47551423
C18: Augmentation HV | D18: total spend $0s | E18: 19372867.05 | F18: 18179234.32 | G18: 17505074.25 | H18: 17890638.4 | I18: 18391640.92 | J18: 18701015.75 | K18: 18802601.51
C19: Augmentation LV | D19: net circuit KM added | E19: 24.27729648 | F19: 22.78148403 | G19: 21.93665379 | H19: 22.41982725 | I19: 23.04766342 | J19: 23.43535949 | K19: 23.56266268
C20: Augmentation LV | D20: total spend $0s | E20: 6483650.675 | F20: 6084169.397 | G20: 5858543.608 | H20: 5987583.015 | I20: 6155256.975 | J20: 6258797.576 | K20: 6292795.983
C21: Mean days to connect residential customer with LV single phase connection | D21: 0's | E21: 8.02975 | F21: 7.535007925 | G21: 7.255579132 | H21: 7.415389435 | I21: 7.623047134 | J21: 7.751278155 | K21: 7.793383864
C22: Volume of GSL breaches for residential customers | D22: 0's | E22: 99.5 | F22: 93.36944345 | G22: 89.90692409 | H22: 91.88720057 | I22: 94.46037421 | J22: 96.04933858 | K22: 96.57108807
C23: Volume of customer complaints relating to connection services | D23: 0's | E23: 64.25 | F23: 60.29132404 | G23: 58.05547611 | H23: 59.33419735 | I23: 60.99576928 | J23: 62.02180908 | K23: 62.35871767
C24: GSL payments | D24: $0's | E24: 28396.84785 | F24: 26647.21487 | G24: 25659.02758 | H24: 26224.18949 | I24: 26958.56155 | J24: 27412.04476 | K24: 27560.94969
B25: COMMERCIAL/INDUSTRIAL | C25: Underground connections | D25: 0's | E25: 803.125 | F25: 713.46606 | G25: 658.113917 | H25: 620.9241959 | I25: 598.0914369 | J25: 651.0219237 | K25: 683.1376983
C26: Overhead connections | D26: 0's | E26: 619.875 | F26: 550.6736485 | G26: 507.9512707 | H26: 479.2471732 | I26: 461.6241923 | J26: 502.4774661 | K26: 527.2653457
C27: Distribution substations installed | D27: MVA added | E27: 17.78967947 | F27: 15.80368251 | G27: 14.57760079 | H27: 13.75382714 | I27: 13.24806843 | J27: 14.42050907 | K27: 15.1318919
C28: Distribution substations installed | D28: 0's | E28: 11.72476044 | F28: 10.41583643 | G28: 9.607754729 | H28: 9.064824836 | I28: 8.731491134 | J28: 9.504219261 | K28: 9.973074998
C29: Distribution substations installed | D29: total spend $0s | E29: 4033809.92 | F29: 3583485.099 | G29: 3305471.062 | H29: 3118680.381 | I29: 3003999.591 | J29: 3269850.514 | K29: 3431156.575
C30: Augmentation HV | D30: net circuit KM added | E30: 5.82230681 | F30: 5.172318505 | G30: 4.771039552 | H30: 4.501430256 | I30: 4.335902688 | J30: 4.719625686 | K30: 4.952451079
C31: Augmentation HV | D31: total spend $0s | E31: 8029239.859 | F31: 7132874.866 | G31: 6579491.977 | H31: 6207687.848 | I31: 5979417.406 | J31: 6508589.794 | K31: 6829667.158
C32: Augmentation LV | D32: net circuit KM added | E32: 5.535551486 | F32: 4.917575855 | G32: 4.536060353 | H32: 4.279729625 | I32: 4.122354481 | J32: 4.48717868 | K32: 4.708537153
C33: Augmentation LV | D33: total spend $0s | E33: 1590601.5 | F33: 1413030.581 | G33: 1303404.805 | H33: 1229749.986 | I33: 1184529.353 | J33: 1289359.002 | K33: 1352964.791
B34: SUBDIVISION | C34: Underground connections | D34: 0's | E34: 0 | F34: 0 | G34: 0 | H34: 0 | I34: 0 | J34: 0 | K34: 0
C35: Overhead connections | D35: 0's | E35: 0 | F35: 0 | G35: 0 | H35: 0 | I35: 0 | J35: 0 | K35: 0
C36: Distribution substations installed | D36: MVA added | E36: 0.137 | F36: 0 | G36: 0 | H36: 0 | I36: 0 | J36: 0 | K36: 0
C37: Distribution substations installed | D37: 0's | E37: 0.25 | F37: 0 | G37: 0 | H37: 0 | I37: 0 | J37: 0 | K37: 0
C38: Distribution substations installed | D38: total spend $0s | E38: 0 | F38: 0 | G38: 0 | H38: 0 | I38: 0 | J38: 0 | K38: 0
C39: Augmentation HV | D39: net circuit KM added | E39: 0.036 | F39: 0 | G39: 0 | H39: 0 | I39: 0 | J39: 0 | K39: 0
C40: Augmentation HV | D40: total spend $0s | E40: 0 | F40: 0 | G40: 0 | H40: 0 | I40: 0 | J40: 0 | K40: 0
C41: Augmentation LV | D41: net circuit KM added | E41: 0.31275 | F41: 0 | G41: 0 | H41: 0 | I41: 0 | J41: 0 | K41: 0
C42: Augmentation LV | D42: total spend $0s | E42: 0 | F42: 0 | G42: 0 | H42: 0 | I42: 0 | J42: 0 | K42: 0
C43: Cost per lot | D43: $0's | E43: 0 | F43: 0 | G43: 0 | H43: 0 | I43: 0 | J43: 0 | K43: 0
B44: EMBEDDED GENERATION | C44: Underground connections | D44: 0's | E44: 0 | F44: 0 | G44: 0 | H44: 0 | I44: 0 | J44: 0 | K44: 0
C45: Overhead connections | D45: 0's | E45: 0 | F45: 0 | G45: 0 | H45: 0 | I45: 0 | J45: 0 | K45: 0
C46: Distribution substations installed | D46: MVA added | E46: 0.7177998996 | F46: 0.7177998996 | G46: 0.7177998996 | H46: 0.7177998996 | I46: 0.7177998996 | J46: 0.7177998996 | K46: 0.7177998996
C47: Distribution substations installed | D47: 0's | E47: 0.1749250441 | F47: 0.1749250441 | G47: 0.1749250441 | H47: 0.1749250441 | I47: 0.1749250441 | J47: 0.1749250441 | K47: 0.1749250441
C48: Distribution substations installed | D48: total spend $0's | E48: 33625.75082 | F48: 31352.14056 | G48: 31352.14056 | H48: 31352.14056 | I48: 31352.14056 | J48: 31352.14056 | K48: 31352.14056
C49: Augmentation HV | D49: net circuit KM added | E49: 0.016125 | F49: 0.016125 | G49: 0.016125 | H49: 0.016125 | I49: 0.016125 | J49: 0.016125 | K49: 0.016125
C50: Augmentation HV | D50: total spend $0s | E50: 7038.579527 | F50: 6510.375 | G50: 6510.375 | H50: 6510.375 | I50: 6510.375 | J50: 6510.375 | K50: 6510.375
C51: Augmentation LV | D51: net circuit KM added | E51: 0.2754057605 | F51: 0.2754057605 | G51: 0.2754057605 | H51: 0.2754057605 | I51: 0.2754057605 | J51: 0.2754057605 | K51: 0.2754057605
C52: Augmentation LV | D52: total spend $0s | E52: 18254.24306 | F52: 18254.24306 | G52: 18254.24306 | H52: 18254.24306 | I52: 18254.24306 | J52: 18254.24306 | K52: 18254.24306
B54: VOLUMES AND EXPENDITURE - STANDARD CONTROL SERVICES
B55: CONNECTION SUBCATEGORY | C55: DESCRIPTOR METRIC | D55: Unit of Measure | E55: =CONCATENATE("VOLUMES and EXPENDITURE (0's, real ", dms_DollarReal, ")") -> VOLUMES and EXPENDITURE (0's, real June 2021)
E56: =CRCP_y4 -> 2019-20 | F56: =CRCP_y5 -> 2020-21 | G56: =FRCP_y1 -> 2021-22 | H56: =FRCP_y2 -> 2022-23 | I56: =FRCP_y3 -> 2023-24 | J56: =FRCP_y4 -> 2024-25 | K56: =FRCP_y5 -> 2025-26
B57: RESIDENTIAL | C57: Underground connections | D57: 0's | E57: 3153.5 | F57: 2959.201406 | G57: 2849.462162 | H57: 2912.22399 | I57: 2993.776785 | J57: 3044.136575 | K57: 3060.672625
C58: Overhead connections | D58: 0's | E58: 188.375 | F58: 176.7685318 | G58: 170.2132344 | H58: 173.9623257 | I58: 178.8338994 | J58: 181.8421523 | K58: 182.8299368
C59: Distribution substations installed | D59: MVA added | E59: 50.86889555 | F59: 47.73467806 | G59: 45.96448172 | H59: 46.97688853 | I59: 48.29241115 | J59: 49.10476153 | K59: 49.37150344
C60: Distribution substations installed | D60: 0's | E60: 35.97531448 | F60: 33.75874463 | G60: 32.50683284 | H60: 33.22282349 | I60: 34.15318259 | J60: 34.72769006 | K60: 34.9163343
C61: Distribution substations installed | D61: total spend $0s | E61: 8091419.761 | F61: 7592877.989 | G61: 7311303.138 | H61: 7472340.809 | I61: 7681593.352 | J61: 7810809.208 | K61: 7853238.295
C62: Augmentation HV | D62: net circuit KM added | E62: 18.00553044 | F62: 16.89614428 | G62: 16.26956642 | H62: 16.62791746 | I62: 17.09355923 | J62: 17.38109839 | K62: 17.47551423
C63: Augmentation HV | D63: total spend $0s | E63: 19372867.05 | F63: 18179234.32 | G63: 17505074.25 | H63: 17890638.4 | I63: 18391640.92 | J63: 18701015.75 | K63: 18802601.51
C64: Augmentation LV | D64: net circuit KM added | E64: 24.27729648 | F64: 22.78148403 | G64: 21.93665379 | H64: 22.41982725 | I64: 23.04766342 | J64: 23.43535949 | K64: 23.56266268
C65: Augmentation LV | D65: total spend $0s | E65: 6483650.675 | F65: 6084169.397 | G65: 5858543.608 | H65: 5987583.015 | I65: 6155256.975 | J65: 6258797.576 | K65: 6292795.983
C66: Mean days to connect residential customer with LV single phase connection | D66: 0's | E66: 8.02975 | F66: 7.535007925 | G66: 7.255579132 | H66: 7.415389435 | I66: 7.623047134 | J66: 7.751278155 | K66: 7.793383864
C67: Volume of GSL breaches for residential customers | D67: 0's | E67: 99.5 | F67: 93.36944345 | G67: 89.90692409 | H67: 91.88720057 | I67: 94.46037421 | J67: 96.04933858 | K67: 96.57108807
C68: Volume of customer complaints relating to connection services | D68: 0's | E68: 64.25 | F68: 60.29132404 | G68: 58.05547611 | H68: 59.33419735 | I68: 60.99576928 | J68: 62.02180908 | K68: 62.35871767
C69: GSL payments | D69: $0's | E69: 28396.84785 | F69: 26647.21487 | G69: 25659.02758 | H69: 26224.18949 | I69: 26958.56155 | J69: 27412.04476 | K69: 27560.94969
B70: COMMERCIAL/INDUSTRIAL | C70: Underground connections | D70: 0's | E70: 803.125 | F70: 713.46606 | G70: 658.113917 | H70: 620.9241959 | I70: 598.0914369 | J70: 651.0219237 | K70: 683.1376983
C71: Overhead connections | D71: 0's | E71: 619.875 | F71: 550.6736485 | G71: 507.9512707 | H71: 479.2471732 | I71: 461.6241923 | J71: 502.4774661 | K71: 527.2653457
C72: Distribution substations installed | D72: MVA added | E72: 17.78967947 | F72: 15.80368251 | G72: 14.57760079 | H72: 13.75382714 | I72: 13.24806843 | J72: 14.42050907 | K72: 15.1318919
C73: Distribution substations installed | D73: 0's | E73: 11.72476044 | F73: 10.41583643 | G73: 9.607754729 | H73: 9.064824836 | I73: 8.731491134 | J73: 9.504219261 | K73: 9.973074998
C74: Distribution substations installed | D74: total spend $0s | E74: 4033809.92 | F74: 3583485.099 | G74: 3305471.062 | H74: 3118680.381 | I74: 3003999.591 | J74: 3269850.514 | K74: 3431156.575
C75: Augmentation HV | D75: net circuit KM added | E75: 5.82230681 | F75: 5.172318505 | G75: 4.771039552 | H75: 4.501430256 | I75: 4.335902688 | J75: 4.719625686 | K75: 4.952451079
C76: Augmentation HV | D76: total spend $0s | E76: 8029239.859 | F76: 7132874.866 | G76: 6579491.977 | H76: 6207687.848 | I76: 5979417.406 | J76: 6508589.794 | K76: 6829667.158
C77: Augmentation LV | D77: net circuit KM added | E77: 5.535551486 | F77: 4.917575855 | G77: 4.536060353 | H77: 4.279729625 | I77: 4.122354481 | J77: 4.48717868 | K77: 4.708537153
C78: Augmentation LV | D78: total spend $0s | E78: 1590601.5 | F78: 1413030.581 | G78: 1303404.805 | H78: 1229749.986 | I78: 1184529.353 | J78: 1289359.002 | K78: 1352964.791
B79: SUBDIVISION | C79: Underground connections | D79: 0's | E79: 0 | F79: 0 | G79: 0 | H79: 0 | I79: 0 | J79: 0 | K79: 0
C80: Overhead connections | D80: 0's | E80: 0 | F80: 0 | G80: 0 | H80: 0 | I80: 0 | J80: 0 | K80: 0
C81: Distribution substations installed | D81: MVA added | E81: 0.137 | F81: 0 | G81: 0 | H81: 0 | I81: 0 | J81: 0 | K81: 0
C82: Distribution substations installed | D82: 0's | E82: 0.25 | F82: 0 | G82: 0 | H82: 0 | I82: 0 | J82: 0 | K82: 0
C83: Distribution substations installed | D83: total spend $0s | E83: 0 | F83: 0 | G83: 0 | H83: 0 | I83: 0 | J83: 0 | K83: 0
C84: Augmentation HV | D84: net circuit KM added | E84: 0.036 | F84: 0 | G84: 0 | H84: 0 | I84: 0 | J84: 0 | K84: 0
C85: Augmentation HV | D85: total spend $0s | E85: 0 | F85: 0 | G85: 0 | H85: 0 | I85: 0 | J85: 0 | K85: 0
C86: Augmentation LV | D86: net circuit KM added | E86: 0.31275 | F86: 0 | G86: 0 | H86: 0 | I86: 0 | J86: 0 | K86: 0
C87: Augmentation LV | D87: total spend $0s | E87: 0 | F87: 0 | G87: 0 | H87: 0 | I87: 0 | J87: 0 | K87: 0
C88: Cost per lot | D88: $0's | E88: 0 | F88: 0 | G88: 0 | H88: 0 | I88: 0 | J88: 0 | K88: 0
B89: EMBEDDED GENERATION | C89: Underground connections | D89: 0's | E89: 0 | F89: 0 | G89: 0 | H89: 0 | I89: 0 | J89: 0 | K89: 0
C90: Overhead connections | D90: 0's | E90: 0 | F90: 0 | G90: 0 | H90: 0 | I90: 0 | J90: 0 | K90: 0
C91: Distribution substations installed | D91: MVA added | E91: 0.7177998996 | F91: 0.7177998996 | G91: 0.7177998996 | H91: 0.7177998996 | I91: 0.7177998996 | J91: 0.7177998996 | K91: 0.7177998996
C92: Distribution substations installed | D92: 0's | E92: 0.1749250441 | F92: 0.1749250441 | G92: 0.1749250441 | H92: 0.1749250441 | I92: 0.1749250441 | J92: 0.1749250441 | K92: 0.1749250441
C93: Distribution substations installed | D93: total spend $0s | E93: 33625.75082 | F93: 31352.14056 | G93: 31352.14056 | H93: 31352.14056 | I93: 31352.14056 | J93: 31352.14056 | K93: 31352.14056
C94: Augmentation HV | D94: net circuit KM added | E94: 0.016125 | F94: 0.016125 | G94: 0.016125 | H94: 0.016125 | I94: 0.016125 | J94: 0.016125 | K94: 0.016125
C95: Augmentation HV | D95: total spend $0s | E95: 7038.579527 | F95: 6510.375 | G95: 6510.375 | H95: 6510.375 | I95: 6510.375 | J95: 6510.375 | K95: 6510.375
C96: Augmentation LV | D96: net circuit KM added | E96: 0.2754057605 | F96: 0.2754057605 | G96: 0.2754057605 | H96: 0.2754057605 | I96: 0.2754057605 | J96: 0.2754057605 | K96: 0.2754057605
C97: Augmentation LV | D97: total spend $0s | E97: 18254.24306 | F97: 18254.24306 | G97: 18254.24306 | H97: 18254.24306 | I97: 18254.24306 | J97: 18254.24306 | K97: 18254.24306
B101: 2.5.2 - COST METRICS BY CONNECTION CLASSIFICATION
B102: EXPENDITURE - ALL
B103: CONNECTION SUBCATEGORY | C103: CONNECTION CLASSICIATION | E103: =CONCATENATE("EXPENDITURE ($'0s, real ", dms_DollarReal,")") -> EXPENDITURE ($'0s, real June 2021)
E104: =CRCP_y4 -> 2019-20 | F104: =CRCP_y5 -> 2020-21 | G104: =FRCP_y1 -> 2021-22 | H104: =FRCP_y2 -> 2022-23 | I104: =FRCP_y3 -> 2023-24 | J104: =FRCP_y4 -> 2024-25 | K104: =FRCP_y5 -> 2025-26
B105: RESIDENTIAL | C105: Simple connection LV | E105: 0 | F105: 0 | G105: 0 | H105: 0 | I105: 0 | J105: 0 | K105: 0
C106: Complex connection LV | E106: 15278786.52 | F106: 14869163.61 | G106: 15162953.5 | H106: 14603969.25 | I106: 14969991.2 | J106: 15870649.01 | K106: 16351445.3
C107: Complex connection HV | E107: 22293077.3 | F107: 21073648.63 | G107: 20733749.35 | H107: 20342123.69 | I107: 21877110.78 | J107: 23335069.47 | K107: 24022340.78
B108: COMMERCIAL/INDUSTRIAL | C108: Simple connection LV | E108: 2046069.541 | F108: 2006486.753 | G108: 2021303.663 | H108: 1843199.559 | I108: 1876946.689 | J108: 2031364.71 | K108: 2101037.724
C109: Complex connection HV (customer connected at LV, minor HV works) | E109: 0 | F109: 0 | G109: 0 | H109: 0 | I109: 0 | J109: 0 | K109: 0
C110: Complex connection HV (customer connected at LV, upstream asset works) | E110: 9415228.003 | F110: 8882538.112 | G110: 8718753.132 | H110: 8526999.608 | I110: 9189436.381 | J110: 9817497.177 | K110: 10106660.6
C111: Complex connection HV (customer connected at HV) | E111: 3646496.452 | F111: 6620868.482 | G111: 7036034.254 | H111: 5395021.812 | I111: 7863186.106 | J111: 3163401.933 | K111: 3220340.431
C112: Complex connection sub-transmission | E112: 0 | F112: 0 | G112: 0 | H112: 0 | I112: 0 | J112: 0 | K112: 0
B113: SUBDIVISION | C113: Complex connection LV | E113: 0 | F113: 0 | G113: 0 | H113: 0 | I113: 0 | J113: 0 | K113: 0
C114: Complex connection HV (no upstream asset works) | E114: 0 | F114: 0 | G114: 0 | H114: 0 | I114: 0 | J114: 0 | K114: 0
C115: Complex connection HV (with upstream asset works) | E115: 44991.47769 | F115: 44991.47769 | G115: 45992.7835 | H115: 47269.98914 | I115: 48035.58727 | J115: 48992.48127 | K115: 49874.30355
B116: EMBEDDED GENERATION | C116: Simple connection LV | E116: 0 | F116: 0 | G116: 0 | H116: 0 | I116: 0 | J116: 0 | K116: 0
C117: Complex connection HV (small capacity) | E117: 28978.44032 | F117: 28978.44032 | G117: 29623.3687 | H117: 30446.00066 | I117: 30939.11271 | J117: 31555.436 | K117: 32123.40654
C118: Complex connection HV (large capacity) | E118: 0 | F118: 0 | G118: 0 | H118: 0 | I118: 0 | J118: 0 | K118: 0
B120: EXPENDITURE - STANDARD CONTROL SERVICES
E121: =CONCATENATE("EXPENDITURE ($'0s, real ", dms_DollarReal,")") -> EXPENDITURE ($'0s, real June 2021)
E122: =CRCP_y4 -> 2019-20 | F122: =CRCP_y5 -> 2020-21 | G122: =FRCP_y1 -> 2021-22 | H122: =FRCP_y2 -> 2022-23 | I122: =FRCP_y3 -> 2023-24 | J122: =FRCP_y4 -> 2024-25 | K122: =FRCP_y5 -> 2025-26
B123: RESIDENTIAL | C123: Simple connection LV | E123: 0 | F123: 0 | G123: 0 | H123: 0 | I123: 0 | J123: 0 | K123: 0
C124: Complex connection LV | E124: 5044405.455 | F124: 4929336.736 | G124: 5096239.592 | H124: 4842379.106 | I124: 5021587.903 | J124: 5501783.648 | K124: 5775725.223
C125: Complex connection HV | E125: 12582847.87 | F125: 11836642.7 | G125: 11880423.67 | H125: 12008712.67 | I125: 13187273.94 | J125: 14318222.17 | K125: 14972548.37
B126: COMMERCIAL/INDUSTRIAL | C126: Simple connection LV | E126: 923147.3505 | F126: 905549.1636 | G126: 933027.6265 | H126: 870329.8936 | I126: 899580.9383 | J126: 992503.1366 | K126: 1043474.178
C127: Complex connection HV (customer connected at LV, minor HV works) | E127: 0 | F127: 0 | G127: 0 | H127: 0 | I127: 0 | J127: 0 | K127: 0
C128: Complex connection HV (customer connected at LV, upstream asset works) | E128: 5331839.3 | F128: 5007344.752 | G128: 5015971.166 | H128: 5056910.18 | I128: 5562948.952 | J128: 6047967.412 | K128: 6324326.196
C129: Complex connection HV (customer connected at HV) | E129: 1597556.999 | F129: 2900651.33 | G129: 3156864.048 | H129: 2490608.442 | I129: 3686091.379 | J129: 1508132.492 | K129: 1559918.128
C130: Complex connection sub-transmission | E130: 0 | F130: 0 | G130: 0 | H130: 0 | I130: 0 | J130: 0 | K130: 0
B131: SUBDIVISION | C131: Complex connection LV | E131: 0 | F131: 0 | G131: 0 | H131: 0 | I131: 0 | J131: 0 | K131: 0
C132: Complex connection HV (no upstream asset works) | E132: 0 | F132: 0 | G132: 0 | H132: 0 | I132: 0 | J132: 0 | K132: 0
C133: Complex connection HV (with upstream asset works) | E133: 33936.33225 | F133: 33936.33225 | G133: 35528.07746 | H133: 37570.92023 | I133: 38769.01135 | J133: 40213.20013 | K133: 41594.02452
B134: EMBEDDED GENERATION | C134: Simple connection LV | E134: 0 | F134: 0 | G134: 0 | H134: 0 | I134: 0 | J134: 0 | K134: 0
C135: Complex connection HV (small capacity) | E135: 0 | F135: 0 | G135: 0 | H135: 0 | I135: 0 | J135: 0 | K135: 0
C136: Complex connection HV (large capacity) | E136: 0 | F136: 0 | G136: 0 | H136: 0 | I136: 0 | J136: 0 | K136: 0
B138: EXPENDITURE - STANDARD CONTROL SERVICES - CAPITAL CONTRIBUTIONS
E139: =CONCATENATE("EXPENDITURE ($'0s, real ", dms_DollarReal,")") -> EXPENDITURE ($'0s, real June 2021)
E140: =CRCP_y4 -> 2019-20 | F140: =CRCP_y5 -> 2020-21 | G140: =FRCP_y1 -> 2021-22 | H140: =FRCP_y2 -> 2022-23 | I140: =FRCP_y3 -> 2023-24 | J140: =FRCP_y4 -> 2024-25 | K140: =FRCP_y5 -> 2025-26
B141: RESIDENTIAL | C141: Simple connection LV | E141: 0 | F141: 0 | G141: 0 | H141: 0 | I141: 0 | J141: 0 | K141: 0
C142: Complex connection LV | E142: 10234381.06 | F142: 9939826.876 | G142: 10092031.94 | H142: 9800507.298 | I142: 10058019.39 | J142: 10506985.54 | K142: 10750011.31
C143: Complex connection HV | E143: 9710229.429 | F143: 9237005.937 | G143: 9048163.247 | H143: 8759866.496 | I143: 9349143.05 | J143: 9887615.183 | K143: 10124876.81
B144: COMMERCIAL/INDUSTRIAL | C144: Simple connection LV | E144: 1122922.191 | F144: 1100937.59 | G144: 1099925.479 | H144: 996109.4409 | I144: 1014148.006 | J144: 1087444.365 | K144: 1118002.898
C145: Complex connection HV (customer connected at LV, minor HV works) | E145: 0 | F145: 0 | G145: 0 | H145: 0 | I145: 0 | J145: 0 | K145: 0
C146: Complex connection HV (customer connected at LV, upstream asset works) | E146: 4083388.703 | F146: 3875193.36 | G146: 3785369.825 | H146: 3650484.772 | I146: 3905446.839 | J146: 4138453.353 | K146: 4237810.385
C147: Complex connection HV (customer connected at HV) | E147: 2048939.453 | F147: 3720217.152 | G147: 3916754.602 | H147: 2968416.449 | I147: 4324142.372 | J147: 1726909.66 | K147: 1748078.815
C148: Complex connection sub-transmission | E148: 0 | F148: 0 | G148: 0 | H148: 0 | I148: 0 | J148: 0 | K148: 0
B149: SUBDIVISION | C149: Complex connection LV | E149: 0 | F149: 0 | G149: 0 | H149: 0 | I149: 0 | J149: 0 | K149: 0
C150: Complex connection HV (no upstream asset works) | E150: 0 | F150: 0 | G150: 0 | H150: 0 | I150: 0 | J150: 0 | K150: 0
C151: Complex connection HV (with upstream asset works) | E151: 11055.14544 | F151: 11055.14544 | G151: 11196.15713 | H151: 11373.60132 | I151: 11551.68688 | J151: 11695.68202 | K151: 11839.0524
B152: EMBEDDED GENERATION | C152: Simple connection LV | E152: 0 | F152: 0 | G152: 0 | H152: 0 | I152: 0 | J152: 0 | K152: 0
C153: Complex connection HV (small capacity) | E153: 28978.44032 | F153: 28978.44032 | G153: 29348.069 | H153: 29813.19684 | I153: 30280.00586 | J153: 30657.45495 | K153: 31033.26639
C154: Complex connection HV (large capacity) | E154: 0 | F154: 0 | G154: 0 | H154: 0 | I154: 0 | J154: 0 | K154: 0
B158: 2.5.3 - VOLUMES BY CONNECTION CLASSIFICATION
B159: NEW CONNECTIONS - ALL
E160: VOLUMES (0's)
E161: =CRCP_y4 -> 2019-20 | F161: =CRCP_y5 -> 2020-21 | G161: =FRCP_y1 -> 2021-22 | H161: =FRCP_y2 -> 2022-23 | I161: =FRCP_y3 -> 2023-24 | J161: =FRCP_y4 -> 2024-25 | K161: =FRCP_y5 -> 2025-26
B162: RESIDENTIAL | C162: Simple connection LV | E162: 0 | F162: 0 | G162: 0 | H162: 0 | I162: 0 | J162: 0 | K162: 0
C163: Complex connection LV | E163: 742.6191186 | F163: 716.7296332 | G163: 726.390215 | H163: 725.3472615 | I163: 736.3274973 | J163: 748.0231665 | K163: 753.8438015
C164: Complex connection HV | E164: 117.2793929 | F164: 111.7046781 | G164: 108.0489266 | H164: 102.2715909 | I164: 107.2750641 | J164: 112.3125122 | K164: 113.6793966
B165: COMMERCIAL/INDUSTRIAL | C165: Simple connection LV | E165: 27.77199265 | F165: 27.10444963 | G165: 26.47233629 | H165: 22.87900841 | I165: 22.99735283 | J165: 24.67825098 | K165: 25.09731908
C166: Complex connection HV (customer connected at LV, minor HV works) | E166: 0 | F166: 0 | G166: 0 | H166: 0 | I166: 0 | J166: 0 | K166: 0
C167: Complex connection HV (customer connected at LV, upstream asset works) | E167: 51.53797283 | F167: 49.0240334 | G167: 47.2662075 | H167: 44.25267065 | I167: 46.45412809 | J167: 48.83600781 | K167: 49.44778784
C168: Complex connection HV (customer connected at HV) | E168: 2.891452393 | F168: 2.891452393 | G168: 2.891452393 | H168: 2.891452393 | I168: 2.891452393 | J168: 2.891452393 | K168: 2.891452393
C169: Complex connection sub-transmission | E169: 0 | F169: 0 | G169: 0 | H169: 0 | I169: 0 | J169: 0 | K169: 0
B170: SUBDIVISION | C170: Complex connection LV | E170: 0 | F170: 0 | G170: 0 | H170: 0 | I170: 0 | J170: 0 | K170: 0
C171: Complex connection HV (no upstream asset works) | E171: 0 | F171: 0 | G171: 0 | H171: 0 | I171: 0 | J171: 0 | K171: 0
C172: Complex connection HV (with upstream asset works) | E172: 1.125 | F172: 1.125 | G172: 1.125 | H172: 1.125 | I172: 1.125 | J172: 1.125 | K172: 1.125
B173: EMBEDDED GENERATION | C173: Simple connection LV | E173: 0 | F173: 0 | G173: 0 | H173: 0 | I173: 0 | J173: 0 | K173: 0
C174: Complex connection HV (small capacity) | E174: 0.375 | F174: 0.375 | G174: 0.375 | H174: 0.375 | I174: 0.375 | J174: 0.375 | K174: 0.375
C175: Complex connection HV (large capacity) | E175: 0 | F175: 0 | G175: 0 | H175: 0 | I175: 0 | J175: 0 | K175: 0
B177: NEW CONNECTIONS - STANDARD CONTROL SERVICES
E178: VOLUMES (0's)
E179: =CRCP_y4 -> 2019-20 | F179: =CRCP_y5 -> 2020-21 | G179: =FRCP_y1 -> 2021-22 | H179: =FRCP_y2 -> 2022-23 | I179: =FRCP_y3 -> 2023-24 | J179: =FRCP_y4 -> 2024-25 | K179: =FRCP_y5 -> 2025-26
B180: RESIDENTIAL | C180: Simple connection LV | E180: 0 | F180: 0 | G180: 0 | H180: 0 | I180: 0 | J180: 0 | K180: 0
C181: Complex connection LV | E181: 742.6191186 | F181: 716.7296332 | G181: 726.390215 | H181: 725.3472615 | I181: 736.3274973 | J181: 748.0231665 | K181: 753.8438015
C182: Complex connection HV | E182: 117.2793929 | F182: 111.7046781 | G182: 108.0489266 | H182: 102.2715909 | I182: 107.2750641 | J182: 112.3125122 | K182: 113.6793966
B183: COMMERCIAL/INDUSTRIAL | C183: Simple connection LV | E183: 27.77199265 | F183: 27.10444963 | G183: 26.47233629 | H183: 22.87900841 | I183: 22.99735283 | J183: 24.67825098 | K183: 25.09731908
C184: Complex connection HV (customer connected at LV, minor HV works) | E184: 0 | F184: 0 | G184: 0 | H184: 0 | I184: 0 | J184: 0 | K184: 0
C185: Complex connection HV (customer connected at LV, upstream asset works) | E185: 51.53797283 | F185: 49.0240334 | G185: 47.2662075 | H185: 44.25267065 | I185: 46.45412809 | J185: 48.83600781 | K185: 49.44778784
C186: Complex connection HV (customer connected at HV) | E186: 2.891452393 | F186: 2.891452393 | G186: 2.891452393 | H186: 2.891452393 | I186: 2.891452393 | J186: 2.891452393 | K186: 2.891452393
C187: Complex connection sub-transmission | E187: 0 | F187: 0 | G187: 0 | H187: 0 | I187: 0 | J187: 0 | K187: 0
B188: SUBDIVISION | C188: Complex connection LV | E188: 0 | F188: 0 | G188: 0 | H188: 0 | I188: 0 | J188: 0 | K188: 0
C189: Complex connection HV (no upstream asset works) | E189: 0 | F189: 0 | G189: 0 | H189: 0 | I189: 0 | J189: 0 | K189: 0
C190: Complex connection HV (with upstream asset works) | E190: 1.125 | F190: 1.125 | G190: 1.125 | H190: 1.125 | I190: 1.125 | J190: 1.125 | K190: 1.125
B191: EMBEDDED GENERATION | C191: Simple connection LV | E191: 0 | F191: 0 | G191: 0 | H191: 0 | I191: 0 | J191: 0 | K191: 0
C192: Complex connection HV (small capacity) | E192: 0.375 | F192: 0.375 | G192: 0.375 | H192: 0.375 | I192: 0.375 | J192: 0.375 | K192: 0.375
C193: Complex connection HV (large capacity) | E193: 0 | F193: 0 | G193: 0 | H193: 0 | I193: 0 | J193: 0 | K193: 0
B195: EXISTING CONNECTIONS
E196: VOLUMES (0's)
E197: =CRCP_y4 -> 2019-20 | F197: =CRCP_y5 -> 2020-21 | G197: =FRCP_y1 -> 2021-22 | H197: =FRCP_y2 -> 2022-23 | I197: =FRCP_y3 -> 2023-24 | J197: =FRCP_y4 -> 2024-25 | K197: =FRCP_y5 -> 2025-26
B198: RESIDENTIAL | C198: Simple connection LV | E198: 0 | F198: 0
C199: Complex connection LV | E199: 0 | F199: 0
C200: Complex connection HV | E200: 0 | F200: 0
B201: COMMERCIAL/INDUSTRIAL | C201: Simple connection LV | E201: 0 | F201: 0
C202: Complex connection HV (customer connected at LV, minor HV works) | E202: 0 | F202: 0
C203: Complex connection HV (customer connected at LV, upstream asset works) | E203: 0 | F203: 0
C204: Complex connection HV (customer connected at HV) | E204: 0 | F204: 0
C205: Complex connection sub-transmission | E205: 0 | F205: 0
B206: SUBDIVISION | C206: Complex connection LV | E206: 0 | F206: 0
C207: Complex connection HV (no upstream asset works) | E207: 0 | F207: 0
C208: Complex connection HV (with upstream asset works) | E208: 0 | F208: 0
B209: EMBEDDED GENERATION | C209: Simple connection LV | E209: 0 | F209: 0
C210: Complex connection HV (small capacity) | E210: 0 | F210: 0
C211: Complex connection HV (large capacity) | E211: 0 | F211: 0

Sheet 2.6 Non-network
B1: =INDEX(dms_Worksheet_List,MATCH(dms_Model,dms_Model_List)) -> REGULATORY REPORTING STATEMENT
B2: =INDEX(dms_TradingNameFull_List,MATCH(dms_TradingName,dms_TradingName_List)) -> CitiPower
B3: =dms_Header_Span -> 2021-22 to 2025-26
B4: 2.6 NON NETWORK EXPENDITURE
B6: There are THREE tables on this worksheet - each has been 'grouped' (and sub-grouped) for easy navigation. See the Instructions sheet on how to group or ungroup tables.
B8: 2.6.1 - NON-NETWORK EXPENDITURE
E9: =CONCATENATE("EXPENDITURE ($'0s, real ", dms_DollarReal,")") -> EXPENDITURE ($'0s, real June 2021)
B10: SERVICE SUBCATEGORY | C10: ASSET CATEGORY | E10: =CRCP_y4 -> 2019-20 | F10: =CRCP_y5 -> 2020-21 | G10: =FRCP_y1 -> 2021-22 | H10: =FRCP_y2 -> 2022-23 | I10: =FRCP_y3 -> 2023-24 | J10: =FRCP_y4 -> 2024-25 | K10: =FRCP_y5 -> 2025-26
B11: OPEX
B12: IT & COMMUNICATIONS | C12: Total IT and communications | E12: 16313713.01 | F12: 16913293.86 | G12: 20814232.59 | H12: 20981398.29 | I12: 21477651.18 | J12: 21970054.88 | K12: 22458085.34
B13: MOTOR VEHICLES | C13: Car | E13: 485528.436 | F13: 503373.1507 | G13: 521873.7155 | H13: 533036.147 | I13: 544121.8917 | J13: 554996.6601 | K13: 565618.3683
C14: Light commercial vehicle | E14: 440417.3877 | F14: 456604.1279 | G14: 473385.7823 | H14: 483511.0985 | I14: 493566.8529 | J14: 503431.2331 | K14: 513066.0652
C15: Elevated work platform (LCV) | E15: 174257.1523 | F15: 180661.657 | G15: 187301.5477 | H15: 191307.7673 | I15: 195286.4638 | J15: 199189.4405 | K15: 203001.5934
C16: Elevated work platform (HCV) | E16: 146199.7184 | F16: 151573.0232 | G16: 157143.8141 | H16: 160504.9856 | I16: 163843.0656 | J16: 167117.6175 | K16: 170315.9693
C17: Heavy commercial vehicle | E17: 469109.4462 | F17: 486350.7108 | G17: 504225.6467 | H17: 515010.6012 | I17: 525721.4621 | J17: 536228.4813 | K17: 546490.9979
B18: BUILDINGS AND PROPERTY | C18: Total buildings and property expenditure | E18: 3300503.736 | F18: 3421807.749 | G18: 3547570.07 | H18: 3623449.554 | I18: 3698807.739 | J18: 3772731.759 | K18: 3844935.537
B19: OTHER | C19: Other expenditure | E19: 0 | F19: 0 | G19: 0 | H19: 0 | I19: 0 | J19: 0 | K19: 0
B20: OTHER - DNSP nominated
B31: CAPEX
B32: IT & COMMUNICATIONS | C32: Total IT and communications | E32: 13597156.94 | F32: 15082025.06 | G32: 24621798.21 | H32: 19924064.32 | I32: 23188071.31 | J32: 17960593.37 | K32: 10379514.25
B33: MOTOR VEHICLES | C33: Car | E33: 1323070.202 | F33: 1694859.698 | G33: 111916.929 | H33: 88734.2718 | I33: 431531.3243 | J33: 238103.9528 | K33: 13335.25659
C34: Light commercial vehicle | E34: 793609.7417 | F34: 2519675.102 | G34: 309097.7544 | H34: 159936.0958 | I34: 47880.72724 | J34: 27019.0129 | K34: 93346.83023
C35: Elevated work platform (LCV) | E35: 0 | F35: 0 | G35: 0 | H35: 20540.00646 | I35: 167010.6128 | J35: 3469.818412 | K35: 6667.645351
C36: Elevated work platform (HCV) | E36: 267255.1081 | F36: 0 | G36: 538039.895 | H36: 639150.2888 | I36: 0 | J36: 3469.818412 | K36: 289812.4221
C37: Heavy commercial vehicle | E37: 222159.9576 | F37: 10865.39072 | G37: 294538.2175 | H37: 354440.8817 | I37: 201916.8157 | J37: 155136.752 | K37: 26670.51318
B38: BUILDINGS AND PROPERTY | C38: Total buildings and property expenditure | E38: 3128644.627 | F38: 1635196.869 | G38: 4789077.632 | H38: 3938763.721 | I38: 2883966.527 | J38: 2007813.327 | K38: 2020189.752
B39: OTHER | C39: Other expenditure | E39: 449452.712 | F39: 617683.5168 | G39: 242140.5498 | H39: 242140.5498 | I39: 242140.5498 | J39: 242140.5498 | K39: 242140.5498
B40: OTHER - DNSP nominated
B54: 2.6.2 - ANNUAL DESCRIPTOR METRICS
B55: IT & COMMUNICATIONS
E56: VOLUMES (0's)
E57: =CRCP_y4 -> 2019-20 | F57: =CRCP_y5 -> 2020-21 | G57: =FRCP_y1 -> 2021-22 | H57: =FRCP_y2 -> 2022-23 | I57: =FRCP_y3 -> 2023-24 | J57: =FRCP_y4 -> 2024-25 | K57: =FRCP_y5 -> 2025-26
B58: Employee numbers | E58: 626.3777234 | F58: 626.3777234 | G58: 626.3777234 | H58: 626.3777234 | I58: 626.3777234 | J58: 626.3777234 | K58: 626.3777234
B59: User numbers | E59: 593.3430544 | F59: 593.3430544 | G59: 593.3430544 | H59: 593.3430544 | I59: 593.3430544 | J59: 593.3430544 | K59: 593.3430544
B60: Number of devices | E60: 1801.5 | F60: 1801.5 | G60: 1801.5 | H60: 1801.5 | I60: 1801.5 | J60: 1801.5 | K60: 1801.5
B62: MOTOR VEHICLES
E63: VOLUMES (0's or %)
B64: ASSET CATEGORY | C64: DESCRIPTOR METRIC | D64: Units | E64: =CRCP_y4 -> 2019-20 | F64: =CRCP_y5 -> 2020-21 | G64: =FRCP_y1 -> 2021-22 | H64: =FRCP_y2 -> 2022-23 | I64: =FRCP_y3 -> 2023-24 | J64: =FRCP_y4 -> 2024-25 | K64: =FRCP_y5 -> 2025-26
B65: CAR | C65: Average kilometres travelled | D65: 0's | E65: 18338.25524 | F65: 18338.25524 | G65: 18338.25524 | H65: 18338.25524 | I65: 18338.25524 | J65: 18338.25524 | K65: 18338.25524
C66: Number purchased | D66: 0's | E66: 13.5 | F66: 9 | G66: 10 | H66: 8.5 | I66: 9 | J66: 7 | K66: 1
C67: Number leased | D67: 0's | E67: 0 | F67: 0 | G67: 0 | H67: 0 | I67: 0 | J67: 0 | K67: 0
C68: Number in fleet | D68: 0's | E68: 54.5 | F68: 58.5 | G68: 55.75 | H68: 48.5 | I68: 42.75 | J68: 61.25 | K68: 97.25
C69: Proportion of total fleet expenditure allocated as regulatory expenditure | D69: % | E69: 1 | F69: 1 | G69: 1 | H69: 1 | I69: 1 | J69: 1 | K69: 1
B70: LIGHT COMMERCIAL VEHICLE | C70: Average kilometres travelled | D70: 0's | E70: 15871.5511 | F70: 15871.5511 | G70: 15871.5511 | H70: 15871.5511 | I70: 15871.5511 | J70: 15871.5511 | K70: 15871.5511
C71: Number purchased | D71: 0's | E71: 4.5 | F71: 6 | G71: 15.5 | H71: 11 | I71: 2.5 | J71: 8 | K71: 7
C72: Number leased | D72: 0's | E72: 0 | F72: 0 | G72: 0 | H72: 0 | I72: 0 | J72: 0 | K72: 0
C73: Number in fleet | D73: 0's | E73: 28.25 | F73: 33.75 | G73: 38.75 | H73: 38.25 | I73: 34.75 | J73: 58.25 | K73: 88
C74: Proportion of total fleet expenditure allocated as regulatory expenditure | D74: % | E74: 1 | F74: 1 | G74: 1 | H74: 1 | I74: 1 | J74: 1 | K74: 1
B75: ELEVATED WORK PLATFORM (LCV) | C75: Average kilometres travelled | D75: 0's | E75: 10078.96111 | F75: 10078.96111 | G75: 10078.96111 | H75: 10078.96111 | I75: 10078.96111 | J75: 10078.96111 | K75: 10078.96111
C76: Number purchased | D76: 0's | E76: 0 | F76: 0 | G76: 0 | H76: 3.5 | I76: 3.5 | J76: 0.5 | K76: 0.5
C77: Number leased | D77: 0's | E77: 0 | F77: 0 | G77: 0 | H77: 0 | I77: 0 | J77: 0 | K77: 0
C78: Number in fleet | D78: 0's | E78: 2 | F78: 2 | G78: 2 | H78: 2 | I78: 1 | J78: 4 | K78: 8
C79: Proportion of total fleet expenditure allocated as regulatory expenditure | D79: % | E79: 1 | F79: 1 | G79: 1 | H79: 1 | I79: 1 | J79: 1 | K79: 1
B80: ELEVATED WORK PLATFORM (HCV) | C80: Average kilometres travelled | D80: 0's | E80: 5947.780952 | F80: 5947.780952 | G80: 5947.780952 | H80: 5947.780952 | I80: 5947.780952 | J80: 5947.780952 | K80: 5947.780952
C81: Number purchased | D81: 0's | E81: 0 | F81: 0 | G81: 3 | H81: 3 | I81: 0 | J81: 0.5 | K81: 1
C82: Number leased | D82: 0's | E82: 0 | F82: 0 | G82: 0 | H82: 0 | I82: 0 | J82: 0 | K82: 0
C83: Number in fleet | D83: 0's | E83: 3 | F83: 3 | G83: 6 | H83: 9 | I83: 4.5 | J83: 5.5 | K83: 9
C84: Proportion of total fleet expenditure allocated as regulatory expenditure | D84: % | E84: 1 | F84: 1 | G84: 1 | H84: 1 | I84: 1 | J84: 1 | K84: 1
B85: HEAVY COMMERCIAL VEHICLE | C85: Average kilometres travelled | D85: 0's | E85: 4824.892906 | F85: 4824.892906 | G85: 4824.892906 | H85: 4824.892906 | I85: 4824.892906 | J85: 4824.892906 | K85: 4824.892906
C86: Number purchased | D86: 0's | E86: 0.5 | F86: 0.5 | G86: 2 | H86: 6 | I86: 6 | J86: 3.5 | K86: 2
C87: Number leased | D87: 0's | E87: 0 | F87: 0 | G87: 0 | H87: 0 | I87: 0 | J87: 0 | K87: 0
C88: Number in fleet | D88: 0's | E88: 17 | F88: 16 | G88: 16.25 | H88: 19.75 | I88: 21.75 | J88: 34 | K88: 62
C89: Proportion of total fleet expenditure allocated as regulatory expenditure | D89: % | E89: 1 | F89: 1 | G89: 1 | H89: 1 | I89: 1 | J89: 1 | K89: 1
B92: Table 2.6.4 intentionally omitted
B94: 2.6.5 - INFORMATION & COMMUNICATIONS TECHNOLOGY - CAPEX
E95: =CONCATENATE("EXPENDITURE ($'0s, real ", dms_DollarReal,")") -> EXPENDITURE ($'0s, real June 2021)
E96: =CRCP_y4 -> 2019-20 | F96: =CRCP_y5 -> 2020-21 | G96: =FRCP_y1 -> 2021-22 | H96: =FRCP_y2 -> 2022-23 | I96: =FRCP_y3 -> 2023-24 | J96: =FRCP_y4 -> 2024-25 | K96: =FRCP_y5 -> 2025-26
B97: RECURRENT
B98: Market Compliance | C98: Market Compliance | D98: Market Compliance | E98: 1300156.801 | F98: 1442139.525 | G98: 1369190.954 | H98: 1350138.719 | I98: 2181634.379 | J98: 977675.933 | K98: 1862484.553
B99: Customer Engagement | C99: Customer Engagement | D99: Customer Engagement | E99: 388334.3453 | F99: 430742.1288 | G99: 1166693.683 | H99: 655751.8535 | I99: 1148654.619 | J99: 155569.7328 | K99: 264704.8481
B100: Corporate Services | C100: Corporate Services | D100: Corporate Services | E100: 2925193.853 | F100: 3244637.624 | G100: 3335851.93 | H100: 2711354.814 | I100: 2315086.154 | J100: 3926971.872 | K100: 1608339.919
B101: Field Work & Construction | C101: Field Work & Construction | D101: Field Work & Construction | E101: 1129360.023 | F101: 1252691.003 | G101: 1437712.049 | H101: 2031303.86 | I101: 651191.1841 | J101: 1033022.931 | K101: 536362.4144
B102: Service Management and Ops | C102: Service Management and Ops | D102: Service Management and Ops | E102: 1174298.856 | F102: 1302537.35 | G102: 1179485.699 | H102: 1197481.116 | I102: 1215678.079 | J102: 1231434.983 | K102: 1246319.856
B103: Network Assets and Network Operations | C103: Network Assets and Network Operations | D103: Network Assets and Network Operations | E103: 3101690.049 | F103: 3440407.965 | G103: 2804831.934 | H103: 2488796.23 | I103: 836314.1979 | J103: 2355766.087 | K103: 2055377.478
B104: Cyber Security | C104: Cyber Security | D104: Cyber Security | E104: 715446.9802 | F104: 793576.8728 | G104: 1167733.599 | H104: 1218507.254 | I104: 1329868.065 | J104: 1296494.85 | K104: 1039671.885
B108: NON-RECURRENT
B109: Market Compliance | C109: Market Compliance | D109: Market Compliance | E109: 1939814.946 | F109: 2151651.095 | G109: 7279962.856 | H109: 1623402.927 | I109: 31656.60365 | J109: 38979.33561 | K109: 79340.4003
B110: Customer Engagement | C110: Customer Engagement | D110: Customer Engagement | E110: 166798.3926 | F110: 185013.4957 | G110: 486688.6934 | H110: 130011.1631 | I110: 704882.359 | J110: 646875.8086 | K110: 0
B111: Corporate Services | C111: Corporate Services | D111: Corporate Services | E111: 215704.068 | F111: 239259.8815 | G111: 0 | H111: 0 | I111: 0 | J111: 0 | K111: 0
B112: Field Work & Construction | C112: Field Work & Construction | D112: Field Work & Construction | E112: 30163.17667 | F112: 33457.12551 | G112: 0 | H112: 1819799.732 | I112: 5692061.978 | J112: 4330065.925 | K112: 0
B113: Service Management and Ops | C113: Service Management and Ops | D113: Service Management and Ops | E113: 671.8013726 | F113: 745.1649768 | G113: 0 | H113: 0 | I113: 0 | J113: 0 | K113: 0
B114: Network Assets and Network Operations | C114: Network Assets and Network Operations | D114: Network Assets and Network Operations | E114: 498048.1681 | F114: 552437.1738 | G114: 3903166.201 | H114: 4183701.335 | I114: 6519470.699 | J114: 1415454.573 | K114: 1246692.238
B115: Cyber Security | C115: Cyber Security | D115: Cyber Security | E115: 11475.48463 | F115: 12728.65699 | G115: 490480.6119 | H115: 513815.3125 | I115: 561572.9955 | J115: 552281.3411 | K115: 440220.6576

Sheet 2.10 Overheads
B1: =INDEX(dms_Worksheet_List,MATCH(dms_Model,dms_Model_List)) -> REGULATORY REPORTING STATEMENT
B2: =INDEX(dms_TradingNameFull_List,MATCH(dms_TradingName,dms_TradingName_List)) -> CitiPower
B3: =dms_Header_Span -> 2021-22 to 2025-26
B4: 2.10 OVERHEADS
B6: There are TWO tables on this worksheet. Each table has been 'grouped' (and sub-grouped) for easy navigation. See the Instructions sheet on how to group or ungroup data.
B8: 2.10.1 - NETWORK OVERHEADS EXPENDITURE
D9: =CONCATENATE("EXPENDITURE ($0's, real ", dms_DollarReal,")") -> EXPENDITURE ($0's, real June 2021)
D10: =CRCP_y4 -> 2019-20 | E10: =CRCP_y5 -> 2020-21 | F10: =FRCP_y1 -> 2021-22 | G10: =FRCP_y2 -> 2022-23 | H10: =FRCP_y3 -> 2023-24 | I10: =FRCP_y4 -> 2024-25 | J10: =FRCP_y5 -> 2025-26
B11: OPEX
B12: Standard Control Services | C12: Total | D12: 14561179.95 | E12: 15096349.64 | F12: 16138281.98 | G12: 16563460.23 | H12: 16988685.69 | I12: 17415266.8 | J12: 17841825.59
B13: Alternative Control Services | C13: Total | D13: 722963.2002 | E13: =D13 -> 722963.2002 | F13: =E13 -> 722963.2002 | G13: 722963.2002 | H13: 722963.2002 | I13: 722963.2002 | J13: 722963.2002
B14: CAPEX
B15: Standard Control Services | C15: Total | D15: 19684703.36 | E15: 20408178.83 | F15: 21158244.34 | G15: 21610801.05 | H15: 22060248.66 | I15: 22501142.69 | J15: 22931776.94
B16: Alternative Control Services | C16: Total | D16: 541354.8566 | E16: =D16 -> 541354.8566 | F16: =E16 -> 541354.8566 | G16: 541354.8566 | H16: 541354.8566 | I16: 541354.8566 | J16: 541354.8566
B17: OTHER DISTRIBUTION SERVICES
B18: Negotiated Services | C18: Total | D18: 975461.2489 | E18: =D18 -> 975461.2489 | F18: =E18 -> 975461.2489 | G18: 975461.2489 | H18: 975461.2489 | I18: 975461.2489 | J18: 975461.2489
B19: Unregulated Distribution Services | C19: Total | D19: 0 | E19: 0 | F19: 0 | G19: 0 | H19: 0 | I19: 0 | J19: 0
B23: 2.10.2 - CORPORATE OVERHEADS EXPENDITURE
D24: =CONCATENATE("EXPENDITURE ($0's, real ", dms_DollarReal,")") -> EXPENDITURE ($0's, real June 2021)
D25: =CRCP_y4 -> 2019-20 | E25: =CRCP_y5 -> 2020-21 | F25: =FRCP_y1 -> 2021-22 | G25: =FRCP_y2 -> 2022-23 | H25: =FRCP_y3 -> 2023-24 | I25: =FRCP_y4 -> 2024-25 | J25: =FRCP_y5 -> 2025-26
B26: OPEX
B27: Standard Control Services | C27: Total | D27: 36383964.6 | E27: 37721191.06 | F27: 42856384.22 | G27: 43411467.74 | H27: 44439680.09 | I27: 45392193.97 | J27: 46227235.27
B28: Alternative Control Services | C28: Total | D28: 5494541.042 | E28: =D28 -> 5494541.042 | F28: =E28 -> 5494541.042 | G28: =F28 -> 5494541.042 | H28: 5494541.042 | I28: 5494541.042 | J28: 5494541.042
B29: CAPEX
B30: Standard Control Services | C30: Total | D30: 0 | E30: =D30 -> 0 | F30: =E30 -> 0 | G30: 0 | H30: 0 | I30: 0 | J30: 0
B31: Alternative Control Services | C31: Total | D31: 0 | E31: =D31 -> 0 | F31: =E31 -> 0 | G31: 0 | H31: 0 | I31: 0 | J31: 0
B32: OTHER DISTRIBUTION SERVICES
B33: Negotiated Services | C33: Total | D33: 968730.5175 | E33: =D33 -> 968730.5175 | F33: =E33 -> 968730.5175 | G33: 968730.5175 | H33: 968730.5175 | I33: 968730.5175 | J33: 968730.5175
B34: Unregulated Distribution Services | C34: Total | D34: 0 | E34: 0 | F34: 0 | G34: 0 | H34: 0 | I34: 0 | J34: 0

Sheet 2.11 Labour
B1: =INDEX(dms_Worksheet_List,MATCH(dms_Model,dms_Model_List)) -> REGULATORY REPORTING STATEMENT
B2: =INDEX(dms_TradingNameFull_List,MATCH(dms_TradingName,dms_TradingName_List)) -> CitiPower
B3: =dms_Header_Span -> 2021-22 to 2025-26
B4: 2.11 LABOUR
B6: Table numbering on this worksheet starts at 2.11.3.
B8: 2.11.3 - LABOUR / NON-LABOUR EXPENDITURE SPLIT - STANDARD CONTROL SERVICES
C9: EXPENDITURE
C10: =CONCATENATE("($0's, real ", dms_DollarReal,")") -> ($0's, real June 2021)
C11: =CRCP_y4 -> 2019-20 | D11: =CRCP_y5 -> 2020-21 | E11: =FRCP_y1 -> 2021-22 | F11: =FRCP_y2 -> 2022-23 | G11: =FRCP_y3 -> 2023-24 | H11: =FRCP_y4 -> 2024-25 | I11: =FRCP_y5 -> 2025-26
B12: OPEX
B13: In-house labour expenditure
B14: Labour expenditure outsourced to related parties
B15: Labour expenditure outsourced to unrelated parties
B16: Controllable non-labour expenditure
B17: Uncontrollable non-labour expenditure
B18: Total | C18: =SUM(C13:C17) -> 0 | D18: 0 | E18: 0 | F18: 0 | G18: 0 | H18: 0 | I18: 0
B19: CAPEX
B20: In-house labour expenditure
B21: Labour expenditure outsourced to related parties
B22: Labour expenditure outsourced to unrelated parties
B23: Controllable non-labour expenditure
B24: Uncontrollable non-labour expenditure
B25: Total | C25: =SUM(C20:C24) -> 0 | D25: 0 | E25: 0 | F25: 0 | G25: 0 | H25: 0 | I25: 0

Sheet 2.14 Forecast price changes
B1: =INDEX(dms_Worksheet_List,MATCH(dms_Model,dms_Model_List)) -> REGULATORY REPORTING STATEMENT
B2: =INDEX(dms_TradingNameFull_List,MATCH(dms_TradingName,dms_TradingName_List)) -> CitiPower
B3: =dms_Header_Span -> 2021-22 to 2025-26
B4: 2.14 FORECAST PRICE CHANGES
B6: There is ONE table on this worksheet. It has been grouped for easy navigation. See the Instructions sheet on how to group or ungroup data.
B8: Instructions
B9: =CONCATENATE(dms_TradingName, " must provide all forecast price changes used to forecast opex and capex, including forecast changes in CPI. Forecast price changes must be expressed in real terms, except for CPI. "&"If the same escalators are not used for capex and opex, report capex and opex escalators separately. Add additional rows as required. If price changes for a given year were not used to forecast either opex or capex enter '0' for that year.") -> CitiPower must provide all forecast price changes used to forecast opex and capex, including forecast changes in CPI. Forecast price changes must be expressed in real terms, except for CPI. If the same escalators are not used for capex and opex, report capex and opex escalators separately. Add additional rows as required. If price changes for a given year were not used to forecast either opex or capex enter '0' for that year.
B11: 2.14.2 - FORECAST CAPEX AND OPEX PRICE CHANGES
C12: Price changes (% YoY real) Current regulatory period | E12: Price changes (%YoY real) Forthcoming regulatory period
C13: Forecast
C14: =CRCP_y4 -> 2019-20 | D14: =CRCP_y5 -> 2020-21 | E14: =FRCP_y1 -> 2021-22 | F14: =FRCP_y2 -> 2022-23 | G14: =FRCP_y3 -> 2023-24 | H14: =FRCP_y4 -> 2024-25 | I14: =FRCP_y5 -> 2025-26
B15: OPEX
B16: CPI | C16: 0.02 | D16: 0.02 | E16: 0.02399804305 | F16: 0.02399804305 | G16: 0.02399804305 | H16: 0.02399804305 | I16: 0.02399804305
B17: Real labour escalation | C17: 0.0143 | D17: 0.0138 | E17: 0.02003652968 | F17: 0.02172318182 | G17: 0.02160180995 | H17: 0.01906981982 | I17: 0.01714080717
B18: Real non-labour escalation | C18: 0 | D18: 0 | E18: 0 | F18: 0 | G18: 0 | H18: 0 | I18: 0
B19: CAPEX
B20: CPI
B21: Real labour escalation | C21: =C17 -> 0.0143 | D21: =D17 -> 0.0138 | E21: 0.02003652968 | F21: 0.02172318182 | G21: 0.02160180995 | H21: 0.01906981982 | I21: 0.01714080717
B22: Real materials escalation | C22: 0 | D22: 0 | E22: 0 | F22: 0 | G22: 0 | H22: 0 | I22: 0
B23: Real contracts escalaction | C23: 0.0047 | D23: 0.0056 | E23: 0.01431050228 | F23: 0.01921181818 | G23: 0.01878914027 | H23: 0.01394684685 | I23: 0.01442869955

Sheet 2.16 Opex Summary
B1: =INDEX(dms_Worksheet_List,MATCH(dms_Model,dms_Model_List)) -> REGULATORY REPORTING STATEMENT
B2: =INDEX(dms_TradingNameFull_List,MATCH(dms_TradingName,dms_TradingName_List)) -> CitiPower
B3: =dms_Header_Span -> 2021-22 to 2025-26
B4: 2.16 OPEX SUMMARY
B6: There are FOUR tables on this worksheet. Each table has been 'grouped' (and 'sub-grouped') for easy navigation. See the Instructions sheet on how to group or ungroup data.
B8: Instructions | J8: IMPORTANT!
B9: =CONCATENATE("Complete the tables below in accordance with the regulatory information notice. ",dms_TradingName,"'s total forecast opex must reconcile to Table 2.16.1 (and if ",dms_TradingName," owns any dual function assets Table 2.16.3). If ",dms_TradingName," did not forecast its total opex using a Base Year approach, total forecast opex must reconcile to Table 2.16.2 (and if ",dms_TradingName," owns any dual function assets Table 2.16.4).") -> Complete the tables below in accordance with the regulatory information notice. CitiPower's total forecast opex must reconcile to Table 2.16.1 (and if CitiPower owns any dual function assets Table 2.16.3). If CitiPower did not forecast its total opex using a Base Year approach, total forecast opex must reconcile to Table 2.16.2 (and if CitiPower owns any dual function assets Table 2.16.4). | J9: =CONCATENATE("Has ",dms_TradingName," used a base-step-trend model to derive its opex forecast? ") -> Has CitiPower used a base-step-trend model to derive its opex forecast? | L9: Yes
B10: =CONCATENATE("If ",dms_TradingName," does not own any dual function assets,Table 2.16.3 and 2.16.4 may be left blank.") -> If CitiPower does not own any dual function assets,Table 2.16.3 and 2.16.4 may be left blank. | J10: Yes / No
B11: The total step changes in Table 2.16.1 and Table 2.16.3 must "&"reconcile (in each year) to the total step changes for each year in Table 2.17.1 and Table 2.17.3 of worksheet '2.17 Step Changes', respectively.") | J11: Please nominate the base year. | L11: 2019
B14: 2.16.1 - STANDARD CONTROL SERVICES - OPEX BY DRIVER
C15: EXPENDITURE
C16: =CONCATENATE("Forecast ($0's, real ", dms_DollarReal,")") -> Forecast ($0's, real June 2021)
C17: 2017 | D17: 2018 | E17: 2019 | F17: 2020 | G17: 2021 | H17: =FRCP_y1 -> 2021-22 | I17: =FRCP_y2 -> 2022-23 | J17: =FRCP_y3 -> 2023-24 | K17: =FRCP_y4 -> 2024-25 | L17: =FRCP_y5 -> 2025-26
B18: Base year total opex, excluding category specific | E18: 86945481.63 | F18: =E18 -> 86945481.63 | G18: =F18 -> 86945481.63 | H18: =G25-G24 -> 90878763.2 | I18: =H18 -> 90878763.2 | J18: =I18 -> 90878763.2 | K18: 90878763.2 | L18: 90878763.2
B19: Increment from base year to final year | G19: 3933281.568
B20: Price growth | H20: 1389482.686 | I20: 2926359.585 | J20: 4486564.829 | K20: 5893883.931 | L20: 7184777.62
B21: Output growth | H21: 2649354.186 | I21: 3758949.893 | J21: 4841205.851 | K21: 6046456.975 | L21: 7329952.743
B22: Productivity growth | H22: -501432.0857 | I22: -1013589.374 | J22: -1536398.182 | K22: -2069655.797 | L22: -2613119.071
B23: Step changes | H23: 7389297.771 | I23: 7166683.885 | J23: 7554879.698 | K23: 7653783.353 | L23: 7824151.628
B24: Category specific | G24: 5368817.073 | H24: =G24 -> 5368817.073 | I24: =H24 -> 5368817.073 | J24: 5368817.073 | K24: 5368817.073 | L24: 5368817.073
B25: Total opex | C25: =SUM(C18:C24) -> 0 | D25: 0 | E25: 86945481.63 | F25: 86945481.63 | G25: 96247580.28 | H25: 107174282.8 | I25: 109085984.3 | J25: 111593832.5 | K25: 113772048.7 | L25: 115973343.2
B28: 2.16.2 - STANDARD CONTROL SERVICES - OPEX BY CATEGORY
C29: EXPENDITURE
C30: =CONCATENATE("Forecast ($0's, real ", dms_DollarReal,")") -> Forecast ($0's, real June 2021)
C31: =CRCP_y1 -> 2016-17 | D31: =CRCP_y2 -> 2017-18 | E31: =CRCP_y3 -> 2018-19 | F31: =CRCP_y4 -> 2019-20 | G31: =CRCP_y5 -> 2020-21 | H31: =FRCP_y1 -> 2021-22 | I31: =FRCP_y2 -> 2022-23 | J31: =FRCP_y3 -> 2023-24 | K31: =FRCP_y4 -> 2024-25 | L31: =FRCP_y5 -> 2025-26
B32: Vegetation management
B33: Maintenance
B34: Emergency response
B35: Non-network
B36: Metering
B37: Network overheads
B38: Corporate overheads
B39: Total opex | C39: =SUM(C32:C38) -> 0 | D39: 0 | E39: 0 | F39: 0 | G39: 0 | H39: 0 | I39: 0 | J39: 0 | K39: 0 | L39: 0
B42: 2.16.3 - DUAL FUNCTION ASSETS - OPEX BY DRIVER
C43: EXPENDITURE
C44: =CONCATENATE("Forecast ($0's, real ", dms_DollarReal,")") -> Forecast ($0's, real June 2021)
C45: 2017 | D45: 2018 | E45: 2019 | F45: 2020 | G45: 2021 | H45: =FRCP_y1 -> 2021-22 | I45: =FRCP_y2 -> 2022-23 | J45: =FRCP_y3 -> 2023-24 | K45: =FRCP_y4 -> 2024-25 | L45: =FRCP_y5 -> 2025-26
B46: Base year total opex, excluding category specific
B47: Increment from base year to final year
B48: Price growth
B49: Output growth
B50: Productivity growth
B51: Step changes
B52: Category specific
B53: Total opex | C53: =SUM(C46:C52) -> 0 | D53: 0 | E53: 0 | F53: 0 | G53: 0 | H53: 0 | I53: 0 | J53: 0 | K53: 0 | L53: 0
B56: 2.16.4 - DUAL FUNCTION ASSETS - OPEX BY CATEGORY
C57: EXPENDITURE
C58: =CONCATENATE("Forecast ($0's, real ", dms_DollarReal,")") -> Forecast ($0's, real June 2021)
C59: =CRCP_y1 -> 2016-17 | D59: =CRCP_y2 -> 2017-18 | E59: =CRCP_y3 -> 2018-19 | F59: =CRCP_y4 -> 2019-20 | G59: =CRCP_y5 -> 2020-21 | H59: =FRCP_y1 -> 2021-22 | I59: =FRCP_y2 -> 2022-23 | J59: =FRCP_y3 -> 2023-24 | K59: =FRCP_y4 -> 2024-25 | L59: =FRCP_y5 -> 2025-26
B60: Vegetation management
B61: Maintenance
B62: Emergency response
B63: Non-network
B64: Metering
B65: Network overheads
B66: Corporate overheads
B67: Total opex | C67: =SUM(C60:C66) -> 0 | D67: 0 | E67: 0 | F67: 0 | G67: 0 | H67: 0 | I67: 0 | J67: 0 | K67: 0 | L67: 0

Sheet 2.17 Step Changes
B1: =INDEX(dms_Worksheet_List,MATCH(dms_Model,dms_Model_List)) -> REGULATORY REPORTING STATEMENT
B2: =INDEX(dms_TradingNameFull_List,MATCH(dms_TradingName,dms_TradingName_List)) -> CitiPower
B3: =dms_Header_Span -> 2021-22 to 2025-26
B4: 2.17 STEP CHANGES
B6: There are FIVE tables on this worksheet. Each table has been 'grouped' (and 'sub-grouped') for easy navigation. See the Instructions sheet on how to group or ungroup data.
B8: 2.17.1 - STEP CHANGES FOR STANDARD CONTROL SERVICES - FORECAST OPEX
E9: EXPENDITURE
E10: =CONCATENATE("Forecast ($0's, real ", dms_DollarReal, ")") -> Forecast ($0's, real June 2021)
B11: Step change | C11: Description | E11: =CRCP_y4 -> 2019-20 | F11: =CRCP_y5 -> 2020-21 | G11: =FRCP_y1 -> 2021-22 | H11: =FRCP_y2 -> 2022-23 | I11: =FRCP_y3 -> 2023-24 | J11: =FRCP_y4 -> 2024-25 | K11: =FRCP_y5 -> 2025-26
B12: Yarra trams pole relocation | C12: Relocation of our assets on Yarra Trams poles as part of Yarra Trams 10-year works | G12: 2800835.277 | H12: 2843499.006 | I12: 2886570.608 | J12: 2925169.655 | K12: 2960328.139
B13: Security of critical infrastructure | C13: To comply with new critical infrastructure system and data control regulatory obligations | G13: 3060407.354 | H13: 2773086.916 | I13: 2815091.959 | J13: 2852735.198 | K13: 2887023.07
B14: IT cloud solutions | C14: Reducing costs and delivering customer benefits by migrating IT infrastructure to cloud | G14: 335337.1172 | H14: 335885.5559 | I14: 485932.611 | J14: 581016.6959 | K14: 581380.8292
B15: 5 minute settlement | C15: To comply with the 5-minute settlement rule change | G15: 218914.0149 | H15: 298343.4304 | I15: 380111.2244 | J15: 469480.4177 | K15: 566334.5356
B16: Financial year RIN | C16: Prepare and audit an additional RIN on annual basis for calendar year accounts | G16: 353074.9147 | H16: 358453.129 | I16: 363882.7601 | J16: 368748.5782 | K16: 373180.677
B17: ESV levy | C17: Material increase in ESV levy | G17: 268179.4499 | H17: 279162.772 | I17: 290154.7998 | J17: 301228.3369 | K17: 312383.9876
B18: Solar enablement | C18: Operating expenditure associated with enabling more solar on the network | G18: 352549.6437 | H18: 278253.0755 | I18: 333135.7356 | J18: 155404.4718 | K18: 143520.3903
B22: Total | E22: =SUM(E12:E21) -> 0 | F22: 0 | G22: 7389297.771 | H22: 7166683.885 | I22: 7554879.698 | J22: 7653783.353 | K22: 7824151.628
B23: Check | G23: =IF(ROUND(G$22,0)-ROUND('2.16 Opex Summary'!H$23,0)=0,"OK","Error") -> OK | H23: =IF(ROUND(H$22,0)-ROUND('2.16 Opex Summary'!I$23,0)=0,"OK","Error") -> OK | I23: =IF(ROUND(I$22,0)-ROUND('2.16 Opex Summary'!J$23,0)=0,"OK","Error") -> OK | J23: =IF(ROUND(J$22,0)-ROUND('2.16 Opex Summary'!K$23,0)=0,"OK","Error") -> OK | K23: =IF(ROUND(K$22,0)-ROUND('2.16 Opex Summary'!L$23,0)=0,"OK","Error") -> OK
B25: 2.17.2 - STEP CHANGES FOR STANDARD CONTROL SERVICES - FORECAST CAPEX
E26: EXPENDITURE
E27: =CONCATENATE("Forecast ($0's, real ", dms_DollarReal, ")") -> Forecast ($0's, real June 2021)
B28: Step change | C28: Description | E28: =CRCP_y4 -> 2019-20 | F28: =CRCP_y5 -> 2020-21 | G28: =FRCP_y1 -> 2021-22 | H28: =FRCP_y2 -> 2022-23 | I28: =FRCP_y3 -> 2023-24 | J28: =FRCP_y4 -> 2024-25 | K28: =FRCP_y5 -> 2025-26
B39: Total | E39: =SUM(E29:E38) -> 0 | F39: 0 | G39: 0 | H39: 0 | I39: 0 | J39: 0 | K39: 0
B41: 2.17.3 - STEP CHANGES FOR DUAL FUNCTION ASSETS - FORECAST OPEX
E42: EXPENDITURE
E43: =CONCATENATE("Forecast ($0's, real ", dms_DollarReal, ")") -> Forecast ($0's, real June 2021)
B44: Step change | C44: Description | E44: =CRCP_y4 -> 2019-20 | F44: =CRCP_y5 -> 2020-21 | G44: =FRCP_y1 -> 2021-22 | H44: =FRCP_y2 -> 2022-23 | I44: =FRCP_y3 -> 2023-24 | J44: =FRCP_y4 -> 2024-25 | K44: =FRCP_y5 -> 2025-26
B55: Total | E55: =SUM(E45:E54) -> 0 | F55: 0 | G55: 0 | H55: 0 | I55: 0 | J55: 0 | K55: 0
B56: Check | G56: =IF(ROUND(G$22,0)-ROUND('2.16 Opex Summary'!H$51,0)=0,"OK","Error") -> Error | H56: =IF(ROUND(H$22,0)-ROUND('2.16 Opex Summary'!I$51,0)=0,"OK","Error") -> Error | I56: =IF(ROUND(I$22,0)-ROUND('2.16 Opex Summary'!J$51,0)=0,"OK","Error") -> Error | J56: =IF(ROUND(J$22,0)-ROUND('2.16 Opex Summary'!K$51,0)=0,"OK","Error") -> Error | K56: =IF(ROUND(K$22,0)-ROUND('2.16 Opex Summary'!L$51,0)=0,"OK","Error") -> Error
B58: 2.17.4 - STEP CHANGES FOR DUAL FUNCTION ASSETS - FORECAST CAPEX
E59: EXPENDITURE
E60: =CONCATENATE("Forecast ($0's, real ", dms_DollarReal, ")") -> Forecast ($0's, real June 2021)
B61: Step change | C61: Description | E61: =CRCP_y4 -> 2019-20 | F61: =CRCP_y5 -> 2020-21 | G61: =FRCP_y1 -> 2021-22 | H61: =FRCP_y2 -> 2022-23 | I61: =FRCP_y3 -> 2023-24 | J61: =FRCP_y4 -> 2024-25 | K61: =FRCP_y5 -> 2025-26
B72: Total | E72: =SUM(E62:E71) -> 0 | F72: 0 | G72: 0 | H72: 0 | I72: 0 | J72: 0 | K72: 0
B75: 2.17.5 - FORECAST CATEGORY SPECIFIC OPEX
D76: EXPENDITURE
D77: =CONCATENATE("Forecast ($0's, real ", dms_DollarReal, ")") -> Forecast ($0's, real June 2021)
B78: Category | C78: Description | D78: =CRCP_y3 -> 2018-19 | E78: =CRCP_y4 -> 2019-20 | F78: =CRCP_y5 -> 2020-21 | G78: =FRCP_y1 -> 2021-22 | H78: =FRCP_y2 -> 2022-23 | I78: =FRCP_y3 -> 2023-24 | J78: =FRCP_y4 -> 2024-25 | K78: =FRCP_y5 -> 2025-26
B79: Emergency recoverable works | C79: Reclassification from unclassified to standard control | G79: 214384.1257 | H79: =G79 -> 214384.1257 | I79: =H79 -> 214384.1257 | J79: 214384.1257 | K79: 214384.1257
B80: Communications network | C80: Reclassification from metering services to standard control | G80: 636048.8305 | H80: =G80 -> 636048.8305 | I80: =H80 -> 636048.8305 | J80: 636048.8305 | K80: 636048.8305
B81: Wasted truck visits | C81: Reclassification from alternative control services to standard control | G81: 413276.8595 | H81: =G81 -> 413276.8595 | I81: =H81 -> 413276.8595 | J81: 413276.8595 | K81: 413276.8595
B82: Replacement expenditure on faults and minor repairs | C82: Reclassification from capital expenditure to operating expenditure | G82: 4105107.257 | H82: =G82 -> 4105107.257 | I82: =H82 -> 4105107.257 | J82: 4105107.257 | K82: 4105107.257
B89: Total | D89: =SUM(D86:D88) -> 0 | E89: 0 | F89: 0 | G89: =SUM(G79:G88) -> 5368817.073 | H89: =SUM(H79:H88) -> 5368817.073 | I89: 5368817.073 | J89: 5368817.073 | K89: 5368817.073

Sheet 3.1 Revenue
B1: =INDEX(dms_Worksheet_List,MATCH(dms_Model,dms_Model_List)) -> REGULATORY REPORTING STATEMENT
B2: =INDEX(dms_TradingNameFull_List,MATCH(dms_TradingName,dms_TradingName_List)) -> CitiPower
B3: =dms_Header_Span -> 2021-22 to 2025-26
B4: 3.1 REVENUE
B6: There are THREE tables on this worksheet. Each table has been 'grouped' (and 'sub-grouped') for easy navigation. See the Instructions sheet on how to group or ungroup data.
B8: 3.1.1 - REVENUE GROUPING BY CHARGEABLE QUANTITY
C9: Standard control services | K9: Alternative control services
C10: REVENUE | K10: REVENUE
C11: =CONCATENATE("Forecast ($0's, real ", dms_DollarReal,")") -> Forecast ($0's, real June 2021) | K11: =CONCATENATE("Forecast ($0's, real ", dms_DollarReal,")") -> Forecast ($0's, real June 2021)
C12: =CRCP_y4 -> 2019-20 | D12: =CRCP_y5 -> 2020-21 | E12: =FRCP_y1 -> 2021-22 | F12: =FRCP_y2 -> 2022-23 | G12: =FRCP_y3 -> 2023-24 | H12: =FRCP_y4 -> 2024-25 | I12: =FRCP_y5 -> 2025-26 | K12: =CRCP_y4 -> 2019-20 | L12: =CRCP_y5 -> 2020-21 | M12: =FRCP_y1 -> 2021-22 | N12: =FRCP_y2 -> 2022-23 | O12: =FRCP_y3 -> 2023-24 | P12: =FRCP_y4 -> 2024-25 | Q12: =FRCP_y5 -> 2025-26
A13: DREV0101 | B13: Revenue from Fixed Customer Charges | C13: 59574600.86 | D13: 59886809.35 | E13: 59552963.91 | F13: 58940422.56 | G13: 58291439.03 | H13: 57607708.09 | I13: 56899682.65 | K13: 0 | L13: 0 | M13: 0 | N13: 0 | O13: 0 | P13: 0 | Q13: 0
A14: DREV0102 | B14: Revenue from Energy Delivery charges where time of use is not a determinant | C14: 66239740.32 | D14: 60216163.16 | E14: 55511775.47 | F14: 51120977.79 | G14: 46600154.25 | H14: 42108925.11 | I14: 37643463.93 | K14: 0 | L14: 0 | M14: 0 | N14: 0 | O14: 0 | P14: 0 | Q14: 0
A15: DREV0103 | B15: Revenue from On–Peak Energy Delivery charges | C15: 78101652.04 | D15: 70907696.28 | E15: 78244263.4 | F15: 81424880.49 | G15: 84685367.93 | H15: 87943092.66 | I15: 91195571.88 | K15: 0 | L15: 0 | M15: 0 | N15: 0 | O15: 0 | P15: 0 | Q15: 0
A16: DREV0104 | B16: Revenue from Shoulder period Energy Delivery Charges | C16: 148491.5997 | D16: 133790.3897 | E16: 126886.6962 | F16: 0 | G16: 0 | H16: 0 | I16: 0 | K16: 0 | L16: 0 | M16: 0 | N16: 0 | O16: 0 | P16: 0 | Q16: 0
A17: DREV0105 | B17: Revenue from Off–Peak Energy Delivery charges | C17: 31667717.64 | D17: 28656056.22 | E17: 32575923.5 | F17: 34441905.61 | G17: 36263076.12 | H17: 38080969.6 | I17: 39894688.46 | K17: 0 | L17: 0 | M17: 0 | N17: 0 | O17: 0 | P17: 0 | Q17: 0
A18: DREV0106 | B18: Revenue from controlled load customer charges | C18: 977144.1982 | D18: 895284.2695 | E18: 891265.9507 | F18: 899658.4025 | G18: 900731.0397 | H18: 901939.8755 | I18: 903245.4098 | K18: 0 | L18: 0 | M18: 0 | N18: 0 | O18: 0 | P18: 0 | Q18: 0
A19: DREV0107 | B19: Revenue from unmetered supplies | C19: 1204501.32 | D19: 1085251.297 | E19: 1075274.738 | F19: 1076382.935 | G19: 1077666.276 | H19: 1079112.569 | I19: 1080674.556 | K19: 0 | L19: 0 | M19: 0 | N19: 0 | O19: 0 | P19: 0 | Q19: 0
A20: DREV0108 | B20: Revenue from Contracted Maximum Demand charges | C20: 0 | D20: 0 | E20: 0 | F20: 0 | G20: 0 | H20: 0 | I20: 0 | K20: 0 | L20: 0 | M20: 0 | N20: 0 | O20: 0 | P20: 0 | Q20: 0
A21: DREV0109 | B21: Revenue from Measured Maximum Demand charges | C21: 75999637.64 | D21: 68480870.45 | E21: 71883575.31 | F21: 71957701.21 | G21: 72043494.33 | H21: 72140181.08 | I21: 72244602.1 | K21: 0 | L21: 0 | M21: 0 | N21: 0 | O21: 0 | P21: 0 | Q21: 0
A22: DREV0110 | B22: Revenue from metering charges | C22: 0 | D22: 0 | E22: 0 | F22: 0 | G22: 0 | H22: 0 | I22: 0 | K22: 24628241.24 | L22: 12314132.41 | M22: 19849563.5 | N22: 19849563.5 | O22: 19849563.5 | P22: 19849563.5 | Q22: 19849563.5
A23: DREV0111 | B23: Revenue from connection charges | C23: 0 | D23: 0 | E23: 0 | F23: 0 | G23: 0 | H23: 0 | I23: 0 | K23: =SUM('4.2 Metering'!E44:E46) -> 6376976.039 | L23: =SUM('4.2 Metering'!F44:F46) -> 6504221.096 | M23: =SUM('4.2 Metering'!G44:G46) -> 6414819.003 | N23: =SUM('4.2 Metering'!H44:H46) -> 6223242.242 | O23: =SUM('4.2 Metering'!I44:I46) -> 6106059.611 | P23: =SUM('4.2 Metering'!J44:J46) -> 5984190.579 | Q23: =SUM('4.2 Metering'!K44:K46) -> 5901876.42
A24: DREV0112 | B24: Revenue from public lighting charges | C24: 0 | D24: 0 | E24: 0 | F24: 0 | G24: 0 | H24: 0 | I24: 0 | K24: 3074638.067 | L24: 3136130.828 | M24: 3830955.871 | N24: 3601241.267 | O24: 3369493.872 | P24: 3162571.838 | Q24: 2974789.275
A25: DREV0113 | B25: Revenue from other Sources | C25: 0 | D25: 0 | E25: 0 | F25: 0 | G25: 0 | H25: 0 | I25: 0 | K25: =L25/1.02 -> 13021272.85 | L25: =M25/1.02 -> 13281698.31 | M25: 13547332.27 | N25: 13567236.35 | O25: 13582071.53 | P25: 13596518.22 | Q25: 13610682.9
A26: DREV01 | B26: Total revenue by chargeable quantity | C26: =SUM(C13:C25) -> 313913485.6 | D26: 290261921.4 | E26: 299861929 | F26: 299861929 | G26: 299861929 | H26: 299861929 | I26: 299861929 | K26: =SUM(K13:K25) -> 47101128.2 | L26: 35236182.64 | M26: 43642670.64 | N26: 43241283.36 | O26: 42907188.51 | P26: 42592844.13 | Q26: 42336912.09
B29: 3.1.2 - REVENUE GROUPING BY CUSTOMER TYPE OR CLASS
C30: Standard control services | K30: Alternative control services
C31: REVENUE | K31: REVENUE
C32: =CONCATENATE("Forecast ($0's, real ", dms_DollarReal,")") -> Forecast ($0's, real June 2021) | K32: =CONCATENATE("Forecast ($0's, real ", dms_DollarReal,")") -> Forecast ($0's, real June 2021)
C33: =CRCP_y4 -> 2019-20 | D33: =CRCP_y5 -> 2020-21 | E33: =FRCP_y1 -> 2021-22 | F33: =FRCP_y2 -> 2022-23 | G33: =FRCP_y3 -> 2023-24 | H33: =FRCP_y4 -> 2024-25 | I33: =FRCP_y5 -> 2025-26 | K33: =CRCP_y4 -> 2019-20 | L33: =CRCP_y5 -> 2020-21 | M33: =FRCP_y1 -> 2021-22 | N33: =FRCP_y2 -> 2022-23 | O33: =FRCP_y3 -> 2023-24 | P33: =FRCP_y4 -> 2024-25 | Q33: =FRCP_y5 -> 2025-26
A34: DREV0201 | B34: Revenue from residential Customers | C34: 86428168.41 | D34: 81803973.49 | E34: 80881388.29 | F34: 80699474.26 | G34: 80509219.01 | H34: 80311629.18 | I34: 80108964.49 | K34: 0 | L34: 0 | M34: 0 | N34: 0 | O34: 0 | P34: 0 | Q34: 0
A35: DREV0202 | B35: Revenue from Non residential customers not on demand tariffs | C35: 48325905.9 | D35: 44227077.53 | E35: 48763123.82 | F35: 49069669.64 | G35: 49377375.91 | H35: 49686110.71 | I35: 49995275.96 | K35: 0 | L35: 0 | M35: 0 | N35: 0 | O35: 0 | P35: 0 | Q35: 0
A36: DREV0203 | B36: Revenue from Non-residential low voltage demand tariff customers | C36: 107075448.5 | D36: 98003892.37 | E36: 101976413.3 | F36: 101915558.1 | G36: 101859950.5 | H36: 101809017.9 | I36: 101761497 | K36: 0 | L36: 0 | M36: 0 | N36: 0 | O36: 0 | P36: 0 | Q36: 0
A37: DREV0204 | B37: Revenue from Non-residential high voltage demand tariff customers | C37: 15921965.69 | D37: 14675109.01 | E37: 14551698.67 | F37: 14530942.51 | G37: 14510108.58 | H37: 14489157.64 | I37: 14468143.54 | K37: 0 | L37: 0 | M37: 0 | N37: 0 | O37: 0 | P37: 0 | Q37: 0
A38: DREV0205 | B38: Revenue from unmetered supplies | C38: 1204501.32 | D38: 1085251.297 | E38: 1075274.738 | F38: 1076382.935 | G38: 1077666.276 | H38: 1079112.569 | I38: 1080674.556 | K38: 0 | L38: 0 | M38: 0 | N38: 0 | O38: 0 | P38: 0 | Q38: 0
A39: DREV0206 | B39: Revenue from Other Customers | C39: 54957495.83 | D39: 50466617.73 | E39: 52614030.16 | F39: 52569901.52 | G39: 52527608.67 | H39: 52486900.96 | I39: 52447373.47 | K39: =K26 -> 47101128.2 | L39: =L26 -> 35236182.64 | M39: 43642670.64 | N39: 43241283.36 | O39: 42907188.51 | P39: 42592844.13 | Q39: 42336912.09
A40: DREV02 | B40: Total revenue by customer class | C40: =SUM(C34:C39) -> 313913485.6 | D40: 290261921.4 | E40: 299861929 | F40: 299861929 | G40: 299861929 | H40: 299861929 | I40: 299861929 | K40: =SUM(K34:K39) -> 47101128.2 | L40: 35236182.64 | M40: 43642670.64 | N40: 43241283.36 | O40: 42907188.51 | P40: 42592844.13 | Q40: 42336912.09
B43: 3.1.3 - REVENUE (penalties) ALLOWED (deducted) THROUGH INCENTIVE SCHEMES
C44: Standard control services | K44: Alternative control services
C45: REVENUE | K45: REVENUE
C46: =CONCATENATE("Forecast ($0's, real ", dms_DollarReal,")") -> Forecast ($0's, real June 2021) | K46: =CONCATENATE("Forecast ($0's, real ", dms_DollarReal,")") -> Forecast ($0's, real June 2021)
C47: =CRCP_y4 -> 2019-20 | D47: =CRCP_y5 -> 2020-21 | E47: =FRCP_y1 -> 2021-22 | F47: =FRCP_y2 -> 2022-23 | G47: =FRCP_y3 -> 2023-24 | H47: =FRCP_y4 -> 2024-25 | I47: =FRCP_y5 -> 2025-26 | K47: =CRCP_y4 -> 2019-20 | L47: =CRCP_y5 -> 2020-21 | M47: =FRCP_y1 -> 2021-22 | N47: =FRCP_y2 -> 2022-23 | O47: =FRCP_y3 -> 2023-24 | P47: =FRCP_y4 -> 2024-25 | Q47: =FRCP_y5 -> 2025-26
A48: DREV0301 | B48: EBSS | C48: -722126.1809 | D48: 0 | E48: 2956037.133 | F48: -922915.2831 | G48: -5214391.808 | H48: -4705471.84 | I48: 0 | K48: 0 | L48: 0 | M48: 0 | N48: 0 | O48: 0 | P48: 0 | Q48: 0
A49: DREV0302 | B49: STPIS | C49: 2083306.509 | D49: 2083306.509 | E49: 0 | F49: 0 | G49: 0 | H49: 0 | I49: 0 | K49: 0 | L49: 0 | M49: 0 | N49: 0 | O49: 0 | P49: 0 | Q49: 0
A50: DREV0303 | B50: F-Factor | C50: 39750 | D50: 18150 | E50: 0 | F50: 0 | G50: 0 | H50: 0 | I50: 0 | K50: 0 | L50: 0 | M50: 0 | N50: 0 | O50: 0 | P50: 0 | Q50: 0
A51: DREV0304 | B51: S-Factor True up | C51: 0 | D51: 0 | E51: 0 | F51: 0 | G51: 0 | H51: 0 | I51: 0 | K51: 0 | L51: 0 | M51: 0 | N51: 0 | O51: 0 | P51: 0 | Q51: 0
A52: DREV0305 | B52: Other | C52: -96942.48587 | D52: -48471.24294 | E52: 12047246.49 | F52: 12047246.49 | G52: 12047246.49 | H52: 12047246.49 | I52: 12047246.49 | K52: 0 | L52: 0 | M52: 0 | N52: 0 | O52: 0 | P52: 0 | Q52: 0
A53: DREV03 | B53: Total revenue of incentive schemes | C53: =SUM(C48:C52) -> 1303987.842 | D53: 2052985.266 | E53: 15003283.62 | F53: 11124331.2 | G53: 6832854.677 | H53: 7341774.645 | I53: 12047246.49 | K53: =SUM(K48:K52) -> 0 | L53: 0 | M53: 0 | N53: 0 | O53: 0 | P53: 0 | Q53: 0

Sheet 3.2 Operating expenditure
B1: =INDEX(dms_Worksheet_List,MATCH(dms_Model,dms_Model_List)) -> REGULATORY REPORTING STATEMENT
B2: =INDEX(dms_TradingNameFull_List,MATCH(dms_TradingName,dms_TradingName_List)) -> CitiPower
B3: =dms_Header_Span -> 2021-22 to 2025-26
B4: 3.2 OPERATING EXPENDITURE
B6: There are THREE tables on this worksheet. Both ROWS and COLUMNS have been grouped for ease of navigation. see the Instructions sheet on how to group or ungroup tables.
B8: 3.2.1 - OPEX CATEGORIES
B9: CURRENT OPEX CATEGORIES AND COST ALLOCATIONS
C10: Standard control services | K10: Alternative control services
C11: EXPENDITURE | K11: EXPENDITURE
C12: =CONCATENATE("Forecast ($0's, real ",dms_DollarReal,")") -> Forecast ($0's, real June 2021) | K12: =CONCATENATE("Forecast ($0's, real ",dms_DollarReal,")") -> Forecast ($0's, real June 2021)
C13: =CRCP_y4 -> 2019-20 | D13: =CRCP_y5 -> 2020-21 | E13: =FRCP_y1 -> 2021-22 | F13: =FRCP_y2 -> 2022-23 | G13: =FRCP_y3 -> 2023-24 | H13: =FRCP_y4 -> 2024-25 | I13: =FRCP_y5 -> 2025-26 | K13: =CRCP_y4 -> 2019-20 | L13: =CRCP_y5 -> 2020-21 | M13: =FRCP_y1 -> 2021-22 | N13: =FRCP_y2 -> 2022-23 | O13: =FRCP_y3 -> 2023-24 | P13: =FRCP_y4 -> 2024-25 | Q13: =FRCP_y5 -> 2025-26
A14: DOPEX0101 | B14: Maintenance | C14: ='2.1 Expenditure summary'!C26 -> 22679794.26 | D14: ='2.1 Expenditure summary'!D26 -> 24263575.62 | E14: 29056075.42 | F14: 29642029.81 | G14: 30363565.45 | H14: 30917058.91 | I14: 31511497.78
A15: DOPEX0102 | B15: Vegetation Management | C15: ='2.1 Expenditure summary'!C25 -> 7535546.032 | D15: ='2.1 Expenditure summary'!D25 -> 8061770.266 | E15: 8422050.537 | F15: 8574203.03 | G15: 8720801.815 | H15: 8828976.861 | I15: 8981028.16
A16: DOPEX0103 | B16: Emergency | C16: ='2.1 Expenditure summary'!C27 -> 9575052.449 | D16: ='2.1 Expenditure summary'!D27 -> 10243700.03 | E16: 10701490.68 | F16: 10894823.46 | G16: 11081099.42 | H16: 11218552.2 | I16: 11411756.4
A17: DOPEX0104 | B17: Overheads | C17: ='2.1 Expenditure summary'!C30+'2.1 Expenditure summary'!C31 -> 50945144.55 | D17: ='2.1 Expenditure summary'!D30+'2.1 Expenditure summary'!D31 -> 52817540.69 | E17: ='2.10 Overheads'!F12+'2.10 Overheads'!F27 -> 58994666.2 | F17: ='2.10 Overheads'!G12+'2.10 Overheads'!G27 -> 59974927.96 | G17: ='2.10 Overheads'!H12+'2.10 Overheads'!H27 -> 61428365.79 | H17: ='2.10 Overheads'!I12+'2.10 Overheads'!I27 -> 62807460.77 | I17: ='2.10 Overheads'!J12+'2.10 Overheads'!J27 -> 64069060.86
A18: DOPEX0105 | B18: Public Lighting | K18: ='2.1 Expenditure summary'!C52 -> 3179516.299 | L18: ='2.1 Expenditure summary'!D52 -> 2696306.796 | M18: ='2.1 Expenditure summary'!E52 -> 2213097.292 | N18: ='2.1 Expenditure summary'!F52 -> 2088867.219 | O18: ='2.1 Expenditure summary'!G52 -> 1966988.617 | P18: ='2.1 Expenditure summary'!H52 -> 1857296.833 | Q18: ='2.1 Expenditure summary'!I52 -> 1759515.202
A19: DOPEX0106 | B19: Connections | K19: ='2.1 Expenditure summary'!C50 -> 6376976.039 | L19: ='2.1 Expenditure summary'!D50 -> 6504221.096 | M19: ='2.1 Expenditure summary'!E50 -> 6414819.003 | N19: ='2.1 Expenditure summary'!F50 -> 6223242.242 | O19: ='2.1 Expenditure summary'!G50 -> 6106059.611 | P19: ='2.1 Expenditure summary'!H50 -> 5984190.579 | Q19: ='2.1 Expenditure summary'!I50 -> 5901876.42
A20: DOPEX0107 | B20: Metering | K20: ='2.1 Expenditure summary'!C51 -> 5819807.789 | L20: ='2.1 Expenditure summary'!D51 -> 5968483.491 | M20: ='2.1 Expenditure summary'!E51 -> 5374070.432 | N20: ='2.1 Expenditure summary'!F51 -> 5529390.417 | O20: ='2.1 Expenditure summary'!G51 -> 5684554.302 | P20: ='2.1 Expenditure summary'!H51 -> 5829612.816 | Q20: ='2.1 Expenditure summary'!I51 -> 5967005.003
A21: DOPEX0108 | B21: Fee and quoted | K21: ='2.1 Expenditure summary'!C53 -> 14036130.94 | L21: ='2.1 Expenditure summary'!D53 -> 14492085.92 | M21: ='2.1 Expenditure summary'!E53 -> 13552087.91 | N21: ='2.1 Expenditure summary'!F53 -> 13571992 | O21: ='2.1 Expenditure summary'!G53 -> 13586827.18 | P21: ='2.1 Expenditure summary'!H53 -> 13601273.86 | Q21: ='2.1 Expenditure summary'!I53 -> 13615438.54
A22: DOPEX0109
A23: DOPEX0110
A24: DOPEX0111
A25: DOPEX0112
A26: DOPEX0113
A27: DOPEX0114
A28: DOPEX0115
A29: DOPEX0116
A30: DOPEX0117
A31: DOPEX0118
A32: DOPEX0119
A33: DOPEX0120
A34: DOPEX0121
A35: DOPEX0122
A36: DOPEX0123
A37: DOPEX0124
A38: DOPEX0125
A39: DOPEX0126
A40: DOPEX0127
A41: DOPEX0128
A42: DOPEX0129
A43: DOPEX0130
A44: DOPEX0131
A45: DOPEX0132
A46: DOPEX0133
A47: DOPEX0134
A48: DOPEX0135
A49: DOPEX0136
A50: DOPEX0137
A51: DOPEX0138
A52: DOPEX0139
A53: DOPEX0140
A54: DOPEX0141
A55: DOPEX0142
A56: DOPEX0143
A57: DOPEX0144
A58: DOPEX0145
A59: DOPEX0146
A60: DOPEX0147
A61: DOPEX0148
A62: DOPEX0149
A63: DOPEX01 | B63: Total opex | C63: =SUM(C14:C62) -> 90735537.29 | D63: 95386586.61 | E63: 107174282.8 | F63: 109085984.3 | G63: 111593832.5 | H63: 113772048.7 | I63: 115973343.2 | K63: =SUM(K14:K62) -> 29412431.06 | L63: 29661097.31 | M63: 27554074.64 | N63: 27413491.87 | O63: 27344429.71 | P63: 27272374.09 | Q63: 27243835.17
B66: 3.2.2 - OPEX CONSISTENCY
B67: OPEX CONSISTENCY - CURRENT COST ALLOCATION APPROACH
C68: Standard control services | K68: Alternative control services
C69: EXPENDITURE | K69: EXPENDITURE
C70: =CONCATENATE("Forecast ($0's, real ",dms_DollarReal,")") -> Forecast ($0's, real June 2021) | K70: =CONCATENATE("Forecast ($0's, real ",dms_DollarReal,")") -> Forecast ($0's, real June 2021)
C71: =CRCP_y4 -> 2019-20 | D71: =CRCP_y5 -> 2020-21 | E71: =FRCP_y1 -> 2021-22 | F71: =FRCP_y2 -> 2022-23 | G71: =FRCP_y3 -> 2023-24 | H71: =FRCP_y4 -> 2024-25 | I71: =FRCP_y5 -> 2025-26 | K71: =CRCP_y4 -> 2019-20 | L71: =CRCP_y5 -> 2020-21 | M71: =FRCP_y1 -> 2021-22 | N71: =FRCP_y2 -> 2022-23 | O71: =FRCP_y3 -> 2023-24 | P71: =FRCP_y4 -> 2024-25 | Q71: =FRCP_y5 -> 2025-26
A72: DOPEX0201 | B72: Opex for network services | C72: =C63-C74 -> 87559793.49 | D72: =D63-D74 -> 92048056.08 | E72: 103423182.9 | F72: 105267974.8 | G72: 107688048.3 | H72: 109790027 | I72: 111914276.2
A73: DOPEX0202 | B73: Opex for metering | K73: =K20 -> 5819807.789 | L73: =L20 -> 5968483.491 | M73: 5374070.432 | N73: 5529390.417 | O73: 5684554.302 | P73: 5829612.816 | Q73: 5967005.003
A74: DOPEX0203 | B74: Opex for connection services | C74: =C63*0.035 -> 3175743.805 | D74: =D63*0.035 -> 3338530.532 | E74: 3751099.899 | F74: 3818009.449 | G74: 3905784.137 | H74: 3982021.706 | I74: 4059067.012 | K74: =K19 -> 6376976.039 | L74: =L19 -> 6504221.096 | M74: 6414819.003 | N74: 6223242.242 | O74: 6106059.611 | P74: 5984190.579 | Q74: 5901876.42
A75: DOPEX0204 | B75: Opex for public lighting | K75: =K18 -> 3179516.299 | L75: =L18 -> 2696306.796 | M75: 2213097.292 | N75: 2088867.219 | O75: 1966988.617 | P75: 1857296.833 | Q75: 1759515.202
A76: DOPEX0205 | B76: Opex for amounts payable for easement levy or similar direct charges on DNSP
A77: DOPEX0207 | B77: Opex for transmission connection point planning
B80: 3.2.4 - OPEX FOR HIGH VOLTAGE CUSTOMERS
C81: End user costs (not standard control services)
C82: EXPENDITURE
C83: =CONCATENATE("Forecast ($0's, real ",dms_DollarReal,")") -> Forecast ($0's, real June 2021)
C84: =CRCP_y4 -> 2019-20 | D84: =CRCP_y5 -> 2020-21 | E84: =FRCP_y1 -> 2021-22 | F84: =FRCP_y2 -> 2022-23 | G84: =FRCP_y3 -> 2023-24 | H84: =FRCP_y4 -> 2024-25 | I84: =FRCP_y5 -> 2025-26
A85: DOPEX0401 | B85: Opex for high voltage customers

Sheet 3.3 Assets (RAB)
B1: =INDEX(dms_Worksheet_List,MATCH(dms_Model,dms_Model_List)) -> REGULATORY REPORTING STATEMENT
B2: =INDEX(dms_TradingNameFull_List,MATCH(dms_TradingName,dms_TradingName_List)) -> CitiPower
B3: =dms_Header_Span -> 2021-22 to 2025-26
B4: 3.3 ASSETS
B6: There are FOUR tables on this worksheet. Both ROWS and COLUMNS in each have been grouped (and sub-grouped) for ease of navigation. see the Instructions sheet on how to group or ungroup tables.
B8: 3.3.1 - REGULATORY ASSET BASE VALUES
C9: Network services | K9: Standard control services | S9: Alternative control services
C10: =CONCATENATE("Forecast ($0's, real ", dms_DollarReal,")") -> Forecast ($0's, real June 2021) | K10: =CONCATENATE("Forecast ($0's, real ", dms_DollarReal,")") -> Forecast ($0's, real June 2021) | S10: =CONCATENATE("Forecast ($0's, real ", dms_DollarReal,")") -> Forecast ($0's, real June 2021)
C11: =CRCP_y4 -> 2019-20 | D11: =CRCP_y5 -> 2020-21 | E11: =FRCP_y1 -> 2021-22 | F11: =FRCP_y2 -> 2022-23 | G11: =FRCP_y3 -> 2023-24 | H11: =FRCP_y4 -> 2024-25 | I11: =FRCP_y5 -> 2025-26 | K11: =CRCP_y4 -> 2019-20 | L11: =CRCP_y5 -> 2020-21 | M11: =FRCP_y1 -> 2021-22 | N11: =FRCP_y2 -> 2022-23 | O11: =FRCP_y3 -> 2023-24 | P11: =FRCP_y4 -> 2024-25 | Q11: =FRCP_y5 -> 2025-26 | S11: =CRCP_y4 -> 2019-20 | T11: =CRCP_y5 -> 2020-21 | U11: =FRCP_y1 -> 2021-22 | V11: =FRCP_y2 -> 2022-23 | W11: =FRCP_y3 -> 2023-24 | X11: =FRCP_y4 -> 2024-25 | Y11: =FRCP_y5 -> 2025-26
B12: For total asset base:
A13: DRAB0101 | B13: Opening value | C13: 1562843293 | D13: =C18 -> 1579602903 | E13: 1621636422 | F13: 1680894399 | G13: 1723277690 | H13: 1772365746 | I13: 1805976697 | K13: 1941248277 | L13: =K18 -> 1961624738 | M13: 2013394737 | N13: 2086559792 | O13: 2138764639 | P13: 2199297928 | Q13: 2240606982 | S13: 0 | T13: =S18 -> 0 | U13: 0 | V13: 0 | W13: 0 | X13: 0 | Y13: 0
A14: DRAB0102 | B14: Inflation addition | C14: 0 | D14: 0 | E14: 0 | F14: 0 | G14: 0 | H14: 0 | I14: 0 | K14: 0 | L14: 0 | M14: 0 | N14: 0 | O14: 0 | P14: 0 | Q14: 0 | S14: 0 | T14: 0 | U14: 0 | V14: 0 | W14: 0 | X14: 0 | Y14: 0
A15: DRAB0103 | B15: Straight line depreciation | C15: -97880780.58 | D15: -93039318.42 | E15: -90086853.95 | F15: -95564021.34 | G15: -100672689.5 | H15: -105933234.4 | I15: -110353981.2 | K15: -121580261.8 | L15: -115566555.8 | M15: -111899222.9 | N15: -118702554.9 | O15: -125048164.4 | P15: -131582424 | Q15: -137073548.5 | S15: 0 | T15: 0 | U15: 0 | V15: 0 | W15: 0 | X15: 0 | Y15: 0
A16: DRAB0105 | B16: Actual additions (recognised in RAB) | C16: 114640390.9 | D16: 135072836.8 | E16: 149344831.7 | F16: 137947311.9 | G16: 149760745.3 | H16: 139544185.4 | I16: 116873290.5 | K16: 142397809.4 | L16: 167777481.6 | M16: 185505097.3 | N16: 171347941.8 | O16: 186021714.5 | P16: 173331459.9 | Q16: 145171352 | S16: 0 | T16: 0 | U16: 0 | V16: 0 | W16: 0 | X16: 0 | Y16: 0
A17: DRAB0106 | B17: Disposals | C17: 0 | D17: 0 | E17: 0 | F17: 0 | G17: 0 | H17: 0 | I17: 0 | K17: -441086.5086 | L17: -440927.0525 | M17: -440819.0973 | N17: -440540.1507 | O17: -440261.0274 | P17: -439981.727 | Q17: -439702.2492 | S17: 0 | T17: 0 | U17: 0 | V17: 0 | W17: 0 | X17: 0 | Y17: 0
A18: DRAB0107 | B18: Closing value | C18: =SUM(C13+C14+C15+C16+C17) -> 1579602903 | D18: 1621636422 | E18: 1680894399 | F18: 1723277690 | G18: 1772365746 | H18: 1805976697 | I18: 1812496006 | K18: =SUM(K13+K14+K15+K16+K17) -> 1961624738 | L18: 2013394737 | M18: 2086559792 | N18: 2138764639 | O18: 2199297928 | P18: 2240606982 | Q18: 2248265084 | S18: =SUM(S13+S14+S15+S16+S17) -> 0 | T18: 0 | U18: 0 | V18: 0 | W18: 0 | X18: 0 | Y18: 0
B21: 3.3.2 - ASSET VALUE ROLL FORWARD
C22: Network services | K22: Standard control services | S22: Alternative control services
C23: =CONCATENATE("Forecast ($0's, real ", dms_DollarReal,")") -> Forecast ($0's, real June 2021) | K23: =CONCATENATE("Forecast ($0's, real ", dms_DollarReal,")") -> Forecast ($0's, real June 2021) | S23: =CONCATENATE("Forecast ($0's, real ", dms_DollarReal,")") -> Forecast ($0's, real June 2021)
C24: =CRCP_y4 -> 2019-20 | D24: =CRCP_y5 -> 2020-21 | E24: =FRCP_y1 -> 2021-22 | F24: =FRCP_y2 -> 2022-23 | G24: =FRCP_y3 -> 2023-24 | H24: =FRCP_y4 -> 2024-25 | I24: =FRCP_y5 -> 2025-26 | K24: =CRCP_y4 -> 2019-20 | L24: =CRCP_y5 -> 2020-21 | M24: =FRCP_y1 -> 2021-22 | N24: =FRCP_y2 -> 2022-23 | O24: =FRCP_y3 -> 2023-24 | P24: =FRCP_y4 -> 2024-25 | Q24: =FRCP_y5 -> 2025-26 | S24: =CRCP_y4 -> 2019-20 | T24: =CRCP_y5 -> 2020-21 | U24: =FRCP_y1 -> 2021-22 | V24: =FRCP_y2 -> 2022-23 | W24: =FRCP_y3 -> 2023-24 | X24: =FRCP_y4 -> 2024-25 | Y24: =FRCP_y5 -> 2025-26
B25: For overhead network assets less than 33kV:
A26: DRAB0201 | B26: Opening value | C26: 161966306.7 | D26: =C31 -> 163561923.5 | E26: 166954705.5 | F26: 172636523.8 | G26: 176977151 | H26: 182259627 | I26: 185926361.2 | K26: 201182559.6 | L26: =K31 -> 203164516.7 | M26: 207378779.4 | N26: 214436313.6 | O26: 219827919.4 | P26: 226389420.2 | Q26: 230943966 | S26: 0 | T26: =S31 -> 0 | U26: 0 | V26: 0 | W26: 0 | X26: 0 | Y26: 0
A27: DRAB0202 | B27: Inflation addition | C27: 0 | D27: 0 | E27: 0 | F27: 0 | G27: 0 | H27: 0 | I27: 0 | K27: 0 | L27: 0 | M27: 0 | N27: 0 | O27: 0 | P27: 0 | Q27: 0 | S27: 0 | T27: 0 | U27: 0 | V27: 0 | W27: 0 | X27: 0 | Y27: 0
A28: DRAB0203 | B28: Straight line depreciation | C28: -8483713.63 | D28: -8322201.033 | E28: -8271394.291 | F28: -8882865.065 | G28: -9416718.142 | H28: -10023818 | I28: -10540680.78 | K28: -10537841.22 | L28: -10337222.22 | M28: -10274113.85 | N28: -11033637.59 | O28: -11696750.37 | P28: -12450844.89 | Q28: -13092853.58 | S28: 0 | T28: 0 | U28: 0 | V28: 0 | W28: 0 | X28: 0 | Y28: 0
A29: DRAB0205 | B29: Actual additions (recognised in RAB) | C29: 10079330.44 | D29: 11714983.01 | E29: 13953212.59 | F29: 13223492.22 | G29: 14699194.18 | H29: 13690552.17 | I29: 11290849.12 | K29: 12519798.34 | L29: 14551484.9 | M29: 17331648.04 | N29: 16425243.41 | O29: 18258251.17 | P29: 17005390.71 | Q29: 14024657.17 | S29: 0 | T29: 0 | U29: 0 | V29: 0 | W29: 0 | X29: 0 | Y29: 0
A30: DRAB0206 | B30: Disposals | C30: 0 | D30: 0 | E30: 0 | F30: 0 | G30: 0 | H30: 0 | I30: 0 | K30: 0 | L30: 0 | M30: 0 | N30: 0 | O30: 0 | P30: 0 | Q30: 0 | S30: 0 | T30: 0 | U30: 0 | V30: 0 | W30: 0 | X30: 0 | Y30: 0
A31: DRAB0207 | B31: Closing value | C31: =SUM(C26+C27+C28+C29+C30) -> 163561923.5 | D31: 166954705.5 | E31: 172636523.8 | F31: 176977151 | G31: 182259627 | H31: 185926361.2 | I31: 186676529.5 | K31: =SUM(K26+K27+K28+K29+K30) -> 203164516.7 | L31: 207378779.4 | M31: 214436313.6 | N31: 219827919.4 | O31: 226389420.2 | P31: 230943966 | Q31: 231875769.6 | S31: =SUM(S26+S27+S28+S29+S30) -> 0 | T31: 0 | U31: 0 | V31: 0 | W31: 0 | X31: 0 | Y31: 0
B32: For underground network assets less than 33kV:
A33: DRAB0301 | B33: Opening value | C33: 818742283 | D33: =C38 -> 826808151.6 | E33: 843958719 | F33: 872680401.8 | G33: 894622341.8 | H33: 921325343.1 | I33: 939860743.2 | K33: 1016981071 | L33: =K38 -> 1026999896 | M33: 1048303062 | N33: 1083979011 | O33: 1111233665 | P33: 1144402157 | Q33: 1167425459 | S33: 0 | T33: =S38 -> 0 | U33: 0 | V33: 0 | W33: 0 | X33: 0 | Y33: 0
A34: DRAB0302 | B34: Inflation addition | C34: 0 | D34: 0 | E34: 0 | F34: 0 | G34: 0 | H34: 0 | I34: 0 | K34: 0 | L34: 0 | M34: 0 | N34: 0 | O34: 0 | P34: 0 | Q34: 0 | S34: 0 | T34: 0 | U34: 0 | V34: 0 | W34: 0 | X34: 0 | Y34: 0
A35: DRAB0303 | B35: Straight line depreciation | C35: -42885308.71 | D35: -42068859.94 | E35: -41812031.05 | F35: -44903025.63 | G35: -47601661.52 | H35: -50670561.04 | I35: -53283310.7 | K35: -53268956.68 | L35: -52254824.43 | M35: -51935810.59 | N35: -55775215.31 | O35: -59127261.08 | P35: -62939220.96 | Q35: -66184585.22 | S35: 0 | T35: 0 | U35: 0 | V35: 0 | W35: 0 | X35: 0 | Y35: 0
A36: DRAB0305 | B36: Actual additions (recognised in RAB) | C36: 50951177.35 | D36: 59219427.34 | E36: 70533713.83 | F36: 66844965.66 | G36: 74304662.76 | H36: 69205961.21 | I36: 57075423.71 | K36: 63287781.77 | L36: 73557990 | M36: 87611759.33 | N36: 83029869.36 | O36: 92295753.02 | P36: 85962523.3 | Q36: 70894867.36 | S36: 0 | T36: 0 | U36: 0 | V36: 0 | W36: 0 | X36: 0 | Y36: 0
A37: DRAB0306 | B37: Disposals | C37: 0 | D37: 0 | E37: 0 | F37: 0 | G37: 0 | H37: 0 | I37: 0 | K37: 0 | L37: 0 | M37: 0 | N37: 0 | O37: 0 | P37: 0 | Q37: 0 | S37: 0 | T37: 0 | U37: 0 | V37: 0 | W37: 0 | X37: 0 | Y37: 0
A38: DRAB0307 | B38: Closing value | C38: =SUM(C33+C34+C35+C36+C37) -> 826808151.6 | D38: 843958719 | E38: 872680401.8 | F38: 894622341.8 | G38: 921325343.1 | H38: 939860743.2 | I38: 943652856.3 | K38: =SUM(K33+K34+K35+K36+K37) -> 1026999896 | L38: 1048303062 | M38: 1083979011 | N38: 1111233665 | O38: 1144402157 | P38: 1167425459 | Q38: 1172135741 | S38: =SUM(S33+S34+S35+S36+S37) -> 0 | T38: 0 | U38: 0 | V38: 0 | W38: 0 | X38: 0 | Y38: 0
B39: For distribution substations and transformers:
A40: DRAB0401 | B40: Opening value | C40: 36254312.63 | D40: =C45 -> 36611473.28 | E40: 37370908.87 | F40: 38642719.17 | G40: 39614319.11 | H40: 40796741.19 | I40: 41617497.87 | K40: 36254312.63 | L40: =K45 -> 36611473.28 | M40: 37370908.87 | N40: 38642719.17 | O40: 39614319.11 | P40: 40796741.19 | Q40: 41617497.87 | S40: 0 | T40: =S45 -> 0 | U40: 0 | V40: 0 | W40: 0 | X40: 0 | Y40: 0
A41: DRAB0402 | B41: Inflation addition | C41: 0 | D41: 0 | E41: 0 | F41: 0 | G41: 0 | H41: 0 | I41: 0 | K41: 0 | L41: 0 | M41: 0 | N41: 0 | O41: 0 | P41: 0 | Q41: 0 | S41: 0 | T41: 0 | U41: 0 | V41: 0 | W41: 0 | X41: 0 | Y41: 0
A42: DRAB0403 | B42: Straight line depreciation | C42: -1898982.649 | D42: -1862829.894 | E42: -1851457.384 | F42: -1988328.151 | G42: -2107825.08 | H42: -2243717.467 | I42: -2359411.312 | K42: -1898982.649 | L42: -1862829.894 | M42: -1851457.384 | N42: -1988328.151 | O42: -2107825.08 | P42: -2243717.467 | Q42: -2359411.312 | S42: 0 | T42: 0 | U42: 0 | V42: 0 | W42: 0 | X42: 0 | Y42: 0
A43: DRAB0405 | B43: Actual additions (recognised in RAB) | C43: 2256143.296 | D43: 2622265.489 | E43: 3123267.682 | F43: 2959928.091 | G43: 3290247.163 | H43: 3064474.14 | I43: 2527327.949 | K43: 2256143.296 | L43: 2622265.489 | M43: 3123267.682 | N43: 2959928.091 | O43: 3290247.163 | P43: 3064474.14 | Q43: 2527327.949 | S43: 0 | T43: 0 | U43: 0 | V43: 0 | W43: 0 | X43: 0 | Y43: 0
A44: DRAB0406 | B44: Disposals | C44: 0 | D44: 0 | E44: 0 | F44: 0 | G44: 0 | H44: 0 | I44: 0 | K44: 0 | L44: 0 | M44: 0 | N44: 0 | O44: 0 | P44: 0 | Q44: 0 | S44: 0 | T44: 0 | U44: 0 | V44: 0 | W44: 0 | X44: 0 | Y44: 0
A45: DRAB0407 | B45: Closing value | C45: =SUM(C40+C41+C42+C43+C44) -> 36611473.28 | D45: 37370908.87 | E45: 38642719.17 | F45: 39614319.11 | G45: 40796741.19 | H45: 41617497.87 | I45: 41785414.5 | K45: =SUM(K40+K41+K42+K43+K44) -> 36611473.28 | L45: 37370908.87 | M45: 38642719.17 | N45: 39614319.11 | O45: 40796741.19 | P45: 41617497.87 | Q45: 41785414.5 | S45: =SUM(S40+S41+S42+S43+S44) -> 0 | T45: 0 | U45: 0 | V45: 0 | W45: 0 | X45: 0 | Y45: 0
B46: For overhead network assets 33kV and above:
A47: DRAB0501 | B47: Opening value | C47: 16316044.81 | D47: =C52 -> 16476782.9 | E47: 16818562.52 | F47: 17390933.43 | G47: 17828196.39 | H47: 18360338.65 | I47: 18729715.47 | K47: 16316044.81 | L47: =K52 -> 16476782.9 | M47: 16818562.52 | N47: 17390933.43 | O47: 17828196.39 | P47: 18360338.65 | Q47: 18729715.47 | S47: 0 | T47: =S52 -> 0 | U47: 0 | V47: 0 | W47: 0 | X47: 0 | Y47: 0
A48: DRAB0502 | B48: Inflation addition | C48: 0 | D48: 0 | E48: 0 | F48: 0 | G48: 0 | H48: 0 | I48: 0 | K48: 0 | L48: 0 | M48: 0 | N48: 0 | O48: 0 | P48: 0 | Q48: 0 | S48: 0 | T48: 0 | U48: 0 | V48: 0 | W48: 0 | X48: 0 | Y48: 0
A49: DRAB0503 | B49: Straight line depreciation | C49: -854626.2154 | D49: -838355.8761 | E49: -833237.7432 | F49: -894835.6443 | G49: -948614.55 | H49: -1009772.137 | I49: -1061839.486 | K49: -854626.2154 | L49: -838355.8761 | M49: -833237.7432 | N49: -894835.6443 | O49: -948614.55 | P49: -1009772.137 | Q49: -1061839.486 | S49: 0 | T49: 0 | U49: 0 | V49: 0 | W49: 0 | X49: 0 | Y49: 0
A50: DRAB0505 | B50: Actual additions (recognised in RAB) | C50: 1015364.309 | D50: 1180135.496 | E50: 1405608.65 | F50: 1332098.608 | G50: 1480756.805 | H50: 1379148.955 | I50: 1137409.402 | K50: 1015364.309 | L50: 1180135.496 | M50: 1405608.65 | N50: 1332098.608 | O50: 1480756.805 | P50: 1379148.955 | Q50: 1137409.402 | S50: 0 | T50: 0 | U50: 0 | V50: 0 | W50: 0 | X50: 0 | Y50: 0
A51: DRAB0506 | B51: Disposals | C51: 0 | D51: 0 | E51: 0 | F51: 0 | G51: 0 | H51: 0 | I51: 0 | K51: 0 | L51: 0 | M51: 0 | N51: 0 | O51: 0 | P51: 0 | Q51: 0 | S51: 0 | T51: 0 | U51: 0 | V51: 0 | W51: 0 | X51: 0 | Y51: 0
A52: DRAB0507 | B52: Closing value | C52: =SUM(C47+C48+C49+C50+C51) -> 16476782.9 | D52: 16818562.52 | E52: 17390933.43 | F52: 17828196.39 | G52: 18360338.65 | H52: 18729715.47 | I52: 18805285.38 | K52: =SUM(K47+K48+K49+K50+K51) -> 16476782.9 | L52: 16818562.52 | M52: 17390933.43 | N52: 17828196.39 | O52: 18360338.65 | P52: 18729715.47 | Q52: 18805285.38 | S52: =SUM(S47+S48+S49+S50+S51) -> 0 | T52: 0 | U52: 0 | V52: 0 | W52: 0 | X52: 0 | Y52: 0
B53: For underground network assets 33kV and above:
A54: DRAB0601 | B54: Opening value | C54: 199927778.3 | D54: =C59 -> 201897373.9 | E54: 206085352.1 | F54: 213098868.2 | G54: 218456846.4 | H54: 224977423 | I54: 229503561.9 | K54: 199927778.3 | L54: =K59 -> 201897373.9 | M54: 206085352.1 | N54: 213098868.2 | O54: 218456846.4 | P54: 224977423 | Q54: 229503561.9 | S54: 0 | T54: =S59 -> 0 | U54: 0 | V54: 0 | W54: 0 | X54: 0 | Y54: 0
A55: DRAB0602 | B55: Inflation addition | C55: 0 | D55: 0 | E55: 0 | F55: 0 | G55: 0 | H55: 0 | I55: 0 | K55: 0 | L55: 0 | M55: 0 | N55: 0 | O55: 0 | P55: 0 | Q55: 0 | S55: 0 | T55: 0 | U55: 0 | V55: 0 | W55: 0 | X55: 0 | Y55: 0
A56: DRAB0603 | B56: Straight line depreciation | C56: -10472116.4 | D56: -10272748.67 | E56: -10210033.91 | F56: -10964820.48 | G56: -11623797.41 | H56: -12373188.61 | I56: -13011193.08 | K56: -10472116.4 | L56: -10272748.67 | M56: -10210033.91 | N56: -10964820.48 | O56: -11623797.41 | P56: -12373188.61 | Q56: -13011193.08 | S56: 0 | T56: 0 | U56: 0 | V56: 0 | W56: 0 | X56: 0 | Y56: 0
A57: DRAB0605 | B57: Actual additions (recognised in RAB) | C57: 12441712 | D57: 14460726.88 | E57: 17223550.06 | F57: 16322798.7 | G57: 18144373.94 | H57: 16899327.61 | I57: 13937184.99 | K57: 12441712 | L57: 14460726.88 | M57: 17223550.06 | N57: 16322798.7 | O57: 18144373.94 | P57: 16899327.61 | Q57: 13937184.99 | S57: 0 | T57: 0 | U57: 0 | V57: 0 | W57: 0 | X57: 0 | Y57: 0
A58: DRAB0606 | B58: Disposals | C58: 0 | D58: 0 | E58: 0 | F58: 0 | G58: 0 | H58: 0 | I58: 0 | K58: 0 | L58: 0 | M58: 0 | N58: 0 | O58: 0 | P58: 0 | Q58: 0 | S58: 0 | T58: 0 | U58: 0 | V58: 0 | W58: 0 | X58: 0 | Y58: 0
A59: DRAB0607 | B59: Closing value | C59: =SUM(C54+C55+C56+C57+C58) -> 201897373.9 | D59: 206085352.1 | E59: 213098868.2 | F59: 218456846.4 | G59: 224977423 | H59: 229503561.9 | I59: 230429553.9 | K59: =SUM(K54+K55+K56+K57+K58) -> 201897373.9 | L59: 206085352.1 | M59: 213098868.2 | N59: 218456846.4 | O59: 224977423 | P59: 229503561.9 | Q59: 230429553.9 | S59: =SUM(S54+S55+S56+S57+S58) -> 0 | T59: 0 | U59: 0 | V59: 0 | W59: 0 | X59: 0 | Y59: 0
B60: Zone substations and transformers
A61: DRAB0701 | B61: Opening value | C61: 396299396.9 | D61: =C66 -> 400203554.4 | E61: 408505018.4 | F61: 422407299.7 | G61: 433027952.6 | H61: 445953122.7 | I61: 454924893.3 | K61: 396299396.9 | L61: =K66 -> 400203554.4 | M61: 408505018.4 | N61: 422407299.7 | O61: 433027952.6 | P61: 445953122.7 | Q61: 454924893.3 | S61: 0 | T61: =S66 -> 0 | U61: 0 | V61: 0 | W61: 0 | X61: 0 | Y61: 0
A62: DRAB0702 | B62: Inflation addition | C62: 0 | D62: 0 | E62: 0 | F62: 0 | G62: 0 | H62: 0 | I62: 0 | K62: 0 | L62: 0 | M62: 0 | N62: 0 | O62: 0 | P62: 0 | Q62: 0 | S62: 0 | T62: 0 | U62: 0 | V62: 0 | W62: 0 | X62: 0 | Y62: 0
A63: DRAB0703 | B63: Straight line depreciation | C63: -20757962.95 | D63: -20362773.69 | E63: -20238459.68 | F63: -21734607.27 | G63: -23040839.76 | H63: -24526292.58 | I63: -25790953.19 | K63: -20757962.95 | L63: -20362773.69 | M63: -20238459.68 | N63: -21734607.27 | O63: -23040839.76 | P63: -24526292.58 | Q63: -25790953.19 | S63: 0 | T63: 0 | U63: 0 | V63: 0 | W63: 0 | X63: 0 | Y63: 0
A64: DRAB0705 | B64: Actual additions (recognised in RAB) | C64: 24662120.52 | D64: 28664237.61 | E64: 34140741.02 | F64: 32355260.17 | G64: 35966009.88 | H64: 33498063.14 | I64: 27626466.18 | K64: 24662120.52 | L64: 28664237.61 | M64: 34140741.02 | N64: 32355260.17 | O64: 35966009.88 | P64: 33498063.14 | Q64: 27626466.18 | S64: 0 | T64: 0 | U64: 0 | V64: 0 | W64: 0 | X64: 0 | Y64: 0
A65: DRAB0706 | B65: Disposals | C65: 0 | D65: 0 | E65: 0 | F65: 0 | G65: 0 | H65: 0 | I65: 0 | K65: 0 | L65: 0 | M65: 0 | N65: 0 | O65: 0 | P65: 0 | Q65: 0 | S65: 0 | T65: 0 | U65: 0 | V65: 0 | W65: 0 | X65: 0 | Y65: 0
A66: DRAB0707 | B66: Closing value | C66: =SUM(C61+C62+C63+C64+C65) -> 400203554.4 | D66: 408505018.4 | E66: 422407299.7 | F66: 433027952.6 | G66: 445953122.7 | H66: 454924893.3 | I66: 456760406.3 | K66: =SUM(K61+K62+K63+K64+K65) -> 400203554.4 | L66: 408505018.4 | M66: 422407299.7 | N66: 433027952.6 | O66: 445953122.7 | P66: 454924893.3 | Q66: 456760406.3 | S66: =SUM(S61+S62+S63+S64+S65) -> 0 | T66: 0 | U66: 0 | V66: 0 | W66: 0 | X66: 0 | Y66: 0
B67: For easements:
A68: DRAB0801 | B68: Opening value | C68: 0 | D68: =C72 -> 0 | E68: 0 | F68: 0 | G68: 0 | H68: 0 | I68: 0 | K68: 0 | L68: =K72 -> 0 | M68: 0 | N68: 0 | O68: 0 | P68: 0 | Q68: 0 | S68: 0 | T68: =S72 -> 0 | U68: 0 | V68: 0 | W68: 0 | X68: 0 | Y68: 0
A69: DRAB0802 | B69: Inflation addition | C69: 0 | D69: 0 | E69: 0 | F69: 0 | G69: 0 | H69: 0 | I69: 0 | K69: 0 | L69: 0 | M69: 0 | N69: 0 | O69: 0 | P69: 0 | Q69: 0 | S69: 0 | T69: 0 | U69: 0 | V69: 0 | W69: 0 | X69: 0 | Y69: 0
A70: DRAB0803 | B70: Actual additions (recognised in RAB) | C70: 0 | D70: 0 | E70: 0 | F70: 0 | G70: 0 | H70: 0 | I70: 0 | K70: 0 | L70: 0 | M70: 0 | N70: 0 | O70: 0 | P70: 0 | Q70: 0 | S70: 0 | T70: 0 | U70: 0 | V70: 0 | W70: 0 | X70: 0 | Y70: 0
A71: DRAB0804 | B71: Disposals | C71: 0 | D71: 0 | E71: 0 | F71: 0 | G71: 0 | H71: 0 | I71: 0 | K71: 0 | L71: 0 | M71: 0 | N71: 0 | O71: 0 | P71: 0 | Q71: 0 | S71: 0 | T71: 0 | U71: 0 | V71: 0 | W71: 0 | X71: 0 | Y71: 0
A72: DRAB0805 | B72: Closing value | C72: 0 | D72: 0 | E72: 0 | F72: 0 | G72: 0 | H72: 0 | I72: 0 | K72: 0 | L72: 0 | M72: 0 | N72: 0 | O72: 0 | P72: 0 | Q72: 0 | S72: =SUM(S68+S69+S70+S71) -> 0 | T72: 0 | U72: 0 | V72: 0 | W72: 0 | X72: 0 | Y72: 0
B73: For meters:
A74: DRAB0901 | B74: Opening value | C74: 0 | D74: =C79 -> 0 | E74: 0 | F74: 0 | G74: 0 | H74: 0 | I74: 0 | K74: 0 | L74: =K79 -> 0 | M74: 0 | N74: 0 | O74: 0 | P74: 0 | Q74: 0 | S74: 90683406.85 | T74: =S79 -> 81444660.7 | U74: 74281652.86 | V74: 69637155.94 | W74: 64473555.98 | X74: 57790046.6 | Y74: 51265167.78
A75: DRAB0902 | B75: Inflation addition | C75: 0 | D75: 0 | E75: 0 | F75: 0 | G75: 0 | H75: 0 | I75: 0 | K75: 0 | L75: 0 | M75: 0 | N75: 0 | O75: 0 | P75: 0 | Q75: 0 | S75: 0 | T75: 0 | U75: 0 | V75: 0 | W75: 0 | X75: 0 | Y75: 0
A76: DRAB0903 | B76: Straight line depreciation | C76: 0 | D76: 0 | E76: 0 | F76: 0 | G76: 0 | H76: 0 | I76: 0 | K76: 0 | L76: 0 | M76: 0 | N76: 0 | O76: 0 | P76: 0 | Q76: 0 | S76: -13181363.39 | T76: -11348641.94 | U76: -11045672.55 | V76: -11461826.89 | W76: -11884956.32 | X76: -12228516.96 | Y76: -12332578.24
A77: DRAB0905 | B77: Actual additions (recognised in RAB) | C77: 0 | D77: 0 | E77: 0 | F77: 0 | G77: 0 | H77: 0 | I77: 0 | K77: 0 | L77: 0 | M77: 0 | N77: 0 | O77: 0 | P77: 0 | Q77: 0 | S77: 3942617.243 | T77: 4185634.095 | U77: 6401175.634 | V77: 6298226.93 | W77: 5201446.941 | X77: 5703638.146 | Y77: 7285419.775
A78: DRAB0906 | B78: Disposals | C78: 0 | D78: 0 | E78: 0 | F78: 0 | G78: 0 | H78: 0 | I78: 0 | K78: 0 | L78: 0 | M78: 0 | N78: 0 | O78: 0 | P78: 0 | Q78: 0 | S78: 0 | T78: 0 | U78: 0 | V78: 0 | W78: 0 | X78: 0 | Y78: 0
A79: DRAB0907 | B79: Closing value | C79: =SUM(C74+C75+C76+C77+C78) -> 0 | D79: 0 | E79: 0 | F79: 0 | G79: 0 | H79: 0 | I79: 0 | K79: =SUM(K74+K75+K76+K77+K78) -> 0 | L79: 0 | M79: 0 | N79: 0 | O79: 0 | P79: 0 | Q79: 0 | S79: =SUM(S74+S75+S76+S77+S78) -> 81444660.7 | T79: 74281652.86 | U79: 69637155.94 | V79: 64473555.98 | W79: 57790046.6 | X79: 51265167.78 | Y79: 46218009.31
B80: For “other” asset items with long lives:
A81: DRAB1001 | B81: Opening value | C81: 39709816.47 | D81: =C86 -> 45920028.29 | E81: 52867949.16 | F81: 67417072.22 | G81: 75566058.93 | H81: 79776938.15 | I81: 83721951.93 | K81: 39709816.47 | L81: =K86 -> 45478941.78 | M81: 51985935.6 | N81: 66094239.56 | O81: 73802686.12 | P81: 77573304.32 | Q81: 81078336.37 | S81: 0 | T81: =S86 -> 0 | U81: 0 | V81: 0 | W81: 0 | X81: 0 | Y81: 0
A82: DRAB1002 | B82: Inflation addition | C82: 0 | D82: 0 | E82: 0 | F82: 0 | G82: 0 | H82: 0 | I82: 0 | K82: 0 | L82: 0 | M82: 0 | N82: 0 | O82: 0 | P82: 0 | Q82: 0 | S82: 0 | T82: 0 | U82: 0 | V82: 0 | W82: 0 | X82: 0 | Y82: 0
A83: DRAB1003 | B83: Straight line depreciation | C83: -5489873.625 | D83: -5709931.361 | E83: -6271448.432 | F83: -7661948.711 | G83: -8756146.181 | H83: -8775927.513 | I83: -9187274.104 | K83: -5489873.625 | L83: -5709931.361 | M83: -6271448.432 | N83: -7661948.711 | O83: -8756146.181 | P83: -8775927.513 | Q83: -9187274.104 | S83: 0 | T83: 0 | U83: 0 | V83: 0 | W83: 0 | X83: 0 | Y83: 0
A84: DRAB1005 | B84: Actual additions (recognised in RAB) | C84: 11700085.44 | D84: 12657852.23 | E84: 20820571.49 | F84: 15810935.42 | G84: 12967025.4 | H84: 12720941.29 | I84: 13405414.46 | K84: 11700085.44 | L84: 12657852.23 | M84: 20820571.49 | N84: 15810935.42 | O84: 12967025.4 | P84: 12720941.29 | Q84: 13405414.46 | S84: 0 | T84: 0 | U84: 0 | V84: 0 | W84: 0 | X84: 0 | Y84: 0
A85: DRAB1006 | B85: Disposals | C85: 0 | D85: 0 | E85: 0 | F85: 0 | G85: 0 | H85: 0 | I85: 0 | K85: -441086.5086 | L85: -440927.0525 | M85: -440819.0973 | N85: -440540.1507 | O85: -440261.0274 | P85: -439981.727 | Q85: -439702.2492 | S85: 0 | T85: 0 | U85: 0 | V85: 0 | W85: 0 | X85: 0 | Y85: 0
A86: DRAB1007 | B86: Closing value | C86: =SUM(C81+C82+C83+C84+C85) -> 45920028.29 | D86: 52867949.16 | E86: 67417072.22 | F86: 75566058.93 | G86: 79776938.15 | H86: 83721951.93 | I86: 87940092.29 | K86: =SUM(K81+K82+K83+K84+K85) -> 45478941.78 | L86: 51985935.6 | M86: 66094239.56 | N86: 73802686.12 | O86: 77573304.32 | P86: 81078336.37 | Q86: 84856774.48 | S86: =SUM(S81+S82+S83+S84+S85) -> 0 | T86: 0 | U86: 0 | V86: 0 | W86: 0 | X86: 0 | Y86: 0
B87: For “other” asset items with short lives:
A88: DRAB1101 | B88: Opening value | D88: =C93 -> -3785098.312 | E88: 2369821.006 | F88: -4066889.29 | G88: -9604242.991 | H88: -13731875.82 | I88: -18193744.92 | K88: 34577297.23 | L88: =K93 -> 30792198.91 | M88: 36947118.23 | N88: 30510407.94 | O88: 24973054.24 | P88: 20845421.41 | Q88: 16383552.31 | S88: 12397581.52 | T88: =S93 -> 12348967.19 | U88: 12176937.58 | V88: 11580642.81 | W88: 10998276.46 | X88: 10429814.58 | Y88: 9874557.97
A89: DRAB1102 | B89: Inflation addition | C89: 0 | D89: 0 | E89: 0 | F89: 0 | G89: 0 | H89: 0 | I89: 0 | K89: 0 | L89: 0 | M89: 0 | N89: 0 | O89: 0 | P89: 0 | Q89: 0 | S89: -290545.1793 | T89: -289405.8716 | U89: -285374.2488 | V89: -271399.703 | W89: -257751.5785 | X89: -244429.3141 | Y89: -231416.5236
A90: DRAB1103 | B90: Straight line depreciation | C90: -18299902.04 | D90: -13927869.64 | E90: -10284661.35 | F90: -8649161.759 | G90: -7746929.97 | H90: -7263459.828 | I90: -6385438.513 | K90: -18299902.04 | L90: -13927869.64 | M90: -10284661.35 | N90: -8649161.759 | O90: -7746929.97 | P90: -7263459.828 | Q90: -6385438.513 | S90: -878216.3747 | T90: -905897.9808 | U90: -920987.4973 | V90: -926290.207 | W90: -931724.6895 | X90: -937292.472 | Y90: -814234.2778
A91: DRAB1105 | B91: Actual additions (recognised in RAB) | C91: 14514803.73 | D91: 20082788.96 | E91: 3847951.05 | F91: 3111808.058 | G91: 3619297.144 | H91: 2801590.723 | I91: 1618024.475 | K91: 14514803.73 | L91: 20082788.96 | M91: 3847951.05 | N91: 3111808.058 | O91: 3619297.144 | P91: 2801590.723 | Q91: 1618024.475 | S91: 1120147.222 | T91: 1023274.248 | U91: 610066.976 | V91: 615323.5578 | W91: 621014.388 | X91: 626465.1771 | Y91: 628438.1138
A92: DRAB1106 | B92: Disposals | C92: 0 | D92: 0 | E92: 0 | F92: 0 | G92: 0 | H92: 0 | I92: 0 | K92: 0 | L92: 0 | M92: 0 | N92: 0 | O92: 0 | P92: 0 | Q92: 0 | S92: 0 | T92: 0 | U92: 0 | V92: 0 | W92: 0 | X92: 0 | Y92: 0
A93: DRAB1107 | B93: Closing value | C93: =SUM(C88+C89+C90+C91+C92) -> -3785098.312 | D93: 2369821.006 | E93: -4066889.29 | F93: -9604242.991 | G93: -13731875.82 | H93: -18193744.92 | I93: -22961158.96 | K93: =SUM(K88+K89+K90+K91+K92) -> 30792198.91 | L93: 36947118.23 | M93: 30510407.94 | N93: 24973054.24 | O93: 20845421.41 | P93: 16383552.31 | Q93: 11616138.27 | S93: =SUM(S88+S89+S90+S91+S92) -> 12348967.19 | T93: 12176937.58 | U93: 11580642.81 | V93: 10998276.46 | W93: 10429814.58 | X93: 9874557.97 | Y93: 9457345.283
B97: 3.3.3 - TOTAL DISAGGREGATED RAB ASSET VALUES
C98: Network services | K98: Standard control services | S98: Alternative control services
C99: =CONCATENATE("Forecast ($0's, real ", dms_DollarReal,")") -> Forecast ($0's, real June 2021) | K99: =CONCATENATE("Forecast ($0's, real ", dms_DollarReal,")") -> Forecast ($0's, real June 2021) | S99: =CONCATENATE("Forecast ($0's, real ", dms_DollarReal,")") -> Forecast ($0's, real June 2021)
C100: =CRCP_y4 -> 2019-20 | D100: =CRCP_y5 -> 2020-21 | E100: =FRCP_y1 -> 2021-22 | F100: =FRCP_y2 -> 2022-23 | G100: =FRCP_y3 -> 2023-24 | H100: =FRCP_y4 -> 2024-25 | I100: =FRCP_y5 -> 2025-26 | K100: =CRCP_y4 -> 2019-20 | L100: =CRCP_y5 -> 2020-21 | M100: =FRCP_y1 -> 2021-22 | N100: =FRCP_y2 -> 2022-23 | O100: =FRCP_y3 -> 2023-24 | P100: =FRCP_y4 -> 2024-25 | Q100: =FRCP_y5 -> 2025-26 | S100: =CRCP_y4 -> 2019-20 | T100: =CRCP_y5 -> 2020-21 | U100: =FRCP_y1 -> 2021-22 | V100: =FRCP_y2 -> 2022-23 | W100: =FRCP_y3 -> 2023-24 | X100: =FRCP_y4 -> 2024-25 | Y100: =FRCP_y5 -> 2025-26
A101: DRAB1201 | B101: Overhead network assets less than 33kV (wires and poles) | C101: 162764115.1 | D101: 165258314.5 | E101: 169795614.7 | F101: 174806837.4 | G101: 179618389 | H101: 184092994.1 | I101: 186301445.4 | K101: 202173538.2 | L101: 205271648.1 | M101: 210907546.5 | N101: 217132116.5 | O101: 223108669.8 | P101: 228666693.1 | Q101: 231409867.8 | S101: 0 | T101: 0 | U101: 0 | V101: 0 | W101: 0 | X101: 0 | Y101: 0
A102: DRAB1202 | B102: Underground network assets less than 33kV (cables) | C102: 822775217.3 | D102: 835383435.3 | E102: 858319560.4 | F102: 883651371.8 | G102: 907973842.5 | H102: 930593043.2 | I102: 941756799.8 | K102: 1021990484 | L102: 1037651479 | M102: 1066141036 | N102: 1097606338 | O102: 1127817911 | P102: 1155913808 | Q102: 1169780600 | S102: 0 | T102: 0 | U102: 0 | V102: 0 | W102: 0 | X102: 0 | Y102: 0
A103: DRAB1203 | B103: Distribution substations including transformers | C103: 36432892.96 | D103: 36991191.08 | E103: 38006814.02 | F103: 39128519.14 | G103: 40205530.15 | H103: 41207119.53 | I103: 41701456.19 | K103: 36432892.96 | L103: 36991191.08 | M103: 38006814.02 | N103: 39128519.14 | O103: 40205530.15 | P103: 41207119.53 | Q103: 41701456.19 | S103: 0 | T103: 0 | U103: 0 | V103: 0 | W103: 0 | X103: 0 | Y103: 0
A104: DRAB1204 | B104: Overhead network assets 33kV and above (wires and towers / poles etc) | C104: 16396413.86 | D104: 16647672.71 | E104: 17104747.98 | F104: 17609564.91 | G104: 18094267.52 | H104: 18545027.06 | I104: 18767500.43 | K104: 16396413.86 | L104: 16647672.71 | M104: 17104747.98 | N104: 17609564.91 | O104: 18094267.52 | P104: 18545027.06 | Q104: 18767500.43 | S104: 0 | T104: 0 | U104: 0 | V104: 0 | W104: 0 | X104: 0 | Y104: 0
A105: DRAB1205 | B105: Underground network assets 33kV and above(cables, ducts etc) | C105: 200912576.1 | D105: 203991363 | E105: 209592110.1 | F105: 215777857.3 | G105: 221717134.7 | H105: 227240492.5 | I105: 229966557.9 | K105: 200912576.1 | L105: 203991363 | M105: 209592110.1 | N105: 215777857.3 | O105: 221717134.7 | P105: 227240492.5 | Q105: 229966557.9 | S105: 0 | T105: 0 | U105: 0 | V105: 0 | W105: 0 | X105: 0 | Y105: 0
A106: DRAB1206 | B106: Zone substations and transformers | C106: 398251475.7 | D106: 404354286.4 | E106: 415456159 | F106: 427717626.1 | G106: 439490537.6 | H106: 450439008 | I106: 455842649.8 | K106: 398251475.7 | L106: 404354286.4 | M106: 415456159 | N106: 427717626.1 | O106: 439490537.6 | P106: 450439008 | Q106: 455842649.8 | S106: 0 | T106: 0 | U106: 0 | V106: 0 | W106: 0 | X106: 0 | Y106: 0
A107: DRAB1207 | B107: Easements | C107: 0 | D107: 0 | E107: 0 | F107: 0 | G107: 0 | H107: 0 | I107: 0 | K107: 0 | L107: 0 | M107: 0 | N107: 0 | O107: 0 | P107: 0 | Q107: 0 | S107: 0 | T107: 0 | U107: 0 | V107: 0 | W107: 0 | X107: 0 | Y107: 0
A108: DRAB1208 | B108: Meters | C108: 0 | D108: 0 | E108: 0 | F108: 0 | G108: 0 | H108: 0 | I108: 0 | K108: 0 | L108: 0 | M108: 0 | N108: 0 | O108: 0 | P108: 0 | Q108: 0 | S108: =AVERAGE(S74,S79) -> 86064033.78 | T108: =AVERAGE(T74,T79) -> 77863156.78 | U108: 71959404.4 | V108: 67055355.96 | W108: 61131801.29 | X108: 54527607.19 | Y108: 48741588.55
A109: DRAB1209 | B109: “Other” assets with long lives | C109: 42814922.38 | D109: 49393988.72 | E109: 60142510.69 | F109: 71491565.58 | G109: 77671498.54 | H109: 81749445.04 | I109: 85831022.11 | K109: 42594379.13 | L109: 48732438.69 | M109: 59040087.58 | N109: 69948462.84 | O109: 75687995.22 | P109: 79325820.34 | Q109: 82967555.42 | S109: 0 | T109: 0 | U109: 0 | V109: 0 | W109: 0 | X109: 0 | Y109: 0
A110: DRAB1210 | B110: “Other” assets with short lives | C110: 32684748.07 | D110: 33869658.57 | E110: 33728763.08 | F110: 27741731.09 | G110: 22909237.82 | H110: 18614486.86 | I110: 13999845.29 | K110: 32684748.07 | L110: 33869658.57 | M110: 33728763.08 | N110: 27741731.09 | O110: 22909237.82 | P110: 18614486.86 | Q110: 13999845.29 | S110: =AVERAGE(S88,S93) -> 12373274.35 | T110: =AVERAGE(T88,T93) -> 12262952.38 | U110: 11878790.2 | V110: 11289459.64 | W110: 10714045.52 | X110: 10152186.27 | Y110: 9665951.626
A111: DRAB13 | B111: Value of Capital Contributions or Contributed Assets (included in the above) | C111: 0 | D111: 0 | E111: 0 | F111: 0 | G111: 0 | H111: 0 | I111: 0 | K111: 0 | L111: 0 | M111: 0 | N111: 0 | O111: 0 | P111: 0 | Q111: 0 | S111: 0 | T111: 0 | U111: 0 | V111: 0 | W111: 0 | X111: 0 | Y111: 0
B114: 3.3.4 - ASSET LIVES
C115: Network services | K115: Standard control services | S115: Alternative control services
C116: Forecast ( years ) | K116: Forecast ( years ) | S116: Forecast ( years )
C117: =CRCP_y4 -> 2019-20 | D117: =CRCP_y5 -> 2020-21 | E117: =FRCP_y1 -> 2021-22 | F117: =FRCP_y2 -> 2022-23 | G117: =FRCP_y3 -> 2023-24 | H117: =FRCP_y4 -> 2024-25 | I117: =FRCP_y5 -> 2025-26 | K117: =CRCP_y4 -> 2019-20 | L117: =CRCP_y5 -> 2020-21 | M117: =FRCP_y1 -> 2021-22 | N117: =FRCP_y2 -> 2022-23 | O117: =FRCP_y3 -> 2023-24 | P117: =FRCP_y4 -> 2024-25 | Q117: =FRCP_y5 -> 2025-26 | S117: =CRCP_y4 -> 2019-20 | T117: =CRCP_y5 -> 2020-21 | U117: =FRCP_y1 -> 2021-22 | V117: =FRCP_y2 -> 2022-23 | W117: =FRCP_y3 -> 2023-24 | X117: =FRCP_y4 -> 2024-25 | Y117: =FRCP_y5 -> 2025-26
B118: Estimated service life of new assets
A119: DRAB1401 | B119: Overhead network assets less than 33kV (wires and poles) | C119: 49.21509081 | D119: 49.21509081 | E119: 49.0813292 | F119: 49.0813292 | G119: 49.0813292 | H119: 49.0813292 | I119: 49.0813292 | K119: 49.21509081 | L119: 49.21509081 | M119: 49.0813292 | N119: 49.0813292 | O119: 49.0813292 | P119: 49.0813292 | Q119: 49.0813292 | S119: 0 | T119: 0 | U119: 0 | V119: 0 | W119: 0 | X119: 0 | Y119: 0
A120: DRAB1402 | B120: Underground network assets less than 33kV (cables) | C120: 49.21509081 | D120: 49.21509081 | E120: 49.0813292 | F120: 49.0813292 | G120: 49.0813292 | H120: 49.0813292 | I120: 49.0813292 | K120: 49.21509081 | L120: 49.21509081 | M120: 49.0813292 | N120: 49.0813292 | O120: 49.0813292 | P120: 49.0813292 | Q120: 49.0813292 | S120: 0 | T120: 0 | U120: 0 | V120: 0 | W120: 0 | X120: 0 | Y120: 0
A121: DRAB1403 | B121: Distribution substations including transformers | C121: 49.21509081 | D121: 49.21509081 | E121: 49.0813292 | F121: 49.0813292 | G121: 49.0813292 | H121: 49.0813292 | I121: 49.0813292 | K121: 49.21509081 | L121: 49.21509081 | M121: 49.0813292 | N121: 49.0813292 | O121: 49.0813292 | P121: 49.0813292 | Q121: 49.0813292 | S121: 0 | T121: 0 | U121: 0 | V121: 0 | W121: 0 | X121: 0 | Y121: 0
A122: DRAB1404 | B122: Overhead network assets 33kV and above (wires and towers / poles etc) | C122: 49.21509081 | D122: 49.21509081 | E122: 49.0813292 | F122: 49.0813292 | G122: 49.0813292 | H122: 49.0813292 | I122: 49.0813292 | K122: 49.21509081 | L122: 49.21509081 | M122: 49.0813292 | N122: 49.0813292 | O122: 49.0813292 | P122: 49.0813292 | Q122: 49.0813292 | S122: 0 | T122: 0 | U122: 0 | V122: 0 | W122: 0 | X122: 0 | Y122: 0
A123: DRAB1405 | B123: Underground network assets 33kV and above(cables, ducts etc) | C123: 49.21509081 | D123: 49.21509081 | E123: 49.0813292 | F123: 49.0813292 | G123: 49.0813292 | H123: 49.0813292 | I123: 49.0813292 | K123: 49.21509081 | L123: 49.21509081 | M123: 49.0813292 | N123: 49.0813292 | O123: 49.0813292 | P123: 49.0813292 | Q123: 49.0813292 | S123: 0 | T123: 0 | U123: 0 | V123: 0 | W123: 0 | X123: 0 | Y123: 0
A124: DRAB1406 | B124: Zone substations and transformers | C124: 49.21509081 | D124: 49.21509081 | E124: 49.0813292 | F124: 49.0813292 | G124: 49.0813292 | H124: 49.0813292 | I124: 49.0813292 | K124: 49.21509081 | L124: 49.21509081 | M124: 49.0813292 | N124: 49.0813292 | O124: 49.0813292 | P124: 49.0813292 | Q124: 49.0813292 | S124: 0 | T124: 0 | U124: 0 | V124: 0 | W124: 0 | X124: 0 | Y124: 0
A125: DRAB1407 | B125: Meters | C125: 0 | D125: 0 | E125: 0 | F125: 0 | G125: 0 | H125: 0 | I125: 0 | K125: 0 | L125: 0 | M125: 0 | N125: 0 | O125: 0 | P125: 0 | Q125: 0 | S125: 15 | T125: 15 | U125: 15 | V125: 15 | W125: 15 | X125: 15 | Y125: 15
A126: DRAB1408 | B126: “Other” assets with long lives | C126: 8.88466167 | D126: 8.88466167 | E126: 10.23611826 | F126: 10.23611826 | G126: 10.23611826 | H126: 10.23611826 | I126: 10.23611826 | K126: 8.88466167 | L126: 8.88466167 | M126: 10.23611826 | N126: 10.23611826 | O126: 10.23611826 | P126: 10.23611826 | Q126: 10.23611826 | S126: 0 | T126: 0 | U126: 0 | V126: 0 | W126: 0 | X126: 0 | Y126: 0
A127: DRAB1409 | B127: “Other” assets with short lives | C127: 6 | D127: 6 | E127: 6 | F127: 6 | G127: 6 | H127: 6 | I127: 6 | K127: 6 | L127: 6 | M127: 6 | N127: 6 | O127: 6 | P127: 6 | Q127: 6 | S127: 25 | T127: 25 | U127: 25 | V127: 25 | W127: 25 | X127: 25 | Y127: 25
B128: Estimated residual service life
A129: DRAB1501 | B129: Overhead network assets less than 33kV (wires and poles) | C129: 19 | D129: 20 | E129: 20 | F129: 19 | G129: 19 | H129: 18 | I129: 18 | K129: 19 | L129: 20 | M129: 20 | N129: 19 | O129: 19 | P129: 18 | Q129: 18 | S129: 0 | T129: 0 | U129: 0 | V129: 0 | W129: 0 | X129: 0 | Y129: 0
A130: DRAB1502 | B130: Underground network assets less than 33kV (cables) | C130: 19 | D130: 20 | E130: 20 | F130: 19 | G130: 19 | H130: 18 | I130: 18 | K130: 19 | L130: 20 | M130: 20 | N130: 19 | O130: 19 | P130: 18 | Q130: 18 | S130: 0 | T130: 0 | U130: 0 | V130: 0 | W130: 0 | X130: 0 | Y130: 0
A131: DRAB1503 | B131: Distribution substations including transformers | C131: 19 | D131: 20 | E131: 20 | F131: 19 | G131: 19 | H131: 18 | I131: 18 | K131: 19 | L131: 20 | M131: 20 | N131: 19 | O131: 19 | P131: 18 | Q131: 18 | S131: 0 | T131: 0 | U131: 0 | V131: 0 | W131: 0 | X131: 0 | Y131: 0
A132: DRAB1504 | B132: Overhead network assets 33kV and above (wires and towers / poles etc) | C132: 19 | D132: 20 | E132: 20 | F132: 19 | G132: 19 | H132: 18 | I132: 18 | K132: 19 | L132: 20 | M132: 20 | N132: 19 | O132: 19 | P132: 18 | Q132: 18 | S132: 0 | T132: 0 | U132: 0 | V132: 0 | W132: 0 | X132: 0 | Y132: 0
A133: DRAB1505 | B133: Underground network assets 33kV and above (cables, ducts etc) | C133: 19 | D133: 20 | E133: 20 | F133: 19 | G133: 19 | H133: 18 | I133: 18 | K133: 19 | L133: 20 | M133: 20 | N133: 19 | O133: 19 | P133: 18 | Q133: 18 | S133: 0 | T133: 0 | U133: 0 | V133: 0 | W133: 0 | X133: 0 | Y133: 0
A134: DRAB1506 | B134: Zone substations and transformers | C134: 19 | D134: 20 | E134: 20 | F134: 19 | G134: 19 | H134: 18 | I134: 18 | K134: 19 | L134: 20 | M134: 20 | N134: 19 | O134: 19 | P134: 18 | Q134: 18 | S134: 0 | T134: 0 | U134: 0 | V134: 0 | W134: 0 | X134: 0 | Y134: 0
A135: DRAB1507 | B135: Meters | C135: 0 | D135: 0 | E135: 0 | F135: 0 | G135: 0 | H135: 0 | I135: 0 | K135: 0 | L135: 0 | M135: 0 | N135: 0 | O135: 0 | P135: 0 | Q135: 0 | S135: =-S74/S76 -> 6.879668225 | T135: =-T74/T76 -> 7.17659973 | U135: 6.724955181 | V135: 6.075572124 | W135: 5.424803781 | X135: 4.725842617 | Y135: 4.156889725
A136: DRAB1508 | B136: “Other” assets with long lives | C136: 7 | D136: 8 | E136: 8 | F136: 9 | G136: 8 | H136: 9 | I136: 9 | K136: 7 | L136: 8 | M136: 8 | N136: 9 | O136: 8 | P136: 9 | Q136: 9 | S136: 0 | T136: 0 | U136: 0 | V136: 0 | W136: 0 | X136: 0 | Y136: 0
A137: DRAB1509 | B137: “Other” assets with short lives | C137: 2 | D137: 2 | E137: 4 | F137: 4 | G137: 3 | H137: 3 | I137: 3 | K137: 2 | L137: 2 | M137: 4 | N137: 4 | O137: 3 | P137: 3 | Q137: 3 | S137: =-S88/S90 -> 14.11677335 | T137: =-T88/T90 -> 13.63174159 | U137: 13.22161008 | V137: 12.50217559 | W137: 11.80421275 | X137: 11.12759879 | Y137: 12.1274162

Sheet 3.4 Operational data
B1: =INDEX(dms_Worksheet_List,MATCH(dms_Model,dms_Model_List)) -> REGULATORY REPORTING STATEMENT
B2: =INDEX(dms_TradingNameFull_List,MATCH(dms_TradingName,dms_TradingName_List)) -> CitiPower
B3: =dms_Header_Span -> 2021-22 to 2025-26
B4: 3.4 OPERATIONAL DATA
B6: There are TWO tables on this worksheet. Each table has been grouped for ease of navigation. See the Instructions sheet on how to group or ungroup tables.
B8: 3.4.1 - ENERGY DELIVERY
D9: Standard control services
D10: Forecast
C11: Units | D11: =CRCP_y4 -> 2019-20 | E11: =CRCP_y5 -> 2020-21 | F11: =FRCP_y1 -> 2021-22 | G11: =FRCP_y2 -> 2022-23 | H11: =FRCP_y3 -> 2023-24 | I11: =FRCP_y4 -> 2024-25 | J11: =FRCP_y5 -> 2025-26
A12: DOPED01 | B12: Total energy delivered | C12: GWh
B13: 3.4.1.1 - Energy grouping - delivery by chargeable quantity
A14: DOPED0201 | B14: Energy Delivery where time of use is not a determinant | C14: GWh | D14: 1194.932436 | E14: 1251.647555 | F14: 1207.002461 | G14: 1117.042596 | H14: 1026.408032 | I14: 935.0937081 | J14: 843.0945273
A15: DOPED0202 | B15: Energy Delivery at On-peak times | C15: GWh | D15: 2626.663977 | E15: 2623.398391 | F15: 2653.195937 | G15: 2713.237992 | H15: 2773.730363 | I15: 2834.676426 | J15: 2896.079585
A16: DOPED0203 | B16: Energy Delivery at Shoulder times | C16: GWh | D16: 2.041638405 | E16: 2.093373889 | F16: 2.062261015 | G16: 0 | H16: 0 | I16: 0 | J16: 0
A17: DOPED0204 | B17: Energy Delivery at Off-peak times | C17: GWh | D17: 1865.294984 | E17: 1847.869112 | F17: 1884.136348 | G17: 1959.214396 | H17: 2032.777802 | I17: 2106.892934 | J17: 2181.563929
A18: DOPED0205 | B18: Controlled load energy deliveries | C18: GWh | D18: 59.37763686 | E18: 59.75416998 | F18: 59.97741097 | G18: 60.42724155 | H18: 60.88044586 | I18: 61.3370492 | J18: 61.79707707
A19: DOPED0206 | B19: Energy Delivery to unmetered supplies | C19: GWh | D19: 17.73862504 | E19: 17.85109577 | F19: 17.91780307 | G19: 18.05221393 | H19: 18.18762979 | I19: 18.32405811 | J19: 18.46150717
B20: 3.4.1.2 - Energy - received from TNSP and other DNSPs by time of receipt
A21: DOPED0301 | B21: Energy into DNSP network at On-peak times | C21: GWh | D21: 0 | E21: 0 | F21: 0 | G21: 0 | H21: 0 | I21: 0 | J21: 0
A22: DOPED0302 | B22: Energy into DNSP network at Shoulder times | C22: GWh | D22: 0 | E22: 0 | F22: 0 | G22: 0 | H22: 0 | I22: 0 | J22: 0
A23: DOPED0303 | B23: Energy into DNSP network at Off-peak times | C23: GWh | D23: 0 | E23: 0 | F23: 0 | G23: 0 | H23: 0 | I23: 0 | J23: 0
A24: DOPED0304 | B24: Energy received from TNSP and other DNSPs not included in the above categories | C24: GWh | D24: =SUM(D14:D19)*(1+'3.6 Quality of service'!D16)-SUM(D26:D33) -> 5947.320768 | E24: =SUM(E14:E19)*(1+'3.6 Quality of service'!E16)-SUM(E26:E33) -> 5968.862276 | F24: =SUM(F14:F19)*(1+'3.6 Quality of service'!F16)-SUM(F26:F33) -> 5971.33108 | G24: =SUM(G14:G19)*(1+'3.6 Quality of service'!G16)-SUM(G26:G33) -> 5995.459185 | H24: =SUM(H14:H19)*(1+'3.6 Quality of service'!H16)-SUM(H26:H33) -> 6033.561822 | I24: =SUM(I14:I19)*(1+'3.6 Quality of service'!I16)-SUM(I26:I33) -> 6073.37167 | J24: =SUM(J14:J19)*(1+'3.6 Quality of service'!J16)-SUM(J26:J33) -> 6113.495997
B25: 3.4.1.3 - Energy - received into DNSP system from embedded generation by time of receipt
A26: DOPED0401 | B26: Energy into DNSP network at On-peak times from non-residential embedded generation | C26: GWh | D26: 13.39 | E26: 13.7917 | F26: 14.205451 | G26: 14.63161453 | H26: 15.07056297 | I26: 15.52267985 | J26: 15.98836025
A27: DOPED0402 | B27: Energy into DNSP network at Shoulder times from non-residential embedded generation | C27: GWh | D27: 0 | E27: 0 | F27: 0 | G27: 0 | H27: 0 | I27: 0 | J27: 0
A28: DOPED0403 | B28: Energy into DNSP network at Off-peak times from non-residential embedded generation | C28: GWh | D28: 5.15 | E28: 5.3045 | F28: 5.463635 | G28: 5.62754405 | H28: 5.796370372 | I28: 5.970261483 | J28: 6.149369327
A29: DOPED0404 | B29: Energy received from embedded generation not included in above categories from non-residential embedded generation | C29: GWh | D29: 0 | E29: 0 | F29: 0 | G29: 0 | H29: 0 | I29: 0 | J29: 0
A30: DOPED0405 | B30: Energy into DNSP network at On-peak times from residential embedded generation | C30: GWh | D30: 23.90225043 | E30: 35.06745504 | F30: 48.72896242 | G30: 63.24447669 | H30: 68.20406063 | I30: 72.19625813 | J30: 76.19740236
A31: DOPED0406 | B31: Energy into DNSP network at Shoulder times from residential embedded generation | C31: GWh | D31: 0 | E31: 0 | F31: 0 | G31: 0 | H31: 0 | I31: 0 | J31: 0
A32: DOPED0407 | B32: Energy into DNSP network at Off-peak times from residential embedded generation | C32: GWh | D32: 10.24382161 | E32: 15.0289093 | F32: 20.88384104 | G32: 27.10477572 | H32: 29.2303117 | I32: 30.94125348 | J32: 32.65602958
A33: DOPED0408 | B33: Energy received from embedded generation not included in above categories from residential embedded generation | C33: GWh | D33: 0 | E33: 0 | F33: 0 | G33: 0 | H33: 0 | I33: 0 | J33: 0
B34: 3.4.1.4 - Energy grouping - customer type or class
A35: DOPED0501 | B35: Residential customers energy deliveries | C35: GWh | D35: 1233.285021 | E35: 1241.104575 | F35: 1245.418065 | G35: 1254.7587 | H35: 1264.169391 | I35: 1273.650661 | J35: 1283.203041
A36: DOPED0502 | B36: Non residential customers not on demand tariffs energy deliveries | C36: GWh | D36: 657.9254813 | E36: 662.0974456 | F36: 664.5252589 | G36: 669.5091983 | H36: 674.5305173 | I36: 679.5894962 | J36: 684.6864174
A37: DOPED0503 | B37: Non-residential low voltage demand tariff customers energy deliveries | C37: GWh | D37: 2239.064854 | E37: 2253.263493 | F37: 2260.906648 | G37: 2277.863448 | H37: 2294.947424 | I37: 2312.159529 | J37: 2329.500726
A38: DOPED0504 | B38: Non-residential high voltage demand tariff customers energy deliveries | C38: GWh | D38: 543.3001591 | E38: 546.7454038 | F38: 548.5830809 | G38: 552.697454 | H38: 556.8426849 | I38: 561.0190051 | J38: 565.2266476
A39: DOPED0505 | B39: Other Customer Class Energy Deliveries | C39: GWh | D39: 1092.473783 | E39: 1099.402781 | F39: 1104.859168 | G39: 1113.145639 | H39: 1121.494256 | I39: 1129.905484 | J39: 1138.379793
B43: 3.4.3 - SYSTEM DEMAND
D44: Standard control services
D45: Forecast
C46: Units | D46: =CRCP_y4 -> 2019-20 | E46: =CRCP_y5 -> 2020-21 | F46: =FRCP_y1 -> 2021-22 | G46: =FRCP_y2 -> 2022-23 | H46: =FRCP_y3 -> 2023-24 | I46: =FRCP_y4 -> 2024-25 | J46: =FRCP_y5 -> 2025-26
B47: 3.4.3.1 - Annual system maximum demand characteristics at the zone substation level – MW measure
A48: DOPSD0102 | B48: Non–coincident Summated Weather Adjusted System Annual Maximum Demand 10% POE | C48: MW | D48: 1502.214822 | E48: 1496.703 | F48: 1530.542 | G48: 1565.652273 | H48: 1579.759829 | I48: 1651.660754 | J48: 1736.94034
A49: DOPSD0103 | B49: Non–coincident Summated Weather Adjusted System Annual Maximum Demand 50% POE | C49: MW | D49: 1349.988809 | E49: 1345.317 | F49: 1369.424 | G49: 1393.44323 | H49: 1400.90641 | I49: 1447.1806 | J49: 1514.235392
A50: DOPSD0105 | B50: Coincident Weather Adjusted System Annual Maximum Demand 10% POE | C50: MW | D50: 1433.688055 | E50: 1429.619058 | F50: 1463.159683 | G50: 1497.970497 | H50: 1512.725701 | I50: 1582.890384 | J50: 1666.001798
A51: DOPSD0106 | B51: Coincident Weather Adjusted System Annual Maximum Demand 50% POE | C51: MW | D51: 1288.957768 | E51: 1285.700845 | F51: 1309.96482 | G51: 1334.187895 | H51: 1342.587125 | I51: 1388.229754 | J51: 1453.907885
B52: 3.4.3.2 - Annual system maximum demand characteristics at the transmission connection point – MW measure
A53: DOPSD0108 | B53: Non–coincident Summated Weather Adjusted System Annual Maximum Demand 10% POE | C53: MW | D53: 1629.34032 | E53: 1670.34714 | F53: 1856.009059 | G53: 1800.337765 | H53: 1834.972314 | I53: 1864.479333 | J53: 1882.250408
A54: DOPSD0109 | B54: Non–coincident Summated Weather Adjusted System Annual Maximum Demand 50% POE | C54: MW | D54: 1529.82391 | E54: 1583.452508 | F54: 1734.987036 | G54: 1689.888702 | H54: 1725.180337 | I54: 1749.798524 | J54: 1774.540899
A55: DOPSD0111 | B55: Coincident Weather Adjusted System Annual Maximum Demand 10% POE | C55: MW | D55: 1531.360282 | E55: 1583.547227 | F55: 1647.875306 | G55: 1680.603864 | H55: 1733.899907 | I55: 1747.664005 | J55: 1777.914191
A56: DOPSD0112 | B56: Coincident Weather Adjusted System Annual Maximum Demand 50% POE | C56: MW | D56: 1431.960975 | E56: 1478.94312 | F56: 1540.492741 | G56: 1577.666505 | H56: 1614.870427 | I56: 1628.246972 | J56: 1625.42677
B57: 3.4.3.3 - Annual system maximum demand characteristics at the zone substation level – MVA measure
A58: DOPSD0202 | B58: Non–coincident Summated Weather Adjusted System Annual Maximum Demand 10% POE | C58: MVA | D58: 1532.26179 | E58: 1526.049 | F58: 1560.679 | G58: 1596.736872 | H58: 1610.69343 | I58: 1689.099639 | J58: 1774.799036
A59: DOPSD0203 | B59: Non–coincident Summated Weather Adjusted System Annual Maximum Demand 50% POE | C59: MVA | D59: 1376.13701 | E59: 1370.864 | F59: 1395.313 | G59: 1420.002191 | H59: 1427.298885 | I59: 1478.098217 | J59: 1545.59894
A60: DOPSD0205 | B60: Coincident Weather Adjusted System Annual Maximum Demand 10% POE | C60: MVA | D60: 1490.786919 | E60: 1495.459363 | F60: 1540.355472 | G60: 1587.157281 | H60: 1612.341613 | I60: 1702.690186 | J60: 1801.543102
A61: DOPSD0206 | B61: Coincident Weather Adjusted System Annual Maximum Demand 50% POE | C61: MVA | D61: 1340.847834 | E61: 1345.701627 | F61: 1379.871643 | G61: 1414.637337 | H61: 1432.309375 | I61: 1494.060199 | J61: 1573.555006
B62: 3.4.3.4 - Annual system maximum demand characteristics at the transmission connection point – MVA measure
A63: DOPSD0208 | B63: Non–coincident Summated Weather Adjusted System Annual Maximum Demand 10% POE | C63: MVA | D63: 1695.0087 | E63: 1666.504234 | F63: 1707.262482 | G63: 1897.078479 | H63: 1841.355034 | I63: 1876.874233 | J63: 1906.542721
A64: DOPSD0209 | B64: Non–coincident Summated Weather Adjusted System Annual Maximum Demand 50% POE | C64: MVA | D64: 1558.313463 | E64: 1613.041246 | F64: 1766.615531 | G64: 1722.314361 | H64: 1758.520054 | I64: 1783.400074 | J64: 1808.486788
A65: DOPSD0211 | B65: Coincident Weather Adjusted System Annual Maximum Demand 10% POE | C65: MVA | D65: 1566.243791 | E65: 1619.60181 | F65: 1685.257045 | G65: 1718.42602 | H65: 1773.268919 | I65: 1787.173986 | J65: 1819.966668
A66: DOPSD0212 | B66: Coincident Weather Adjusted System Annual Maximum Demand 50% POE | C66: MVA | D66: 1464.177182 | E66: 1512.005006 | F66: 1575.559645 | G66: 1612.673007 | H66: 1650.793769 | I66: 1664.110431 | J66: 1663.009532
B67: 3.4.3.5 - Power factor conversion between MVA and MW
A68: DOPSD0301 | B68: Average overall network power factor conversion between MVA and MW | C68: Factor | D68: 0.968 | E68: 0.968 | F68: 0.968 | G68: 0.968 | H68: 0.968 | I68: 0.968 | J68: 0.968
A69: DOPSD0302 | B69: Average power factor conversion for low voltage distribution lines | C69: Factor | D69: 0.85 | E69: 0.85 | F69: 0.85 | G69: 0.85 | H69: 0.85 | I69: 0.85 | J69: 0.85
A70: DOPSD0303 | B70: Average power factor conversion for 3.3 kV lines | C70: Factor | D70: 0 | E70: 0 | F70: 0 | G70: 0 | H70: 0 | I70: 0 | J70: 0
A71: DOPSD0304 | B71: Average power factor conversion for 6.6 kV lines | C71: Factor | D71: 0 | E71: 0 | F71: 0 | G71: 0 | H71: 0 | I71: 0 | J71: 0
A72: DOPSD0305 | B72: Average power factor conversion for 7.6 kV lines | C72: Factor | D72: 0 | E72: 0 | F72: 0 | G72: 0 | H72: 0 | I72: 0 | J72: 0
A73: DOPSD0306 | B73: Average power factor conversion for 11 kV lines | C73: Factor | D73: 0.9 | E73: 0.9 | F73: 0.9 | G73: 0.9 | H73: 0.9 | I73: 0.9 | J73: 0.9
A74: DOPSD0307 | B74: Average power factor conversion for SWER lines | C74: Factor | D74: 0 | E74: 0 | F74: 0 | G74: 0 | H74: 0 | I74: 0 | J74: 0
A75: DOPSD0308 | B75: Average power factor conversion for 22 kV lines | C75: Factor | D75: 0.95 | E75: 0.95 | F75: 0.95 | G75: 0.95 | H75: 0.95 | I75: 0.95 | J75: 0.95
A76: DOPSD0309 | B76: Average power factor conversion for 33 kV lines | C76: Factor | D76: 0 | E76: 0 | F76: 0 | G76: 0 | H76: 0 | I76: 0 | J76: 0
A77: DOPSD0310 | B77: Average power factor conversion for 44 kV lines | C77: Factor | D77: 0 | E77: 0 | F77: 0 | G77: 0 | H77: 0 | I77: 0 | J77: 0
A78: DOPSD0311 | B78: Average power factor conversion for 66 kV lines | C78: Factor | D78: 0.9 | E78: 0.9 | F78: 0.9 | G78: 0.9 | H78: 0.9 | I78: 0.9 | J78: 0.9
A79: DOPSD0312 | B79: Average power factor conversion for 110 kV lines | C79: Factor | D79: 0 | E79: 0 | F79: 0 | G79: 0 | H79: 0 | I79: 0 | J79: 0
A80: DOPSD0313 | B80: Average power factor conversion for 132 kV lines | C80: Factor | D80: 0 | E80: 0 | F80: 0 | G80: 0 | H80: 0 | I80: 0 | J80: 0
A81: DOPSD0314 | B81: Average power factor conversion for 220 kV lines | C81: Factor | D81: 0 | E81: 0 | F81: 0 | G81: 0 | H81: 0 | I81: 0 | J81: 0
B82: 3.4.3.6 - Demand supplied (for customers charged on this basis) – MW measure
A83: DOPSD0401 | B83: Summated Chargeable Contracted Maximum Demand | C83: MW | D83: 0 | E83: 0 | F83: 0 | G83: 0 | H83: 0 | I83: 0 | J83: 0
A84: DOPSD0402 | B84: Summated Chargeable Measured Maximum Demand | C84: MW | D84: 0 | E84: 0 | F84: 0 | G84: 0 | H84: 0 | I84: 0 | J84: 0
B85: 3.4.3.7 - Demand supplied (for customers charged on this basis) – MVA measure
A86: DOPSD0403 | B86: Summated Chargeable Contracted Maximum Demand | C86: MVA | D86: 0 | E86: 0 | F86: 0 | G86: 0 | H86: 0 | I86: 0 | J86: 0
A87: DOPSD0404 | B87: Summated Chargeable Measured Maximum Demand | C87: MVA | D87: 0 | E87: 0 | F87: 0 | G87: 0 | H87: 0 | I87: 0 | J87: 0

Sheet 3.5 Physical assets
B1: =INDEX(dms_Worksheet_List,MATCH(dms_Model,dms_Model_List)) -> REGULATORY REPORTING STATEMENT
B2: =INDEX(dms_TradingNameFull_List,MATCH(dms_TradingName,dms_TradingName_List)) -> CitiPower
B3: =dms_Header_Span -> 2021-22 to 2025-26
B4: 3.5 PHYSICAL ASSETS DATA
B6: There are THREE tables on this worksheet. Each table has been grouped (and sub-grouped) for ease of navigation. See the Instructions sheet on how to group or ungroup tables.
B8: 3.5.1 - NETWORK CAPACITIES VARIABLES
D9: VOLUMES
C10: Units | D10: =CRCP_y4 -> 2019-20 | E10: =CRCP_y5 -> 2020-21 | F10: =FRCP_y1 -> 2021-22 | G10: =FRCP_y2 -> 2022-23 | H10: =FRCP_y3 -> 2023-24 | I10: =FRCP_y4 -> 2024-25 | J10: =FRCP_y5 -> 2025-26
B11: CIRCUIT LENGTH
B12: 3.5.1.1 - Overhead network length of circuit at each voltage
A13: DPA0101 | B13: Overhead low voltage distribution | C13: km | D13: 1674.476204 | E13: 1693.007837 | F13: 1711.744561 | G13: 1730.688647 | H13: 1749.842389 | I13: 1769.208108 | J13: 1788.78815
A14: DPA0102 | B14: Overhead 2.2 kV | C14: km | D14: 0 | E14: 0 | F14: 0 | G14: 0 | H14: 0 | I14: 0 | J14: 0
A15: DPA0103 | B15: Overhead 7.6 kV | C15: km | D15: 94.27558196 | E15: 95.31894132 | F15: 96.37384767 | G15: 97.4404288 | H15: 98.51881391 | I15: 99.60913364 | J15: 100.7115201
A16: DPA0104 | B16: Overhead 11 kV | C16: km | D16: 386.9325785 | E16: 391.2148086 | F16: 395.5444306 | G16: 399.921969 | H16: 404.3479542 | I16: 408.8229223 | J16: 413.3474155
A17: DPA0105 | B17: Overhead SWER | C17: km | D17: 0 | E17: 0 | F17: 0 | G17: 0 | H17: 0 | I17: 0 | J17: 0
A18: DPA0106 | B18: Overhead 22 kV | C18: km | D18: 7.007278507 | E18: 7.084828913 | F18: 7.163237579 | G18: 7.242514003 | H18: 7.322667789 | I18: 7.403708646 | J18: 7.485646393
A19: DPA0107 | B19: Overhead 33 kV | C19: km | D19: 0 | E19: 0 | F19: 0 | G19: 0 | H19: 0 | I19: 0 | J19: 0
A20: DPA0108 | B20: Overhead 44 kV | C20: km | D20: 0 | E20: 0 | F20: 0 | G20: 0 | H20: 0 | I20: 0 | J20: 0
A21: DPA0109 | B21: Overhead 66 kV | C21: km | D21: 146.6662953 | E21: 148.2894691 | F21: 149.9306068 | G21: 151.5899071 | H21: 153.2675711 | I21: 154.963802 | J21: 156.6788053
A22: DPA0110 | B22: Overhead 132 kV | C22: km | D22: 0 | E22: 0 | F22: 0 | G22: 0 | H22: 0 | I22: 0 | J22: 0
A23: DPA0111 | B23: Overhead 6.6kv | C23: km | D23: 0 | E23: 0 | F23: 0 | G23: 0 | H23: 0 | I23: 0 | J23: 0
A24: DPA0112 | B24: Overhead 110kV | C24: km | D24: 0 | E24: 0 | F24: 0 | G24: 0 | H24: 0 | I24: 0 | J24: 0
A25: DPA0113 | B25: Overhead 220kV | C25: km | D25: 0 | E25: 0 | F25: 0 | G25: 0 | H25: 0 | I25: 0 | J25: 0
A26: DPA0114 | B26: Other | C26: km | D26: 12.66207559 | E26: 12.80220832 | F26: 12.94389192 | G26: 13.08714356 | H26: 13.23198057 | I26: 13.37842051 | J26: 13.52648112
A27: DPA01 | B27: Total overhead circuit km | D27: =SUM(D13:D26) -> 2322.020014 | E27: =SUM(E13:E26) -> 2347.718093 | F27: 2373.700575 | G27: 2399.970609 | H27: 2426.531377 | I27: 2453.386095 | J27: 2480.538019
B28: 3.5.1.2 - Underground network circuit length at each voltage
A29: DPA0201 | B29: Underground low voltage distribution | C29: km | D29: 676.7757099 | E29: 689.4007739 | F29: 702.261355 | G29: 715.3618466 | H29: 728.7067243 | I29: 742.300547 | J29: 756.1479588
A30: DPA0202 | B30: Underground 5 kV | C30: km | D30: 0 | E30: 0 | F30: 0 | G30: 0 | H30: 0 | I30: 0 | J30: 0
A31: DPA0203 | B31: Underground 6.6 Kv | C31: km | D31: 140.6365673 | E31: 143.2601036 | F31: 145.9325813 | G31: 148.6549133 | H31: 151.4280296 | I31: 154.2528777 | J31: 157.1304226
A32: DPA0204 | B32: Underground 7.6 kV | C32: km | D32: 0 | E32: 0 | F32: 0 | G32: 0 | H32: 0 | I32: 0 | J32: 0
A33: DPA0205 | B33: Underground 11 kV | C33: km | D33: 1313.13531 | E33: 1337.631487 | F33: 1362.584633 | G33: 1388.003273 | H33: 1413.896091 | I33: 1440.271932 | J33: 1467.139807
A34: DPA0206 | B34: Underground SWER | C34: km | D34: 0 | E34: 0 | F34: 0 | G34: 0 | H34: 0 | I34: 0 | J34: 0
A35: DPA0207 | B35: Underground 22 kV | C35: km | D35: 54.8573781 | E35: 55.88072734 | F35: 56.92316687 | G35: 57.98505283 | H35: 59.06674798 | I35: 60.16862185 | J35: 61.29105088
A36: DPA0208 | B36: Underground 33 kV | C36: km | D36: 0 | E36: 0 | F36: 0 | G36: 0 | H36: 0 | I36: 0 | J36: 0
A37: DPA0209 | B37: Underground 66 kV | C37: km | D37: 72.37715944 | E37: 73.72733536 | F37: 75.10269845 | G37: 76.50371855 | H37: 77.93087429 | I37: 79.38465323 | J37: 80.86555202
A38: DPA0210 | B38: Underground 110 kV | C38: km | D38: 0 | E38: 0 | F38: 0 | G38: 0 | H38: 0 | I38: 0 | J38: 0
A39: DPA0211 | B39: Underground 132 kV | C39: km | D39: 0 | E39: 0 | F39: 0 | G39: 0 | H39: 0 | I39: 0 | J39: 0
A40: DPA0212 | B40: Other | C40: km | D40: 99.0552198 | E40: 100.9030676 | F40: 102.7853864 | G40: 104.7028194 | H40: 106.6560216 | I40: 108.6456603 | J40: 110.672415
A41: DPA02 | B41: Total underground circuit km | D41: =SUM(D29:D40) -> 2356.837345 | E41: =SUM(E29:E40) -> 2400.803495 | F41: 2445.589821 | G41: 2491.211624 | H41: 2537.684489 | I41: 2585.024292 | J41: 2633.247206
B43: CIRCUIT CAPACITY MVA
B44: 3.5.1.3 - Estimated overhead network weighted average MVA capacity by voltage class
A45: DPA0301 | B45: Overhead low voltage distribution | C45: MVA | D45: 0.2 | E45: 0.2 | F45: 0.2 | G45: 0.2 | H45: 0.2 | I45: 0.2 | J45: 0.2
A46: DPA0302 | B46: Overhead 6.6 kV | C46: MVA | D46: 2.3 | E46: 2.3 | F46: 2.3 | G46: 2.3 | H46: 2.3 | I46: 2.3 | J46: 2.3
A47: DPA0303 | B47: Overhead 7.6 kV | C47: MVA | D47: 0 | E47: 0 | F47: 0 | G47: 0 | H47: 0 | I47: 0 | J47: 0
A48: DPA0304 | B48: Overhead 11 kV | C48: MVA | D48: 4 | E48: 4 | F48: 4 | G48: 4 | H48: 4 | I48: 4 | J48: 4
A49: DPA0305 | B49: Overhead SWER | C49: MVA | D49: 0 | E49: 0 | F49: 0 | G49: 0 | H49: 0 | I49: 0 | J49: 0
A50: DPA0306 | B50: Overhead 22 kV | C50: MVA | D50: 8 | E50: 8 | F50: 8 | G50: 8 | H50: 8 | I50: 8 | J50: 8
A51: DPA0307 | B51: Overhead 33 kV | C51: MVA | D51: 0 | E51: 0 | F51: 0 | G51: 0 | H51: 0 | I51: 0 | J51: 0
A52: DPA0308 | B52: Overhead 44 kV | C52: MVA | D52: 0 | E52: 0 | F52: 0 | G52: 0 | H52: 0 | I52: 0 | J52: 0
A53: DPA0309 | B53: Overhead 66 kV | C53: MVA | D53: 50 | E53: 50 | F53: 50 | G53: 50 | H53: 50 | I53: 50 | J53: 50
A54: DPA0310 | B54: Overhead 110 kV | C54: MVA | D54: 0 | E54: 0 | F54: 0 | G54: 0 | H54: 0 | I54: 0 | J54: 0
A55: DPA0311 | B55: Overhead 132 kV | C55: MVA | D55: 0 | E55: 0 | F55: 0 | G55: 0 | H55: 0 | I55: 0 | J55: 0
A56: DPA0312 | B56: Overhead 220 kV | C56: MVA | D56: 0 | E56: 0 | F56: 0 | G56: 0 | H56: 0 | I56: 0 | J56: 0
A57: DPA0313 | B57: Other | C57: MVA | D57: 15 | E57: 15 | F57: 15 | G57: 15 | H57: 15 | I57: 15 | J57: 15
B58: 3.5.1.4 - Estimated underground network weighted average MVA capacity by voltage class
A59: DPA0401 | B59: Underground low voltage distribution | C59: MVA | D59: 0.2 | E59: 0.2 | F59: 0.2 | G59: 0.2 | H59: 0.2 | I59: 0.2 | J59: 0.2
A60: DPA0402 | B60: Underground 5 kV | C60: MVA | D60: 0 | E60: 0 | F60: 0 | G60: 0 | H60: 0 | I60: 0 | J60: 0
A61: DPA0403 | B61: Underground 6.6 kV | C61: MVA | D61: 2.3 | E61: 2.3 | F61: 2.3 | G61: 2.3 | H61: 2.3 | I61: 2.3 | J61: 2.3
A62: DPA0404 | B62: Underground 7.6 kV | C62: MVA | D62: 0 | E62: 0 | F62: 0 | G62: 0 | H62: 0 | I62: 0 | J62: 0
A63: DPA0405 | B63: Underground 11 kV | C63: MVA | D63: 4 | E63: 4 | F63: 4 | G63: 4 | H63: 4 | I63: 4 | J63: 4
A64: DPA0406 | B64: Underground SWER | C64: MVA | D64: 0 | E64: 0 | F64: 0 | G64: 0 | H64: 0 | I64: 0 | J64: 0
A65: DPA0407 | B65: Underground 12.7 kV | C65: MVA | D65: 0 | E65: 0 | F65: 0 | G65: 0 | H65: 0 | I65: 0 | J65: 0
A66: DPA0408 | B66: Underground 22 kV | C66: MVA | D66: 8 | E66: 8 | F66: 8 | G66: 8 | H66: 8 | I66: 8 | J66: 8
A67: DPA0409 | B67: Underground 33 kV | C67: MVA | D67: 0 | E67: 0 | F67: 0 | G67: 0 | H67: 0 | I67: 0 | J67: 0
A68: DPA0410 | B68: Underground 66 kV | C68: MVA | D68: 60 | E68: 60 | F68: 60 | G68: 60 | H68: 60 | I68: 60 | J68: 60
A69: DPA0411 | B69: Underground 110 kV | C69: MVA | D69: 0 | E69: 0 | F69: 0 | G69: 0 | H69: 0 | I69: 0 | J69: 0
A70: DPA0412 | B70: Underground 132 kV | C70: MVA | D70: 0 | E70: 0 | F70: 0 | G70: 0 | H70: 0 | I70: 0 | J70: 0
A71: DPA0413 | B71: Other | C71: MVA | D71: 15 | E71: 15 | F71: 15 | G71: 15 | H71: 15 | I71: 15 | J71: 15
B75: 3.5.2 - TRANSFORMER CAPACITIES VARIABLES
D76: VOLUMES
C77: Units | D77: =CRCP_y4 -> 2019-20 | E77: =CRCP_y5 -> 2020-21 | F77: =FRCP_y1 -> 2021-22 | G77: =FRCP_y2 -> 2022-23 | H77: =FRCP_y3 -> 2023-24 | I77: =FRCP_y4 -> 2024-25 | J77: =FRCP_y5 -> 2025-26
B78: Distribution transformer total installed capacity
A79: DPA0501 | B79: Distribution transformer capacity owned by utility | C79: MVA | D79: 4551.292 | E79: 4625.62 | F79: 4699.948 | G79: 4774.276 | H79: 4848.604 | I79: 4922.932 | J79: 4997.26
A80: DPA0502 | B80: Distribution transformer capacity owned by High Voltage Customers | C80: MVA | D80: 220.8814 | E80: 231.707 | F80: 242.5326 | G80: 253.3582 | H80: 264.1838 | I80: 275.0094 | J80: 285.835
A81: DPA0503 | B81: Cold spare capacity included in DPA0501 | C81: MVA | D81: 90.813 | E81: 90.89 | F81: 90.967 | G81: 91.044 | H81: 91.121 | I81: 91.198 | J81: 91.275
B82: Zone substation transformer capacity
A83: DPA0601 | B83: Total installed capacity for first step transformation where there are two steps to reach distribution voltage | C83: MVA | D83: 0 | E83: 0 | F83: 0 | G83: 0 | H83: 0 | I83: 0 | J83: 0
A84: DPA0602 | B84: Total installed capacity for second step transformation where there are two steps to reach distribution voltage | C84: MVA | D84: 0 | E84: 0 | F84: 0 | G84: 0 | H84: 0 | I84: 0 | J84: 0
A85: DPA0603 | B85: Total zone substation transformer capacity where there is only a single step transformation to reach distribution voltage | C85: MVA | D85: 2662 | E85: 2662 | F85: 2722 | G85: 2712.5 | H85: 2747.5 | I85: 2802.5 | J85: 2728.5
A86: DPA0604 | B86: Total zone substation transformer capacity | C86: MVA | D86: 2702 | E86: 2702 | F86: 2762 | G86: 2752.5 | H86: 2787.5 | I86: 2842.5 | J86: 2768.5
A87: DPA0605 | B87: Cold spare capacity of zone substation transformers included in DPA0604 | C87: MVA | D87: 40 | E87: 40 | F87: 40 | G87: 40 | H87: 40 | I87: 40 | J87: 40
B91: 3.5.3 - PUBLIC LIGHTING
D92: VOLUMES
C93: Units | D93: =CRCP_y4 -> 2019-20 | E93: =CRCP_y5 -> 2020-21 | F93: =FRCP_y1 -> 2021-22 | G93: =FRCP_y2 -> 2022-23 | H93: =FRCP_y3 -> 2023-24 | I93: =FRCP_y4 -> 2024-25 | J93: =FRCP_y5 -> 2025-26
A94: DPA0701 | B94: Public lighting luminaires | C94: 0's | D94: 52695.8805 | E94: 52701.58125 | F94: 52707.28201 | G94: 52708.28201 | H94: 52709.28201 | I94: 52710.28201 | J94: 52711.28201
A95: DPA0702 | B95: Public lighting poles | C95: 0's | D95: 9105.206325 | E95: 9116.025521 | F95: 9127.025521 | G95: 9138.025521 | H95: 9149.025521 | I95: 9160.025521 | J95: 9171.025521

Sheet 3.6 Quality of service
B1: =INDEX(dms_Worksheet_List,MATCH(dms_Model,dms_Model_List)) -> REGULATORY REPORTING STATEMENT
B2: =INDEX(dms_TradingNameFull_List,MATCH(dms_TradingName,dms_TradingName_List)) -> CitiPower
B3: =dms_Header_Span -> 2021-22 to 2025-26
B4: 3.6 QUALITY OF SERVICE DATA
B6: 3.6.2 - ENERGY NOT SUPPLIED
D7: Forecast
C8: Units | D8: =CRCP_y4 -> 2019-20 | E8: =CRCP_y5 -> 2020-21 | F8: =FRCP_y1 -> 2021-22 | G8: =FRCP_y2 -> 2022-23 | H8: =FRCP_y3 -> 2023-24 | I8: =FRCP_y4 -> 2024-25 | J8: =FRCP_y5 -> 2025-26
A9: DQS0201 | B9: Energy Not Supplied (planned) | C9: GWh | D9: 0.1896475778 | E9: 0.1908501949 | F9: 0.1915632099 | G9: 0.1929999348 | H9: 0.1944474351 | I9: 0.1959057916 | J9: 0.1973750856
A10: DQS0202 | B10: Energy Not Supplied (unplanned) | C10: GWh | D10: 0.2029830858 | E10: 0.2042702678 | F10: 0.20503342 | G10: 0.2065711716 | H10: 0.2081204563 | I10: 0.2096813604 | J10: 0.2112539713
A11: DQS02 | B11: Total | D11: =SUM(D9:D10) -> 0.3926306636 | E11: 0.3951204627 | F11: 0.3965966299 | G11: 0.3995711064 | H11: 0.4025678914 | I11: 0.405587152 | J11: 0.4086290569
B13: 3.6.3 - SYSTEM LOSSES
D14: Forecast
C15: Units | D15: =CRCP_y4 -> 2019-20 | E15: =CRCP_y5 -> 2020-21 | F15: =FRCP_y1 -> 2021-22 | G15: =FRCP_y2 -> 2022-23 | H15: =FRCP_y3 -> 2023-24 | I15: =FRCP_y4 -> 2024-25 | J15: =FRCP_y5 -> 2025-26
A16: DQS03 | B16: System losses | C16: % | D16: 0.04057501589 | E16: 0.04057501589 | F16: 0.04057501589 | G16: 0.04057501589 | H16: 0.04057501589 | I16: 0.04057501589 | J16: 0.04057501589
B18: 3.6.4 - CAPACITY UTILISATION
D19: Forecast
C20: Units | D20: =CRCP_y4 -> 2019-20 | E20: =CRCP_y5 -> 2020-21 | F20: =FRCP_y1 -> 2021-22 | G20: =FRCP_y2 -> 2022-23 | H20: =FRCP_y3 -> 2023-24 | I20: =FRCP_y4 -> 2024-25 | J20: =FRCP_y5 -> 2025-26
A21: DQS04 | B21: Overall utilisation | C21: % | D21: 0.5175393041 | E21: 0.5155562241 | F21: 0.5131713865 | G21: 0.5240827425 | H21: 0.5200578923 | I21: 0.5080248213 | J21: 0.5450886758

Sheet 3.7 Operating Environment
B1: =INDEX(dms_Worksheet_List,MATCH(dms_Model,dms_Model_List)) -> REGULATORY REPORTING STATEMENT
B2: =INDEX(dms_TradingNameFull_List,MATCH(dms_TradingName,dms_TradingName_List)) -> CitiPower
B3: =dms_Header_Span -> 2021-22 to 2025-26
B4: 3.7 OPERATING ENVIRONMENT FACTORS
B6: There are THREE tables on this worksheet. Each table has been grouped (and sub-grouped) for ease of navigation. See the Instructions sheet on how to group or ungroup tables.
A8: DOEF01 | B8: 3.7.1 - DENSITY FACTORS
D9: Forecast
C10: Units | D10: =CRCP_y4 -> 2019-20 | E10: =CRCP_y5 -> 2020-21 | F10: =FRCP_y1 -> 2021-22 | G10: =FRCP_y2 -> 2022-23 | H10: =FRCP_y3 -> 2023-24 | I10: =FRCP_y4 -> 2024-25 | J10: =FRCP_y5 -> 2025-26
A11: DOEF0101 | B11: Customer density | C11: Customer / km | D11: 108.6964706
A12: DOEF0102 | B12: Energy density | C12: MWh/customer | D12: 16.45032905
A13: DOEF0103 | B13: Demand density | C13: kVA / customer | D13: 3.926068865
A15: DOEF02 | B15: 3.7.2 - TERRAIN FACTORS
D16: Forecast
C17: Units | D17: =CRCP_y4 -> 2019-20 | E17: =CRCP_y5 -> 2020-21 | F17: =FRCP_y1 -> 2021-22 | G17: =FRCP_y2 -> 2022-23 | H17: =FRCP_y3 -> 2023-24 | I17: =FRCP_y4 -> 2024-25 | J17: =FRCP_y5 -> 2025-26
A18: DOEF0201 | B18: Rural proportion | C18: % | D18: 0
A19: DOEF0202 | B19: Urban and CBD vegetation maintenance spans | C19: 0's | D19: 12700
A20: DOEF0203 | B20: Rural vegetation maintenance spans | C20: 0's | D20: 0
A21: DOEF0204 | B21: Total vegetation maintenance spans | C21: 0's | D21: 12700
A22: DOEF0205 | B22: Total number of spans | C22: 0's | D22: 60406
A23: DOEF0206 | B23: Average urban and CBD vegetation maintenance span cycle | C23: Years | D23: 3.377007874
A24: DOEF0207 | B24: Average rural vegetation maintenance span cycle | C24: Years | D24: -
A25: DOEF0208 | B25: Average number of trees per urban and CBD vegetation maintenance span | C25: Trees | D25: 2.971666667
A26: DOEF0209 | B26: Average number of trees per rural vegetation maintenance span | C26: Trees | D26: -
A27: DOEF0210 | B27: Average number of defects per urban and CBD vegetation maintenance span | C27: Defects | D27: 1
A28: DOEF0211 | B28: Average number of defects per rural vegetation maintenance span | C28: Defects | D28: -
A29: DOEF0212 | B29: Tropical proportion | C29: Spans | D29: -
A30: DOEF0213 | B30: Standard vehicle access | C30: km | D30: - | E30: - | F30: - | G30: - | H30: - | I30: - | J30: -
A31: DOEF0214 | B31: Bushfire risk | C31: Spans | D31: -
A33: DOEF03 | B33: 3.7.3 - SERVICE AREA FACTORS
D34: Forecast
C35: Units | D35: =CRCP_y4 -> 2019-20 | E35: =CRCP_y5 -> 2020-21 | F35: =FRCP_y1 -> 2021-22 | G35: =FRCP_y2 -> 2022-23 | H35: =FRCP_y3 -> 2023-24 | I35: =FRCP_y4 -> 2024-25 | J35: =FRCP_y5 -> 2025-26
A36: DOEF0301 | B36: Route Line length | C36: km | D36: 3224.692586 | E36: 3231.805906 | F36: 3238.934918 | G36: 3246.079655 | H36: 3253.240153 | I36: 3260.416446 | J36: 3267.60857

Sheet 4.1 Public lighting
B1: =INDEX(dms_Worksheet_List,MATCH(dms_Model,dms_Model_List)) -> REGULATORY REPORTING STATEMENT
B2: =INDEX(dms_TradingNameFull_List,MATCH(dms_TradingName,dms_TradingName_List)) -> CitiPower
B3: =dms_Header_Span -> 2021-22 to 2025-26
B4: 4.1 PUBLIC LIGHTING
B6: There are TWO tables on this worksheet. Each table has been grouped (and sub-grouped) for ease of navigation. See the Instructions sheet on how to group or ungroup tables.
B8: 4.1.2 - DESCRIPTOR METRICS ANNUALLY
D9: VOLUMES & EXPENDITURE
C10: Units | D10: =CRCP_y4 -> 2019-20 | E10: =CRCP_y5 -> 2020-21 | F10: =FRCP_y1 -> 2021-22 | G10: =FRCP_y2 -> 2022-23 | H10: =FRCP_y3 -> 2023-24 | I10: =FRCP_y4 -> 2024-25 | J10: =FRCP_y5 -> 2025-26
B11: LIGHT INSTALLATION
B12: Number of lights installed | C12: 0's | D12: 50 | E12: 50 | F12: 50 | G12: 50 | H12: 50 | I12: 50 | J12: 50
B13: Number of poles installed | C13: 0's | D13: 11 | E13: 11 | F13: 10.82562022 | G13: 10.83848369 | H13: 10.85136244 | I13: 10.86425649 | J13: 10.87716587
B14: Total expenditure | C14: $0's | D14: 2352065.162 | E14: 2381473.173 | F14: 2421879.923 | G14: 2472975.924 | H14: 2526917.463 | I14: 2577976.422 | J14: 2624200.883
B15: LIGHT REPLACEMENT
B16: Number of lights replaced | C16: 0's | D16: 1145.205892 | E16: 1030.62719 | F16: 950.4262372 | G16: 902.6777319 | H16: 857.9258098 | I16: 820.1146301 | J16: 786.9782492
B17: Number of poles replaced | C17: 0's | D17: 61 | E17: 61 | F17: 61 | G17: 61 | H17: 61 | I17: 61 | J17: 61
B18: Total expenditure | C18: $0's | D18: 1058585.055 | E18: 816670.6121 | F18: 610066.976 | G18: 615323.5578 | H18: 621014.388 | I18: 626465.1771 | J18: 628438.1138
B19: LIGHT MAINTENANCE
B20: Number of lights maintained | C20: 0's | D20: 11755.21842 | E20: 11764.43683 | F20: 11773.65525 | G20: 11782.87367 | H20: 11792.09208 | I20: 11801.3105 | J20: 11810.52892
B21: Number of poles maintained | C21: 0's | D21: 0 | E21: 0 | F21: 0 | G21: 0 | H21: 0 | I21: 0 | J21: 0
B22: Total expenditure | C22: $0's | D22: 3179516.299 | E22: 2696306.796 | F22: 2213097.292 | G22: 2088867.219 | H22: 1966988.617 | I22: 1857296.833 | J22: 1759515.202
B23: QUALITY OF SUPPLY
B24: Mean days to rectify/replace public lighting assets | C24: days | D24: 1.925 | E24: 1.925 | F24: 1.925 | G24: 1.925 | H24: 1.925 | I24: 1.925 | J24: 1.925
B25: GSO breaches | C25: 0's | D25: 3 | E25: 3 | F25: 3 | G25: 3 | H25: 3 | I25: 3 | J25: 3
B26: GSL payments | C26: $0's | D26: 75 | E26: 75 | F26: 75 | G26: 75 | H26: 75 | I26: 75 | J26: 75
B27: Customer complaints | C27: 0's | D27: 0 | E27: 0 | F27: 0 | G27: 0 | H27: 0 | I27: 0 | J27: 0
B31: 4.1.3 - COST METRICS
D32: =CONCATENATE("AVERAGE UNIT COST ($0's, real ",dms_DollarReal, ")") -> AVERAGE UNIT COST ($0's, real June 2021)
D33: =CRCP_y4 -> 2019-20 | E33: =CRCP_y5 -> 2020-21 | F33: =FRCP_y1 -> 2021-22 | G33: =FRCP_y2 -> 2022-23 | H33: =FRCP_y3 -> 2023-24 | I33: =FRCP_y4 -> 2024-25 | J33: =FRCP_y5 -> 2025-26
B34: LIGHT INSTALLATION
B35: Major road | D35: 1554.548965 | E35: 1573.985583 | F35: 1600.691591 | G35: 1634.46244 | H35: 1670.113987 | I35: 1703.860353 | J35: 1734.411457
B36: Minor road | D36: 574.6 | E36: 581.7842581 | F36: 591.6554636 | G36: 604.1380099 | H36: 617.3157095 | I36: 629.7892065 | J36: 641.0816552
B95: LIGHT REPLACEMENT
B96: Major road | D96: 1202.587556 | E96: 1202.587556 | F96: 1217.623579 | G96: 1238.283149 | H96: 1264.408027 | I96: 1291.9878 | J96: 1318.093739
B97: Minor road | D97: 453.2577778 | E97: 453.2577778 | F97: 458.9248868 | G97: 466.7115222 | H97: 476.5580436 | I97: 486.952918 | J97: 496.7923011
B156: LIGHT MAINTENANCE
B157: Major/Minor - Routine Maintenance | C157: Major/Minor - Routine Maintenance | D157: 51.67744402 | E157: 52.43963251 | F157: 52.880765 | G157: 53.99642545 | H157: 55.17421705 | I157: 56.28906869 | J157: 57.29836103
B158: Major/Minor - Non-Routine Maintenance | C158: Major/Minor - Non-Routine Maintenance | D158: 217.0452649 | E158: 220.2464565 | F158: 222.099213 | G158: 226.7849869 | H158: 231.7317116 | I158: 236.4140885 | J158: 240.6531163

Sheet 4.2 Metering
B1: =INDEX(dms_Worksheet_List,MATCH(dms_Model,dms_Model_List)) -> REGULATORY REPORTING STATEMENT
B2: =INDEX(dms_TradingNameFull_List,MATCH(dms_TradingName,dms_TradingName_List)) -> CitiPower
B3: =dms_Header_Span -> 2021-22 to 2025-26
B4: 4.2 METERING
B6: There are TWO tables on this worksheet. Each table has been 'grouped' (and 'sub-grouped') for easy navigation. See the Instructions sheet on how to group or ungroup data.
B8: 4.2.1 - METERING DESCRIPTOR METRIC
E9: VOLUMES (0's)
B10: ASSET CATEGORY | C10: ASSET SUBCATEGORY | E10: =CRCP_y4 -> 2019-20 | F10: =CRCP_y5 -> 2020-21 | G10: =FRCP_y1 -> 2021-22 | H10: =FRCP_y2 -> 2022-23 | I10: =FRCP_y3 -> 2023-24 | J10: =FRCP_y4 -> 2024-25 | K10: =FRCP_y5 -> 2025-26
B11: Meter Type 4 | C11: Single phase meter population | E11: 273487.5506 | F11: 276792.2482 | G11: 283443.5688 | H11: 288247.4717 | I11: 291064.7004 | J11: 293738.7454 | K11: 296303.8224
C12: Multi phase meter population | E12: 68206.63237 | F12: 70341.67969 | G12: 73917.93919 | H12: 76334.4764 | I12: 78229.36172 | J12: 80052.56353 | K12: 81821.53993
C13: Current transformer connected meter population | E13: 3466.509863 | F13: 4062.825273 | G13: 4958.110059 | H13: 5534.345598 | I13: 6074.325302 | J13: 6597.275003 | K13: 7107.403129
C14: Direct connect meter population | E14: 338227.6732 | F14: 343071.1026 | G14: 352403.3979 | H14: 359047.6025 | I14: 363219.7368 | J14: 367194.034 | K14: 371017.9592
B15: Meter Type 5 | C15: Single phase meter population | E15: 234.5363103 | F15: 232.8964977 | G15: 167.1562028 | H15: 102.6766072 | I15: 101.9450379 | J15: 101.2134618 | K15: 100.4813844
C16: Multi phase meter population | E16: 160.5746523 | F16: 159.451959 | G16: 114.4430434 | H16: 70.29726219 | I16: 69.79639526 | J16: 69.29552361 | K16: 68.79430883
C17: Current transformer connected meter population | E17: 94.39843195 | F17: 93.7384244 | G17: 67.27863763 | H17: 41.32626929 | I17: 41.03182024 | J17: 40.73736842 | K17: 40.44271489
C18: Direct connect meter population | E18: 300.7125306 | F18: 298.6100324 | G18: 214.3206085 | H18: 131.6476001 | I18: 130.7096129 | J18: 129.7716169 | K18: 128.8329784
B19: Meter Type 6 | C19: Single phase meter population | E19: 5067.48578 | F19: 5032.055331 | G19: 3611.644097 | H19: 2218.472041 | I19: 2202.665461 | J19: 2186.858732 | K19: 2171.041175
C20: Multi phase meter population | E20: 3002.0608 | F20: 2981.071227 | G20: 2139.596565 | H20: 1314.258833 | I20: 1304.894759 | J20: 1295.530596 | K20: 1286.160019
C21: Current transformer connected meter population | E21: 145.6790445 | F21: 144.6604972 | G21: 103.8268056 | H21: 63.77618036 | I21: 63.32177603 | J21: 62.86736743 | K21: 62.41264753
C22: Direct connect meter population | E22: 7923.867535 | F22: 7868.46606 | G22: 5647.413856 | H22: 3468.954693 | I22: 3444.238444 | J22: 3419.521961 | K22: 3394.788546
B25: 4.2.2 - COST METRICS
B26: EXPENDITURE
E27: =CONCATENATE("EXPENDITURE ($0's, real ",dms_DollarReal,")") -> EXPENDITURE ($0's, real June 2021)
B28: SERVICE SUBCATEGORY | C28: METER TYPE | E28: =CRCP_y4 -> 2019-20 | F28: =CRCP_y5 -> 2020-21 | G28: =FRCP_y1 -> 2021-22 | H28: =FRCP_y2 -> 2022-23 | I28: =FRCP_y3 -> 2023-24 | J28: =FRCP_y4 -> 2024-25 | K28: =FRCP_y5 -> 2025-26
B29: Meter purchase | D29: Meter Type 4 | E29: 2499876.65 | F29: 2656182.775 | G29: 3380451.986 | H29: 3529096.347 | I29: 3196221.946 | J29: 3444557.645 | K29: 3961105.565
D30: Meter Type 5 | E30: 0 | F30: 0 | G30: 0 | H30: 0 | I30: 0 | J30: 0 | K30: 0
D31: Meter Type 6 | E31: 0 | F31: 0 | G31: 0 | H31: 0 | I31: 0 | J31: 0 | K31: 0
B32: Meter testing | D32: Meter Type 4 | E32: 621638.798 | F32: 637519.4916 | G32: 664735.2183 | H32: 683947.2226 | I32: 703139.9185 | J32: 721082.65 | K32: 738077.11
D33: Meter Type 5 | E33: 0 | F33: 0 | G33: 0 | H33: 0 | I33: 0 | J33: 0 | K33: 0
D34: Meter Type 6 | E34: 0 | F34: 0 | G34: 0 | H34: 0 | I34: 0 | J34: 0 | K34: 0
B35: Meter investigation | D35: Meter Type 4 | E35: 34951.12504 | F35: 35844.00385 | G35: 37374.18547 | H35: 38454.36446 | I35: 39533.45784 | J35: 40542.27301 | K35: 41497.77241
D36: Meter Type 5 | E36: 1.452213239 | F36: 1.4893122 | G36: 1.087023688 | H36: 1.118440564 | I36: 1.149825865 | J36: 1.179167133 | K36: 1.206957718
D37: Meter Type 6 | E37: 13.51622582 | F37: 13.86151804 | G37: 10.11728667 | H37: 10.40969386 | I37: 10.70180717 | J37: 10.97489599 | K37: 11.2335521
B38: Scheduled meter reading | D38: Meter Type 4 | E38: 0 | F38: 0 | G38: 0 | H38: 0 | I38: 0 | J38: 0 | K38: 0
D39: Meter Type 5 | E39: 50866.35386 | F39: 52165.81101 | G39: 38074.93976 | H39: 39175.37177 | I39: 40274.69781 | J39: 41302.42796 | K39: 42275.84267
D40: Meter Type 6 | E40: 473429.8704 | F40: 485524.3451 | G40: 354375.976 | H40: 364618.0583 | I40: 374849.847 | J40: 384415.2692 | K40: 393475.1598
B41: Special meter reading | D41: Meter Type 4 | E41: 0 | F41: 0 | G41: 0 | H41: 0 | I41: 0 | J41: 0 | K41: 0
D42: Meter Type 5 | E42: 0 | F42: 0 | G42: 0 | H42: 0 | I42: 0 | J42: 0 | K42: 0
D43: Meter Type 6 | E43: 0 | F43: 0 | G43: 0 | H43: 0 | I43: 0 | J43: 0 | K43: 0
B44: New meter installation | D44: Meter Type 4 | E44: 6376976.039 | F44: 6504221.096 | G44: 6414819.003 | H44: 6223242.242 | I44: 6106059.611 | J44: 5984190.579 | K44: 5901876.42
D45: Meter Type 5 | E45: 0 | F45: 0 | G45: 0 | H45: 0 | I45: 0 | J45: 0 | K45: 0
D46: Meter Type 6 | E46: 0 | F46: 0 | G46: 0 | H46: 0 | I46: 0 | J46: 0 | K46: 0
B47: Meter replacement | D47: Meter Type 4 | E47: 722065.1701 | F47: 840728.233 | G47: 2346334.651 | H47: 2658802.892 | I47: 1735853.669 | J47: 2158965.12 | K47: 2990091.007
D48: Meter Type 5 | E48: 0 | F48: 0 | G48: 0 | H48: 0 | I48: 0 | J48: 0 | K48: 0
D49: Meter Type 6 | E49: 0 | F49: 0 | G49: 0 | H49: 0 | I49: 0 | J49: 0 | K49: 0
B50: Meter maintenance | D50: Meter Type 4 | E50: 0 | F50: 0 | G50: 0 | H50: 0 | I50: 0 | J50: 0 | K50: 0
D51: Meter Type 5 | E51: 0 | F51: 0 | G51: 0 | H51: 0 | I51: 0 | J51: 0 | K51: 0
D52: Meter Type 6 | E52: 0 | F52: 0 | G52: 0 | H52: 0 | I52: 0 | J52: 0 | K52: 0
B53: Remote meter reading | D53: Meter Type 4 | E53: 243379.8414 | F53: 249597.3438 | G53: 260252.6621 | H53: 267774.4168 | I53: 275288.612 | J53: 282313.4296 | K53: 288966.9862
B54: Remote meter re-configuration | D54: Meter Type 4 | E54: 72.42360469 | F54: 74.27377409 | G54: 77.44452379 | H54: 79.68280526 | I54: 81.91883722 | J54: 84.00924293 | K54: 85.98917092
B55: Other metering | D55: Meter Type 4 | E55: 1449619.822 | F55: 1486652.53 | G55: 1550117.772 | H55: 1594918.873 | I55: 1639674.947 | J55: 1681516.189 | K55: 1721146.126
D56: Meter Type 5 | E56: 4084.759159 | F56: 4189.110446 | G56: 3057.56059 | H56: 3145.929411 | I56: 3234.209419 | J56: 3316.740007 | K56: 3394.908863
D57: Meter Type 6 | E57: 38018.19577 | F57: 38989.42749 | G57: 28457.72114 | H57: 29280.19879 | I57: 30101.84984 | J57: 30869.98915 | K57: 31597.53237
D58: Meter Type 7 | E58: 0 | F58: 0 | G58: 0 | H58: 0 | I58: 0 | J58: 0 | K58: 0
B59: IT infrastructure capex | D59: Meter Type 4 | E59: 192863.3058 | F59: 195621.2511 | G59: 166066.6261 | H59: 0 | I59: 173339.3897 | J59: 0 | K59: 179672.7775
B60: IT infrastructure opex | D60: Meter Type 4 | E60: 2194382.397 | F60: 2250441.18 | G60: 2346512.583 | H60: 2414330.879 | I60: 2482081.016 | J60: 2545418.785 | K60: 2605409.159
B61: Communications infrastructure capex | D61: Meter Type 4 | E61: 339771.1753 | F61: 339771.1753 | G61: 41162.497 | H61: 42163.8981 | I61: 43000.26122 | J61: 45547.34017 | K61: 89435.4689
B62: Communications infrastructure opex | D62: Meter Type 4 | E62: 709349.2349 | F62: 727470.6229 | G62: 91023.16394 | H62: 93653.89174 | I62: 96281.97561 | J62: 98738.90003 | K62: 101065.9763
B64: VOLUMES
E65: VOLUMES (0's)
B66: SERVICE SUBCATEGORY | C66: METER TYPE | E66: =CRCP_y4 -> 2019-20 | F66: =CRCP_y5 -> 2020-21 | G66: =FRCP_y1 -> 2021-22 | H66: =FRCP_y2 -> 2022-23 | I66: =FRCP_y3 -> 2023-24 | J66: =FRCP_y4 -> 2024-25 | K66: =FRCP_y5 -> 2025-26
B67: Meter purchase | D67: Meter Type 4 | E67: 5590.964443 | F67: 8901.826028 | G67: 9477.997466 | H67: 12353.96439 | I67: 12893.42896 | J67: 11442.08554 | K67: 12339.99271
D68: Meter Type 5 | E68: 0 | F68: 0 | G68: 0 | H68: 0 | I68: 0 | J68: 0 | K68: 0
D69: Meter Type 6 | E69: 0 | F69: 0 | G69: 0 | H69: 0 | I69: 0 | J69: 0 | K69: 0
B70: Meter testing | D70: Meter Type 4 | E70: 1802.395329 | F70: 1831.089323 | G70: 1885.038566 | H70: 1923.125511 | I70: 1947.981341 | J70: 1971.703772 | K70: 1994.565377
D71: Meter Type 5 | E71: 0 | F71: 0 | G71: 0 | H71: 0 | I71: 0 | J71: 0 | K71: 0
D72: Meter Type 6 | E72: 0 | F72: 0 | G72: 0 | H72: 0 | I72: 0 | J72: 0 | K72: 0
B73: Meter investigation | D73: Meter Type 4 | E73: 140.0994509 | F73: 142.3298232 | G73: 146.5232758 | H73: 149.4837585 | I73: 151.4157919 | J73: 153.2597268 | K73: 155.03675
D74: Meter Type 5 | E74: 0 | F74: 0 | G74: 0 | H74: 0 | I74: 0 | J74: 0 | K74: 0
D75: Meter Type 6 | E75: 0 | F75: 0 | G75: 0 | H75: 0 | I75: 0 | J75: 0 | K75: 0
B76: Scheduled meter reading | D76: Meter Type 4 | E76: 0 | F76: 0 | G76: 0 | H76: 0 | I76: 0 | J76: 0 | K76: 0
D77: Meter Type 5 | E77: 5811.322555 | F77: 5770.691406 | G77: 4141.783462 | H77: 2544.113031 | I77: 2525.986264 | J77: 2507.859326 | K77: 2489.71997
D78: Meter Type 6 | E78: 54087.88865 | F78: 53709.72119 | G78: 38548.9397 | H78: 23678.89599 | I78: 23510.18421 | J78: 23341.47084 | K78: 23172.6419
B79: Special meter reading | D79: Meter Type 4 | E79: 0 | F79: 0 | G79: 0 | H79: 0 | I79: 0 | J79: 0 | K79: 0
D80: Meter Type 5 | E80: 0 | F80: 0 | G80: 0 | H80: 0 | I80: 0 | J80: 0 | K80: 0
D81: Meter Type 6 | E81: 0 | F81: 0 | G81: 0 | H81: 0 | I81: 0 | J81: 0 | K81: 0
B82: New meter installation | D82: Meter Type 4 | E82: 7675.617478 | F82: 7828.775396 | G82: 7721.166984 | H82: 7465.897047 | I82: 7309.754921 | J82: 7147.368314 | K82: 7037.687318
D83: Meter Type 5 | E83: 0 | F83: 0 | G83: 0 | H83: 0 | I83: 0 | J83: 0 | K83: 0
D84: Meter Type 6 | E84: 0 | F84: 0 | G84: 0 | H84: 0 | I84: 0 | J84: 0 | K84: 0
B85: Meter replacement | D85: Meter Type 4 | E85: 2035.169108 | F85: 2336.838544 | G85: 5158.621768 | H85: 5832.012194 | I85: 4415.46681 | J85: 5354.416504 | K85: 7202.079933
D86: Meter Type 5 | E86: 0 | F86: 0 | G86: 0 | H86: 0 | I86: 0 | J86: 0 | K86: 0
D87: Meter Type 6 | E87: 0 | F87: 0 | G87: 0 | H87: 0 | I87: 0 | J87: 0 | K87: 0
B88: Meter maintenance | D88: Meter Type 4 | E88: 0 | F88: 0 | G88: 0 | H88: 0 | I88: 0 | J88: 0 | K88: 0
D89: Meter Type 5 | E89: 0 | F89: 0 | G89: 0 | H89: 0 | I89: 0 | J89: 0 | K89: 0
D90: Meter Type 6 | E90: 0 | F90: 0 | G90: 0 | H90: 0 | I90: 0 | J90: 0 | K90: 0
B91: Remote meter reading | D91: Meter Type 4 | E91: 328094.4032 | F91: 333317.6406 | G91: 343138.1526 | H91: 350071.2117 | I91: 354595.7788 | J91: 358914.0306 | K91: 363075.5842
B92: Remote meter re-configuration | D92: Meter Type 4 | E92: 1380.991171 | F92: 1402.976443 | G92: 1444.31223 | H92: 1473.494359 | I92: 1492.538839 | J92: 1510.714911 | K92: 1528.231421

Sheet 4.3 Fee-based services
B1: =INDEX(dms_Worksheet_List,MATCH(dms_Model,dms_Model_List)) -> REGULATORY REPORTING STATEMENT
B2: =INDEX(dms_TradingNameFull_List,MATCH(dms_TradingName,dms_TradingName_List)) -> CitiPower
B3: =dms_Header_Span -> 2021-22 to 2025-26
B4: 4.3 ANCILLARY SERVICES - FEE BASED SERVICES
B6: There are TWO tables on this worksheet. The COLUMNS representing each table have been 'grouped' for easy navigation. See the Instructions sheet on how to group or ungroup data.
B8: 4.3.1 - COST METRICS FOR FEE-BASED SERVICES
B9: SERVICE SUBCATEGORY | C9: =CONCATENATE("EXPENDITURE ($0's, real ", dms_DollarReal, ")") -> EXPENDITURE ($0's, real June 2021) | J9: VOLUMES (0's)
C10: =CRCP_y4 -> 2019-20 | D10: =CRCP_y5 -> 2020-21 | E10: =FRCP_y1 -> 2021-22 | F10: =FRCP_y2 -> 2022-23 | G10: =FRCP_y3 -> 2023-24 | H10: =FRCP_y4 -> 2024-25 | I10: =FRCP_y5 -> 2025-26 | J10: =CRCP_y4 -> 2019-20 | K10: =CRCP_y5 -> 2020-21 | L10: =FRCP_y1 -> 2021-22 | M10: =FRCP_y2 -> 2022-23 | N10: =FRCP_y3 -> 2023-24 | O10: =FRCP_y4 -> 2024-25 | P10: =FRCP_y5 -> 2025-26
B11: COMMON FEE-BASED SERVICES
B12: Energisation
B13: De-energisation | C13: 179266.8712 | D13: 182852.2086 | E13: 179467.2835 | F13: 181261.9563 | G13: 183074.5759 | H13: 184905.3216 | I13: 186754.3749 | J13: 4535 | K13: 4535 | L13: 4534.752579 | M13: 4580.100105 | N13: 4625.901106 | O13: 4672.160117 | P13: 4718.881718
B14: Re-energisation | C14: 322946.448 | D14: 329405.3769 | E14: 323325.1276 | F14: 326558.3788 | G14: 329823.9626 | H14: 333122.2022 | I14: 336453.4243 | J14: 7889 | K14: 7889 | L14: 7889 | M14: 7967.89 | N14: 8047.5689 | O14: 8128.044589 | P14: 8209.325035
B15: MISCELLANEOUS FEE-BASED SERVICES
B16: Service (DNSP to nominate) | C16: 695934.7772 | D16: 697521.1055 | E16: 732562.9234 | F16: 747294.769 | G16: 756905.9908 | H16: 766076.4813 | I16: 774912.1963 | J16: 1802.083772 | K16: 1830.466974 | L16: 1883.976818 | M16: 1921.863606 | N16: 1946.581372 | O16: 1970.165682 | P16: 1992.88903
C17: 21348.85572 | D17: 21566.61405 | E17: 22979.52154 | F17: 22979.52154 | G17: 22979.52154 | H17: 22979.52154 | I17: 22979.52154 | J17: 50 | K17: 50 | L17: 50 | M17: 50 | N17: 50 | O17: 50 | P17: 50
C18: 14197.94044 | D18: 14342.75943 | E18: 14431.23009 | F18: 14575.54239 | G18: 14721.29781 | H18: 14868.51079 | I18: 15017.1959 | J18: 450 | K18: 450 | L18: 450 | M18: 454.5 | N18: 459.045 | O18: 463.63545 | P18: 468.2718045
C19: 1628740 | D19: 1692500 | E19: 0 | F19: 0 | G19: 0 | H19: 0 | I19: 0 | J19: 2627 | K19: 2708 | L19: 0 | M19: 0 | N19: 0 | O19: 0 | P19: 0
C20: 379668 | D20: 383313 | E20: 0 | F20: 0 | G20: 0 | H20: 0 | I20: 0 | J20: 1043 | K20: 1043 | L20: 0 | M20: 0 | N20: 0 | O20: 0 | P20: 0
C21: 85265 | D21: 85896 | E21: 86023.18587 | F21: 86023.18587 | G21: 86023.18587 | H21: 86023.18587 | I21: 86023.18587 | J21: 1443 | K21: 1443 | L21: 1443.498721 | M21: 1443.498721 | N21: 1443.498721 | O21: 1443.498721 | P21: 1443.498721
C22: 487030.8205 | D22: 496394.3463 | E22: 0 | F22: 0 | G22: 0 | H22: 0 | I22: 0 | J22: 44054.2 | K22: 44054.2 | L22: 0 | M22: 0 | N22: 0 | O22: 0 | P22: 0
C23: 440640.9308 | D23: 449112.5769 | E23: 0 | F23: 0 | G23: 0 | H23: 0 | I23: 0 | J23: 39858.019 | K23: 39858.019 | L23: 0 | M23: 0 | N23: 0 | O23: 0 | P23: 0
C24: 0 | D24: 0 | E24: 133483.3195 | F24: 133483.3195 | G24: 133483.3195 | H24: 133483.3195 | I24: 133483.3195 | J24: 0 | K24: 0 | L24: 378 | M24: 378 | N24: 378 | O24: 378 | P24: 378
C25: 0 | D25: 0 | E25: 104255.983 | F25: 104255.983 | G25: 104255.983 | H25: 104255.983 | I25: 104255.983 | J25: 0 | K25: 0 | L25: 164 | M25: 164 | N25: 164 | O25: 164 | P25: 164
C26: 0 | D26: 0 | E26: 1039509.322 | F26: 1039509.322 | G26: 1039509.322 | H26: 1039509.322 | I26: 1039509.322 | J26: 0 | K26: 0 | L26: 1721 | M26: 1721 | N26: 1721 | O26: 1721 | P26: 1721
C27: 0 | D27: 0 | E27: 387256.5248 | F27: 387256.5248 | G27: 387256.5248 | H27: 387256.5248 | I27: 387256.5248 | J27: 0 | K27: 0 | L27: 516 | M27: 516 | N27: 516 | O27: 516 | P27: 516
C28: 0 | D28: 0 | E28: 389611.5567 | F28: 389611.5567 | G28: 389611.5567 | H28: 389611.5567 | I28: 389611.5567 | J28: 0 | K28: 0 | L28: 1042.713764 | M28: 1042.713764 | N28: 1042.713764 | O28: 1042.713764 | P28: 1042.713764

Sheet 4.4 Quoted services
B1: =INDEX(dms_Worksheet_List,MATCH(dms_Model,dms_Model_List)) -> REGULATORY REPORTING STATEMENT
B2: =INDEX(dms_TradingNameFull_List,MATCH(dms_TradingName,dms_TradingName_List)) -> CitiPower
B3: =dms_Header_Span -> 2021-22 to 2025-26
B4: 4.4 ANCILLARY SERVICES - QUOTED SERVICES
B6: There are TWO tables on this worksheet. The COLUMNS representing each table have been 'grouped' for easy navigation. See the Instructions sheet on how to group or ungroup data.
B8: 4.4.1 - COST METRICS FOR QUOTED SERVICES
B9: SERVICE SUBCATEGORY | C9: =CONCATENATE("EXPENDITURE ($0's, real ", dms_DollarReal, ")") -> EXPENDITURE ($0's, real June 2021) | J9: VOLUMES (0's)
C10: =CRCP_y4 -> 2019-20 | D10: =CRCP_y5 -> 2020-21 | E10: =FRCP_y1 -> 2021-22 | F10: =FRCP_y2 -> 2022-23 | G10: =FRCP_y3 -> 2023-24 | H10: =FRCP_y4 -> 2024-25 | I10: =FRCP_y5 -> 2025-26 | J10: =CRCP_y4 -> 2019-20 | K10: =CRCP_y5 -> 2020-21 | L10: =FRCP_y1 -> 2021-22 | M10: =FRCP_y2 -> 2022-23 | N10: =FRCP_y3 -> 2023-24 | O10: =FRCP_y4 -> 2024-25 | P10: =FRCP_y5 -> 2025-26
B11: Recoverable Works | C11: 39800391.14 | D11: 34549554.63 | E11: 39160322.2 | F11: 36645778.03 | G11: 26492565.3 | H11: 26668684.21 | I11: 26745257.64 | J11: 249.6463325 | K11: 261.9603574 | L11: 264.9157234 | M11: 271.1548294 | N11: 272.9608864 | O11: 274.8490369 | P11: 275.6699719
B12: Audit design and construction | C12: 4587.68402 | D12: 4755.641426 | E12: 4755.641426 | F12: 4755.641426 | G12: 4755.641426 | H12: 4755.641426 | I12: 4755.641426 | J12: 2 | K12: 2 | L12: 2 | M12: 2 | N12: 2 | O12: 2 | P12: 2
B13: Specification and design enquiry | C13: 7272376.683 | D13: 7538622.029 | E13: 7538622.029 | F13: 7538622.029 | G13: 7538622.029 | H13: 7538622.029 | I13: 7538622.029 | J13: 1015 | K13: 1015 | L13: 1015 | M13: 1015 | N13: 1015 | O13: 1015 | P13: 1015
B14: High load escorts–surveying and lifting overhead lines | C14: 77811.73545 | D14: 80660.46199 | E14: 80660.46199 | F14: 80660.46199 | G14: 80660.46199 | H14: 80660.46199 | I14: 80660.46199 | J14: 0 | K14: 0 | L14: 9 | M14: 9 | N14: 9 | O14: 9 | P14: 9
B15: No-go zone safety-related services | C15: 1529467.067 | D15: 1585461.621 | E15: 1585461.621 | F15: 1585461.621 | G15: 1585461.621 | H15: 1585461.621 | I15: 1585461.621 | J15: 836 | K15: 836 | L15: 836 | M15: 836 | N15: 836 | O15: 836 | P15: 836
B16: Elective undergrounding | C16: 830696.3827 | D16: 861108.5926 | E16: 861108.5926 | F16: 861108.5926 | G16: 861108.5926 | H16: 861108.5926 | I16: 861108.5926 | J16: 139 | K16: 139 | L16: 139 | M16: 139 | N16: 139 | O16: 139 | P16: 139
B17: Reserve feeder maintenance | C17: 66151.74035 | D17: 68573.58864 | E17: 68573.58864 | F17: 68573.58864 | G17: 68573.58864 | H17: 68573.58864 | I17: 68573.58864 | J17: 17 | K17: 17 | L17: 17 | M17: 17 | N17: 17 | O17: 17 | P17: 17

Sheet 5.4 MD & utilisation-Spatial
B1: =INDEX(dms_Worksheet_List,MATCH(dms_Model,dms_Model_List)) -> REGULATORY REPORTING STATEMENT
B2: =INDEX(dms_TradingNameFull_List,MATCH(dms_TradingName,dms_TradingName_List)) -> CitiPower
B3: =dms_Header_Span -> 2021-22 to 2025-26
B4: 5.4 MAXIMUM DEMAND AND UTILISATION AT SPATIAL LEVEL
B6: There are two tables on this worksheet. The tables have been sub-grouped for ease of navigation. See the Instructions sheet on how to group or ungroup tables.
B8: 5.4.1 - NON-COINCIDENT & COINCIDENT MAXIMUM DEMAND
B9: SUBTRANSMISSION SUBSTATION
F10: Demand
B11: SUBSTATION | C11: FORECASTING ELEMENTS | D11: UNIT | E11: MAX DEMAND | F11: =CRCP_y4 -> 2019-20 | G11: =CRCP_y5 -> 2020-21 | H11: =FRCP_y1 -> 2021-22 | I11: =FRCP_y2 -> 2022-23 | J11: =FRCP_y3 -> 2023-24 | K11: =FRCP_y4 -> 2024-25 | L11: =FRCP_y5 -> 2025-26
B12: AP | C12: Substation Rating | D12: MVA | E12: Non-Coincident | F12: 87 | G12: 87 | H12: 87 | I12: 87 | J12: 87 | K12: 87 | L12: 87
E13: Coincident | F13: 87 | G13: 87 | H13: 87 | I13: 87 | J13: 87 | K13: 87 | L13: 87
C14: Raw Adjusted MD | D14: MW | E14: Non-Coincident
E15: Coincident
C16: Raw Adjusted MD | D16: MVA | E16: Non-Coincident
E17: Coincident
C18: Date MD occurred | E18: Non-Coincident
E19: Coincident
C20: Half hour time period MD occurred | E20: Non-Coincident
E21: Coincident
C22: Winter/Summer Peaking | E22: Non-Coincident | F22: Summer | G22: Summer | H22: Summer | I22: Summer | J22: Summer | K22: Summer | L22: Summer
E23: Coincident | F23: Summer | G23: Summer | H23: Summer | I23: Summer | J23: Summer | K23: Summer | L23: Summer
C24: Adjustments - Embedded generation | D24: MW | E24: Non-Coincident | F24: 0 | G24: 0 | H24: 0 | I24: 0 | J24: 0 | K24: 0 | L24: 0
E25: Coincident | F25: 0 | G25: 0 | H25: 0 | I25: 0 | J25: 0 | K25: 0 | L25: 0
C26: Weather Corrected 10% POE | D26: MW | E26: Non-Coincident | F26: 57.517 | G26: 57.959 | H26: 60.644 | I26: 63.062 | J26: 65.878 | K26: 67.934 | L26: 72.836
E27: Coincident | F27: 0 | G27: 0 | H27: 0 | I27: 0 | J27: 0 | K27: 0 | L27: 0
C28: Weather Corrected MD 10% POE | D28: MVA | E28: Non-Coincident | F28: 57.517 | G28: 57.959 | H28: 60.644 | I28: 63.062 | J28: 65.878 | K28: 67.934 | L28: 72.836
E29: Coincident | F29: 0 | G29: 0 | H29: 0 | I29: 0 | J29: 0 | K29: 0 | L29: 0
C30: Weather Corrected MD 50% POE | D30: MW | E30: Non-Coincident | F30: 49.68 | G30: 49.22 | H30: 49.958 | I30: 51.467 | J30: 52.884 | K30: 53.311 | L30: 55.749
E31: Coincident | F31: 0 | G31: 0 | H31: 0 | I31: 0 | J31: 0 | K31: 0 | L31: 0
C32: Weather Corrected MD 50% POE | D32: MVA | E32: Non-Coincident | F32: 49.68 | G32: 49.22 | H32: 49.958 | I32: 51.467 | J32: 52.884 | K32: 53.311 | L32: 55.749
E33: Coincident | F33: 0 | G33: 0 | H33: 0 | I33: 0 | J33: 0 | K33: 0 | L33: 0
B34: AR | C34: Substation Rating | D34: MVA | E34: Non-Coincident | F34: 60 | G34: 60 | H34: 60 | I34: 60 | J34: 60 | K34: 60 | L34: 60
E35: Coincident | F35: 60 | G35: 60 | H35: 60 | I35: 60 | J35: 60 | K35: 60 | L35: 60
C36: Raw Adjusted MD | D36: MW | E36: Non-Coincident
E37: Coincident
C38: Raw Adjusted MD | D38: MVA | E38: Non-Coincident
E39: Coincident
C40: Date MD occurred | E40: Non-Coincident
E41: Coincident
C42: Half hour time period MD occurred | E42: Non-Coincident
E43: Coincident
C44: Winter/Summer Peaking | E44: Non-Coincident | F44: Summer | G44: Summer | H44: Summer | I44: Summer | J44: Summer | K44: Summer | L44: Summer
E45: Coincident | F45: Summer | G45: Summer | H45: Summer | I45: Summer | J45: Summer | K45: Summer | L45: Summer
C46: Adjustments - Embedded generation | D46: MW | E46: Non-Coincident | F46: 0 | G46: 0 | H46: 0 | I46: 0 | J46: 0 | K46: 0 | L46: 0
E47: Coincident | F47: 0 | G47: 0 | H47: 0 | I47: 0 | J47: 0 | K47: 0 | L47: 0
C48: Weather Corrected 10% POE | D48: MW | E48: Non-Coincident | F48: 35.437 | G48: 35.13 | H48: 36.846 | I48: 35.554 | J48: 36.66 | K48: 37.007 | L48: 37.929
E49: Coincident | F49: 0 | G49: 0 | H49: 0 | I49: 0 | J49: 0 | K49: 0 | L49: 0
C50: Weather Corrected MD 10% POE | D50: MVA | E50: Non-Coincident | F50: 35.437 | G50: 35.13 | H50: 36.846 | I50: 35.554 | J50: 36.66 | K50: 37.007 | L50: 37.929
E51: Coincident | F51: 0 | G51: 0 | H51: 0 | I51: 0 | J51: 0 | K51: 0 | L51: 0
C52: Weather Corrected MD 50% POE | D52: MW | E52: Non-Coincident | F52: 30.433 | G52: 30.238 | H52: 31.823 | I52: 32.009 | J52: 32.429 | K52: 32.225 | L52: 33.403
E53: Coincident | F53: 0 | G53: 0 | H53: 0 | I53: 0 | J53: 0 | K53: 0 | L53: 0
C54: Weather Corrected MD 50% POE | D54: MVA | E54: Non-Coincident | F54: 30.433 | G54: 30.238 | H54: 31.823 | I54: 32.009 | J54: 32.429 | K54: 32.225 | L54: 33.403
E55: Coincident | F55: 0 | G55: 0 | H55: 0 | I55: 0 | J55: 0 | K55: 0 | L55: 0
B56: B | C56: Substation Rating | D56: MVA | E56: Non-Coincident | F56: 54 | G56: 54 | H56: 54 | I56: 54 | J56: 54 | K56: 54 | L56: 54
E57: Coincident | F57: 54 | G57: 54 | H57: 54 | I57: 54 | J57: 54 | K57: 54 | L57: 54
C58: Raw Adjusted MD | D58: MW | E58: Non-Coincident
E59: Coincident
C60: Raw Adjusted MD | D60: MVA | E60: Non-Coincident
E61: Coincident
C62: Date MD occurred | E62: Non-Coincident
E63: Coincident
C64: Half hour time period MD occurred | E64: Non-Coincident
E65: Coincident
C66: Winter/Summer Peaking | E66: Non-Coincident | F66: Summer | G66: Summer | H66: Summer | I66: Summer | J66: Summer | K66: Summer | L66: Summer
E67: Coincident | F67: Summer | G67: Summer | H67: Summer | I67: Summer | J67: Summer | K67: Summer | L67: Summer
C68: Adjustments - Embedded generation | D68: MW | E68: Non-Coincident | F68: 0 | G68: 0 | H68: 0 | I68: 0 | J68: 0 | K68: 0 | L68: 0
E69: Coincident | F69: 0 | G69: 0 | H69: 0 | I69: 0 | J69: 0 | K69: 0 | L69: 0
C70: Weather Corrected 10% POE | D70: MW | E70: Non-Coincident | F70: 32.974 | G70: 33.311 | H70: 32.837 | I70: 33.248 | J70: 33.672 | K70: 34.452 | L70: 35.855
E71: Coincident | F71: 0 | G71: 0 | H71: 0 | I71: 0 | J71: 0 | K71: 0 | L71: 0
C72: Weather Corrected MD 10% POE | D72: MVA | E72: Non-Coincident | F72: 33.684 | G72: 34.028 | H72: 33.544 | I72: 33.965 | J72: 34.398 | K72: 35.194 | L72: 36.627
E73: Coincident | F73: 0 | G73: 0 | H73: 0 | I73: 0 | J73: 0 | K73: 0 | L73: 0
C74: Weather Corrected MD 50% POE | D74: MW | E74: Non-Coincident | F74: 30.814 | G74: 30.805 | H74: 30.827 | I74: 31.247 | J74: 31.366 | K74: 32.366 | L74: 33.04
E75: Coincident | F75: 0 | G75: 0 | H75: 0 | I75: 0 | J75: 0 | K75: 0 | L75: 0
C76: Weather Corrected MD 50% POE | D76: MVA | E76: Non-Coincident | F76: 31.507 | G76: 31.498 | H76: 31.52 | I76: 31.95 | J76: 32.071 | K76: 33.094 | L76: 33.782
E77: Coincident | F77: 0 | G77: 0 | H77: 0 | I77: 0 | J77: 0 | K77: 0 | L77: 0
B78: BC | C78: Substation Rating | D78: MVA | E78: Non-Coincident | F78: 87 | G78: 87 | H78: 87 | I78: 87 | J78: 87 | K78: 87 | L78: 87
E79: Coincident | F79: 87 | G79: 87 | H79: 87 | I79: 87 | J79: 87 | K79: 87 | L79: 87
C80: Raw Adjusted MD | D80: MW | E80: Non-Coincident
E81: Coincident
C82: Raw Adjusted MD | D82: MVA | E82: Non-Coincident
E83: Coincident
C84: Date MD occurred | E84: Non-Coincident
E85: Coincident
C86: Half hour time period MD occurred | E86: Non-Coincident
E87: Coincident
C88: Winter/Summer Peaking | E88: Non-Coincident | F88: Winter | G88: Winter | H88: Winter | I88: Winter | J88: Winter | K88: Winter | L88: Winter
E89: Coincident | F89: Winter | G89: Winter | H89: Winter | I89: Winter | J89: Winter | K89: Winter | L89: Winter
C90: Adjustments - Embedded generation | D90: MW | E90: Non-Coincident | F90: 0 | G90: 0 | H90: 0 | I90: 0 | J90: 0 | K90: 0 | L90: 0
E91: Coincident | F91: 0 | G91: 0 | H91: 0 | I91: 0 | J91: 0 | K91: 0 | L91: 0
C92: Weather Corrected 10% POE | D92: MW | E92: Non-Coincident | F92: 40.111 | G92: 39.388 | H92: 40.049 | I92: 40.335 | J92: 40.839 | K92: 40.903 | L92: 40.813
E93: Coincident | F93: 0 | G93: 0 | H93: 0 | I93: 0 | J93: 0 | K93: 0 | L93: 0
C94: Weather Corrected MD 10% POE | D94: MVA | E94: Non-Coincident | F94: 40.627 | G94: 39.895 | H94: 40.564 | I94: 40.854 | J94: 41.364 | K94: 41.429 | L94: 41.338
E95: Coincident | F95: 0 | G95: 0 | H95: 0 | I95: 0 | J95: 0 | K95: 0 | L95: 0
C96: Weather Corrected MD 50% POE | D96: MW | E96: Non-Coincident | F96: 38.649 | G96: 37.658 | H96: 38.347 | I96: 38.741 | J96: 39.32 | K96: 39.12 | L96: 39.234
E97: Coincident | F97: 0 | G97: 0 | H97: 0 | I97: 0 | J97: 0 | K97: 0 | L97: 0
C98: Weather Corrected MD 50% POE | D98: MVA | E98: Non-Coincident | F98: 39.068 | G98: 38.066 | H98: 38.763 | I98: 39.161 | J98: 39.747 | K98: 39.544 | L98: 39.659
E99: Coincident | F99: 0 | G99: 0 | H99: 0 | I99: 0 | J99: 0 | K99: 0 | L99: 0
B100: BK | C100: Substation Rating | D100: MVA | E100: Non-Coincident | F100: 33 | G100: 33 | H100: 33 | I100: 33 | J100: 33 | K100: 33 | L100: 33
E101: Coincident | F101: 33 | G101: 33 | H101: 33 | I101: 33 | J101: 33 | K101: 33 | L101: 33
C102: Raw Adjusted MD | D102: MW | E102: Non-Coincident
E103: Coincident
C104: Raw Adjusted MD | D104: MVA | E104: Non-Coincident
E105: Coincident
C106: Date MD occurred | E106: Non-Coincident
E107: Coincident
C108: Half hour time period MD occurred | E108: Non-Coincident
E109: Coincident
C110: Winter/Summer Peaking | E110: Non-Coincident | F110: Summer | G110: Summer | H110: Winter | I110: Winter | J110: Summer | K110: Summer | L110: Summer
E111: Coincident | F111: Summer | G111: Summer | H111: Winter | I111: Winter | J111: Summer | K111: Summer | L111: Summer
C112: Adjustments - Embedded generation | D112: MW | E112: Non-Coincident | F112: 0 | G112: 0 | H112: 0 | I112: 0 | J112: 0 | K112: 0 | L112: 0
E113: Coincident | F113: 0 | G113: 0 | H113: 0 | I113: 0 | J113: 0 | K113: 0 | L113: 0
C114: Weather Corrected 10% POE | D114: MW | E114: Non-Coincident | F114: 15.514 | G114: 14.598 | H114: 14.2 | I114: 14.462 | J114: 0 | K114: 0 | L114: 0
E115: Coincident | F115: 0 | G115: 0 | H115: 0 | I115: 0 | J115: 0 | K115: 0 | L115: 0
C116: Weather Corrected MD 10% POE | D116: MVA | E116: Non-Coincident | F116: 16.053 | G116: 15.105 | H116: 14.693 | I116: 14.965 | J116: 0 | K116: 0 | L116: 0
E117: Coincident | F117: 0 | G117: 0 | H117: 0 | I117: 0 | J117: 0 | K117: 0 | L117: 0
C118: Weather Corrected MD 50% POE | D118: MW | E118: Non-Coincident | F118: 13.935 | G118: 12.987 | H118: 13.026 | I118: 12.836 | J118: 0 | K118: 0 | L118: 0
E119: Coincident | F119: 0 | G119: 0 | H119: 0 | I119: 0 | J119: 0 | K119: 0 | L119: 0
C120: Weather Corrected MD 50% POE | D120: MVA | E120: Non-Coincident | F120: 14.308 | G120: 13.334 | H120: 13.374 | I120: 13.178 | J120: 0 | K120: 0 | L120: 0
E121: Coincident | F121: 0 | G121: 0 | H121: 0 | I121: 0 | J121: 0 | K121: 0 | L121: 0
B122: BQ | C122: Substation Rating | D122: MVA | E122: Non-Coincident | F122: 110 | G122: 110 | H122: 110 | I122: 110 | J122: 165 | K122: 165 | L122: 165
E123: Coincident | F123: 110 | G123: 110 | H123: 110 | I123: 110 | J123: 165 | K123: 165 | L123: 165
C124: Raw Adjusted MD | D124: MW | E124: Non-Coincident
E125: Coincident
C126: Raw Adjusted MD | D126: MVA | E126: Non-Coincident
E127: Coincident
C128: Date MD occurred | E128: Non-Coincident
E129: Coincident
C130: Half hour time period MD occurred | E130: Non-Coincident
E131: Coincident
C132: Winter/Summer Peaking | E132: Non-Coincident | F132: Summer | G132: Winter | H132: Summer | I132: Summer | J132: Summer | K132: Summer | L132: Summer
E133: Coincident | F133: Summer | G133: Winter | H133: Summer | I133: Summer | J133: Summer | K133: Summer | L133: Summer
C134: Adjustments - Embedded generation | D134: MW | E134: Non-Coincident | F134: 0 | G134: 0 | H134: 0 | I134: 0 | J134: 0 | K134: 0 | L134: 0
E135: Coincident | F135: 0 | G135: 0 | H135: 0 | I135: 0 | J135: 0 | K135: 0 | L135: 0
C136: Weather Corrected 10% POE | D136: MW | E136: Non-Coincident | F136: 75.853 | G136: 71.677 | H136: 72.193 | I136: 72.927 | J136: 72.801 | K136: 73.816 | L136: 80.865
E137: Coincident | F137: 0 | G137: 0 | H137: 0 | I137: 0 | J137: 0 | K137: 0 | L137: 0
C138: Weather Corrected MD 10% POE | D138: MVA | E138: Non-Coincident | F138: 76.739 | G138: 72.513 | H138: 73.035 | I138: 73.778 | J138: 73.651 | K138: 74.678 | L138: 81.809
E139: Coincident | F139: 0 | G139: 0 | H139: 0 | I139: 0 | J139: 0 | K139: 0 | L139: 0
C140: Weather Corrected MD 50% POE | D140: MW | E140: Non-Coincident | F140: 67.27 | G140: 66.838 | H140: 64.81 | I140: 65.896 | J140: 65.866 | K140: 66.363 | L140: 72.546
E141: Coincident | F141: 0 | G141: 0 | H141: 0 | I141: 0 | J141: 0 | K141: 0 | L141: 0
C142: Weather Corrected MD 50% POE | D142: MVA | E142: Non-Coincident | F142: 68.047 | G142: 67.61 | H142: 65.559 | I142: 66.657 | J142: 66.627 | K142: 67.129 | L142: 73.384
E143: Coincident | F143: 0 | G143: 0 | H143: 0 | I143: 0 | J143: 0 | K143: 0 | L143: 0
B144: C | C144: Substation Rating | D144: MVA | E144: Non-Coincident | F144: 22.5 | G144: 22.5 | H144: 22.5 | I144: 0 | J144: 0 | K144: 0 | L144: 0
E145: Coincident | F145: 22.5 | G145: 22.5 | H145: 22.5 | I145: 0 | J145: 0 | K145: 0 | L145: 0
C146: Raw Adjusted MD | D146: MW | E146: Non-Coincident
E147: Coincident
C148: Raw Adjusted MD | D148: MVA | E148: Non-Coincident
E149: Coincident
C150: Date MD occurred | E150: Non-Coincident
E151: Coincident
C152: Half hour time period MD occurred | E152: Non-Coincident
E153: Coincident
C154: Winter/Summer Peaking | E154: Non-Coincident | F154: Summer | G154: Summer | H154: Summer | I154: Summer | J154: Summer | K154: Summer | L154: Summer
E155: Coincident | F155: Summer | G155: Summer | H155: Summer | I155: Summer | J155: Summer | K155: Summer | L155: Summer
C156: Adjustments - Embedded generation | D156: MW | E156: Non-Coincident | F156: 0 | G156: 0 | H156: 0 | I156: 0 | J156: 0 | K156: 0 | L156: 0
E157: Coincident | F157: 0 | G157: 0 | H157: 0 | I157: 0 | J157: 0 | K157: 0 | L157: 0
C158: Weather Corrected 10% POE | D158: MW | E158: Non-Coincident | F158: 11.589 | G158: 10.711 | H158: 10.939 | I158: 0 | J158: 0 | K158: 0 | L158: 0
E159: Coincident | F159: 0 | G159: 0 | H159: 0 | I159: 0 | J159: 0 | K159: 0 | L159: 0
C160: Weather Corrected MD 10% POE | D160: MVA | E160: Non-Coincident | F160: 11.789 | G160: 10.896 | H160: 11.128 | I160: 0 | J160: 0 | K160: 0 | L160: 0
E161: Coincident | F161: 0 | G161: 0 | H161: 0 | I161: 0 | J161: 0 | K161: 0 | L161: 0
C162: Weather Corrected MD 50% POE | D162: MW | E162: Non-Coincident | F162: 10.646 | G162: 9.908 | H162: 9.907 | I162: 0 | J162: 0 | K162: 0 | L162: 0
E163: Coincident | F163: 0 | G163: 0 | H163: 0 | I163: 0 | J163: 0 | K163: 0 | L163: 0
C164: Weather Corrected MD 50% POE | D164: MVA | E164: Non-Coincident | F164: 10.803 | G164: 10.054 | H164: 10.052 | I164: 0 | J164: 0 | K164: 0 | L164: 0
E165: Coincident | F165: 0 | G165: 0 | H165: 0 | I165: 0 | J165: 0 | K165: 0 | L165: 0
